{"text_format":"1","workbook":"xlsx","n_sheets":5,"sheets":["CS","クリアボタン","コピペ用","VL用","武器用"],"not_rendered":{"charts":0,"images":0,"macros":1,"external_links":0,"defined_names":20,"comments":0,"pivot_tables":0},"unopened":[],"bounds":{"document_bytes":16777216,"sheet_cells":100000,"rows_first":2000,"rows_last":500,"rows_between":2000,"halvings":0,"cell_chars":16384,"cell_head_chars":4096},"cells_cut":0,"cells_raw":0,"read":"whole","date_system":"1900"}

{"sheet":"CS","index":0,"n_rows":54,"n_cols":80,"rows_kept":54,"cut":false,"hidden":false,"merged":[[17,32,17,34],[17,35,17,38],[15,32,16,34],[15,35,16,38],[15,21,16,29],[15,30,15,31],[16,30,16,31],[14,42,15,46],[14,47,15,50],[16,42,17,46],[16,47,17,50],[18,21,18,38],[34,21,35,22],[36,34,37,37],[19,1,20,38],[20,42,20,79],[18,56,19,58],[18,59,19,59],[30,5,31,7],[30,8,31,10],[23,21,23,22],[21,56,22,73],[21,74,22,79],[29,61,30,63],[29,50,30,51],[29,59,30,60],[26,28,27,29],[30,28,31,29],[21,17,22,22],[23,56,24,67],[25,56,26,67],[31,69,32,79],[27,69,28,79],[29,69,30,79],[27,64,28,65],[31,57,32,58],[39,57,40,58],[35,57,36,58],[41,57,42,58],[45,57,46,58],[31,54,32,56],[41,54,42,56],[18,42,19,46],[27,50,28,51],[27,52,28,53],[27,43,28,49],[31,42,32,42],[23,42,24,55],[25,42,26,55],[29,52,30,53],[29,54,30,56],[31,52,32,53],[27,42,28,42],[29,42,30,42],[29,43,30,49],[21,42,22,55],[39,43,40,49],[18,47,19,50],[18,51,19,55],[23,68,24,79],[27,54,28,56],[37,50,38,51],[35,69,36,79],[31,66,32,68],[31,64,32,65],[31,59,32,60],[37,52,38,53],[39,69,40,79],[39,64,40,65],[39,61,40,63],[27,57,28,58],[27,61,28,63],[27,59,28,60],[27,66,28,68],[29,64,30,65],[29,66,30,68],[29,57,30,58],[25,68,26,79],[31,61,32,63],[35,52,36,53],[35,54,36,56],[33,57,34,58],[33,52,34,53],[53,69,54,79],[35,59,36,60],[35,61,36,63],[41,69,42,79],[35,66,36,68],[45,61,46,63],[45,59,46,60],[51,69,52,79],[47,61,48,63],[53,59,54,60],[53,61,54,63],[53,64,54,65],[53,66,54,68],[41,61,42,63],[41,64,42,65],[41,59,42,60],[39,66,40,68],[47,69,48,79],[45,69,46,79],[51,64,52,65],[49,69,50,79],[37,69,38,79],[43,64,44,65],[37,66,38,68],[37,61,38,63],[37,59,38,60],[43,50,44,51],[35,50,36,51],[45,54,46,56],[37,57,38,58],[41,52,42,53],[33,59,34,60],[43,69,44,79],[43,66,44,68],[45,64,46,65],[43,59,44,60],[37,64,38,65],[33,69,34,79],[33,66,34,68],[33,64,34,65],[33,61,34,63],[51,57,52,58],[51,61,52,63],[43,61,44,63],[43,57,44,58],[51,66,52,68],[51,59,52,60],[49,66,50,68],[47,66,48,68],[47,64,48,65],[53,57,54,58],[49,64,50,65],[35,64,36,65],[45,66,46,68],[47,57,48,58],[51,43,52,49],[43,54,44,56],[51,52,52,53],[49,61,50,63],[49,59,50,60],[49,57,50,58],[45,43,46,49],[43,52,44,53],[49,54,50,56],[45,52,46,53],[45,50,46,51],[47,43,48,49],[39,59,40,60],[47,59,48,60],[35,43,36,49],[41,43,42,49],[47,52,48,53],[47,50,48,51],[41,66,42,68],[53,42,54,42],[39,50,40,51],[49,43,50,49],[47,54,48,56],[53,43,54,49],[53,50,54,51],[53,52,54,53],[53,54,54,56],[49,52,50,53],[31,43,32,49],[31,50,32,51],[39,52,40,53],[51,54,52,56],[51,50,52,51],[39,54,40,56],[37,54,38,56],[49,42,50,42],[47,42,48,42],[45,42,46,42],[49,50,50,51],[37,43,38,49],[51,42,52,42],[33,54,34,56],[33,50,34,51],[33,43,34,49],[41,50,42,51],[43,43,44,49],[32,34,33,37],[32,31,33,33],[38,34,39,37],[34,34,35,37],[37,42,38,42],[39,42,40,42],[41,42,42,42],[32,23,33,27],[34,23,35,27],[36,23,37,27],[38,23,39,27],[36,31,37,33],[38,31,39,33],[34,31,35,33],[38,28,39,29],[42,28,43,29],[43,42,44,42],[34,28,35,29],[33,42,34,42],[35,42,36,42],[52,21,52,22],[50,17,50,18],[49,17,49,18],[51,14,51,16],[51,17,51,18],[52,14,52,16],[50,14,50,16],[50,21,50,22],[49,21,49,22],[51,21,51,22],[36,19,37,20],[38,17,39,18],[44,34,44,37],[46,23,46,27],[42,34,43,37],[45,21,45,22],[40,23,41,27],[40,34,41,37],[46,17,46,18],[46,31,46,33],[40,31,41,33],[38,21,39,22],[42,21,43,22],[40,21,41,22],[46,21,46,22],[44,21,44,22],[38,19,39,20],[40,19,41,20],[46,19,46,20],[42,23,43,27],[42,31,43,33],[44,23,44,27],[45,31,45,33],[46,34,46,37],[51,31,51,33],[52,31,52,33],[53,34,53,37],[52,34,52,37],[50,23,50,27],[53,23,53,27],[47,34,47,37],[49,31,49,33],[51,23,51,27],[49,34,49,37],[49,23,49,27],[51,34,51,37],[48,23,48,27],[48,34,48,37],[46,28,47,29],[40,11,41,13],[48,3,48,4],[47,8,47,10],[42,11,43,13],[44,11,44,13],[42,8,43,10],[44,19,44,20],[46,14,46,16],[47,19,47,20],[40,14,41,16],[42,14,43,16],[44,8,44,10],[40,8,41,10],[44,5,44,7],[44,3,44,4],[45,8,45,10],[45,5,45,7],[40,2,41,4],[40,5,41,7],[48,17,48,18],[48,19,48,20],[45,17,45,18],[44,14,44,16],[40,17,41,18],[48,14,48,16],[44,30,53,30],[44,31,44,33],[45,34,45,37],[50,28,51,29],[45,23,45,27],[51,19,51,20],[50,19,50,20],[49,19,49,20],[52,23,52,27],[53,14,53,16],[53,17,53,18],[53,19,53,20],[48,21,48,22],[49,14,49,16],[47,21,47,22],[52,17,52,18],[53,21,53,22],[47,31,47,33],[53,31,53,33],[50,34,50,37],[50,31,50,33],[48,31,48,33],[47,23,47,27],[52,3,52,4],[52,5,52,7],[49,3,49,4],[49,5,49,7],[49,8,49,10],[42,17,43,18],[42,19,43,20],[45,11,45,13],[45,19,45,20],[47,14,47,16],[47,17,47,18],[44,17,44,18],[42,2,43,4],[44,2,53,2],[46,3,46,4],[46,5,46,7],[42,5,43,7],[51,8,51,10],[47,5,47,7],[53,3,53,4],[53,5,53,7],[53,8,53,10],[52,19,52,20],[45,14,45,16],[30,21,31,22],[30,23,31,27],[30,31,31,33],[28,34,29,37],[36,17,37,18],[49,11,49,13],[53,11,53,13],[47,3,47,4],[46,8,46,10],[50,8,50,10],[51,3,51,4],[51,11,51,13],[52,11,52,13],[51,5,51,7],[46,11,46,13],[50,11,50,13],[48,11,48,13],[52,8,52,10],[50,3,50,4],[50,5,50,7],[47,11,47,13],[48,5,48,7],[48,8,48,10],[45,3,45,4],[28,2,29,4],[28,5,29,7],[28,8,29,10],[30,2,31,4],[26,2,27,4],[36,11,37,13],[24,31,25,33],[24,34,25,37],[32,19,33,20],[32,17,33,18],[32,21,33,22],[34,19,35,20],[36,14,37,16],[30,34,31,37],[24,23,25,27],[34,11,35,13],[34,17,35,18],[36,21,37,22],[26,31,27,33],[26,23,27,27],[26,21,27,22],[24,21,25,22],[28,31,29,33],[30,19,31,20],[38,8,39,10],[38,11,39,13],[38,14,39,16],[34,14,35,16],[32,2,33,4],[32,5,33,7],[32,8,33,10],[32,11,33,13],[32,14,33,16],[34,2,35,4],[34,5,35,7],[34,8,35,10],[36,2,37,4],[36,5,37,7],[36,8,37,10],[38,2,39,4],[38,5,39,7],[24,8,25,10],[24,11,25,13],[24,14,25,16],[24,17,25,18],[24,19,25,20],[21,2,23,4],[21,5,22,7],[21,8,22,10],[21,11,23,13],[21,14,23,16],[30,11,31,13],[30,17,31,18],[30,14,31,16],[21,23,23,27],[21,28,23,38],[24,2,25,4],[26,34,27,37],[28,11,29,13],[28,14,29,16],[28,17,29,18],[28,19,29,20],[28,21,29,22],[28,23,29,27],[24,5,25,7],[26,5,27,7],[26,8,27,10],[26,11,27,13],[26,14,27,16],[26,17,27,18],[26,19,27,20],[23,5,23,7],[23,8,23,10],[23,17,23,18],[23,19,23,20],[16,1,16,3],[16,4,16,6],[16,7,16,9],[16,10,16,12],[16,13,16,15],[13,16,18,17],[13,18,14,38],[14,1,15,3],[14,4,15,6],[14,7,15,9],[14,10,15,12],[14,13,15,15],[15,18,16,20],[13,1,13,15],[17,1,18,3],[17,4,18,6],[17,7,18,9],[17,10,18,12],[17,13,18,15],[18,18,18,20],[17,18,17,20],[17,21,17,24],[17,25,17,27],[17,28,17,31],[9,8,10,12],[9,13,9,15],[10,13,10,15],[9,1,10,7],[9,16,10,17],[9,18,10,20],[9,21,10,24],[9,25,10,29],[9,30,9,33],[11,1,12,7],[11,8,12,13],[11,14,12,14],[11,15,12,20],[11,21,12,24],[11,25,12,29],[12,42,13,46],[12,47,13,50],[12,51,13,55],[7,34,8,38],[8,30,8,33],[10,30,10,33],[11,30,12,33],[11,34,12,38],[4,56,4,69],[1,49,1,55],[1,56,1,62],[1,63,1,69],[9,34,10,38],[12,56,13,59],[1,42,1,48],[4,42,4,47],[4,48,4,55],[10,42,11,59],[2,42,3,48],[2,49,3,55],[1,1,4,2],[1,3,4,10],[1,14,4,16],[1,21,1,38],[2,21,2,29],[2,30,2,38],[3,17,4,20],[3,21,4,29],[3,30,4,38],[5,1,5,2],[5,3,8,4],[5,13,6,16],[5,17,8,19],[5,21,6,29],[5,30,6,38],[17,62,17,68],[18,62,18,68],[5,42,5,47],[6,42,6,47],[7,42,7,47],[8,42,8,47],[5,48,5,55],[6,48,6,55],[7,48,7,55],[8,48,8,55],[5,56,5,69],[6,56,6,69],[7,56,7,69],[8,56,8,69],[7,9,8,12],[7,21,8,24],[7,25,8,29],[7,30,7,33],[19,62,19,68],[17,71,17,77],[18,71,18,77],[19,71,19,77],[15,62,15,65],[15,69,15,73],[15,74,15,78],[16,62,16,68],[16,71,16,77],[14,51,15,55],[16,51,17,55],[14,56,15,59],[16,56,17,59],[12,61,12,79],[13,61,13,79],[14,61,14,79],[1,70,9,79],[11,61,11,79],[10,61,10,68],[2,56,3,62],[2,63,3,69]]}
[]
[null,null,null,null,null,null,null,null,null,null,null,null,null,null,null,null,null,null,null,null,null,null,null,null,null,null,null,null,null,null,null,null,null,null,null,null,null,null,null,null,null,null,null,null,null,null,null,null,null,"理由",null,null,null,null,null,null,"職業",null,null,null,null,null,null,"宝物"]
[null,null,null,null,null,null,null,null,null,null,null,null,null,null,null,null,null,null,null,null,null,"Character's name",null,null,null,null,null,null,null,null,"Player's name",null,null,null,null,null,null,null,null,null,null,null,"Lifepath"]
[]
[null,null,null,null,null,null,null,null,null,null,null,null,null,null,null,null,null,null,null,null,null,null,null,null,null,null,null,null,null,null,null,null,null,null,null,null,null,null,null,null,null,null,null,null,null,null,null,null,"装備名",null,null,null,null,null,null,null,"特殊効果"]
[null,null,null,null,null,null,null,null,null,null,null,null,null,null,null,null,null,null,null,null,null,"Experience Points",null,null,null,null,null,null,null,null,null,null,null,null,null,null,null,null,null,null,null,null,"防具名",null,null,null,null,null,"一般服"]
[null,null,null,null,null,null,null,null,null,null,null,null,null,null,null,null,null,null,null,null,null,null,null,null,null,null,null,null,null,null,null,null,null,null,null,null,null,null,null,null,null,null,"アクセサリA",null,null,null,null,null,"なし",null,null,null,null,null,null,null,{"$f":"VLOOKUP(AA番号,VL用!$CR$54:$DR$250,27,TRUE)","v":"　"}]
[null,null,null,null,null,null,null,null,null,null,null,null,null,null,null,null,null,null,null,null,null,"Age",null,null,null,null,null,null,null,null,"Hair",null,null,null,null,null,null,null,null,null,null,null,"アクセサリB",null,null,null,null,null,"なし",null,null,null,null,null,null,null,{"$f":"VLOOKUP(AB番号,VL用!$CR$54:$DR$250,27,TRUE)","v":"　"}]
[null,null,null,null,null,null,null,null,null,null,null,null,null,null,null,null,null,null,null,null,null,null,null,null,null,null,null,null,null,null,"Color",null,null,null,null,null,null,null,null,null,null,null,"アクセサリC",null,null,null,null,null,"なし",null,null,null,null,null,null,null,{"$f":"VLOOKUP(AC番号,VL用!$CR$54:$DR$250,27,TRUE)","v":"　"}]
[null,"Species",null,null,null,null,null,null,"人間",null,null,null,null,null,null,null,"CL",null,1,null,null,"Height",null,null,null,null,null,null,null,null,"Eye"]
[null,null,null,null,null,null,null,null,null,null,null,null,null,null,null,null,null,null,null,null,null,null,null,null,null,null,null,null,null,null,"Color",null,null,null,null,null,null,null,null,null,null,null,"Other Data",null,null,null,null,null,null,null,null,null,null,null,null,null,null,null,null,null,null,"Memo"]
[null,"Class",null,null,null,null,null,null,"AB",null,null,null,null,null,"/","AB",null,null,null,null,null,"Weight",null,null,null,null,null,null,null,null,"Complexion"]
[null,null,null,null,null,null,null,null,null,null,null,null,null,null,null,null,null,null,null,null,null,null,null,null,null,null,null,null,null,null,null,null,null,null,null,null,null,null,null,null,null,null,"命中C値",null,null,null,null,18,null,null,null,"命中F値",null,null,null,null,5]
[null,"基本能力値",null,null,null,null,null,null,null,null,null,null,null,null,null,null,null,null,"武器性能"]
[null,"肉体",null,null,"集中",null,null,"反射",null,null,"知識",null,null,"幸運",null,null,null,null,null,null,null,null,null,null,null,null,null,null,null,null,null,null,null,null,null,null,null,null,null,null,null,null,"回避C値",null,null,null,null,18,null,null,null,"回避F値",null,null,null,null,5]
[null,null,null,null,null,null,null,null,null,null,null,null,null,null,null,null,null,null,"名称",null,null,"素手",null,null,null,null,null,null,null,null,"SL",null,"種別",null,null,{"$f":"VLOOKUP(武器番号,武器用!A2:AD185,25,TRUE)","v":"近接"},null,null,null,null,null,null,null,null,null,null,null,null,null,null,null,null,null,null,null,null,null,null,null,null,null,null,"所持品",null,null,null,null,null,null,"所持金",null,null,null,null,null,null,null,null,null,"ND"]
[null,{"$f":"VLOOKUP(種族番号,VL用!$A$2:$G$25,3,TRUE)+CL-1","v":6},null,null,{"$f":"VLOOKUP(種族番号,VL用!$A$2:$G$25,4,TRUE)+CL-1","v":12},null,null,{"$f":"VLOOKUP(種族番号,VL用!$A$2:$G$25,5,TRUE)+CL-1","v":7},null,null,{"$f":"VLOOKUP(種族番号,VL用!$A$2:$G$25,6,TRUE)+CL-1","v":8},null,null,{"$f":"VLOOKUP(種族番号,VL用!$A$2:$G$25,7,TRUE)+CL-1","v":8},null,null,null,null,null,null,null,null,null,null,null,null,null,null,null,null,null,null,null,null,null,null,null,null,null,null,null,null,"調査C値",null,null,null,null,18,null,null,null,"調査F値",null,null,null,null,5,null,null,null,null,null,null,null,null,null,null,null,null,"×",null,null,null,null,null,null,null,null,"×"]
[null,null,null,null,null,null,null,null,null,null,null,null,null,null,null,null,null,null,"射程",null,null,{"$f":"VLOOKUP(武器番号,武器用!A2:AD185,26,TRUE)","v":"0-1"},null,null,null,"コスト",null,null,{"$f":"VLOOKUP(武器番号,武器用!A2:AD185,28,TRUE)","v":9},null,null,null,"属性",null,null,{"$f":"VLOOKUP(武器番号,武器用!A2:AD185,27,TRUE)","v":"近"},null,null,null,null,null,null,null,null,null,null,null,null,null,null,null,null,null,null,null,null,null,null,null,null,null,null,null,null,null,null,null,null,null,"×",null,null,null,null,null,null,null,null,"×"]
[null,null,null,null,null,null,null,null,null,null,null,null,null,null,null,null,null,null,"効果",null,null,{"$f":"VLOOKUP(武器番号,武器用!A2:AD185,29,TRUE)","v":"効果なし"},null,null,null,null,null,null,null,null,null,null,null,null,null,null,null,null,null,null,null,null,"移動ｺｽﾄ",null,null,null,null,"3/8",null,null,null,"消費額",null,null,null,null,{"$f":"VLOOKUP(武器番号,VL用!$AL$55:$BN$400,29,TRUE)+VLOOKUP(防具番号,VL用!$BQ$55:$CO$100,25,TRUE)+VLOOKUP(AA番号,VL用!$CR$55:$DP$320,25,TRUE)+VLOOKUP(AB番号,VL用!$CR$55:$DP$320,25,TRUE)+VLOOKUP(AC番号,VL用!$CR$55:$DP$320,25,TRUE)","v":0},null,null,"ND",null,null,null,null,null,null,null,null,null,"×",null,null,null,null,null,null,null,null,"×"]
[null,"Status               　　                     　",null,null,null,null,null,null,null,null,null,null,null,null,null,null,null,null,null,null,null,null,null,null,null,null,null,null,null,null,null,null,null,null,null,null,null,null,null,null,null,null,null,null,null,null,null,null,null,null,null,null,null,null,null,null,null,null,null,null,null,null,null,null,null,null,null,null,null,"×",null,null,null,null,null,null,null,null,"×"]
[]
[null,null,null,null,null,"種族",null,null,"ｸﾗｽ",null,null,"武器",null,null,"防具",null,null,"ｱｸｾｻﾘｰ",null,null,null,null,null,"他修正",null,null,null,null,"Total status",null,null,null,null,null,null,null,null,null,null,null,null,null,"Skill            ",null,null,null,null,null,null,null,null,null,null,null,null,null,"現在のSL合計/SL合計上限",null,null,null,null,null,null,null,null,null,null,null,null,null,null,null,null,null,{"$f":"SUM($AY$31:$AZ$55)&\"/\"&S10*5+15","v":"0/20"}]
[]
[null,null,null,null,null,"Bonus",null,null,"Bonus",null,null,null,null,null,null,null,null,"A",null,"B",null,"C",null,null,null,null,null,null,null,null,null,null,null,null,null,null,null,null,null,null,null,null,"種族特典",null,null,null,null,null,null,null,null,null,null,null,null,null,"クラス特典A",null,null,null,null,null,null,null,null,null,null,null,"クラス特典B"]
[null,null,"近接",null,null,{"$f":"VLOOKUP(種族番号,VL用!$E$27:$HG$51,VL用!$B27+1+(CL-1)*21,TRUE)","v":5},null,null,{"$f":"VLOOKUP(CA番号,VL用!$E$54:$P$100,VL用!$B27+1,TRUE)+VLOOKUP(CB番号,VL用!$E$54:$P$100,VL用!$B27+1,TRUE)","v":6},null,null,{"$f":"IF(VLOOKUP(武器番号,VL用!$AL$55:$BM$262,VL用!$DQ54+1,TRUE)&\"\"=\"\",\"\",VALUE(VLOOKUP(武器番号,VL用!$AL$55:$BM$262,VL用!$DQ54+1,TRUE)))","v":-2},null,null,{"$f":"IF(VLOOKUP(防具番号,VL用!$BQ$55:$CN$168,VL用!$DQ54+1,TRUE)&\"\"=\"\",\"\",VALUE(VLOOKUP(防具番号,VL用!$BQ$55:$CN$168,VL用!$DQ54+1,TRUE)))","v":""},null,null,{"$f":"IF(VLOOKUP(AA番号,VL用!$CR$55:$DO$250,VL用!$DQ54+1,TRUE)&\"\"=\"\",\"\",VALUE(VLOOKUP(AA番号,VL用!$CR$55:$DO$250,VL用!$DQ54+1,TRUE)))","v":""},null,{"$f":"IF(VLOOKUP(AB番号,VL用!$CR$55:$DO$250,VL用!$DQ54+1,TRUE)&\"\"=\"\",\"\",VALUE(VLOOKUP(AB番号,VL用!$CR$55:$DO$250,VL用!$DQ54+1,TRUE)))","v":""},null,{"$f":"IF(VLOOKUP(AC番号,VL用!$CR$55:$DO$250,VL用!$DQ54+1,TRUE)&\"\"=\"\",\"\",VALUE(VLOOKUP(AC番号,VL用!$CR$55:$DO$250,VL用!$DQ54+1,TRUE)))","v":""},null,null,null,null,null,null,null,null,null,"近接",null,null,{"$f":"SUM(F25:AB26)","v":9}]
[null,null,null,null,null,null,null,null,null,null,null,null,null,null,null,null,null,null,null,null,null,null,null,null,null,null,null,null,null,null,null,null,null,null,null,null,null,null,null,null,null,null,{"$f":"VLOOKUP(種族番号,VL用!$A$2:$H$25,8,TRUE)","v":"常時C値-1(下限値16) & 集中判定を1度振り直せる。"},null,null,null,null,null,null,null,null,null,null,null,null,null,{"$f":"VLOOKUP(CA番号,VL用!$E$54:$AA$100,23,TRUE)","v":"「BS：封印」無効。【耐久力】+3 & 【精神力】+1"},null,null,null,null,null,null,null,null,null,null,null,{"$f":"IF(クラスA=クラスB,\"なし\",VLOOKUP(CB番号,VL用!$E$54:$AA$100,23,TRUE))","v":"なし"}]
[null,null,"射撃",null,null,{"$f":"VLOOKUP(種族番号,VL用!$E$27:$HG$51,VL用!$B29+1+(CL-1)*21,TRUE)","v":5},null,null,{"$f":"VLOOKUP(CA番号,VL用!$E$54:$P$100,VL用!$B29+1,TRUE)+VLOOKUP(CB番号,VL用!$E$54:$P$100,VL用!$B29+1,TRUE)","v":6},null,null,{"$f":"IF(VLOOKUP(武器番号,VL用!$AL$55:$BM$262,VL用!$DQ56+1,TRUE)&\"\"=\"\",\"\",VALUE(VLOOKUP(武器番号,VL用!$AL$55:$BM$262,VL用!$DQ56+1,TRUE)))","v":""},null,null,{"$f":"IF(VLOOKUP(防具番号,VL用!$BQ$55:$CN$168,VL用!$DQ56+1,TRUE)&\"\"=\"\",\"\",VALUE(VLOOKUP(防具番号,VL用!$BQ$55:$CN$168,VL用!$DQ56+1,TRUE)))","v":""},null,null,{"$f":"IF(VLOOKUP(AA番号,VL用!$CR$55:$DO$250,VL用!$DQ56+1,TRUE)&\"\"=\"\",\"\",VALUE(VLOOKUP(AA番号,VL用!$CR$55:$DO$250,VL用!$DQ56+1,TRUE)))","v":""},null,{"$f":"IF(VLOOKUP(AB番号,VL用!$CR$55:$DO$250,VL用!$DQ56+1,TRUE)&\"\"=\"\",\"\",VALUE(VLOOKUP(AB番号,VL用!$CR$55:$DO$250,VL用!$DQ56+1,TRUE)))","v":""},null,{"$f":"IF(VLOOKUP(AC番号,VL用!$CR$55:$DO$250,VL用!$DQ56+1,TRUE)&\"\"=\"\",\"\",VALUE(VLOOKUP(AC番号,VL用!$CR$55:$DO$250,VL用!$DQ56+1,TRUE)))","v":""},null,null,null,null,null,null,null,null,null,"射撃",null,null,{"$f":"SUM(F27:AB28)","v":11}]
[null,null,null,null,null,null,null,null,null,null,null,null,null,null,null,null,null,null,null,null,null,null,null,null,null,null,null,null,null,null,null,null,null,null,null,null,null,null,null,null,null,null,null,"名称",null,null,null,null,null,null,"SL",null,"種別",null,"ﾀｲﾐﾝｸﾞ",null,null,"対象",null,"射程",null,"判定値",null,null,"代償",null,"コスト",null,null,"効果"]
[null,null,"回避",null,null,{"$f":"VLOOKUP(種族番号,VL用!$E$27:$HG$51,VL用!$B31+1+(CL-1)*21,TRUE)","v":3},null,null,{"$f":"VLOOKUP(CA番号,VL用!$E$54:$P$100,VL用!$B31+1,TRUE)+VLOOKUP(CB番号,VL用!$E$54:$P$100,VL用!$B31+1,TRUE)","v":2},null,null,{"$f":"IF(VLOOKUP(武器番号,VL用!$AL$55:$BM$262,VL用!$DQ58+1,TRUE)&\"\"=\"\",\"\",VALUE(VLOOKUP(武器番号,VL用!$AL$55:$BM$262,VL用!$DQ58+1,TRUE)))","v":""},null,null,{"$f":"IF(VLOOKUP(防具番号,VL用!$BQ$55:$CN$168,VL用!$DQ58+1,TRUE)&\"\"=\"\",\"\",VALUE(VLOOKUP(防具番号,VL用!$BQ$55:$CN$168,VL用!$DQ58+1,TRUE)))","v":""},null,null,{"$f":"IF(VLOOKUP(AA番号,VL用!$CR$55:$DO$250,VL用!$DQ58+1,TRUE)&\"\"=\"\",\"\",VALUE(VLOOKUP(AA番号,VL用!$CR$55:$DO$250,VL用!$DQ58+1,TRUE)))","v":""},null,{"$f":"IF(VLOOKUP(AB番号,VL用!$CR$55:$DO$250,VL用!$DQ58+1,TRUE)&\"\"=\"\",\"\",VALUE(VLOOKUP(AB番号,VL用!$CR$55:$DO$250,VL用!$DQ58+1,TRUE)))","v":""},null,{"$f":"IF(VLOOKUP(AC番号,VL用!$CR$55:$DO$250,VL用!$DQ58+1,TRUE)&\"\"=\"\",\"\",VALUE(VLOOKUP(AC番号,VL用!$CR$55:$DO$250,VL用!$DQ58+1,TRUE)))","v":""},null,null,null,null,null,null,null,null,null,"回避",null,null,{"$f":"SUM(F29:AB30)","v":5}]
[null,null,null,null,null,null,null,null,null,null,null,null,null,null,null,null,null,null,null,null,null,null,null,null,null,null,null,null,null,null,null,null,null,null,null,null,null,null,null,null,null,null,"自",{"$f":"VLOOKUP(種族番号,VL用!$A$2:$AO$25,18,TRUE)","v":"起死回生"},null,null,null,null,null,null,{"$f":"VLOOKUP(種族番号,VL用!$A$2:$AO$25,21,TRUE)","v":"★"},null,{"$f":"VLOOKUP(種族番号,VL用!$A$2:$AO$25,22,TRUE)","v":"自"},null,{"$f":"VLOOKUP(種族番号,VL用!$A$2:$AO$25,23,TRUE)","v":"ｵｰﾄ"},null,null,{"$f":"VLOOKUP(種族番号,VL用!$A$2:$AO$25,24,TRUE)","v":"自身"},null,{"$f":"VLOOKUP(種族番号,VL用!$A$2:$AO$25,25,TRUE)","v":"なし"},null,{"$f":"VLOOKUP(種族番号,VL用!$A$2:$AO$25,26,TRUE)","v":"自動"},null,null,{"$f":"VLOOKUP(種族番号,VL用!$A$2:$AO$25,27,TRUE)","v":"6BP"},null,{"$f":"VLOOKUP(種族番号,VL用!$A$2:$AO$25,28,TRUE)","v":0},null,null,{"$f":"VLOOKUP(種族番号,VL用!$A$2:$AO$25,29,TRUE)","v":"判定直後ダイス目を両方9にする。対抗判定のC値が20固定。戦闘外では-2BP。"}]
[null,null,"魔術",null,null,{"$f":"VLOOKUP(種族番号,VL用!$E$27:$HG$51,VL用!$B33+1+(CL-1)*21,TRUE)","v":4},null,null,{"$f":"VLOOKUP(CA番号,VL用!$E$54:$P$100,VL用!$B33+1,TRUE)+VLOOKUP(CB番号,VL用!$E$54:$P$100,VL用!$B33+1,TRUE)","v":4},null,null,{"$f":"IF(VLOOKUP(武器番号,VL用!$AL$55:$BM$262,VL用!$DQ60+1,TRUE)&\"\"=\"\",\"\",VALUE(VLOOKUP(武器番号,VL用!$AL$55:$BM$262,VL用!$DQ60+1,TRUE)))","v":""},null,null,{"$f":"IF(VLOOKUP(防具番号,VL用!$BQ$55:$CN$168,VL用!$DQ60+1,TRUE)&\"\"=\"\",\"\",VALUE(VLOOKUP(防具番号,VL用!$BQ$55:$CN$168,VL用!$DQ60+1,TRUE)))","v":""},null,null,{"$f":"IF(VLOOKUP(AA番号,VL用!$CR$55:$DO$250,VL用!$DQ60+1,TRUE)&\"\"=\"\",\"\",VALUE(VLOOKUP(AA番号,VL用!$CR$55:$DO$250,VL用!$DQ60+1,TRUE)))","v":""},null,{"$f":"IF(VLOOKUP(AB番号,VL用!$CR$55:$DO$250,VL用!$DQ60+1,TRUE)&\"\"=\"\",\"\",VALUE(VLOOKUP(AB番号,VL用!$CR$55:$DO$250,VL用!$DQ60+1,TRUE)))","v":""},null,{"$f":"IF(VLOOKUP(AC番号,VL用!$CR$55:$DO$250,VL用!$DQ60+1,TRUE)&\"\"=\"\",\"\",VALUE(VLOOKUP(AC番号,VL用!$CR$55:$DO$250,VL用!$DQ60+1,TRUE)))","v":""},null,null,null,null,null,null,null,null,null,"魔術",null,null,{"$f":"SUM(F31:AB32)","v":8}]
[null,null,null,null,null,null,null,null,null,null,null,null,null,null,null,null,null,null,null,null,null,null,null,null,null,null,null,null,null,null,null,null,null,null,null,null,null,null,null,null,null,null,1]
[null,null,"抵抗",null,null,{"$f":"VLOOKUP(種族番号,VL用!$E$27:$HG$51,VL用!$B35+1+(CL-1)*21,TRUE)","v":3},null,null,{"$f":"VLOOKUP(CA番号,VL用!$E$54:$P$100,VL用!$B35+1,TRUE)+VLOOKUP(CB番号,VL用!$E$54:$P$100,VL用!$B35+1,TRUE)","v":0},null,null,{"$f":"IF(VLOOKUP(武器番号,VL用!$AL$55:$BM$262,VL用!$DQ62+1,TRUE)&\"\"=\"\",\"\",VALUE(VLOOKUP(武器番号,VL用!$AL$55:$BM$262,VL用!$DQ62+1,TRUE)))","v":""},null,null,{"$f":"IF(VLOOKUP(防具番号,VL用!$BQ$55:$CN$168,VL用!$DQ62+1,TRUE)&\"\"=\"\",\"\",VALUE(VLOOKUP(防具番号,VL用!$BQ$55:$CN$168,VL用!$DQ62+1,TRUE)))","v":""},null,null,{"$f":"IF(VLOOKUP(AA番号,VL用!$CR$55:$DO$250,VL用!$DQ62+1,TRUE)&\"\"=\"\",\"\",VALUE(VLOOKUP(AA番号,VL用!$CR$55:$DO$250,VL用!$DQ62+1,TRUE)))","v":""},null,{"$f":"IF(VLOOKUP(AB番号,VL用!$CR$55:$DO$250,VL用!$DQ62+1,TRUE)&\"\"=\"\",\"\",VALUE(VLOOKUP(AB番号,VL用!$CR$55:$DO$250,VL用!$DQ62+1,TRUE)))","v":""},null,{"$f":"IF(VLOOKUP(AC番号,VL用!$CR$55:$DO$250,VL用!$DQ62+1,TRUE)&\"\"=\"\",\"\",VALUE(VLOOKUP(AC番号,VL用!$CR$55:$DO$250,VL用!$DQ62+1,TRUE)))","v":""},null,null,null,null,null,null,null,null,null,"抵抗",null,null,{"$f":"SUM(F33:AB34)","v":3}]
[null,null,null,null,null,null,null,null,null,null,null,null,null,null,null,null,null,null,null,null,null,null,null,null,null,null,null,null,null,null,null,null,null,null,null,null,null,null,null,null,null,null,1]
[null,null,"敏捷",null,null,{"$f":"VLOOKUP(種族番号,VL用!$E$27:$HG$51,VL用!$B37+1+(CL-1)*21,TRUE)","v":4},null,null,{"$f":"VLOOKUP(CA番号,VL用!$E$54:$P$100,VL用!$B37+1,TRUE)+VLOOKUP(CB番号,VL用!$E$54:$P$100,VL用!$B37+1,TRUE)+IF(クラスA=\"WR\",ROUNDUP(CL/2,0),0)+IF(クラスB=\"WR\",ROUNDUP(CL/2,0),0)-IF(AND(クラスA=\"WR\",クラスB=\"WR\"),ROUNDUP(CL/2,0),0)","v":6},null,null,{"$f":"IF(VLOOKUP(武器番号,VL用!$AL$55:$BM$262,VL用!$DQ64+1,TRUE)&\"\"=\"\",\"\",VALUE(VLOOKUP(武器番号,VL用!$AL$55:$BM$262,VL用!$DQ64+1,TRUE)))","v":1},null,null,{"$f":"IF(VLOOKUP(防具番号,VL用!$BQ$55:$CN$168,VL用!$DQ64+1,TRUE)&\"\"=\"\",\"\",VALUE(VLOOKUP(防具番号,VL用!$BQ$55:$CN$168,VL用!$DQ64+1,TRUE)))","v":""},null,null,{"$f":"IF(VLOOKUP(AA番号,VL用!$CR$55:$DO$250,VL用!$DQ64+1,TRUE)&\"\"=\"\",\"\",VALUE(VLOOKUP(AA番号,VL用!$CR$55:$DO$250,VL用!$DQ64+1,TRUE)))","v":""},null,{"$f":"IF(VLOOKUP(AB番号,VL用!$CR$55:$DO$250,VL用!$DQ64+1,TRUE)&\"\"=\"\",\"\",VALUE(VLOOKUP(AB番号,VL用!$CR$55:$DO$250,VL用!$DQ64+1,TRUE)))","v":""},null,{"$f":"IF(VLOOKUP(AC番号,VL用!$CR$55:$DO$250,VL用!$DQ64+1,TRUE)&\"\"=\"\",\"\",VALUE(VLOOKUP(AC番号,VL用!$CR$55:$DO$250,VL用!$DQ64+1,TRUE)))","v":""},null,null,null,null,null,null,null,null,null,"敏捷",null,null,{"$f":"SUM(F35:AB36)","v":11}]
[null,null,null,null,null,null,null,null,null,null,null,null,null,null,null,null,null,null,null,null,null,null,null,null,null,null,null,null,null,null,null,null,null,null,null,null,null,null,null,null,null,null,1]
[null,null,"物攻",null,null,{"$f":"VLOOKUP(種族番号,VL用!$E$27:$HG$51,VL用!$B39+1+(CL-1)*21,TRUE)","v":10},null,null,{"$f":"VLOOKUP(CA番号,VL用!$E$54:$P$100,VL用!$B39+1,TRUE)+VLOOKUP(CB番号,VL用!$E$54:$P$100,VL用!$B39+1,TRUE)","v":14},null,null,{"$f":"IF(VLOOKUP(武器番号,VL用!$AL$55:$BM$262,VL用!$DQ66+1,TRUE)&\"\"=\"\",\"\",VALUE(VLOOKUP(武器番号,VL用!$AL$55:$BM$262,VL用!$DQ66+1,TRUE)))","v":16},null,null,{"$f":"IF(VLOOKUP(防具番号,VL用!$BQ$55:$CN$168,VL用!$DQ66+1,TRUE)&\"\"=\"\",\"\",VALUE(VLOOKUP(防具番号,VL用!$BQ$55:$CN$168,VL用!$DQ66+1,TRUE)))","v":""},null,null,{"$f":"IF(VLOOKUP(AA番号,VL用!$CR$55:$DO$250,VL用!$DQ66+1,TRUE)&\"\"=\"\",\"\",VALUE(VLOOKUP(AA番号,VL用!$CR$55:$DO$250,VL用!$DQ66+1,TRUE)))","v":""},null,{"$f":"IF(VLOOKUP(AB番号,VL用!$CR$55:$DO$250,VL用!$DQ66+1,TRUE)&\"\"=\"\",\"\",VALUE(VLOOKUP(AB番号,VL用!$CR$55:$DO$250,VL用!$DQ66+1,TRUE)))","v":""},null,{"$f":"IF(VLOOKUP(AC番号,VL用!$CR$55:$DO$250,VL用!$DQ66+1,TRUE)&\"\"=\"\",\"\",VALUE(VLOOKUP(AC番号,VL用!$CR$55:$DO$250,VL用!$DQ66+1,TRUE)))","v":""},null,null,null,null,null,null,null,null,null,"物攻",null,null,{"$f":"SUM(F37:AB38)","v":40}]
[null,null,null,null,null,null,null,null,null,null,null,null,null,null,null,null,null,null,null,null,null,null,null,null,null,null,null,null,null,null,null,null,null,null,null,null,null,null,null,null,null,null,1]
[null,null,"魔攻",null,null,{"$f":"VLOOKUP(種族番号,VL用!$E$27:$HG$51,VL用!$B41+1+(CL-1)*21,TRUE)","v":10},null,null,{"$f":"VLOOKUP(CA番号,VL用!$E$54:$P$100,VL用!$B41+1,TRUE)+VLOOKUP(CB番号,VL用!$E$54:$P$100,VL用!$B41+1,TRUE)","v":8},null,null,{"$f":"IF(VLOOKUP(武器番号,VL用!$AL$55:$BM$262,VL用!$DQ68+1,TRUE)&\"\"=\"\",\"\",VALUE(VLOOKUP(武器番号,VL用!$AL$55:$BM$262,VL用!$DQ68+1,TRUE)))","v":""},null,null,{"$f":"IF(VLOOKUP(防具番号,VL用!$BQ$55:$CN$168,VL用!$DQ68+1,TRUE)&\"\"=\"\",\"\",VALUE(VLOOKUP(防具番号,VL用!$BQ$55:$CN$168,VL用!$DQ68+1,TRUE)))","v":""},null,null,{"$f":"IF(VLOOKUP(AA番号,VL用!$CR$55:$DO$250,VL用!$DQ68+1,TRUE)&\"\"=\"\",\"\",VALUE(VLOOKUP(AA番号,VL用!$CR$55:$DO$250,VL用!$DQ68+1,TRUE)))","v":""},null,{"$f":"IF(VLOOKUP(AB番号,VL用!$CR$55:$DO$250,VL用!$DQ68+1,TRUE)&\"\"=\"\",\"\",VALUE(VLOOKUP(AB番号,VL用!$CR$55:$DO$250,VL用!$DQ68+1,TRUE)))","v":""},null,{"$f":"IF(VLOOKUP(AC番号,VL用!$CR$55:$DO$250,VL用!$DQ68+1,TRUE)&\"\"=\"\",\"\",VALUE(VLOOKUP(AC番号,VL用!$CR$55:$DO$250,VL用!$DQ68+1,TRUE)))","v":""},null,null,null,null,null,null,null,null,null,"魔攻",null,null,{"$f":"SUM(F39:AB40)","v":18}]
[null,null,null,null,null,null,null,null,null,null,null,null,null,null,null,null,null,null,null,null,null,null,null,null,null,null,null,null,null,null,null,null,null,null,null,null,null,null,null,null,null,null,1]
[null,null,"耐久",null,null,{"$f":"VLOOKUP(種族番号,VL用!$E$27:$HG$51,VL用!$B43+1+(CL-1)*21,TRUE)","v":100},null,null,{"$f":"VLOOKUP(CA番号,VL用!$E$54:$P$100,VL用!$B43+1,TRUE)+VLOOKUP(CB番号,VL用!$E$54:$P$100,VL用!$B43+1,TRUE)+IF(クラスA=\"BS\",S10*5,0)+IF(クラスA=\"AB\",S10*3,0)+IF(クラスA=\"FM\",(CL+1)*-10)+IF(クラスB=\"BS\",S10*5,0)+IF(クラスB=\"AB\",S10*3,0)+IF(クラスB=\"FM\",(CL+1)*-10)-IF(AND(クラスA=\"BS\",クラスB=\"BS\"),S10*5,0)-IF(AND(クラスA=\"AB\",クラスB=\"AB\"),S10*3,0)-IF(AND(クラスA=\"FM\",クラスB=\"FM\"),(CL+1)*-10)","v":49},null,null,{"$f":"IF(VLOOKUP(武器番号,VL用!$AL$55:$BM$262,VL用!$DQ70+1,TRUE)&\"\"=\"\",\"\",VALUE(VLOOKUP(武器番号,VL用!$AL$55:$BM$262,VL用!$DQ70+1,TRUE)))","v":""},null,null,{"$f":"IF(VLOOKUP(防具番号,VL用!$BQ$55:$CN$168,VL用!$DQ70+1,TRUE)&\"\"=\"\",\"\",VALUE(VLOOKUP(防具番号,VL用!$BQ$55:$CN$168,VL用!$DQ70+1,TRUE)))","v":""},null,null,{"$f":"IF(VLOOKUP(AA番号,VL用!$CR$55:$DO$250,VL用!$DQ70+1,TRUE)&\"\"=\"\",\"\",VALUE(VLOOKUP(AA番号,VL用!$CR$55:$DO$250,VL用!$DQ70+1,TRUE)))","v":""},null,{"$f":"IF(VLOOKUP(AB番号,VL用!$CR$55:$DO$250,VL用!$DQ70+1,TRUE)&\"\"=\"\",\"\",VALUE(VLOOKUP(AB番号,VL用!$CR$55:$DO$250,VL用!$DQ70+1,TRUE)))","v":""},null,{"$f":"IF(VLOOKUP(AC番号,VL用!$CR$55:$DO$250,VL用!$DQ70+1,TRUE)&\"\"=\"\",\"\",VALUE(VLOOKUP(AC番号,VL用!$CR$55:$DO$250,VL用!$DQ70+1,TRUE)))","v":""},null,null,null,null,null,null,null,null,null,"耐久",null,null,{"$f":"SUM(F41:AB42)","v":149}]
[null,null,null,null,null,null,null,null,null,null,null,null,null,null,null,null,null,null,null,null,null,null,null,null,null,null,null,null,null,null,null,null,null,null,null,null,null,null,null,null,null,null,1]
[null,null,"精神",null,null,{"$f":"VLOOKUP(種族番号,VL用!$E$27:$HG$51,VL用!$B45+1+(CL-1)*21,TRUE)","v":30},null,null,{"$f":"VLOOKUP(CA番号,VL用!$E$54:$P$100,VL用!$B45+1,TRUE)+VLOOKUP(CB番号,VL用!$E$54:$P$100,VL用!$B45+1,TRUE)+IF(クラスA=\"VC\",S10*3,0)+IF(クラスA=\"AB\",S10)+IF(クラスB=\"VC\",S10*3,0)+IF(クラスB=\"AB\",S10)-IF(AND(クラスA=\"VC\",クラスB=\"VC\"),S10*3,0)-IF(AND(クラスA=\"AB\",クラスB=\"AB\"),S10)","v":19},null,null,{"$f":"IF(VLOOKUP(武器番号,VL用!$AL$55:$BM$262,VL用!$DQ72+1,TRUE)&\"\"=\"\",\"\",VALUE(VLOOKUP(武器番号,VL用!$AL$55:$BM$262,VL用!$DQ72+1,TRUE)))","v":""},null,null,{"$f":"IF(VLOOKUP(防具番号,VL用!$BQ$55:$CN$168,VL用!$DQ72+1,TRUE)&\"\"=\"\",\"\",VALUE(VLOOKUP(防具番号,VL用!$BQ$55:$CN$168,VL用!$DQ72+1,TRUE)))","v":""},null,null,{"$f":"IF(VLOOKUP(AA番号,VL用!$CR$55:$DO$250,VL用!$DQ72+1,TRUE)&\"\"=\"\",\"\",VALUE(VLOOKUP(AA番号,VL用!$CR$55:$DO$250,VL用!$DQ72+1,TRUE)))","v":""},null,{"$f":"IF(VLOOKUP(AB番号,VL用!$CR$55:$DO$250,VL用!$DQ72+1,TRUE)&\"\"=\"\",\"\",VALUE(VLOOKUP(AB番号,VL用!$CR$55:$DO$250,VL用!$DQ72+1,TRUE)))","v":""},null,{"$f":"IF(VLOOKUP(AC番号,VL用!$CR$55:$DO$250,VL用!$DQ72+1,TRUE)&\"\"=\"\",\"\",VALUE(VLOOKUP(AC番号,VL用!$CR$55:$DO$250,VL用!$DQ72+1,TRUE)))","v":""},null,null,null,null,null,null,null,null,null,"精神",null,null,{"$f":"SUM(F43:AB44)","v":49}]
[null,null,null,null,null,null,null,null,null,null,null,null,null,null,null,null,null,null,null,null,null,null,null,null,null,null,null,null,null,null,null,null,null,null,null,null,null,null,null,null,null,null,2]
[null,null,"耐性","近",null,{"$f":"VLOOKUP(種族番号,VL用!$E$27:$HG$51,VL用!$B46+1+(CL-1)*21,TRUE)","v":10},null,null,{"$f":"IF(VL用!AT2=0,\"\",VL用!AT2)","v":""},null,null,{"$f":"IF(VLOOKUP(武器番号,VL用!$AL$55:$BM$262,VL用!$DQ73+1,TRUE)&\"\"=\"\",\"\",VALUE(VLOOKUP(武器番号,VL用!$AL$55:$BM$262,VL用!$DQ73+1,TRUE)))","v":-7},null,null,{"$f":"IF(VLOOKUP(防具番号,VL用!$BQ$55:$CN$168,VL用!$DQ73+1,TRUE)&\"\"=\"\",\"\",VALUE(VLOOKUP(防具番号,VL用!$BQ$55:$CN$168,VL用!$DQ73+1,TRUE)))","v":-10},null,null,{"$f":"IF(VLOOKUP(AA番号,VL用!$CR$55:$DO$250,VL用!$DQ73+1,TRUE)&\"\"=\"\",\"\",VALUE(VLOOKUP(AA番号,VL用!$CR$55:$DO$250,VL用!$DQ73+1,TRUE)))","v":""},null,{"$f":"IF(VLOOKUP(AB番号,VL用!$CR$55:$DO$250,VL用!$DQ73+1,TRUE)&\"\"=\"\",\"\",VALUE(VLOOKUP(AB番号,VL用!$CR$55:$DO$250,VL用!$DQ73+1,TRUE)))","v":""},null,{"$f":"IF(VLOOKUP(AC番号,VL用!$CR$55:$DO$250,VL用!$DQ73+1,TRUE)&\"\"=\"\",\"\",VALUE(VLOOKUP(AC番号,VL用!$CR$55:$DO$250,VL用!$DQ73+1,TRUE)))","v":""},null,null,null,null,null,null,2,null,"耐性","近",null,null,{"$f":"SUM(F45:AB45)","v":-7}]
[null,null,null,"遠",null,{"$f":"VLOOKUP(種族番号,VL用!$E$27:$HG$51,VL用!$B47+1+(CL-1)*21,TRUE)","v":10},null,null,{"$f":"IF(VL用!AT3=0,\"\",VL用!AT3)","v":""},null,null,{"$f":"IF(VLOOKUP(武器番号,VL用!$AL$55:$BM$262,VL用!$DQ74+1,TRUE)&\"\"=\"\",\"\",VALUE(VLOOKUP(武器番号,VL用!$AL$55:$BM$262,VL用!$DQ74+1,TRUE)))","v":-7},null,null,{"$f":"IF(VLOOKUP(防具番号,VL用!$BQ$55:$CN$168,VL用!$DQ74+1,TRUE)&\"\"=\"\",\"\",VALUE(VLOOKUP(防具番号,VL用!$BQ$55:$CN$168,VL用!$DQ74+1,TRUE)))","v":-10},null,null,{"$f":"IF(VLOOKUP(AA番号,VL用!$CR$55:$DO$250,VL用!$DQ74+1,TRUE)&\"\"=\"\",\"\",VALUE(VLOOKUP(AA番号,VL用!$CR$55:$DO$250,VL用!$DQ74+1,TRUE)))","v":""},null,{"$f":"IF(VLOOKUP(AB番号,VL用!$CR$55:$DO$250,VL用!$DQ74+1,TRUE)&\"\"=\"\",\"\",VALUE(VLOOKUP(AB番号,VL用!$CR$55:$DO$250,VL用!$DQ74+1,TRUE)))","v":""},null,{"$f":"IF(VLOOKUP(AC番号,VL用!$CR$55:$DO$250,VL用!$DQ74+1,TRUE)&\"\"=\"\",\"\",VALUE(VLOOKUP(AC番号,VL用!$CR$55:$DO$250,VL用!$DQ74+1,TRUE)))","v":""},null,null,null,null,null,null,null,null,null,"遠",null,null,{"$f":"SUM(F46:AB46)","v":-7},null,null,null,null,null,null,null,3]
[null,null,null,"炎",null,{"$f":"VLOOKUP(種族番号,VL用!$E$27:$HG$51,VL用!$B48+1+(CL-1)*21,TRUE)","v":0},null,null,{"$f":"IF(VL用!AT4=0,\"\",VL用!AT4)","v":""},null,null,{"$f":"IF(VLOOKUP(武器番号,VL用!$AL$55:$BM$262,VL用!$DQ75+1,TRUE)&\"\"=\"\",\"\",VALUE(VLOOKUP(武器番号,VL用!$AL$55:$BM$262,VL用!$DQ75+1,TRUE)))","v":""},null,null,{"$f":"IF(VLOOKUP(防具番号,VL用!$BQ$55:$CN$168,VL用!$DQ75+1,TRUE)&\"\"=\"\",\"\",VALUE(VLOOKUP(防具番号,VL用!$BQ$55:$CN$168,VL用!$DQ75+1,TRUE)))","v":-10},null,null,{"$f":"IF(VLOOKUP(AA番号,VL用!$CR$55:$DO$250,VL用!$DQ75+1,TRUE)&\"\"=\"\",\"\",VALUE(VLOOKUP(AA番号,VL用!$CR$55:$DO$250,VL用!$DQ75+1,TRUE)))","v":""},null,{"$f":"IF(VLOOKUP(AB番号,VL用!$CR$55:$DO$250,VL用!$DQ75+1,TRUE)&\"\"=\"\",\"\",VALUE(VLOOKUP(AB番号,VL用!$CR$55:$DO$250,VL用!$DQ75+1,TRUE)))","v":""},null,{"$f":"IF(VLOOKUP(AC番号,VL用!$CR$55:$DO$250,VL用!$DQ75+1,TRUE)&\"\"=\"\",\"\",VALUE(VLOOKUP(AC番号,VL用!$CR$55:$DO$250,VL用!$DQ75+1,TRUE)))","v":""},null,null,null,null,null,null,null,null,null,"炎",null,null,-10]
[null,null,null,"氷",null,{"$f":"VLOOKUP(種族番号,VL用!$E$27:$HG$51,VL用!$B49+1+(CL-1)*21,TRUE)","v":0},null,null,{"$f":"IF(VL用!AT5=0,\"\",VL用!AT5)","v":""},null,null,{"$f":"IF(VLOOKUP(武器番号,VL用!$AL$55:$BM$262,VL用!$DQ76+1,TRUE)&\"\"=\"\",\"\",VALUE(VLOOKUP(武器番号,VL用!$AL$55:$BM$262,VL用!$DQ76+1,TRUE)))","v":""},null,null,{"$f":"IF(VLOOKUP(防具番号,VL用!$BQ$55:$CN$168,VL用!$DQ76+1,TRUE)&\"\"=\"\",\"\",VALUE(VLOOKUP(防具番号,VL用!$BQ$55:$CN$168,VL用!$DQ76+1,TRUE)))","v":-10},null,null,{"$f":"IF(VLOOKUP(AA番号,VL用!$CR$55:$DO$250,VL用!$DQ76+1,TRUE)&\"\"=\"\",\"\",VALUE(VLOOKUP(AA番号,VL用!$CR$55:$DO$250,VL用!$DQ76+1,TRUE)))","v":""},null,{"$f":"IF(VLOOKUP(AB番号,VL用!$CR$55:$DO$250,VL用!$DQ76+1,TRUE)&\"\"=\"\",\"\",VALUE(VLOOKUP(AB番号,VL用!$CR$55:$DO$250,VL用!$DQ76+1,TRUE)))","v":""},null,{"$f":"IF(VLOOKUP(AC番号,VL用!$CR$55:$DO$250,VL用!$DQ76+1,TRUE)&\"\"=\"\",\"\",VALUE(VLOOKUP(AC番号,VL用!$CR$55:$DO$250,VL用!$DQ76+1,TRUE)))","v":""},null,null,null,null,null,null,null,null,null,"氷",null,null,-10,null,null,null,null,null,null,null,4]
[null,null,null,"水",null,{"$f":"VLOOKUP(種族番号,VL用!$E$27:$HG$51,VL用!$B50+1+(CL-1)*21,TRUE)","v":-5},null,null,{"$f":"IF(VL用!AT6=0,\"\",VL用!AT6)","v":""},null,null,{"$f":"IF(VLOOKUP(武器番号,VL用!$AL$55:$BM$262,VL用!$DQ77+1,TRUE)&\"\"=\"\",\"\",VALUE(VLOOKUP(武器番号,VL用!$AL$55:$BM$262,VL用!$DQ77+1,TRUE)))","v":""},null,null,{"$f":"IF(VLOOKUP(防具番号,VL用!$BQ$55:$CN$168,VL用!$DQ77+1,TRUE)&\"\"=\"\",\"\",VALUE(VLOOKUP(防具番号,VL用!$BQ$55:$CN$168,VL用!$DQ77+1,TRUE)))","v":-10},null,null,{"$f":"IF(VLOOKUP(AA番号,VL用!$CR$55:$DO$250,VL用!$DQ77+1,TRUE)&\"\"=\"\",\"\",VALUE(VLOOKUP(AA番号,VL用!$CR$55:$DO$250,VL用!$DQ77+1,TRUE)))","v":""},null,{"$f":"IF(VLOOKUP(AB番号,VL用!$CR$55:$DO$250,VL用!$DQ77+1,TRUE)&\"\"=\"\",\"\",VALUE(VLOOKUP(AB番号,VL用!$CR$55:$DO$250,VL用!$DQ77+1,TRUE)))","v":""},null,{"$f":"IF(VLOOKUP(AC番号,VL用!$CR$55:$DO$250,VL用!$DQ77+1,TRUE)&\"\"=\"\",\"\",VALUE(VLOOKUP(AC番号,VL用!$CR$55:$DO$250,VL用!$DQ77+1,TRUE)))","v":""},null,null,null,null,null,null,null,null,null,"水",null,null,-15]
[null,null,null,"雷",null,{"$f":"VLOOKUP(種族番号,VL用!$E$27:$HG$51,VL用!$B51+1+(CL-1)*21,TRUE)","v":0},null,null,{"$f":"IF(VL用!AT7=0,\"\",VL用!AT7)","v":""},null,null,{"$f":"IF(VLOOKUP(武器番号,VL用!$AL$55:$BM$262,VL用!$DQ78+1,TRUE)&\"\"=\"\",\"\",VALUE(VLOOKUP(武器番号,VL用!$AL$55:$BM$262,VL用!$DQ78+1,TRUE)))","v":""},null,null,{"$f":"IF(VLOOKUP(防具番号,VL用!$BQ$55:$CN$168,VL用!$DQ78+1,TRUE)&\"\"=\"\",\"\",VALUE(VLOOKUP(防具番号,VL用!$BQ$55:$CN$168,VL用!$DQ78+1,TRUE)))","v":-10},null,null,{"$f":"IF(VLOOKUP(AA番号,VL用!$CR$55:$DO$250,VL用!$DQ78+1,TRUE)&\"\"=\"\",\"\",VALUE(VLOOKUP(AA番号,VL用!$CR$55:$DO$250,VL用!$DQ78+1,TRUE)))","v":""},null,{"$f":"IF(VLOOKUP(AB番号,VL用!$CR$55:$DO$250,VL用!$DQ78+1,TRUE)&\"\"=\"\",\"\",VALUE(VLOOKUP(AB番号,VL用!$CR$55:$DO$250,VL用!$DQ78+1,TRUE)))","v":""},null,{"$f":"IF(VLOOKUP(AC番号,VL用!$CR$55:$DO$250,VL用!$DQ78+1,TRUE)&\"\"=\"\",\"\",VALUE(VLOOKUP(AC番号,VL用!$CR$55:$DO$250,VL用!$DQ78+1,TRUE)))","v":""},null,null,null,null,null,null,1,null,null,"雷",null,null,{"$f":"SUM(F50:AB50)","v":-10},null,null,null,null,null,null,null,5]
[null,null,null,"風",null,{"$f":"VLOOKUP(種族番号,VL用!$E$27:$HG$51,VL用!$B52+1+(CL-1)*21,TRUE)","v":5},null,null,{"$f":"IF(VL用!AT8=0,\"\",VL用!AT8)","v":""},null,null,{"$f":"IF(VLOOKUP(武器番号,VL用!$AL$55:$BM$262,VL用!$DQ79+1,TRUE)&\"\"=\"\",\"\",VALUE(VLOOKUP(武器番号,VL用!$AL$55:$BM$262,VL用!$DQ79+1,TRUE)))","v":""},null,null,{"$f":"IF(VLOOKUP(防具番号,VL用!$BQ$55:$CN$168,VL用!$DQ79+1,TRUE)&\"\"=\"\",\"\",VALUE(VLOOKUP(防具番号,VL用!$BQ$55:$CN$168,VL用!$DQ79+1,TRUE)))","v":-10},null,null,{"$f":"IF(VLOOKUP(AA番号,VL用!$CR$55:$DO$250,VL用!$DQ79+1,TRUE)&\"\"=\"\",\"\",VALUE(VLOOKUP(AA番号,VL用!$CR$55:$DO$250,VL用!$DQ79+1,TRUE)))","v":""},null,{"$f":"IF(VLOOKUP(AB番号,VL用!$CR$55:$DO$250,VL用!$DQ79+1,TRUE)&\"\"=\"\",\"\",VALUE(VLOOKUP(AB番号,VL用!$CR$55:$DO$250,VL用!$DQ79+1,TRUE)))","v":""},null,{"$f":"IF(VLOOKUP(AC番号,VL用!$CR$55:$DO$250,VL用!$DQ79+1,TRUE)&\"\"=\"\",\"\",VALUE(VLOOKUP(AC番号,VL用!$CR$55:$DO$250,VL用!$DQ79+1,TRUE)))","v":""},null,null,null,null,null,null,null,null,null,"風",null,null,-5]
[null,null,null,"土",null,{"$f":"VLOOKUP(種族番号,VL用!$E$27:$HG$51,VL用!$B53+1+(CL-1)*21,TRUE)","v":2},null,null,{"$f":"IF(VL用!AT9=0,\"\",VL用!AT9)","v":""},null,null,{"$f":"IF(VLOOKUP(武器番号,VL用!$AL$55:$BM$262,VL用!$DQ80+1,TRUE)&\"\"=\"\",\"\",VALUE(VLOOKUP(武器番号,VL用!$AL$55:$BM$262,VL用!$DQ80+1,TRUE)))","v":""},null,null,{"$f":"IF(VLOOKUP(防具番号,VL用!$BQ$55:$CN$168,VL用!$DQ80+1,TRUE)&\"\"=\"\",\"\",VALUE(VLOOKUP(防具番号,VL用!$BQ$55:$CN$168,VL用!$DQ80+1,TRUE)))","v":-10},null,null,{"$f":"IF(VLOOKUP(AA番号,VL用!$CR$55:$DO$250,VL用!$DQ80+1,TRUE)&\"\"=\"\",\"\",VALUE(VLOOKUP(AA番号,VL用!$CR$55:$DO$250,VL用!$DQ80+1,TRUE)))","v":""},null,{"$f":"IF(VLOOKUP(AB番号,VL用!$CR$55:$DO$250,VL用!$DQ80+1,TRUE)&\"\"=\"\",\"\",VALUE(VLOOKUP(AB番号,VL用!$CR$55:$DO$250,VL用!$DQ80+1,TRUE)))","v":""},null,{"$f":"IF(VLOOKUP(AC番号,VL用!$CR$55:$DO$250,VL用!$DQ80+1,TRUE)&\"\"=\"\",\"\",VALUE(VLOOKUP(AC番号,VL用!$CR$55:$DO$250,VL用!$DQ80+1,TRUE)))","v":""},null,null,null,null,null,null,null,null,null,"土",null,null,-8,null,null,null,null,null,null,null,7]
[null,null,null,"光",null,{"$f":"VLOOKUP(種族番号,VL用!$E$27:$HG$51,VL用!$B54+1+(CL-1)*21,TRUE)","v":4},null,null,{"$f":"IF(VL用!AT10=0,\"\",VL用!AT10)","v":""},null,null,{"$f":"IF(VLOOKUP(武器番号,VL用!$AL$55:$BM$262,VL用!$DQ81+1,TRUE)&\"\"=\"\",\"\",VALUE(VLOOKUP(武器番号,VL用!$AL$55:$BM$262,VL用!$DQ81+1,TRUE)))","v":""},null,null,{"$f":"IF(VLOOKUP(防具番号,VL用!$BQ$55:$CN$168,VL用!$DQ81+1,TRUE)&\"\"=\"\",\"\",VALUE(VLOOKUP(防具番号,VL用!$BQ$55:$CN$168,VL用!$DQ81+1,TRUE)))","v":-10},null,null,{"$f":"IF(VLOOKUP(AA番号,VL用!$CR$55:$DO$250,VL用!$DQ81+1,TRUE)&\"\"=\"\",\"\",VALUE(VLOOKUP(AA番号,VL用!$CR$55:$DO$250,VL用!$DQ81+1,TRUE)))","v":""},null,{"$f":"IF(VLOOKUP(AB番号,VL用!$CR$55:$DO$250,VL用!$DQ81+1,TRUE)&\"\"=\"\",\"\",VALUE(VLOOKUP(AB番号,VL用!$CR$55:$DO$250,VL用!$DQ81+1,TRUE)))","v":""},null,{"$f":"IF(VLOOKUP(AC番号,VL用!$CR$55:$DO$250,VL用!$DQ81+1,TRUE)&\"\"=\"\",\"\",VALUE(VLOOKUP(AC番号,VL用!$CR$55:$DO$250,VL用!$DQ81+1,TRUE)))","v":""},null,null,null,null,null,null,null,null,null,"光",null,null,-6]
[null,null,null,"闇",null,{"$f":"VLOOKUP(種族番号,VL用!$E$27:$HG$51,VL用!$B55+1+(CL-1)*21,TRUE)","v":3},null,null,{"$f":"IF(VL用!AT11=0,\"\",VL用!AT11)","v":""},null,null,{"$f":"IF(VLOOKUP(武器番号,VL用!$AL$55:$BM$262,VL用!$DQ82+1,TRUE)&\"\"=\"\",\"\",VALUE(VLOOKUP(武器番号,VL用!$AL$55:$BM$262,VL用!$DQ82+1,TRUE)))","v":""},null,null,{"$f":"IF(VLOOKUP(防具番号,VL用!$BQ$55:$CN$168,VL用!$DQ82+1,TRUE)&\"\"=\"\",\"\",VALUE(VLOOKUP(防具番号,VL用!$BQ$55:$CN$168,VL用!$DQ82+1,TRUE)))","v":-10},null,null,{"$f":"IF(VLOOKUP(AA番号,VL用!$CR$55:$DO$250,VL用!$DQ82+1,TRUE)&\"\"=\"\",\"\",VALUE(VLOOKUP(AA番号,VL用!$CR$55:$DO$250,VL用!$DQ82+1,TRUE)))","v":""},null,{"$f":"IF(VLOOKUP(AB番号,VL用!$CR$55:$DO$250,VL用!$DQ82+1,TRUE)&\"\"=\"\",\"\",VALUE(VLOOKUP(AB番号,VL用!$CR$55:$DO$250,VL用!$DQ82+1,TRUE)))","v":""},null,{"$f":"IF(VLOOKUP(AC番号,VL用!$CR$55:$DO$250,VL用!$DQ82+1,TRUE)&\"\"=\"\",\"\",VALUE(VLOOKUP(AC番号,VL用!$CR$55:$DO$250,VL用!$DQ82+1,TRUE)))","v":""},null,null,null,null,null,null,null,null,null,"闇",null,null,-7,null,null,null,null,null,null,null,9]

{"sheet":"クリアボタン","index":1,"n_rows":7,"n_cols":8,"rows_kept":7,"cut":false,"hidden":false,"merged":[[1,1,2,6],[3,1,5,4],[6,1,8,4],[1,7,2,9],[3,7,5,9],[6,7,8,9]]}
[]
[null,"クリアボタン(マクロ)",null,null,null,null,null,"ショートカットキー"]
[]
[null,"オールリセット",null,null,null,null,null,"Ctrl+Shift+R"]
[]
[]
[null,"スキル欄オールクリア",null,null,null,null,null,"Ctrl+Shift+S"]

{"sheet":"コピペ用","index":2,"n_rows":46,"n_cols":145,"rows_kept":46,"cut":false,"hidden":false,"merged":[[19,79,20,85],[25,93,26,94],[25,95,26,96],[25,97,26,99],[23,102,24,104],[21,79,22,85],[21,86,22,87],[21,88,22,89],[21,90,22,92],[21,93,22,94],[25,100,26,101],[25,79,26,85],[25,86,26,87],[25,88,26,89],[25,90,26,92],[41,141,42,143],[41,144,42,154],[23,141,24,143],[3,141,4,143],[3,144,4,154],[25,144,26,154],[3,118,4,124],[3,125,4,126],[3,127,4,128],[3,129,4,131],[3,132,4,133],[3,134,4,135],[3,136,4,138],[3,139,4,140],[25,118,26,124],[25,125,26,126],[25,127,26,128],[25,129,26,131],[25,132,26,133],[25,134,26,135],[25,136,26,138],[25,139,26,140],[25,141,26,143],[9,118,10,124],[41,118,42,124],[41,125,42,126],[41,127,42,128],[41,129,42,131],[41,132,42,133],[41,134,42,135],[45,134,46,135],[45,136,46,138],[45,139,46,140],[43,118,44,124],[41,136,42,138],[41,139,42,140],[27,136,28,138],[31,132,32,133],[33,102,34,104],[33,105,34,115],[27,132,28,133],[27,134,28,135],[35,139,36,140],[35,105,36,115],[37,118,38,124],[37,125,38,126],[37,127,38,128],[37,129,38,131],[37,132,38,133],[37,134,38,135],[37,136,38,138],[37,139,38,140],[29,144,30,154],[39,144,40,154],[17,118,18,124],[17,125,18,126],[17,127,18,128],[17,129,18,131],[17,132,18,133],[17,134,18,135],[17,136,18,138],[17,144,18,154],[17,139,18,140],[39,118,40,124],[39,125,40,126],[39,127,40,128],[39,129,40,131],[39,132,40,133],[39,134,40,135],[39,136,40,138],[39,139,40,140],[39,141,40,143],[35,136,36,138],[23,144,24,154],[23,118,24,124],[23,125,24,126],[9,141,10,143],[35,127,36,128],[11,118,12,124],[11,125,12,126],[11,127,12,128],[35,118,36,124],[35,125,36,126],[11,132,12,133],[11,134,12,135],[11,136,12,138],[11,139,12,140],[9,132,10,133],[9,134,10,135],[9,136,10,138],[9,139,10,140],[23,127,24,128],[15,136,16,138],[15,139,16,140],[15,141,16,143],[31,136,32,138],[31,139,32,140],[31,141,32,143],[29,141,30,143],[17,141,18,143],[29,79,30,85],[29,86,30,87],[29,88,30,89],[29,90,30,92],[29,93,30,94],[29,95,30,96],[33,97,34,99],[33,100,34,101],[27,88,28,89],[27,90,28,92],[33,79,34,85],[33,90,34,92],[33,88,34,89],[33,86,34,87],[27,79,28,85],[27,86,28,87],[31,79,32,85],[31,86,32,87],[31,88,32,89],[31,90,32,92],[31,93,32,94],[39,79,40,85],[33,141,34,143],[33,144,34,154],[33,118,34,124],[33,125,34,126],[33,127,34,128],[33,129,34,131],[37,141,38,143],[37,144,38,154],[39,86,40,87],[39,88,40,89],[39,90,40,92],[33,132,34,133],[33,134,34,135],[33,136,34,138],[33,139,34,140],[35,141,36,143],[35,144,36,154],[35,129,36,131],[35,132,36,133],[35,134,36,135],[35,100,36,101],[7,90,8,92],[7,88,8,89],[39,93,40,94],[27,97,28,99],[27,100,28,101],[27,102,28,104],[27,105,28,115],[27,93,28,94],[27,95,28,96],[39,95,40,96],[39,97,40,99],[39,100,40,101],[31,95,32,96],[31,97,32,99],[31,100,32,101],[33,95,34,96],[33,93,34,94],[37,102,38,104],[37,100,38,101],[31,105,32,115],[39,102,40,104],[25,102,26,104],[25,105,26,115],[19,105,20,115],[5,93,6,94],[5,95,6,96],[5,97,6,99],[5,100,6,101],[5,102,6,104],[9,102,10,104],[7,105,8,115],[7,97,8,99],[7,95,8,96],[7,93,8,94],[11,97,12,99],[11,105,12,115],[3,97,4,99],[3,100,4,101],[11,129,12,131],[5,105,6,115],[9,97,10,99],[9,125,10,126],[9,127,10,128],[9,129,10,131],[3,102,4,104],[3,105,4,115],[9,105,10,115],[9,100,10,101],[3,79,4,85],[3,86,4,87],[3,88,4,89],[3,90,4,92],[3,93,4,94],[3,95,4,96],[11,79,12,85],[11,86,12,87],[11,88,12,89],[11,90,12,92],[11,93,12,94],[11,95,12,96],[9,79,10,85],[9,86,10,87],[9,88,10,89],[9,90,10,92],[9,93,10,94],[9,95,10,96],[7,79,8,85],[7,86,8,87],[5,79,6,85],[5,86,6,87],[5,88,6,89],[5,90,6,92],[13,79,14,85],[13,86,14,87],[11,100,12,101],[11,102,12,104],[35,102,36,104],[31,102,32,104],[13,102,14,104],[13,105,14,115],[29,105,30,115],[35,79,36,85],[35,86,36,87],[35,88,36,89],[35,90,36,92],[35,93,36,94],[35,95,36,96],[35,97,36,99],[13,88,14,89],[13,90,14,92],[13,93,14,94],[13,95,14,96],[13,97,14,99],[13,100,14,101],[21,95,22,96],[15,79,16,85],[27,144,28,154],[29,97,30,99],[29,100,30,101],[29,102,30,104],[21,105,22,115],[29,118,30,124],[29,125,30,126],[29,127,30,128],[29,129,30,131],[29,132,30,133],[23,129,24,131],[23,132,24,133],[23,134,24,135],[23,136,24,138],[23,139,24,140],[29,134,30,135],[29,136,30,138],[29,139,30,140],[21,97,22,99],[21,100,22,101],[27,118,28,124],[27,125,28,126],[27,127,28,128],[27,129,28,131],[31,144,32,154],[19,118,20,124],[19,125,20,126],[27,139,28,140],[27,141,28,143],[15,102,16,104],[21,102,22,104],[19,141,20,143],[19,144,20,154],[17,105,18,115],[19,132,20,133],[19,134,20,135],[19,136,20,138],[19,139,20,140],[21,144,22,154],[31,134,32,135],[15,118,16,124],[15,125,16,126],[15,127,16,128],[15,129,16,131],[31,118,32,124],[31,125,32,126],[31,127,32,128],[31,129,32,131],[15,86,16,87],[15,88,16,89],[15,90,16,92],[15,93,16,94],[15,95,16,96],[15,97,16,99],[19,127,20,128],[19,129,20,131],[15,105,16,115],[15,100,16,101],[19,86,20,87],[19,88,20,89],[19,90,20,92],[19,93,20,94],[19,95,20,96],[19,97,20,99],[19,100,20,101],[19,102,20,104],[17,79,18,85],[17,86,18,87],[17,88,18,89],[17,90,18,92],[17,93,18,94],[17,95,18,96],[17,97,18,99],[17,100,18,101],[17,102,18,104],[45,79,46,85],[45,86,46,87],[45,88,46,89],[45,90,46,92],[43,105,44,115],[41,79,42,85],[41,86,42,87],[41,88,42,89],[41,90,42,92],[41,93,42,94],[41,95,42,96],[41,97,42,99],[41,100,42,101],[41,102,42,104],[41,105,42,115],[43,79,44,85],[43,86,44,87],[43,88,44,89],[43,90,44,92],[45,93,46,94],[45,95,46,96],[45,97,46,99],[45,100,46,101],[45,102,46,104],[45,105,46,115],[39,105,40,115],[43,93,44,94],[43,95,44,96],[43,97,44,99],[43,100,44,101],[43,102,44,104],[5,141,6,143],[7,118,8,124],[7,125,8,126],[7,127,8,128],[7,129,8,131],[7,132,8,133],[7,134,8,135],[7,136,8,138],[7,139,8,140],[7,141,8,143],[5,118,6,124],[5,125,6,126],[7,100,8,101],[7,102,8,104],[43,136,44,138],[15,132,16,133],[15,134,16,135],[5,144,6,154],[37,105,38,115],[23,79,24,85],[23,86,24,87],[23,88,24,89],[23,90,24,92],[23,93,24,94],[23,95,24,96],[23,97,24,99],[5,127,6,128],[5,129,6,131],[5,132,6,133],[5,134,6,135],[5,136,6,138],[5,139,6,140],[23,105,24,115],[23,100,24,101],[37,79,38,85],[37,86,38,87],[37,88,38,89],[37,90,38,92],[37,93,38,94],[37,95,38,96],[37,97,38,99],[1,79,2,85],[1,86,2,87],[1,88,2,89],[1,90,2,92],[1,93,2,94],[1,95,2,96],[1,97,2,99],[1,100,2,101],[1,102,2,104],[1,134,2,135],[1,136,2,138],[1,139,2,140],[1,141,2,143],[1,144,2,154],[1,129,2,131],[1,132,2,133],[1,105,2,115],[1,118,2,124],[1,125,2,126],[1,127,2,128],[15,40,16,46],[15,47,16,48],[9,61,10,62],[9,63,10,65],[9,66,10,76],[11,49,12,50],[11,51,12,53],[11,54,12,55],[9,49,10,50],[9,51,10,53],[9,54,10,55],[11,63,12,65],[11,66,12,76],[9,56,10,57],[15,49,16,50],[15,51,16,53],[15,54,16,55],[11,40,12,46],[11,47,12,48],[13,63,14,65],[13,66,14,76],[15,56,16,57],[15,58,16,60],[15,61,16,62],[37,66,38,76],[39,66,40,76],[17,40,18,46],[17,47,18,48],[17,49,18,50],[17,51,18,53],[17,54,18,55],[35,56,36,57],[19,54,20,55],[19,56,20,57],[35,61,36,62],[33,40,34,46],[33,47,34,48],[33,49,34,50],[33,51,34,53],[33,54,34,55],[33,56,34,57],[33,58,34,60],[33,61,34,62],[39,61,40,62],[39,63,40,65],[17,56,18,57],[17,58,18,60],[17,61,18,62],[11,56,12,57],[11,58,12,60],[11,61,12,62],[13,58,14,60],[13,61,14,62],[13,56,14,57],[27,66,28,76],[19,63,20,65],[19,66,20,76],[23,56,24,57],[21,58,22,60],[21,61,22,62],[35,63,36,65],[35,66,36,76],[17,63,18,65],[17,66,18,76],[15,63,16,65],[23,63,24,65],[23,66,24,76],[33,63,34,65],[15,66,16,76],[25,66,26,76],[37,27,38,37],[35,19,36,21],[35,22,36,23],[35,24,36,26],[35,27,36,37],[33,27,34,37],[37,22,38,23],[37,24,38,26],[31,1,32,7],[31,8,32,9],[31,10,32,11],[31,12,32,14],[35,17,36,18],[33,1,34,7],[31,15,32,16],[31,17,32,18],[33,8,34,9],[33,10,34,11],[33,12,34,14],[33,15,34,16],[33,17,34,18],[37,19,38,21],[33,19,34,21],[33,22,34,23],[29,8,30,9],[29,10,30,11],[33,24,34,26],[35,1,36,7],[35,8,36,9],[35,10,36,11],[35,12,36,14],[35,15,36,16],[37,1,38,7],[37,8,38,9],[37,10,38,11],[37,12,38,14],[37,15,38,16],[37,17,38,18],[29,12,30,14],[29,15,30,16],[29,17,30,18],[19,40,20,46],[19,47,20,48],[27,1,28,7],[27,8,28,9],[31,19,32,21],[29,61,30,62],[29,63,30,65],[29,66,30,76],[27,10,28,11],[27,12,28,14],[27,15,28,16],[27,17,28,18],[31,63,32,65],[31,66,32,76],[27,63,28,65],[31,24,32,26],[31,27,32,37],[29,19,30,21],[29,22,30,23],[29,24,30,26],[29,27,30,37],[27,27,28,37],[27,19,28,21],[29,1,30,7],[19,49,20,50],[19,51,20,53],[27,22,28,23],[27,24,28,26],[31,22,32,23],[29,49,30,50],[29,51,30,53],[19,58,20,60],[19,61,20,62],[29,56,30,57],[31,40,32,46],[31,47,32,48],[31,49,32,50],[31,51,32,53],[31,54,32,55],[31,56,32,57],[29,58,30,60],[31,58,32,60],[29,54,30,55],[31,61,32,62],[29,40,30,46],[29,47,30,48],[27,61,28,62],[21,22,22,23],[37,54,38,55],[23,47,24,48],[23,49,24,50],[23,51,24,53],[37,56,38,57],[37,58,38,60],[35,40,36,46],[35,47,36,48],[35,49,36,50],[35,51,36,53],[35,54,36,55],[27,40,28,46],[27,47,28,48],[27,49,28,50],[27,51,28,53],[27,54,28,55],[27,56,28,57],[27,58,28,60],[35,58,36,60],[25,51,26,53],[25,54,26,55],[25,56,26,57],[25,58,26,60],[23,54,24,55],[9,58,10,60],[9,40,10,46],[9,47,10,48],[23,61,24,62],[23,58,24,60],[23,40,24,46],[21,40,22,46],[39,40,40,46],[39,47,40,48],[39,49,40,50],[39,51,40,53],[39,54,40,55],[39,56,40,57],[39,58,40,60],[13,40,14,46],[13,47,14,48],[13,49,14,50],[13,51,14,53],[13,54,14,55],[37,40,38,46],[37,47,38,48],[37,49,38,50],[37,51,38,53],[25,49,26,50],[37,61,38,62],[37,63,38,65],[33,66,34,76],[7,40,8,46],[7,47,8,48],[7,49,8,50],[7,51,8,53],[7,54,8,55],[7,56,8,57],[7,58,8,60],[7,61,8,62],[7,63,8,65],[21,47,22,48],[21,49,22,50],[21,51,22,53],[21,54,22,55],[21,56,22,57],[25,61,26,62],[25,63,26,65],[21,63,22,65],[21,66,22,76],[7,66,8,76],[25,40,26,46],[25,47,26,48],[19,22,20,23],[19,24,20,26],[25,19,26,21],[25,22,26,23],[25,24,26,26],[25,27,26,37],[23,27,24,37],[13,19,14,21],[17,19,18,21],[23,22,24,23],[23,24,24,26],[21,24,22,26],[21,27,22,37],[17,22,18,23],[17,24,18,26],[17,27,18,37],[19,27,20,37],[23,19,24,21],[1,40,2,46],[1,47,2,48],[1,49,2,50],[1,51,2,53],[15,17,16,18],[15,19,16,21],[15,22,16,23],[15,24,16,26],[15,27,16,37],[5,27,6,37],[7,27,8,37],[11,27,12,37],[9,27,10,37],[9,19,10,21],[9,22,10,23],[9,24,10,26],[11,22,12,23],[11,24,12,26],[5,17,6,18],[7,17,8,18],[7,19,8,21],[7,22,8,23],[7,24,8,26],[1,22,2,23],[1,54,2,55],[1,56,2,57],[1,58,2,60],[1,61,2,62],[1,63,2,65],[1,66,2,76],[3,17,4,18],[1,19,2,21],[13,22,14,23],[13,24,14,26],[13,27,14,37],[9,17,10,18],[1,27,2,37],[3,27,4,37],[5,66,6,76],[3,40,4,46],[3,47,4,48],[3,49,4,50],[3,51,4,53],[3,54,4,55],[3,56,4,57],[3,58,4,60],[3,61,4,62],[3,63,4,65],[23,12,24,14],[11,17,12,18],[11,19,12,21],[13,17,14,18],[21,17,22,18],[21,19,22,21],[11,1,12,7],[11,8,12,9],[11,10,12,11],[11,12,12,14],[11,15,12,16],[13,1,14,7],[13,8,14,9],[13,10,14,11],[13,12,14,14],[13,15,14,16],[19,19,20,21],[15,1,16,7],[15,8,16,9],[15,10,16,11],[15,12,16,14],[17,8,18,9],[17,10,18,11],[25,1,26,7],[25,8,26,9],[25,10,26,11],[25,12,26,14],[25,15,26,16],[23,1,24,7],[23,8,24,9],[23,10,24,11],[17,17,18,18],[19,17,20,18],[23,15,24,16],[21,1,22,7],[21,8,22,9],[21,10,22,11],[21,12,22,14],[21,15,22,16],[23,17,24,18],[25,17,26,18],[19,1,20,7],[19,8,20,9],[19,10,20,11],[19,12,20,14],[19,15,20,16],[17,1,18,7],[9,1,10,7],[9,8,10,9],[9,10,10,11],[9,12,10,14],[9,15,10,16],[17,12,18,14],[17,15,18,16],[1,1,2,7],[1,8,2,9],[1,10,2,11],[1,12,2,14],[15,15,16,16],[5,1,6,7],[3,1,4,7],[7,15,8,16],[5,8,6,9],[5,10,6,11],[5,12,6,14],[5,15,6,16],[7,1,8,7],[3,8,4,9],[3,10,4,11],[3,12,4,14],[3,15,4,16],[1,24,2,26],[7,8,8,9],[7,10,8,11],[7,12,8,14],[1,15,2,16],[1,17,2,18],[3,19,4,21],[3,22,4,23],[3,24,4,26],[5,19,6,21],[5,22,6,23],[5,24,6,26],[41,27,42,37],[39,1,40,7],[39,8,40,9],[39,10,40,11],[39,12,40,14],[39,15,40,16],[39,17,40,18],[39,19,40,21],[39,22,40,23],[39,24,40,26],[39,27,40,37],[41,1,42,7],[41,8,42,9],[41,10,42,11],[41,12,42,14],[41,15,42,16],[41,17,42,18],[41,19,42,21],[41,22,42,23],[41,24,42,26],[3,66,4,76],[5,40,6,46],[5,47,6,48],[5,49,6,50],[5,51,6,53],[5,54,6,55],[5,56,6,57],[5,58,6,60],[5,61,6,62],[5,63,6,65],[43,144,44,154],[45,118,46,124],[45,125,46,126],[45,127,46,128],[45,129,46,131],[45,132,46,133],[43,125,44,126],[43,127,44,128],[43,129,44,131],[43,132,44,133],[43,134,44,135],[45,141,46,143],[43,139,44,140],[43,141,44,143],[45,144,46,154],[7,144,8,154],[21,141,22,143],[21,118,22,124],[21,134,22,135],[21,136,22,138],[21,139,22,140],[21,125,22,126],[21,127,22,128],[21,129,22,131],[21,132,22,133],[15,144,16,154],[13,141,14,143],[13,144,14,154],[11,141,12,143],[11,144,12,154],[13,118,14,124],[13,125,14,126],[13,127,14,128],[13,129,14,131],[13,132,14,133],[13,134,14,135],[13,136,14,138],[13,139,14,140],[9,144,10,154]]}
[]
[null,"名称",null,null,null,null,null,null,"SL",null,"種別",null,"ﾀｲﾐﾝｸﾞ",null,null,"対象",null,"射程",null,"判定値",null,null,"代償",null,"コスト",null,null,"効果 (SL参照などは自動計算)",null,null,null,null,null,null,null,null,null,null,null,null,"名称",null,null,null,null,null,null,"SL",null,"種別",null,"ﾀｲﾐﾝｸﾞ",null,null,"対象",null,"射程",null,"判定値",null,null,"代償",null,"コスト",null,null,"効果 (SL参照などは自動計算)",null,null,null,null,null,null,null,null,null,null,null,null,"名称",null,null,null,null,null,null,"SL",null,"種別",null,"ﾀｲﾐﾝｸﾞ",null,null,"対象",null,"射程",null,"判定値",null,null,"代償",null,"コスト",null,null,"効果 (SL参照などは自動計算)",null,null,null,null,null,null,null,null,null,null,null,null,"名称",null,null,null,null,null,null,"SL",null,"種別",null,"ﾀｲﾐﾝｸﾞ",null,null,"対象",null,"射程",null,"判定値",null,null,"代償",null,"コスト",null,null,"効果 (SL参照などは自動計算)"]
[]
[null,"アタックフォース",null,null,null,null,null,null,null,null,"なし",null,"常時",null,null,"自身",null,"なし",null,null,null,null,null,null,null,null,null,{"$f":"\"【近接】+\"&QUOTIENT(I4,2)&\" 【物攻】+\"&I4","v":"【近接】+0 【物攻】+"},null,null,null,null,null,null,null,null,null,null,null,null,"ワイドスプレッド",null,null,null,null,null,null,null,null,"支",null,"サブ",null,null,"自身",null,"なし",null,"自動",null,null,"2MP",null,2,null,null,{"$f":"\"次ﾒｲﾝのｽｷﾙが近・単体の場合、範囲にする。1戦闘\"&AV4+1&\"回\"","v":"次ﾒｲﾝのｽｷﾙが近・単体の場合、範囲にする。1戦闘1回"},null,null,null,null,null,null,null,null,null,null,null,null,"アトミックフォース",null,null,null,null,null,null,null,null,"なし",null,"常時",null,null,"自身",null,"なし",null,null,null,null,null,null,null,null,null,{"$f":"\"「0-2」攻撃ﾀﾞﾒｰｼﾞ+\"&CI4*2&\" 炎光無ｽｷﾙﾀﾞﾒｰｼﾞ+\"&CI4*2","v":"「0-2」攻撃ﾀﾞﾒｰｼﾞ+0 炎光無ｽｷﾙﾀﾞﾒｰｼﾞ+0"},null,null,null,null,null,null,null,null,null,null,null,null,"マシンフォース",null,null,null,null,null,null,null,null,"なし",null,"常時",null,null,"自身",null,"なし",null,null,null,null,null,null,null,null,null,{"$f":"\"自身ﾕﾆｯﾄor機械I使用後ﾒｲﾝ攻撃与ﾀﾞﾒｰｼﾞ+\"&DV4&\"D6\"&IF(DV4<15,\"\",\" 機械Iでｻﾌﾞ消費なし\")","v":"自身ﾕﾆｯﾄor機械I使用後ﾒｲﾝ攻撃与ﾀﾞﾒｰｼﾞ+D6"}]
[]
[null,"ショットフォース",null,null,null,null,null,null,null,null,"なし",null,"常時",null,null,"自身",null,"なし",null,null,null,null,null,null,null,null,null,{"$f":"\"【射撃】+\"&QUOTIENT(I6,2)&\" 【物攻】+\"&I6","v":"【射撃】+0 【物攻】+"},null,null,null,null,null,null,null,null,null,null,null,null,"ダブルバレット",null,null,null,null,null,null,null,null,"支",null,"サブ",null,null,"自身",null,"なし",null,"自動",null,null,"12MP",null,2,null,null,{"$f":"\"次ﾒｲﾝのｽｷﾙが射・単体の場合、2体にする。1戦闘\"&AV6+1&\"回\"","v":"次ﾒｲﾝのｽｷﾙが射・単体の場合、2体にする。1戦闘1回"},null,null,null,null,null,null,null,null,null,null,null,null,"アルカナストライク",null,null,null,null,null,null,null,null,"なし",null,"オート",null,null,"自身",null,"なし",null,"自動",null,null,"4MP",null,0,null,null,{"$f":"\"AC消費攻撃の判定前使用。与D+\"&CI6*4&\" C値-2 (min:14) C時、AC+1\"","v":"AC消費攻撃の判定前使用。与D+0 C値-2 (min:14) C時、AC+1"},null,null,null,null,null,null,null,null,null,null,null,null,"マインドフォース",null,null,null,null,null,null,null,null,"なし",null,"常時",null,null,"自身",null,"なし",null,null,null,null,null,null,null,null,null,{"$f":"\"BS付与確定時、ｽｷﾙ与D+\"&DV6*3&\"　【耐久力】-\"&DV6*6&\" 【精神力】+\"&DV6*4","v":"BS付与確定時、ｽｷﾙ与D+0　【耐久力】-0 【精神力】+0"}]
[]
[null,"マジックフォース",null,null,null,null,null,null,null,null,"なし",null,"常時",null,null,"自身",null,"なし",null,null,null,null,null,null,null,null,null,{"$f":"\"【魔術】+\"&QUOTIENT(I8,2)&\" 【魔攻】+\"&I8","v":"【魔術】+0 【魔攻】+"},null,null,null,null,null,null,null,null,null,null,null,null,"チャージング",null,null,null,null,null,null,null,null,"なし",null,"サブ",null,null,"自身",null,"なし",null,"自動",null,null,"2MP",null,2,null,null,{"$f":"\"次ﾒｲﾝｽｷｯﾌﾟ。 次ｽｷﾙのｺｽﾄ-2\n連続\"&AV8&\"回まで使用可\"","v":"次ﾒｲﾝｽｷｯﾌﾟ。 次ｽｷﾙのｺｽﾄ-2\n連続回まで使用可"},null,null,null,null,null,null,null,null,null,null,null,null,"アルカナクリエイト",null,null,null,null,null,null,null,null,"なし",null,"サブ",null,null,"自身",null,"なし",null,"自動",null,null,"2MP",null,2,null,null,{"$f":"\"AC+1 直後ﾒｲﾝでAC使用時 与D+\"&CI8*3&\" 【精神力】+\"&CI8*2","v":"AC+1 直後ﾒｲﾝでAC使用時 与D+0 【精神力】+0"},null,null,null,null,null,null,null,null,null,null,null,null,"メタルフォース",null,null,null,null,null,null,null,null,"なし",null,"常時",null,null,"自身",null,"なし",null,null,null,null,null,null,null,null,null,{"$f":"\"MWｽｷﾙor本来ｺｽﾄ12以上の攻撃ﾀﾞﾒｰｼﾞ+\"&DV8*3&IF(DV8<10,\"\",\" BP合計値上限+\"&INT(DV8/10))","v":"MWｽｷﾙor本来ｺｽﾄ12以上の攻撃ﾀﾞﾒｰｼﾞ+0"}]
[]
[null,"クイックフォース",null,null,null,null,null,null,null,null,"なし",null,"常時",null,null,"自身",null,"なし",null,null,null,null,null,null,null,null,null,{"$f":"\"【敏捷】+\"&I10*2","v":"【敏捷】+0"},null,null,null,null,null,null,null,null,null,null,null,null,"リフレッシング",null,null,null,null,null,null,null,null,"なし",null,"サブ",null,null,"単体",null,{"$f":"\"0-\"&AV10","v":"0-"},null,"自動",null,null,"10MP",null,2,null,null,{"$f":"IF(AV10<3,\"対象の毒、眠り、恐怖、凍結を解除。\",IF(AV10<5,\"対象の毒、眠り、恐怖、凍結、麻痺、封印、呪いを解除。\",\"対象の全てのﾊﾞｯﾄﾞｽﾃｰﾀｽを解除。\"))","v":"対象の毒、眠り、恐怖、凍結を解除。"},null,null,null,null,null,null,null,null,null,null,null,null,"アストラルフォース",null,null,null,null,null,null,null,null,"なし",null,"常時",null,null,"自身",null,"なし",null,null,null,null,null,null,null,null,null,{"$f":"\"AWor「単体」ｽｷﾙﾀﾞﾒｰｼﾞ+\"&CI10*3&\" 【耐久力】+\"&CI10*2&\" 【精神力】+\"&CI10","v":"AWor「単体」ｽｷﾙﾀﾞﾒｰｼﾞ+0 【耐久力】+0 【精神力】+"},null,null,null,null,null,null,null,null,null,null,null,null,"七宝石の導き",null,null,null,null,null,null,null,null,"なし",null,"常時",null,null,"自身",null,"なし",null,null,null,null,null,null,null,null,null,{"$f":"\"「宝」ｽｷﾙ\"&QUOTIENT(DV10,2)&\"種取得可。【物攻】【魔攻】+\"&DV10*2&\" \"&IF(DV10<10,,\"武器指定&判定値無視\")","v":"「宝」ｽｷﾙ0種取得可。【物攻】【魔攻】+0 "}]
[]
[null,"回避ブースト",null,null,null,null,null,null,null,null,"なし",null,"常時",null,null,"自身",null,"なし",null,null,null,null,null,null,null,null,null,{"$f":"\"【回避値】+\"&QUOTIENT(I12,2)","v":"【回避値】+0"},null,null,null,null,null,null,null,null,null,null,null,null,"至近発動",null,null,null,null,null,null,null,null,"支",null,"サブ",null,null,"自身",null,"なし",null,"自動",null,null,"8MP",null,{"$f":"4-AV12","v":4},null,null,"次ﾒｲﾝでの「種別：魔」単体ｽｷﾙの最低射程を0に。",null,null,null,null,null,null,null,null,null,null,null,null,"バトルフォース",null,null,null,null,null,null,null,null,"なし",null,"常時",null,null,"自身",null,"なし",null,null,null,null,null,null,null,null,null,{"$f":"\"ｽｷﾙ攻撃ﾀﾞﾒｰｼﾞ+[(N+2)*\"&CI12&\"]\nN：同ｶｳﾝﾄの自身以外の数 max:5\"","v":"ｽｷﾙ攻撃ﾀﾞﾒｰｼﾞ+[(N+2)*]\nN：同ｶｳﾝﾄの自身以外の数 max:5"},null,null,null,null,null,null,null,null,null,null,null,null,"パルスフォース",null,null,null,null,null,null,null,null,"なし",null,"常時",null,null,"自身",null,"なし",null,null,null,null,null,null,null,null,null,{"$f":"\"「音」ｽｷﾙﾀﾞﾒｰｼﾞ+\"&DV12*3&\" 3ﾏｽ以上からのﾀﾞﾒｰｼﾞ-\"&DV12*3&\" \"&IF(DV12<15,,\"全ｻﾌﾞｽｷﾙ「0-5」\")","v":"「音」ｽｷﾙﾀﾞﾒｰｼﾞ+0 3ﾏｽ以上からのﾀﾞﾒｰｼﾞ-0 "}]
[]
[null,"抵抗ブースト",null,null,null,null,null,null,null,null,"なし",null,"常時",null,null,"自身",null,"なし",null,null,null,null,null,null,null,null,null,{"$f":"\"【抵抗値】+\"&QUOTIENT(I14,2)","v":"【抵抗値】+0"},null,null,null,null,null,null,null,null,null,null,null,null,"延長化魔術",null,null,null,null,null,null,null,null,"なし",null,"サブ",null,null,"自身",null,"なし",null,"自動",null,null,"なし",null,1,null,null,{"$f":"\"次ﾒｲﾝでの「種別：魔」ｽｷﾙの最大射程に+1　1戦闘\"&AV14&\"回\"","v":"次ﾒｲﾝでの「種別：魔」ｽｷﾙの最大射程に+1　1戦闘回"},null,null,null,null,null,null,null,null,null,null,null,null,"バリアフォース",null,null,null,null,null,null,null,null,"なし",null,"常時",null,null,"自身",null,"なし",null,null,null,null,null,null,null,null,null,{"$f":"\"非B状態時 ｽｷﾙD+\"&CI14*3&\" B状態時 被ｽｷﾙD-\"&CI14*2&\" & 命中達成値-3\"","v":"非B状態時 ｽｷﾙD+0 B状態時 被ｽｷﾙD-0 & 命中達成値-3"},null,null,null,null,null,null,null,null,null,null,null,null,"プラントフォース",null,null,null,null,null,null,null,null,"なし",null,"常時",null,null,"自身",null,"なし",null,null,null,null,null,null,null,null,null,{"$f":"\"毒or麻痺付与確定時、ﾀﾞﾒｰｼﾞ+\"&DV14*3&\" 土光耐性+\"&DV14*3","v":"毒or麻痺付与確定時、ﾀﾞﾒｰｼﾞ+0 土光耐性+0"}]
[]
[null,"タフネスフォース",null,null,null,null,null,null,null,null,"なし",null,"常時",null,null,"自身",null,"なし",null,null,null,null,null,null,null,null,null,{"$f":"\"【耐久力】+\"&I16*10","v":"【耐久力】+0"},null,null,null,null,null,null,null,null,null,null,null,null,"戦闘集中",null,null,null,null,null,null,null,null,"支",null,"サブ",null,null,"自身",null,"なし",null,"自動",null,null,"4MP",null,2,null,null,{"$f":"\"次に行う命中達成値+3　1戦闘\"&AV16*2&\"回\"","v":"次に行う命中達成値+3　1戦闘0回"},null,null,null,null,null,null,null,null,null,null,null,null,"エンハンスフォース",null,null,null,null,null,null,null,null,"なし",null,"常時",null,null,"自身",null,"なし",null,null,null,null,null,null,null,null,null,{"$f":"\"「支」ｽｷﾙ適用時 与D+\"&CI16*3&\" 自身の「支」ｽｷﾙ持続C+\"&QUOTIENT(CI16+CL,3)","v":"「支」ｽｷﾙ適用時 与D+0 自身の「支」ｽｷﾙ持続C+0"},null,null,null,null,null,null,null,null,null,null,null,null,"ダークネスフォース",null,null,null,null,null,null,null,null,"なし",null,"常時",null,null,"自身",null,"なし",null,null,null,null,null,null,null,null,null,{"$f":"\"闇ｽｷﾙダメージ+\"&DV16*3&\" 光闇耐性+\"&DV16*2&\" \"&IF(DV16<15,,\"ﾒｲﾝｽｷﾙ最大射程+1\")","v":"闇ｽｷﾙダメージ+0 光闇耐性+0 "}]
[]
[null,"メンタルフォース",null,null,null,null,null,null,null,null,"なし",null,"常時",null,null,"自身",null,"なし",null,null,null,null,null,null,null,null,null,{"$f":"\"【精神力】+\"&I18*6","v":"【精神力】+0"},null,null,null,null,null,null,null,null,null,null,null,null,"力溜め",null,null,null,null,null,null,null,null,"支",null,"サブ",null,null,"自身",null,"なし",null,"自動",null,null,{"$f":"5-AV18&\"MP\"","v":"5MP"},null,3,null,null,{"$f":"\"次に行う攻撃のダメージ+\"&CS!B18*2&\" 1戦闘\"&AV18&\"回\"","v":"次に行う攻撃のダメージ+0 1戦闘回"},null,null,null,null,null,null,null,null,null,null,null,null,"ブラッドフォース",null,null,null,null,null,null,null,null,"なし",null,"常時",null,null,"自身",null,"なし",null,null,null,null,null,null,null,null,null,{"$f":"\"HP-\"&CI18&\"して射撃ﾀﾞﾒｰｼﾞ+\"&CI18*2&\"可能　対象が被呪印時さらに+\"&CI18*3&\"。\"","v":"HP-して射撃ﾀﾞﾒｰｼﾞ+0可能　対象が被呪印時さらに+0。"},null,null,null,null,null,null,null,null,null,null,null,null,"気功修練",null,null,null,null,null,null,null,null,"なし",null,"常時",null,null,"自身",null,"なし",null,null,null,null,null,null,null,null,null,{"$f":"\"SFor「0-3」ｽｷﾙﾀﾞﾒｰｼﾞ+\"&DV18*3&\" 炎氷雷耐性+\"&DV18*2&\" \"&IF(DV18<20,,\"石化無効\")","v":"SFor「0-3」ｽｷﾙﾀﾞﾒｰｼﾞ+0 炎氷雷耐性+0 "}]
[]
[null,"ヒールフォース",null,null,null,null,null,null,null,null,"なし",null,"常時",null,null,"自身",null,"なし",null,null,null,null,null,null,null,null,null,{"$f":"\"「種別：回」ｽｷﾙの回復量+\"&I20&\"D6+\"&IF(CL>=5,CS!AI39,ROUNDUP(CS!AI39/2,0))&\"、代償に\"&INT(I20/5)&\"MP (下限値：2MP)\"","v":"「種別：回」ｽｷﾙの回復量+D6+9、代償に0MP (下限値：2MP)"},null,null,null,null,null,null,null,null,null,null,null,null,"拡散魔法",null,null,null,null,null,null,null,null,"支",null,"サブ",null,null,"自身",null,"なし",null,"自動",null,null,{"$f":"9-AV20&\"MP\"","v":"9MP"},null,1,null,null,{"$f":"\"「種別：魔」の単体ｽｷﾙを、範囲に変更。 +\"&15-AV20*2&\"MPで0-3場面化。\"","v":"「種別：魔」の単体ｽｷﾙを、範囲に変更。 +15MPで0-3場面化。"},null,null,null,null,null,null,null,null,null,null,null,null,"カラーフォース",null,null,null,null,null,null,null,null,"なし",null,"常時",null,null,"自身",null,"なし",null,null,null,null,null,null,null,null,null,{"$f":"\"〈色属性〉ｽｷﾙ攻撃ﾀﾞﾒｰｼﾞ+\"&CI20*4&\"色属性以外の炎~闇耐性-\"&CI20*3","v":"〈色属性〉ｽｷﾙ攻撃ﾀﾞﾒｰｼﾞ+0色属性以外の炎~闇耐性-0"},null,null,null,null,null,null,null,null,null,null,null,null,"忍術フォース",null,null,null,null,null,null,null,null,"なし",null,"常時",null,null,"自身",null,"なし",null,null,null,null,null,null,null,null,null,{"$f":"\"ｽｷﾙor移動でｻﾌﾞ消費していないときﾀﾞﾒｰｼﾞ+\"&DV20&\"D6 炎～土耐性+\"&DV20+CL","v":"ｽｷﾙor移動でｻﾌﾞ消費していないときﾀﾞﾒｰｼﾞ+D6 炎～土耐性+1"}]
[]
[null,"BS耐性",null,null,null,null,null,null,null,null,"なし",null,"常時",null,null,"自身",null,"なし",null,null,null,null,null,null,null,null,null,"を受けるとき、1D10で3以上で無効。",null,null,null,null,null,null,null,null,null,null,null,null,"セカンドチャンス",null,null,null,null,null,null,null,null,"支",null,"オート",null,null,"自身",null,"なし",null,"自動",null,null,"2MP",null,2,null,null,{"$f":"\"振り直し。 戦闘外では使用毎にF値+4 (Max14)　1判定\"&AV22&\"回\"","v":"振り直し。 戦闘外では使用毎にF値+4 (Max14)　1判定回"},null,null,null,null,null,null,null,null,null,null,null,null,"ドールフォース",null,null,null,null,null,null,null,null,"なし",null,"常時",null,null,"自身",null,"なし",null,null,null,null,null,null,null,null,null,{"$f":"\"ｽｷﾙﾀﾞﾒｰｼﾞ+[N*\"&CI22&\"] N：同ﾏｽの自身以外 自身の「人形」ｽｷﾙSL+\"&QUOTIENT(CI22,3)","v":"ｽｷﾙﾀﾞﾒｰｼﾞ+[N*] N：同ﾏｽの自身以外 自身の「人形」ｽｷﾙSL+0"},null,null,null,null,null,null,null,null,null,null,null,null,"ツールフォース",null,null,null,null,null,null,null,null,"なし",null,"常時",null,null,"自身",null,"なし",null,null,null,null,null,null,null,null,null,{"$f":"\"ｱｲﾃﾑ使用した手番の与D+\"&DV22&\"D6 \"&IF(DV22<10,,\"回避CでI生成Rを1度振れる\")","v":"ｱｲﾃﾑ使用した手番の与D+D6 "}]
[]
[null,"ウェポンマスター",null,null,null,null,null,null,null,null,"なし",null,"常時",null,null,"自身",null,"なし",null,null,null,null,null,null,null,null,null,"「近接武器」or「射撃武器」の攻撃の命中C値-1 (下限値：17)",null,null,null,null,null,null,null,null,null,null,null,null,"サポートムーブ",null,null,null,null,null,null,null,null,"支",null,"オート",null,null,"単体",null,"0-1",null,"自動",null,null,{"$f":"AV24+5&\"MP\"","v":"5MP"},null,2,null,null,{"$f":"\"判定直後に使用。達成値+\"&AV24&\"\n1ﾒｲﾝｱｸｼｮﾝ1回\"","v":"判定直後に使用。達成値+\n1ﾒｲﾝｱｸｼｮﾝ1回"},null,null,null,null,null,null,null,null,null,null,null,null,"カオスフォース",null,null,null,null,null,null,null,null,"なし",null,"常時",null,null,"自身",null,"なし",null,null,null,null,null,null,null,null,null,{"$f":"\"CRｽｷﾙor「範囲」ｽｷﾙD+\"&CI24*3&\" CHRを1ｾｯｼｮﾝ\"&ROUNDUP(CI24/5,0)&\"回振り直せる\"","v":"CRｽｷﾙor「範囲」ｽｷﾙD+0 CHRを1ｾｯｼｮﾝ0回振り直せる"},null,null,null,null,null,null,null,null,null,null,null,null,"アクセルフォース",null,null,null,null,null,null,null,null,"なし",null,"常時",null,null,"自身",null,"なし",null,null,null,null,null,null,null,null,null,{"$f":"\"ｺｽﾄ10ｽｷﾙﾀﾞﾒｰｼﾞ+\"&DV24*2&\" 【敏捷】+\"&ROUNDUP(DV24/2,0)&\" \"&IF(DV24<10,,\"【回避値】回避C値-1\")","v":"ｺｽﾄ10ｽｷﾙﾀﾞﾒｰｼﾞ+0 【敏捷】+0 "}]
[]
[null,"マジックマスター",null,null,null,null,null,null,null,null,"なし",null,"常時",null,null,"自身",null,"なし",null,null,null,null,null,null,null,null,null,"「種別：魔」かつ「対象：単体」の攻撃の命中C値-1 (下限値：17)",null,null,null,null,null,null,null,null,null,null,null,null,"ジャミング",null,null,null,null,null,null,null,null,"なし",null,"オート",null,null,"単体",null,"1-3",null,"自動",null,null,{"$f":"AV26+6&\"MP\"","v":"6MP"},null,2,null,null,{"$f":"\"判定直後に使用。達成値-\"&AV26&\"\n1ﾒｲﾝｱｸｼｮﾝ1回\"","v":"判定直後に使用。達成値-\n1ﾒｲﾝｱｸｼｮﾝ1回"},null,null,null,null,null,null,null,null,null,null,null,null,"ドリームフォース",null,null,null,null,null,null,null,null,"なし",null,"常時",null,null,"自身",null,"なし",null,null,null,null,null,null,null,null,null,{"$f":"\"眠りor催眠付与確定時、ﾀﾞﾒｰｼﾞ+\"&CI26*3&\" \"&IF(CI26<15,,\"眠り 催眠無効\")","v":"眠りor催眠付与確定時、ﾀﾞﾒｰｼﾞ+0 "},null,null,null,null,null,null,null,null,null,null,null,null,"ディセルフォース",null,null,null,null,null,null,null,null,"なし",null,"常時",null,null,"自身",null,"なし",null,null,null,null,null,null,null,null,null,{"$f":"\"ｺｽﾄ10ｽｷﾙﾀﾞﾒｰｼﾞ+\"&DV26*4&\" 【敏捷】-\"&ROUNDUP(DV26/2,0)&\" \"&IF(DV26<10,,\"【抵抗値】回避C値-1\")","v":"ｺｽﾄ10ｽｷﾙﾀﾞﾒｰｼﾞ+0 【敏捷】-0 "}]
[]
[null,"物理障壁",null,null,null,null,null,null,null,null,"なし",null,"常時",null,null,"自身",null,"なし",null,null,null,null,null,null,null,null,null,{"$f":"\"〈近〉〈遠〉耐性+\"&I28*6+5","v":"〈近〉〈遠〉耐性+5"},null,null,null,null,null,null,null,null,null,null,null,null,"スペルブレイク",null,null,null,null,null,null,null,null,"なし",null,"オート",null,null,"自身",null,"なし",null,"自動",null,null,"2BP",null,3,null,null,{"$f":"\"25MPでも可。「種別：魔」を3D6 14以上で〈無〉\"&CL&\"D6点に\"","v":"25MPでも可。「種別：魔」を3D6 14以上で〈無〉1D6点に"},null,null,null,null,null,null,null,null,null,null,null,null,"アースフォース",null,null,null,null,null,null,null,null,"なし",null,"常時",null,null,"自身",null,"なし",null,null,null,null,null,null," ",null,null,{"$f":"\"土ｽｷﾙﾀﾞﾒｰｼﾞ*\"&CI28*3&\" 近遠耐性+\"&CI28*4","v":"土ｽｷﾙﾀﾞﾒｰｼﾞ*0 近遠耐性+0"},null,null,null,null,null,null,null,null,null,null,null,null,"テトラフォース",null,null,null,null,null,null,null,null,"なし",null,"常時",null,null,"自身",null,"なし",null,null,null,null,null,null,null,null,null,{"$f":"\"炎水風土ﾀﾞﾒｰｼﾞ+\"&DV28*2&\"、炎水風土耐性+\"&DV28&\" \"&IF(DV28<15,,\"20%で専攻属性Dを0\")","v":"炎水風土ﾀﾞﾒｰｼﾞ+0、炎水風土耐性+ "}]
[]
[null,"属性障壁",null,null,null,null,null,null,null,null,"なし",null,"常時",null,null,"自身",null,"なし",null,null,null,null,null,null,null,null,null,{"$f":"\"〈炎〉～〈土〉耐性+\"&I30*3+2","v":"〈炎〉～〈土〉耐性+2"},null,null,null,null,null,null,null,null,null,null,null,null,"スプレッドパワー",null,null,null,null,null,null,0,null,"なし",null,"オート",null,null,"自身",null,"なし",null,"自動",null,null,"4BP",null,0,null,null,"「射程：0-5」「対象：場面(選択)」に変更。1ｾｯｼｮﾝ1回",null,null,null,null,null,null,null,null,null,null,null,null,"エレクトロフォース",null,null,null,null,null,null,null,null,"なし",null,"常時",null,null,"自身",null,"なし",null,null,null,null,null,null,null,null,null,{"$f":"\"雷ｽｷﾙダメージ+\"&CI30*3&\"　雷光耐性+\"&CI30*3&\" \"&IF(CI30<20,,\"1戦闘3回命中振り直し可\")","v":"雷ｽｷﾙダメージ+0　雷光耐性+0 "},null,null,null,null,null,null,null,null,null,null,null,null,"トリックフォース",null,null,null,null,null,null,null,null,"なし",null,"常時",null,null,"自身",null,"なし",null,null,null,null,null,null,null,null,null,{"$f":"\"「ﾄ」使用で､TC+1。 命中+[TC/4](↓) 与D+[\"&DV30+5&\"+TC*\"&DV30&\"/3(↓)]\"","v":"「ﾄ」使用で､TC+1。 命中+[TC/4](↓) 与D+[5+TC*/3(↓)]"}]
[]
[null,"直感ブースト",null,null,null,null,null,null,null,null,"なし",null,"常時",null,null,"自身",null,"なし",null,null,null,null,null,null,null,null,null,{"$f":"\"調査C値-\"&I32+1&\" (下限値：15)\"","v":"調査C値-1 (下限値：15)"},null,null,null,null,null,null,null,null,null,null,null,null,"チャンスブレイク",null,null,null,null,null,null,null,null,"なし",null,"オート",null,null,"単体",null,"0-3",null,"自動",null,null,"2BP",null,0,null,null,{"$f":"\"判定振り直し効果を無効。その後の振り直し不可。1戦闘\"&AV32&\"回\"","v":"判定振り直し効果を無効。その後の振り直し不可。1戦闘回"},null,null,null,null,null,null,null,null,null,null,null,null,"ライドフォース",null,null,null,null,null,null,null,null,"なし",null,"常時",null,null,"自身",null,"なし",null,null,null,null,null,null,null,null,null,{"$f":"\"騎乗状態時ｽｷﾙD+\"&CI32*3&\" 幻獣【耐久力】+\"&CI32*5&\" 幻撃達成値+\"&ROUNDUP(CI32/4,0)","v":"騎乗状態時ｽｷﾙD+0 幻獣【耐久力】+0 幻撃達成値+0"},null,null,null,null,null,null,null,null,null,null,null,null,"ヴォイドフォース",null,null,null,null,null,null,null,null,"なし",null,"常時",null,null,"自身",null,"なし",null,null,null,null,null,null,null,null,null,{"$f":"\"VCｽｷﾙor「魔&N体」ｽｷﾙのﾀﾞﾒｰｼﾞ+\"&DV32*3&\"、命中時 即死(\"&DV32*3&\")付与可。\"","v":"VCｽｷﾙor「魔&N体」ｽｷﾙのﾀﾞﾒｰｼﾞ+0、命中時 即死(0)付与可。"}]
[]
[null,"免許皆伝",null,null,null,null,null,null,null,null,"なし",null,"常時",null,null,"自身",null,"なし",null,null,null,null,null,null,null,null,null,"効果なし",null,null,null,null,null,null,null,null,null,null,null,null,"圧縮魔法",null,null,null,null,null,null,null,null,"なし",null,"オート",null,null,"単体",null,"0-3",null,"自動",null,null,"7MP",null,0,null,null,{"$f":"\"範囲or場面の「種別：魔」ｽｷﾙを単体にして与えるﾀﾞﾒｰｼﾞ+\"&AV34*7+CL*3","v":"範囲or場面の「種別：魔」ｽｷﾙを単体にして与えるﾀﾞﾒｰｼﾞ+3"},null,null,null,null,null,null,null,null,null,null,null,null,"フリーズフォース",null,null,null,null,null,null,null,null,"なし",null,"常時",null,null,"自身",null,"なし",null,null,null,null,null,null,null,null,null,{"$f":"\"氷ｽｷﾙダメージ+\"&CI34*3&\"　氷風耐性+\"&CI34*3&\" \"&IF(CI34<20,,\"BS不動無効\")","v":"氷ｽｷﾙダメージ+0　氷風耐性+0 "},null,null,null,null,null,null,null,null,null,null,null,null,"ヴァイタルフォース",null,null,null,null,null,null,null,null,"なし",null,"常時",null,null,"自身",null,"なし",null,null,null,null,null,null,null,null,null,{"$f":"\"ｻﾌﾞで「回」ｽｷﾙ使用時、与D+\"&DV34*4&\" \"&IF(DV34<20,,\"毒 麻痺 封印無効\")","v":"ｻﾌﾞで「回」ｽｷﾙ使用時、与D+0 "}]
[]
[null,"回避能力",null,null,null,null,null,null,null,null,"なし",null,"常時",null,null,"自身",null,"なし",null,null,null,null,null,null,null,null,null,{"$f":"\"【回避値】\"&CL*2+1&\"以下の場合、【回避値】判定達成値に+\"&I36+1","v":"【回避値】3以下の場合、【回避値】判定達成値に+1"},null,null,null,null,null,null,null,null,null,null,null,null,"ガードアシスト",null,null,null,null,null,null,null,null,"防",null,"ダメロ",null,null,"単体",null,"0-1",null,"自動",null,null,"7MP",null,1,null,null,{"$f":"\"対象の被ﾀﾞﾒｰｼﾞを\"&CL&\"D6点軽減。1戦闘\"&AV36&\"回\"","v":"対象の被ﾀﾞﾒｰｼﾞを1D6点軽減。1戦闘回"},null,null,null,null,null,null,null,null,null,null,null,null,"禁じられし魔術",null,null,null,null,null,null,null,null,"なし",null,"常時",null,null,"自身",null,"なし",null,null,null,null,null,null,null,null,null,{"$f":"\"「禁」ｽｷﾙのSLを+\"&CI36&\"して扱う。 ｽﾀｰﾄ終了時 禁C+\"&CI36&\" 最大：\"&CI36*2+5&\"個\"","v":"「禁」ｽｷﾙのSLを+して扱う。 ｽﾀｰﾄ終了時 禁C+ 最大：5個"},null,null,null,null,null,null,null,null,null,null,null,null,"ウェザーフォース",null,null,null,null,null,null,null,null,"なし",null,"常時",null,null,"自身",null,"なし",null,null,null,null,null,null,null,null,null,{"$f":"\"「天」適用時ｽｷﾙﾀﾞﾒｰｼﾞ+\"&DV36*3&\"炎水風光耐性+\"&DV36*2","v":"「天」適用時ｽｷﾙﾀﾞﾒｰｼﾞ+0炎水風光耐性+0"}]
[]
[null,"抵抗能力",null,null,null,null,null,null,null,null,"なし",null,"常時",null,null,"自身",null,"なし",null,null,null,null,null,null,null,null,null,{"$f":"\"【抵抗値】\"&CL*2+1&\"以下の場合、【抵抗値】判定達成値に+\"&I38+1","v":"【抵抗値】3以下の場合、【抵抗値】判定達成値に+1"},null,null,null,null,null,null,null,null,null,null,null,null,"カバーリング",null,null,null,null,null,null,0,null,"なし",null,"ダメロ",null,null,"単体",null,"0-0",null,"自動",null,null,"2MP",null,0,null,null,"ﾀﾞﾒﾛ前使用。ﾀﾞﾒｰｼﾞを代わりに受ける。1ﾒｲﾝｱｸｼｮﾝ2回",null,null,null,null,null,null,null,null,null,null,null,null,"ファイアフォース",null,null,null,null,null,null,null,null,"なし",null,"常時",null,null,"自身",null,"なし",null,null,null,null,null,null,null,null,null,{"$f":"\"炎ｽｷﾙダメージ+\"&CI38*3&\"　炎光耐性+\"&CI38*3&\" \"&IF(CI38<20,,\"命中C値-1 (下限値：14)\")","v":"炎ｽｷﾙダメージ+0　炎光耐性+0 "},null,null,null,null,null,null,null,null,null,null,null,null,"ウィンドフォース",null,null,null,null,null,null,null,null,"なし",null,"常時",null,null,"自身",null,"なし",null,null,null,null,null,null,null,null,null,{"$f":"\"風ｽｷﾙダメージ+\"&DV38*3&\"　【敏捷】+\"&ROUNDUP(DV38/3,0)&\" \"&IF(DV38<20,,\"移動ｺｽﾄ-1 (min:1)\")","v":"風ｽｷﾙダメージ+0　【敏捷】+0 "}]
[]
[null,"クイックブースト",null,null,null,null,null,null,0,null,"なし",null,"常時",null,null,"自身",null,"なし",null,null,null,null,null,null,null,null,null,{"$f":"\"本来の【敏捷】\"&CL+5&\"以下の場合、戦闘中の【敏捷】+1\"","v":"本来の【敏捷】6以下の場合、戦闘中の【敏捷】+1"},null,null,null,null,null,null,null,null,null,null,null,null,"ロングレンジカバー",null,null,null,null,null,null,0,null,"なし",null,"ダメロ",null,null,"単体",null,"0-1",null,"自動",null,null,"4MP",null,2,null,null,"ﾀﾞﾒﾛ前使用。ﾀﾞﾒｰｼﾞを代わりに受ける。1ﾒｲﾝｱｸｼｮﾝ2回",null,null,null,null,null,null,null,null,null,null,null,null,"アームズフォース",null,null,null,null,null,null,null,null,"なし",null,"常時",null,null,"自身",null,"なし",null,null,null,null,null,null,null,null,null,{"$f":"\"「支」による変更中、ｽｷﾙﾀﾞﾒｰｼﾞ+\"&CI40*3&\" 武器変更持続C+\"&IF(QUOTIENT(CI40,2)>CL,CL,QUOTIENT(CI40,2))&\"ｶｳﾝﾄ\"","v":"「支」による変更中、ｽｷﾙﾀﾞﾒｰｼﾞ+0 武器変更持続C+0ｶｳﾝﾄ"},null,null,null,null,null,null,null,null,null,null,null,null,"ウォーターフォース",null,null,null,null,null,null,null,null,"なし",null,"常時",null,null,"自身",null,"なし",null,null,null,null,null,null,null,null,null,{"$f":"\"水ｽｷﾙﾀﾞﾒｰｼﾞ+\"&DV40*3&\" 炎氷水耐性+\"&DV40*2&IF(DV40<10,\" \",\" 命中C値-1 (下限値：16)\")","v":"水ｽｷﾙﾀﾞﾒｰｼﾞ+0 炎氷水耐性+0 "}]
[]
[null,"スピードスタート",null,null,null,null,null,null,0,null,"なし",null,"常時",null,null,"自身",null,"なし",null,null,null,null,null,null,null,null,null,"【敏捷】+2",null,null,null,null,null,null,null,null,null,null,null,null,null,null,null,null,null,null,null,null,null,null,null,null,null,null,null,null,null,null,null,null,null,null,null,null,null,null,null,null,null,null,null,null,null,null,null,null,null,null,null,"無敵城塞",null,null,null,null,null,null,null,null,"なし",null,"常時",null,null,"自身",null,"なし",null,null,null,null,null,null,null,null,null,{"$f":"\"[準備期間]が発生した攻撃のﾀﾞﾒｰｼﾞ+\"&CI42*3&\" 常時\"&CI42&\"点軽減 \"&IF(CI42<15,\"\",\"準備中BS無効\")","v":"[準備期間]が発生した攻撃のﾀﾞﾒｰｼﾞ+0 常時点軽減 "},null,null,null,null,null,null,null,null,null,null,null,null,"陰証力波",null,null,null,null,null,null,null,null,"なし",null,"常時",null,null,"自身",null,"なし",null,null,null,null,null,null,null,null,null,{"$f":"\"光闇orYMｽｷﾙﾀﾞﾒｰｼﾞ+\"&DV42&\"D6 闇耐性+\"&DV42&\" SL>陽証SLで 陰陽属性：闇\"","v":"光闇orYMｽｷﾙﾀﾞﾒｰｼﾞ+D6 闇耐性+ SL>陽証SLで 陰陽属性：闇"}]
[]
[null,null,null,null,null,null,null,null,null,null,null,null,null,null,null,null,null,null,null,null,null,null,null,null,null,null,null,null,null,null,null,null,null,null,null,null,null,null,null,null,null,null,null,null,null,null,null,null,null,null,null,null,null,null,null,null,null,null,null,null,null,null,null,null,null,null,null,null,null,null,null,null,null,null,null,null,null,null,null,"ラッキーフォース",null,null,null,null,null,null,null,null,"なし",null,"常時",null,null,"自身",null,"なし",null,null,null,null,null,null,null,null,null,{"$f":"\"命中判定にｵｰﾄがあった攻撃のﾀﾞﾒｰｼﾞ+\"&CI44*4&IF(CI44<15,\"\",\" 1戦闘1回 出目7でｸﾘﾃｨｶﾙ\")","v":"命中判定にｵｰﾄがあった攻撃のﾀﾞﾒｰｼﾞ+0"},null,null,null,null,null,null,null,null,null,null,null,null,"陽証力波",null,null,null,null,null,null,null,null,"なし",null,"常時",null,null,"自身",null,"なし",null,null,null,null,null,null,null,null,null,{"$f":"\"光闇orYMｽｷﾙﾀﾞﾒｰｼﾞ+\"&DV44&\"D6 光耐性+\"&DV44&\" SL>陽証SLで 陰陽属性：光\"","v":"光闇orYMｽｷﾙﾀﾞﾒｰｼﾞ+D6 光耐性+ SL>陽証SLで 陰陽属性：光"}]
[]
[null,null,null,null,null,null,null,null,null,null,null,null,null,null,null,null,null,null,null,null,null,null,null,null,null,null,null,null,null,null,null,null,null,null,null,null,null,null,null,null,null,null,null,null,null,null,null,null,null,null,null,null,null,null,null,null,null,null,null,null,null,null,null,null,null,null,null,null,null,null,null,null,null,null,null,null,null,null,null,"レーザーフォース",null,null,null,null,null,null,null,null,"なし",null,"常時",null,null,"自身",null,"なし",null,null,null,null,null,null,null,null,null,{"$f":"\"光ｽｷﾙダメージ+\"&CI46*3&\" \"&IF(CI46<20,,\"LSのｸﾗｽ特典を2-4にする\")","v":"光ｽｷﾙダメージ+0 "},null,null,null,null,null,null,null,null,null,null,null,null,"サイコフォース",null,null,null,null,null,null,null,null,"なし",null,"常時",null,null,"自身",null,"なし",null,null,null,null,null,null,null,null,null,{"$f":"\"ZPor「装備武器」と同属性ｽｷﾙﾀﾞﾒｰｼﾞ+\"&DV46*3&IF(DV46<15,\"\",\"ﾒｲﾝｺｽﾄ-1 命中C値-1 (下限値17)\")","v":"ZPor「装備武器」と同属性ｽｷﾙﾀﾞﾒｰｼﾞ+0"}]

{"sheet":"VL用","index":3,"n_rows":245,"n_cols":215,"rows_kept":245,"cut":false,"hidden":false,"merged":[[53,26,53,35],[53,96,53,98],[51,195,51,214],[51,6,51,25],[51,48,51,67],[51,69,51,88],[51,90,51,109],[51,111,51,130],[51,132,51,151],[51,174,51,193],[53,69,53,71],[53,38,53,40],[22,28,22,40],[21,28,21,40],[23,28,23,40],[24,28,24,40],[51,153,51,172],[23,7,23,16],[18,28,18,40],[20,28,20,40],[21,7,21,16],[24,17,24,19],[24,7,24,16],[22,7,22,16],[22,17,22,19],[18,42,18,43],[18,44,18,45],[19,42,19,43],[19,44,19,45],[20,42,20,43],[20,44,20,45],[21,17,21,19],[23,17,23,19],[18,7,18,16],[20,7,20,16],[17,17,17,19],[17,28,17,40],[20,17,20,19],[11,28,11,40],[12,28,12,40],[18,17,18,19],[14,17,14,19],[14,7,14,16],[15,7,15,16],[15,17,15,19],[15,28,15,40],[13,7,13,16],[13,28,13,40],[14,28,14,40],[16,17,16,19],[16,28,16,40],[13,17,13,19],[19,7,19,16],[19,17,19,19],[19,28,19,40],[11,17,11,19],[12,17,12,19],[0,7,0,16],[1,7,1,16],[2,7,2,16],[3,7,3,16],[4,7,4,16],[7,7,7,16],[6,7,6,16],[17,7,17,16],[5,7,5,16],[16,7,16,16],[8,7,8,16],[12,7,12,16],[11,7,11,16],[9,7,9,16],[10,7,10,16],[10,17,10,19],[0,28,0,40],[7,17,7,19],[6,17,6,19],[9,17,9,19],[1,28,1,40],[2,28,2,40],[3,28,3,40],[4,28,4,40],[7,28,7,40],[6,28,6,40],[9,28,9,40],[0,17,0,19],[1,17,1,19],[2,17,2,19],[3,17,3,19],[4,17,4,19],[8,17,8,19],[8,28,8,40],[5,17,5,19],[5,28,5,40],[10,28,10,40],[13,44,13,45],[14,42,14,43],[14,44,14,45],[15,42,15,43],[15,44,15,45],[16,42,16,43],[16,44,16,45],[17,42,17,43],[17,44,17,45],[13,42,13,43]]}
[null,"種族名","肉体","集中","反射","知識","幸運","種族特典",null,null,null,null,null,null,null,null,null,"名称",null,null,"SL","種別","ﾀｲﾐﾝｸﾞ","対象","射程","判定値","代償","コスト","自動取得"]
[1,"人間",6,12,7,8,8,"常時C値-1(下限値16) & 集中判定を1度振り直せる。",null,null,null,null,null,null,null,null,null,"起死回生",null,null,"★","自","ｵｰﾄ","自身","なし","自動","6BP",0,"判定直後ダイス目を両方9にする。対抗判定のC値が20固定。戦闘外では-2BP。",null,null,null,null,null,null,null,null,null,null,null,null,1,null,null,"近",{"$f":"IF(クラスA=\"PD\",CL*4,0)+IF(クラスB=\"PD\",CL*4,0)-IF(AND(クラスA=\"PD\",クラスB=\"PD\"),CL*4,0)+IF(クラスA=\"MA\",CL*6,0)+IF(クラスB=\"MA\",CL*6,0)-IF(AND(クラスA=\"MA\",クラスB=\"MA\"),CL*6,0)","v":0}]
[2,"天使",6,8,7,11,8,{"$f":"\"封印,不動無効。ｸﾘﾃｨｶﾙでMPを\"&(5+CS!S10*2)&\"点回復。\"","v":"封印,不動無効。ｸﾘﾃｨｶﾙでMPを7点回復。"},null,null,null,null,null,null,null,null,null,"祝福",null,null,"★","自","ｵｰﾄ","[単体]","0-5","自動","1BP",0,"ｶｳﾝﾄ開始時に使用。対象のスキル使用回数を1回分回復する。",null,null,null,null,null,null,null,null,null,null,null,null,2,null,null,"遠",{"$f":"IF(クラスA=\"PD\",CL*4,0)+IF(クラスB=\"PD\",CL*4,0)-IF(AND(クラスA=\"PD\",クラスB=\"PD\"),CL*4,0)+IF(クラスA=\"MA\",CL*6,0)+IF(クラスB=\"MA\",CL*6,0)-IF(AND(クラスA=\"MA\",クラスB=\"MA\"),CL*6,0)","v":0}]
[3,"悪魔",10,6,7,11,6,"種別：魔のスキルのバステ無効 & 通常攻撃のコスト-1",null,null,null,null,null,null,null,null,null,"増幅する苦痛",null,null,"★","自","ｵｰﾄ","単体","0-4","自動","7BP",3,"敵(対象)が受けたダメージの半分(↓)を他の敵全てに与える。",null,null,null,null,null,null,null,null,null,null,null,null,3,null,null,"炎",{"$f":"IF(クラスA=\"FS\",CL*3,0)+IF(クラスA=\"TE\",CL*3,0)+IF(クラスA=\"CR\",CL+2)+IF(クラスB=\"FS\",CL*3,0)+IF(クラスB=\"TE\",CL*3,0)+IF(クラスB=\"CR\",CL+2)-IF(AND(クラスA=\"FS\",クラスB=\"FS\"),CL*3,0)-IF(AND(クラスA=\"TE\",クラスB=\"TE\"),CL*3,0)-IF(AND(クラスA=\"CR\",クラスB=\"CR\"),CL+2)+IF(クラスA=\"MA\",CL*6,0)+IF(クラスB=\"MA\",CL*6,0)-IF(AND(クラスA=\"MA\",クラスB=\"MA\"),CL*6,0)","v":0}]
[4,"妖精",7,9,6,8,10,"サブアクションで、サブアクションのスキルを2つ使用できる。",null,null,null,null,null,null,null,null,null,"マナシールド",null,null,"★","自","ｻﾌﾞ","N体","0-2","自動","NBP",0,{"$f":"\"〈近〉〈遠〉以外の属性を[N+2]個指定し、20C間、その属性D-\"&30+CS!S10*8","v":"〈近〉〈遠〉以外の属性を[N+2]個指定し、20C間、その属性D-38"},null,null,null,null,null,null,null,null,null,null,null,null,4,null,null,"氷",{"$f":"IF(クラスA=\"FS\",CL*3,0)+IF(クラスA=\"FC\",CL*2,0)+IF(クラスA=\"CR\",CL+2)+IF(クラスB=\"FS\",CL*3,0)+IF(クラスB=\"FC\",CL*2,0)+IF(クラスB=\"CR\",CL+2)-IF(AND(クラスA=\"FS\",クラスB=\"FS\"),CL*3,0)-IF(AND(クラスA=\"FC\",クラスB=\"FC\"),CL*2,0)-IF(AND(クラスA=\"CR\",クラスB=\"CR\"),CL+2)-IF(クラスA=\"MA\",CL*6,0)-IF(クラスB=\"MA\",CL*6,0)+IF(AND(クラスA=\"MA\",クラスB=\"MA\"),CL*6,0)","v":0}]
[5,"戦乙女",7,10,8,10,5,"全てのｽｷﾙ代償-1MP。(下限値：3MP) 感情の個数-1",null,null,null,null,null,null,null,null,null,"トゥルーフェイス",null,null,"★","自","ｵｰﾄ","自身","なし","自動","3BP",0,{"$f":"\"感情が2つ以下でのみ使用可。全達成値+2 & 与D+\"&(CL*6+20)&\"　1ｾｯｼｮﾝ1回\"","v":"感情が2つ以下でのみ使用可。全達成値+2 & 与D+26　1ｾｯｼｮﾝ1回"},null,null,null,null,null,null,null,null,null,null,null,null,5,null,null,"水",{"$f":"IF(クラスA=\"FC\",CL*2,0)+IF(クラスA=\"TE\",CL*3,0)+IF(クラスA=\"CR\",CL+2)\n+IF(クラスB=\"FC\",CL*2,0)+IF(クラスB=\"TE\",CL*3,0)+IF(クラスB=\"CR\",CL+2)-IF(AND(クラスA=\"FC\",クラスB=\"FC\"),CL*2,0)-IF(AND(クラスA=\"TE\",クラスB=\"TE\"),CL*3,0)-IF(AND(クラスA=\"CR\",クラスB=\"CR\"),CL+2)-IF(クラスA=\"MA\",CL*6,0)-IF(クラスB=\"MA\",CL*6,0)+IF(AND(クラスA=\"MA\",クラスB=\"MA\"),CL*6,0)","v":0}]
[6,"竜人",13,7,5,10,5,"常時F値+3 (上限値:8) & 敵に配置を変更されない",null,null,null,null,null,null,null,null,null,"ドラゴンフォース",null,null,"★","自","ｽﾀｰﾄ","自身","なし","自動","NBP",0,{"$f":"\"戦闘中、与えるダメージに+[5+(N×\"&ROUNDUP((CL+3)/2,0)&\")]する。\"","v":"戦闘中、与えるダメージに+[5+(N×2)]する。"},null,null,null,null,null,null,null,null,null,null,null,null,6,null,null,"雷",{"$f":"IF(クラスA=\"FC\",CL*2,0)+IF(クラスA=\"CR\",CL+2)+IF(クラスB=\"FC\",CL*2,0)+IF(クラスB=\"CR\",CL+2)-IF(AND(クラスA=\"FC\",クラスB=\"FC\"),CL*2,0)-IF(AND(クラスA=\"CR\",クラスB=\"CR\"),CL+2)-IF(クラスA=\"MA\",CL*6,0)-IF(クラスB=\"MA\",CL*6,0)+IF(AND(クラスA=\"MA\",クラスB=\"MA\"),CL*6,0)","v":0}]
[7,"鳥人",9,6,13,6,6,{"$f":"\"行動順決定での敏捷に+\"&(CS!S10*3)&\" & 移動ｺｽﾄ-1\"","v":"行動順決定での敏捷に+3 & 移動ｺｽﾄ-1"},null,null,null,null,null,null,null,null,null,"ソニックムーブ",null,null,"★","自","ｵｰﾄ","自身","なし","自動","3BP",0,"ｶｳﾝﾄ開始時に使用。即座に行動手番を迎える。",null,null,null,null,null,null,null,null,null,null,null,null,7,null,null,"風",{"$f":"IF(クラスA=\"FC\",CL*2,0)+IF(クラスA=\"TE\",CL*3,0)+IF(クラスA=\"CR\",CL+2)+IF(クラスB=\"FC\",CL*2,0)+IF(クラスB=\"TE\",CL*3,0)+IF(クラスB=\"CR\",CL+2)-IF(AND(クラスA=\"FC\",クラスB=\"FC\"),CL*2,0)-IF(AND(クラスA=\"TE\",クラスB=\"TE\"),CL*3,0)-IF(AND(クラスA=\"CR\",クラスB=\"CR\"),CL+2)+IF(クラスA=\"MA\",CL*6,0)+IF(クラスB=\"MA\",CL*6,0)-IF(AND(クラスA=\"MA\",クラスB=\"MA\"),CL*6,0)","v":0}]
[8,"魔道士",5,8,8,14,5,{"$f":"\"「種別：魔」かつ「単体」のｽｷﾙが回避されたとき、同属性\"&20+CL*3&\"点ﾀﾞﾒｰｼﾞを与える。\"","v":"「種別：魔」かつ「単体」のｽｷﾙが回避されたとき、同属性23点ﾀﾞﾒｰｼﾞを与える。"},null,null,null,null,null,null,null,null,null,"予備魔力開放",null,null,"★","自","ｵｰﾄ","自身","なし","自動","NBP",0,{"$f":"\"①C開始時使用→HP&MP[N*\"&CL+8&\"]点回復。②ﾀﾞﾒﾛ直前使用→与D+[N*\"&CL+10&\"]\"","v":"①C開始時使用→HP&MP[N*9]点回復。②ﾀﾞﾒﾛ直前使用→与D+[N*11]"},null,null,null,null,null,null,null,null,null,null,null,null,8,null,null,"土",{"$f":"IF(クラスA=\"FC\",CL*2,0)+IF(クラスA=\"TE\",CL*3,0)+IF(クラスA=\"CR\",CL+2)+IF(クラスB=\"FC\",CL*2,0)+IF(クラスB=\"TE\",CL*3,0)+IF(クラスB=\"CR\",CL+2)-IF(AND(クラスA=\"FC\",クラスB=\"FC\"),CL*2,0)-IF(AND(クラスA=\"TE\",クラスB=\"TE\"),CL*3,0)-IF(AND(クラスA=\"CR\",クラスB=\"CR\"),CL+2)-IF(クラスA=\"MA\",CL*6,0)-IF(クラスB=\"MA\",CL*6,0)+IF(AND(クラスA=\"MA\",クラスB=\"MA\"),CL*6,0)","v":0}]
[9,"獣人",9,5,14,5,7,"近接攻撃の回避の達成値+2 & 反射判定と回避判定のC値-1 F値3固定。",null,null,null,null,null,null,null,null,null,"ワイルドラッシュ",null,null,"★","自","ｵｰﾄ","自身","なし","自動","6BP",0,"行動手番後使用。追加ﾒｲﾝを得て攻撃を行う。そのときのｺｽﾄに-5する。",null,null,null,null,null,null,null,null,null,null,null,null,9,null,null,"光",{"$f":"IF(クラスA=\"YM\",CL*4,0)+IF(クラスA=\"CR\",CL+2)+IF(クラスB=\"YM\",CL*4,0)+IF(クラスB=\"CR\",CL+2)-IF(AND(クラスA=\"YM\",クラスB=\"YM\"),CL*4,0)-IF(AND(クラスA=\"CR\",クラスB=\"CR\"),CL+2)","v":0}]
[10,"妖怪",10,4,8,6,12,"判定の1,2の目1つを3にする。感情の強度の合計値-1。",null,null,null,null,null,null,null,null,null,"妖力波",null,null,"★","自","ｵｰﾄ","単体","0-4","自動","2BP",3,"出目17以下の判定の低い方の出目を1にする。その後振り直しなど不可。",null,null,null,null,null,null,null,null,null,null,null,null,10,null,null,"闇",{"$f":"IF(クラスA=\"YM\",CL*4,0)+IF(クラスA=\"CR\",CL+2)+IF(クラスB=\"YM\",CL*4,0)+IF(クラスB=\"CR\",CL+2)-IF(AND(クラスA=\"YM\",クラスB=\"YM\"),CL*4,0)-IF(AND(クラスA=\"CR\",クラスB=\"CR\"),CL+2)","v":0}]
[11,"吸血鬼",12,5,9,9,5,{"$f":"\"ﾀﾞﾒｰｼﾞを与えた時または10ｶｳﾝﾄ毎に、HPを\"&(CS!S10*3+10)&\"点回復する。\"","v":"ﾀﾞﾒｰｼﾞを与えた時または10ｶｳﾝﾄ毎に、HPを13点回復する。"},null,null,null,null,null,null,null,null,null,"鮮血の一撃",null,null,"★","自","ﾀﾞﾒﾛ","自身","なし","自動","3BP",0,{"$f":"\"ﾀﾞﾒﾛ直前に使用。与ﾀﾞﾒｰｼﾞに+\"&CL*6+20&\"し、ﾀﾞﾒﾛの全出目を最大値にする。\"","v":"ﾀﾞﾒﾛ直前に使用。与ﾀﾞﾒｰｼﾞに+26し、ﾀﾞﾒﾛの全出目を最大値にする。"},null,null,null,null,null,null,null,null,null,null,null,null,11]
[12,"魔法人形",5,10,5,10,10,{"$f":"\"「種別：魔」の被ﾀﾞﾒ-\"&10+CS!S10*3&\" & 準備期間を-1してコスト+1\"","v":"「種別：魔」の被ﾀﾞﾒ-13 & 準備期間を-1してコスト+1"},null,null,null,null,null,null,null,null,null,"エナジーバースト",null,null,"★","自","ｵｰﾄ","自身","なし","自動","5BP",0,"C開始時に使用。次命中判定達成値+5 与D+[魔攻×2] C終了後HP0。",null,null,null,null,null,null,null,null,null,null,null,null,12]
[13,"幽体",0,12,9,11,8,{"$f":"\"10ｶｳﾝﾄ毎に、MP\"&10+ROUNDUP(CL/2,0)&\"点減少 & MP0で戦闘不能 & 常時[感情の強度]+1\"","v":"10ｶｳﾝﾄ毎に、MP11点減少 & MP0で戦闘不能 & 常時[感情の強度]+1"},null,null,null,null,null,null,null,null,null,"ソウルシード",null,null,"★","自","ｵｰﾄ","自身","なし","自動","10BP",0,{"$f":"\"C開始時に使用。HP&MP全回復 その後、行動手番毎にMP[\"&CL*2&\"+2D10]点回復\"","v":"C開始時に使用。HP&MP全回復 その後、行動手番毎にMP[2+2D10]点回復"},null,null,null,null,null,null,null,null,null,null,null,null,13,"種族番号",null,{"$f":"VLOOKUP(種族名,B1:AP25,41,)","v":1}]
[14,"神格",7,8,6,13,6,"攻撃でﾀﾞﾒｰｼﾞを受けた時、与えた対象に「BS：怯み(1)」付与。",null,null,null,null,null,null,null,null,null,"Paranormal Power",null,null,"★","自","ｽﾀｰﾄ","自身","なし","自動","1BP",1,{"$f":"\"①全達成値+1 ②ﾀﾞﾒｰｼﾞ+\"&CS!S10+5&\" ③C値-1 のどれかを戦闘中適用。\"","v":"①全達成値+1 ②ﾀﾞﾒｰｼﾞ+6 ③C値-1 のどれかを戦闘中適用。"},null,null,null,null,null,null,null,null,null,null,null,null,14,"CA番号",null,{"$f":"VLOOKUP(クラスA,$F$54:$AK$96,32,)","v":1}]
[15,"付喪神",4,7,8,7,14,"ｶｳﾝﾄ開始時に任意ﾏｽ配置可能 1/Sce & 単体攻撃ｽｷﾙの命中C値-2",null,null,null,null,null,null,null,null,null,"九十九神力",null,null,"★","自","ｵｰﾄ","自身","なし","自動","7BP",0,"HPが0になる瞬間に使用可能。HP全回復して、BS全解除。",null,null,null,null,null,null,null,null,null,null,null,null,15,"CB番号",null,{"$f":"VLOOKUP(クラスB,$F$54:$AK$96,32,)","v":1}]
[16,"爬虫人",10,10,10,4,6,"BSを1D10<=2で無効。命中F値-2 (下限値：3)",null,null,null,null,null,null,null,null,null,"スケイルシールド",null,null,"★","自","ﾀﾞﾒﾛ","自身","なし","自動","1BP",0,{"$f":"\"自身の受けるダメージを\"&CL*12+60&\"点軽減。ダメージ0の場合 MP\"&CL+5&\"点回復\"","v":"自身の受けるダメージを72点軽減。ダメージ0の場合 MP6点回復"},null,null,null,null,null,null,null,null,null,null,null,null,16,"武器番号",null,{"$f":"VLOOKUP(武器名,AM54:BO236,29,)","v":2}]
[17,"花姫",5,12,5,13,5,{"$f":"\"攻撃に「BS：花毒(\"&CS!S10+5&\")」付与。 & ｸﾗｽｽｷﾙのSL上限に+1\"","v":"攻撃に「BS：花毒(6)」付与。 & ｸﾗｽｽｷﾙのSL上限に+1"},null,null,null,null,null,null,null,null,null,"フルブルーム",null,null,"★","自","ｵｰﾄ","自身","なし","自動","2BP",0,{"$f":"\"C開始時使用。HP\"&CS!S10*15+90&\"回復。以後ｻﾌﾞｱｸｼｮﾝｽｷﾙでﾌﾗﾜｰC1つ獲得。\"","v":"C開始時使用。HP105回復。以後ｻﾌﾞｱｸｼｮﾝｽｷﾙでﾌﾗﾜｰC1つ獲得。"},null,null,null,null,null,null,null,null,null,null,null,null,17,"防具番号",null,{"$f":"VLOOKUP(防具名,BR54:CP96,25,)","v":1}]
[18,"鬼",14,4,14,4,4,"CまたはFの自身判定振り直し不可 & 怯み無効",null,null,null,null,null,null,null,null,null,"Unlimited Power",null,null,"★","自","ｵｰﾄ","自身","なし","自動","8BP",0,{"$f":"\"この戦闘中ｽｷﾙ攻撃で与えるダメージに+現カウント (上限値：\"&CL*6+40&\")\"","v":"この戦闘中ｽｷﾙ攻撃で与えるダメージに+現カウント (上限値：46)"},null,null,null,null,null,null,null,null,null,null,null,null,18,"AA番号",null,{"$f":"VLOOKUP(アクセA,$CS$54:$DS$250,27,)","v":1}]
[19,"虫人",11,5,11,6,7,"DでHP0になる場合、HPを1にする。1/Sce & 「BS：花毒」を60%で無効 ",null,null,null,null,null,null,null,null,null,"タクタイルムーブ",null,null,"★","自","ｵｰﾄ","自身","なし","自動","2BP",0,{"$f":"\"回避判定直前使用。達成値+\"&(3+ROUNDUP(CL/3,0))&\"。回避成功の場合,次の命中+\"&(3+ROUNDUP(CL/3,0))","v":"回避判定直前使用。達成値+4。回避成功の場合,次の命中+4"},null,null,null,null,null,null,null,null,null,null,null,null,19,"AB番号",null,{"$f":"VLOOKUP(アクセB,$CS$54:$DS$250,27,)","v":1}]
[20,"半魚人",7,8,12,8,5,"ﾀﾞﾒｰｼﾞﾛｰﾙで5MP支払って〈水〉に変更できる。 & 全てのｽｷﾙ代償+1MP",null,null,null,null,null,null,null,null,null,"フリーズバインド",null,null,"★","自","ｵｰﾄ","自身","なし","自動","1BP",0,"攻撃宣言時に使用。命中C値-2 達成値+2し、回避判定振り直し不可。",null,null,null,null,null,null,null,null,null,null,null,null,20,"AC番号",null,{"$f":"VLOOKUP(アクセC,$CS$54:$DS$250,27,)","v":1}]
[21,"死神",11,8,9,7,5,{"$f":"\"攻撃全てに「BS：即死(\"&CS!S10*5&\")」付与。 & ﾀﾞﾒｰｼﾞ+[現ｶｳﾝﾄ/5(↓)」\"","v":"攻撃全てに「BS：即死(5)」付与。 & ﾀﾞﾒｰｼﾞ+[現ｶｳﾝﾄ/5(↓)」"},null,null,null,null,null,null,null,null,null,"死神の鎌",null,null,"★","自","ｻﾌﾞ","自身","なし","自動","3BP",3,"35Cの間、武器を「死神の鎌」に変更。",null,null,null,null,null,null,null,null,null,null,null,null,21]
[22,"偽人",5,7,6,12,10,"人間以外のキメラ不可。",null,null,null,null,null,null,null,null,null,"真姿解放",null,null,"★","自","ｵｰﾄ","自身","なし","自動","2BP",0,"いつでも使用可。あなたは[解放状態]となる。",null,null,null,null,null,null,null,null,null,null,null,null,22]
[23,"キメラ忌",{"$f":"ROUNDUP((VLOOKUP(キメラA,VL用!$B$2:$G$25,B26,FALSE)+VLOOKUP(キメラB,VL用!$B$2:$G$25,B26,FALSE))/2,0)","v":{"$error":"#N/A"}},{"$f":"ROUNDUP((VLOOKUP(キメラA,VL用!$B$2:$G$25,C26,FALSE)+VLOOKUP(キメラB,VL用!$B$2:$G$25,C26,FALSE))/2,0)","v":{"$error":"#N/A"}},{"$f":"ROUNDUP((VLOOKUP(キメラA,VL用!$B$2:$G$25,D26,FALSE)+VLOOKUP(キメラB,VL用!$B$2:$G$25,D26,FALSE))/2,0)","v":{"$error":"#N/A"}},{"$f":"ROUNDUP((VLOOKUP(キメラA,VL用!$B$2:$G$25,E26,FALSE)+VLOOKUP(キメラB,VL用!$B$2:$G$25,E26,FALSE))/2,0)","v":{"$error":"#N/A"}},{"$f":"ROUNDUP((VLOOKUP(キメラA,VL用!$B$2:$G$25,F26,FALSE)+VLOOKUP(キメラB,VL用!$B$2:$G$25,F26,FALSE))/2,0)","v":{"$error":"#N/A"}},{"$f":"VLOOKUP(キメラA,B1:P25,7,FALSE)","v":{"$error":"#N/A"}},null,null,null,null,null,null,null,null,null,"忌み嫌われし存在",null,null,"★","自","常時","自身","なし","なし","なし","なし",{"$f":"\"感情強度合計値-3。〈炎〉～〈闇〉耐性+\"&5+CS!S10*2&\" 4MP以上のｽｷﾙ代償-1MP\"","v":"感情強度合計値-3。〈炎〉～〈闇〉耐性+7 4MP以上のｽｷﾙ代償-1MP"},null,null,null,null,null,null,null,null,null,null,null,null,23]
[24,"キメラ祝",{"$f":"C24","v":{"$error":"#N/A"}},{"$f":"D24","v":{"$error":"#N/A"}},{"$error":"#N/A"},{"$error":"#N/A"},{"$error":"#N/A"},{"$f":"VLOOKUP(キメラA,B1:P25,7,FALSE)","v":{"$error":"#N/A"}},null,null,null,null,null,null,null,null,null,"祝福されし存在",null,null,"★","自","常時","自身","なし","なし","なし","なし","感情強度合計値+3。常時感情ロールの出目+1。",null,null,null,null,null,null,null,null,null,null,null,null,24]
[null,2,3,4,5,6,2,3,4,5,6,7,8,9,10,11,12,13,14,15,16,17,18,19,20,21,null,2,3,4,5,6,7,8,9,10,11,12,13,14,15,16,17,18,19,20,21,null,2,3,4,5,6,7,8,9,10,11,12,13,14,15,16,17,18,19,20,21,null,2,3,4,5,6,7,8,9,10,11,12,13,14,15,16,17,18,19,20,21,null,2,3,4,5,6,7,8,9,10,11,12,13,14,15,16,17,18,19,20,21,null,2,3,4,5,6,7,8,9,10,11,12,13,14,15,16,17,18,19,20,21,null,2,3,4,5,6,7,8,9,10,11,12,13,14,15,16,17,18,19,20,21,null,2,3,4,5,6,7,8,9,10,11,12,13,14,15,16,17,18,19,20,21,null,2,3,4,5,6,7,8,9,10,11,12,13,14,15,16,17,18,19,20,21,null,2,3,4,5,6,7,8,9,10,11,12,13,14,15,16,17,18,19,20,21]
[null,2,null,null,null,"能力値","近接","射撃","回避","魔術","抵抗","敏捷","物攻","魔攻","耐久","精神","近","遠","炎","氷","水","雷","風","土","光","闇","能力値","近接","射撃","回避","魔術","抵抗","敏捷","物攻","魔攻","耐久","精神","近","遠","炎","氷","水","雷","風","土","光","闇","能力値","近接","射撃","回避","魔術","抵抗","敏捷","物攻","魔攻","耐久","精神","近","遠","炎","氷","水","雷","風","土","光","闇","能力値","近接","射撃","回避","魔術","抵抗","敏捷","物攻","魔攻","耐久","精神","近","遠","炎","氷","水","雷","風","土","光","闇","能力値","近接","射撃","回避","魔術","抵抗","敏捷","物攻","魔攻","耐久","精神","近","遠","炎","氷","水","雷","風","土","光","闇","能力値","近接","射撃","回避","魔術","抵抗","敏捷","物攻","魔攻","耐久","精神","近","遠","炎","氷","水","雷","風","土","光","闇","能力値","近接","射撃","回避","魔術","抵抗","敏捷","物攻","魔攻","耐久","精神","近","遠","炎","氷","水","雷","風","土","光","闇","能力値","近接","射撃","回避","魔術","抵抗","敏捷","物攻","魔攻","耐久","精神","近","遠","炎","氷","水","雷","風","土","光","闇","能力値","近接","射撃","回避","魔術","抵抗","敏捷","物攻","魔攻","耐久","精神","近","遠","炎","氷","水","雷","風","土","光","闇","能力値","近接","射撃","回避","魔術","抵抗","敏捷","物攻","魔攻","耐久","精神","近","遠","炎","氷","水","雷","風","土","光","闇"]
[null,2,null,null,1,"人間",5,5,3,4,3,4,10,10,100,30,10,10,0,0,-5,0,5,2,4,3,"人間",6,6,4,5,4,5,12,11,122,32,13,12,-1,1,-4,-2,8,4,6,5,"人間",7,7,5,6,5,6,14,13,146,35,16,14,-3,3,-3,-4,11,6,7,7,"人間",8,9,6,8,6,7,15,15,170,38,19,17,-5,4,0,-6,15,7,10,8,"人間",10,10,8,10,8,8,17,16,194,41,22,20,-6,5,2,-9,19,10,12,11,"人間",11,12,10,12,10,9,19,18,222,44,25,23,-9,6,4,-12,22,12,14,13,"人間",13,13,12,13,12,10,22,21,250,47,28,26,-12,7,6,-15,26,13,16,15,"人間",14,14,13,15,13,12,25,23,274,50,32,28,-15,8,7,-18,30,15,19,17,"人間",16,16,14,17,14,14,28,25,300,53,35,30,-16,9,10,-21,32,18,22,20,"人間",18,18,15,18,15,15,32,26,330,56,38,33,-18,10,12,-24,35,22,25,22]
[null,3,null,null,2,"天使",3,4,3,5,3,3,10,13,88,35,8,11,3,3,3,0,-10,10,14,-20,"天使",4,5,4,7,5,4,12,15,106,38,10,13,3,5,4,2,-13,15,18,-21,"天使",7,7,5,8,6,5,14,18,120,42,12,15,3,6,4,2,-15,18,22,-23,"天使",8,9,6,10,7,6,16,21,146,45,14,18,4,9,5,3,-18,22,27,-25,"天使",9,11,7,12,8,7,18,24,170,48,17,21,4,10,5,4,-21,25,30,-27,"天使",11,12,9,13,9,9,20,26,198,52,20,24,4,13,7,4,-23,28,33,-29,"天使",13,13,10,15,11,10,22,29,220,55,23,27,5,15,8,5,-25,32,37,-31,"天使",14,15,11,16,12,11,23,32,244,58,26,30,5,17,10,5,-27,36,41,-33,"天使",15,17,13,18,13,12,25,35,262,61,29,33,5,19,12,6,-29,39,45,-35,"天使",17,19,14,19,14,13,27,38,280,65,33,37,6,20,13,7,-33,43,50,-38]
[null,3,null,null,3,"悪魔",4,3,3,4,4,1,13,8,115,28,10,8,4,4,1,0,-2,3,-10,10,"悪魔",5,4,4,6,6,2,16,11,145,32,13,11,6,6,2,3,-4,5,-13,13,"悪魔",6,6,5,7,7,3,18,13,169,35,16,14,8,10,3,5,-6,7,-15,16,"悪魔",8,8,6,8,8,3,20,15,195,39,20,17,10,11,5,6,-7,8,-18,18,"悪魔",9,10,7,9,9,4,22,17,221,41,23,20,11,13,7,7,-11,10,-21,21,"悪魔",11,12,8,11,10,4,24,19,245,43,27,24,13,14,9,9,-13,11,-24,24,"悪魔",13,14,10,13,12,5,26,22,269,47,30,27,14,16,10,10,-15,13,-26,28,"悪魔",14,15,11,14,14,5,30,25,295,50,33,30,16,17,12,11,-18,14,-29,32,"悪魔",16,16,12,16,16,6,33,28,323,53,37,33,18,19,14,12,-21,15,-32,35,"悪魔",17,17,13,18,17,7,36,32,355,58,40,36,20,22,15,14,-24,17,-35,39]
[null,4,null,null,4,"妖精",4,5,3,4,4,5,9,10,85,34,7,8,3,0,9,-5,10,3,0,0,"妖精",5,7,4,5,5,6,11,13,103,37,10,11,5,1,13,-5,13,5,1,1,"妖精",7,8,5,7,7,8,14,16,121,41,12,14,7,1,15,-5,15,8,2,2,"妖精",9,9,7,8,8,9,16,19,137,44,14,17,10,2,18,-5,18,10,3,3,"妖精",10,10,8,10,9,10,19,21,153,47,16,20,12,2,21,-5,20,11,4,4,"妖精",11,12,9,11,10,11,21,23,165,50,18,23,14,3,24,-6,22,13,6,5,"妖精",12,14,10,13,11,12,23,25,185,53,20,25,17,4,27,-6,24,14,7,7,"妖精",14,15,11,14,13,14,25,28,203,56,22,28,19,4,30,-7,26,15,10,8,"妖精",15,17,13,16,14,15,27,31,223,59,24,31,22,5,33,-7,29,16,10,9,"妖精",17,19,15,18,16,16,29,34,245,63,27,33,24,6,36,-8,31,18,11,10]
[null,4,null,null,5,"戦乙女",5,3,3,4,5,5,11,9,93,32,5,4,5,0,-6,5,3,-5,5,-8,"戦乙女",6,4,4,6,6,7,13,11,115,35,7,6,8,0,-12,8,3,-5,8,-14,"戦乙女",7,5,6,7,7,8,15,13,138,38,8,8,11,0,-18,11,3,-5,11,-18,"戦乙女",9,7,7,8,9,10,18,14,161,41,10,10,13,0,-23,13,4,-5,13,-21,"戦乙女",10,8,8,10,10,12,21,16,183,45,12,11,16,0,-29,16,4,-5,16,-26,"戦乙女",12,9,10,11,12,14,24,18,206,48,13,12,20,0,-34,20,4,-5,20,-32,"戦乙女",13,10,11,13,14,15,26,21,229,51,15,14,23,0,-38,23,5,-5,23,-37,"戦乙女",15,11,12,15,15,16,28,23,253,54,17,15,25,0,-43,25,5,-5,25,-42,"戦乙女",17,13,14,16,17,18,31,25,271,57,18,17,28,0,-48,28,5,-5,28,-48,"戦乙女",19,14,15,18,19,20,33,28,292,61,20,18,31,0,-54,31,6,-5,31,-53]
[null,5,null,null,6,"竜人",4,3,2,4,4,0,15,13,128,15,15,12,17,14,0,15,12,16,0,0,"竜人",5,4,3,6,5,1,18,17,162,18,18,14,23,21,0,18,14,20,1,2,"竜人",7,5,4,7,7,1,21,20,194,21,20,16,28,27,0,21,17,23,2,2,"竜人",9,7,5,8,8,2,23,22,226,23,23,19,32,32,0,25,20,25,2,3,"竜人",11,8,6,10,9,2,25,25,254,25,27,23,36,37,0,29,25,28,3,4,"竜人",12,10,7,12,10,3,28,28,279,28,31,27,41,40,0,34,16,34,3,4,"竜人",14,12,9,14,13,3,31,30,303,31,35,31,46,43,0,38,26,39,4,5,"竜人",15,13,10,15,15,4,34,33,329,35,39,35,50,47,0,43,29,41,5,5,"竜人",17,15,11,17,16,4,37,36,361,37,42,38,55,53,0,48,32,46,5,6,"竜人",19,17,12,18,18,5,40,38,392,40,46,42,59,56,0,52,55,50,6,7]
[null,5,null,null,7,"鳥人",4,4,3,5,3,6,6,6,92,26,10,4,2,-10,2,-10,10,10,0,-5,"鳥人",5,6,4,7,4,8,8,9,118,28,12,6,3,-8,2,-12,13,16,1,-4,"鳥人",7,8,6,8,5,9,10,11,142,31,14,8,4,-7,3,-14,17,23,1,-3,"鳥人",8,9,7,9,6,11,13,13,160,35,16,10,5,-6,3,-16,20,29,1,-2,"鳥人",10,10,9,10,7,13,15,16,178,38,19,13,6,-5,4,-17,24,35,2,-1,"鳥人",11,12,11,11,9,14,18,18,190,41,22,16,8,-5,4,-21,28,41,2,0,"鳥人",13,13,12,13,10,16,20,20,212,44,25,19,9,-5,5,-23,31,47,2,1,"鳥人",14,14,13,14,11,18,23,22,236,47,28,22,10,-5,5,-25,35,54,2,2,"鳥人",15,16,15,16,13,20,26,24,262,50,31,24,11,-5,6,-28,38,60,3,3,"鳥人",17,17,16,18,15,22,29,27,288,53,34,26,12,-5,7,-31,43,66,3,4]
[null,6,null,null,8,"魔道士",3,2,3,5,4,3,6,14,83,39,-3,3,2,2,2,2,2,2,10,10,"魔道士",5,3,5,7,5,4,8,17,101,42,-5,5,4,4,4,4,4,4,14,14,"魔道士",6,5,6,8,7,5,10,20,116,46,-7,7,5,5,5,5,5,5,18,18,"魔道士",7,6,7,10,9,7,12,22,131,50,-10,10,6,6,6,6,6,6,22,22,"魔道士",8,7,9,12,10,8,15,25,146,55,-13,12,7,7,7,7,7,7,25,25,"魔道士",10,8,11,13,12,9,17,28,158,59,-15,15,8,8,8,8,8,8,29,29,"魔道士",12,10,12,15,13,10,20,32,177,64,-18,17,10,10,10,10,10,10,33,33,"魔道士",14,11,13,17,15,11,23,35,194,69,-20,20,12,12,12,12,12,12,37,37,"魔道士",15,12,14,19,17,13,25,39,213,73,-23,23,13,13,13,13,13,13,40,40,"魔道士",16,13,15,21,18,14,28,43,234,77,-25,26,15,15,15,15,15,15,43,43]
[null,6,null,null,9,"獣人",4,4,4,4,3,3,11,10,104,20,9,5,-8,6,1,-4,3,11,2,2,"獣人",6,5,5,6,4,4,13,12,127,23,12,8,-10,8,2,-4,3,11,2,2,"獣人",7,7,7,7,6,5,15,14,152,26,15,10,-13,10,3,-4,7,18,4,5,"獣人",9,8,9,8,7,7,18,16,175,28,17,12,-15,12,3,-4,9,21,5,7,"獣人",10,9,10,9,8,10,20,19,202,31,20,14,-18,13,4,-3,12,24,6,9,"獣人",11,10,12,11,9,12,23,21,229,34,22,16,-21,15,4,-3,14,27,7,11,"獣人",13,12,13,12,10,13,26,23,256,37,24,18,-24,17,5,-3,16,32,8,12,"獣人",14,13,15,14,12,14,29,24,282,39,26,21,-27,20,5,-2,18,36,9,14,"獣人",16,15,16,15,13,15,31,26,309,43,28,22,-30,23,6,-2,20,41,10,16,"獣人",18,17,18,17,14,18,34,28,342,46,32,24,-33,27,6,-2,23,45,12,18]
[null,7,null,null,10,"妖怪",4,4,3,4,6,3,12,10,112,27,7,7,0,0,1,1,2,-3,-5,-5,"妖怪",6,5,4,6,8,4,14,12,138,29,12,11,0,0,1,1,2,-3,-5,-5,"妖怪",7,6,5,7,10,5,16,14,161,32,17,15,0,0,1,1,2,-3,-5,-5,"妖怪",8,7,6,9,11,6,19,16,189,34,21,20,0,0,1,1,2,-3,-5,-5,"妖怪",10,9,7,10,13,7,21,19,220,36,26,24,0,0,1,1,2,-3,-5,-5,"妖怪",11,10,8,12,14,9,23,21,247,38,30,28,0,0,1,1,2,-6,-5,-5,"妖怪",13,12,9,14,16,10,25,22,271,41,34,31,0,0,1,1,2,-6,-5,-5,"妖怪",14,13,10,16,17,11,28,24,295,43,38,36,0,0,1,1,2,-6,-5,-5,"妖怪",16,15,12,17,19,12,30,26,324,45,42,40,0,0,1,1,2,-6,-5,-5,"妖怪",18,16,13,18,20,13,32,28,355,48,47,45,0,0,1,1,2,-7,-5,-5]
[null,7,null,null,11,"吸血鬼",4,3,3,4,3,5,11,10,120,25,13,13,-35,5,-30,3,4,2,-35,26,"吸血鬼",6,4,4,5,5,7,13,12,141,28,16,16,-38,7,-30,5,6,4,-38,34,"吸血鬼",7,6,6,7,6,9,15,14,167,32,19,19,-41,10,-30,7,8,6,-42,37,"吸血鬼",8,7,7,9,7,11,17,15,194,35,22,22,-43,12,-30,11,10,8,-45,41,"吸血鬼",10,9,8,10,8,12,19,17,222,38,25,25,-46,15,-30,13,12,10,-48,46,"吸血鬼",12,11,9,11,10,14,21,19,249,41,28,28,-49,16,-30,16,15,11,-51,51,"吸血鬼",14,12,10,13,11,16,24,22,276,44,31,31,-52,18,-30,19,18,13,-53,55,"吸血鬼",15,14,11,15,12,17,27,24,305,47,34,34,-55,20,-30,21,20,15,-56,58,"吸血鬼",17,15,12,16,13,19,31,26,335,50,37,37,-58,22,-30,23,22,17,-60,62,"吸血鬼",19,17,14,18,14,21,34,28,360,53,40,40,-61,25,-30,26,25,19,-63,66]
[null,8,null,null,12,"魔法人形",4,3,3,5,4,4,7,18,50,44,3,2,20,20,20,20,10,5,6,6,"魔法人形",5,4,4,6,6,5,11,22,66,49,5,4,23,23,23,23,12,5,6,6,"魔法人形",6,5,6,8,8,7,13,25,78,53,7,6,26,25,30,31,15,5,7,7,"魔法人形",8,6,7,10,10,8,15,28,92,58,8,7,29,28,34,35,18,5,7,7,"魔法人形",9,7,8,12,11,9,18,32,106,63,10,8,31,30,36,38,21,5,8,8,"魔法人形",10,8,9,14,13,10,21,36,116,67,11,10,34,33,38,41,25,5,8,8,"魔法人形",12,9,10,16,14,11,25,41,130,72,13,11,37,35,40,45,28,5,12,12,"魔法人形",13,10,12,18,16,13,29,45,146,75,15,12,40,38,42,48,30,5,12,12,"魔法人形",14,11,13,20,18,14,31,49,162,79,17,14,43,40,45,50,33,5,10,10,"魔法人形",16,12,14,21,19,16,35,53,180,83,19,16,46,42,49,53,36,5,10,10]
[null,8,null,null,13,"幽体",4,4,5,4,5,6,6,12,102,30,28,27,0,3,4,17,3,4,-30,14,"幽体",5,5,7,5,6,8,8,14,128,33,31,30,0,5,7,23,5,7,-33,18,"幽体",6,6,8,6,8,9,11,16,157,36,34,33,0,7,10,26,7,9,-37,22,"幽体",8,8,9,8,10,11,13,19,174,38,37,36,1,10,12,31,8,11,-40,25,"幽体",10,10,11,9,11,13,14,22,203,40,40,40,2,12,14,34,10,13,-42,29,"幽体",11,12,13,11,13,14,16,24,227,43,43,43,3,13,17,37,12,15,-45,33,"幽体",12,13,14,13,14,16,19,27,252,45,46,45,4,15,20,40,13,18,-48,35,"幽体",14,14,15,15,16,17,22,30,279,47,49,48,5,16,23,43,15,20,-51,40,"幽体",16,15,17,16,18,19,25,32,313,49,52,51,5,18,25,45,16,22,-55,43,"幽体",17,17,19,18,19,21,28,34,338,52,55,54,5,19,28,48,18,24,-59,45]
[null,9,null,null,14,"神格",4,4,3,4,5,2,7,8,108,28,8,8,1,2,3,3,2,2,0,0,"神格",6,5,4,6,6,3,10,11,131,30,10,10,3,4,4,5,4,5,0,0,"神格",7,7,5,7,8,5,13,14,153,33,12,11,5,7,6,7,6,8,0,0,"神格",9,8,6,8,9,7,15,17,175,35,14,12,7,10,8,8,8,12,0,0,"神格",9,9,8,10,10,8,18,20,196,38,17,14,10,12,10,12,10,15,0,0,"神格",11,11,9,12,12,9,20,22,218,41,19,16,12,14,12,13,12,19,0,0,"神格",13,12,11,14,13,10,23,25,242,44,21,18,13,16,14,15,14,21,0,0,"神格",15,14,12,15,15,12,25,28,271,47,23,21,15,18,16,18,16,25,0,0,"神格",16,16,14,17,16,13,27,31,292,50,24,23,18,20,18,20,19,29,0,0,"神格",17,17,15,18,18,15,30,34,314,53,26,25,20,22,19,21,22,33,0,0]
[null,9,null,null,15,"付喪神",4,4,4,4,3,3,8,8,98,28,4,4,11,5,8,2,2,-5,8,2,"付喪神",6,5,6,5,5,5,11,11,119,30,6,6,16,8,13,2,5,-9,11,3,"付喪神",7,7,7,7,6,6,12,13,142,33,7,7,21,11,15,2,7,-13,14,4,"付喪神",8,8,9,9,7,8,14,15,161,36,9,9,28,14,18,3,9,-16,16,5,"付喪神",10,9,11,10,8,10,16,18,185,39,11,11,32,18,20,3,13,-21,18,6,"付喪神",11,11,13,12,10,11,19,20,212,42,12,12,36,21,23,3,15,-26,21,7,"付喪神",12,12,14,13,12,12,21,22,238,45,13,13,39,25,25,4,17,-31,23,8,"付喪神",14,14,16,14,13,13,23,24,260,48,15,15,43,28,29,4,21,-35,26,9,"付喪神",16,15,17,16,14,15,25,26,285,51,17,17,48,31,31,5,24,-38,28,10,"付喪神",17,17,19,17,15,16,27,28,314,54,18,18,52,33,35,5,26,-42,31,11]
[null,10,null,null,16,"爬虫人",4,5,3,3,2,4,10,13,117,21,17,17,38,6,8,3,-10,3,3,6,"爬虫人",6,6,5,4,3,5,12,15,139,24,20,19,42,9,10,0,-12,4,4,8,"爬虫人",7,8,6,6,5,6,13,18,161,27,22,21,45,11,11,0,-13,6,5,10,"爬虫人",8,9,7,8,7,7,16,22,184,30,24,23,48,13,13,0,-15,7,6,12,"爬虫人",10,10,9,9,8,8,19,25,210,34,27,25,51,14,14,0,-16,9,7,14,"爬虫人",12,12,10,11,9,9,23,29,233,37,31,27,55,17,15,0,-17,10,8,16,"爬虫人",13,13,11,12,11,10,26,33,257,41,35,29,58,20,16,0,-19,11,9,18,"爬虫人",14,15,13,13,12,11,30,35,282,45,38,32,61,23,17,0,-20,13,10,20,"爬虫人",15,16,14,15,13,12,33,38,315,48,40,35,63,25,19,0,-21,14,11,22,"爬虫人",17,17,15,17,14,13,35,40,346,52,42,39,66,27,20,0,-23,15,12,23]
[null,10,null,null,17,"花姫",4,4,4,4,4,5,8,8,75,35,3,15,-28,-3,10,0,5,10,25,-10,"花姫",6,5,5,5,6,6,10,11,89,38,5,19,-32,-3,14,0,5,13,28,-12,"花姫",7,6,7,7,7,7,12,13,103,42,7,24,-35,-4,16,0,5,16,31,-14,"花姫",8,8,8,8,9,8,14,15,118,46,9,28,-37,-5,19,0,5,19,35,-16,"花姫",9,9,10,10,10,10,16,18,135,50,12,32,-40,-6,22,0,5,21,38,-18,"花姫",11,11,12,10,12,11,18,20,151,53,15,38,-43,-6,25,0,8,24,43,-20,"花姫",12,12,13,12,13,13,20,22,165,56,17,42,-46,-7,27,0,8,28,46,-23,"花姫",13,14,14,13,15,14,23,24,178,58,19,47,-49,-8,31,0,8,30,51,-25,"花姫",14,15,16,14,17,15,25,26,192,61,21,50,-53,-9,34,0,8,34,53,-28,"花姫",16,16,18,16,18,16,27,28,205,65,23,54,-55,-10,37,0,8,38,57,-30]
[null,11,null,null,18,"鬼",5,4,3,5,3,2,18,17,104,20,27,26,5,5,2,6,2,3,-3,-3,"鬼",6,6,4,7,4,3,21,21,125,22,34,33,8,8,5,11,4,5,-5,-6,"鬼",8,7,5,8,5,4,25,25,147,25,41,40,11,11,8,13,6,8,-9,-8,"鬼",10,9,6,9,6,5,30,29,171,27,46,45,14,14,10,18,9,10,-12,-11,"鬼",11,10,7,11,7,6,35,33,194,30,53,51,17,17,13,22,11,12,-14,-14,"鬼",13,12,9,13,8,7,39,36,216,34,58,57,20,20,15,25,13,14,-16,-17,"鬼",15,14,10,15,9,8,44,40,242,38,63,61,24,24,18,29,15,16,-18,-19,"鬼",17,16,11,17,10,8,47,42,269,42,68,65,27,27,21,33,18,19,-20,-21,"鬼",19,18,12,19,12,9,51,46,294,46,74,70,30,30,23,37,20,21,-22,-23,"鬼",21,20,13,21,13,10,54,49,320,50,80,75,33,33,26,40,22,23,-25,-25]
[null,12,null,null,19,"虫人",5,4,5,3,2,3,11,7,105,23,14,14,-10,2,5,-3,-10,-11,6,6,"虫人",7,5,7,5,3,4,13,9,128,25,18,17,-12,3,5,-6,-13,-14,8,9,"虫人",8,7,8,6,5,5,15,11,156,27,21,20,-13,5,5,-10,-16,-17,11,11,"虫人",9,8,10,8,6,6,17,12,183,30,25,26,-15,7,5,-12,-20,-19,13,14,"虫人",10,9,12,9,7,7,19,13,208,32,29,29,-17,10,5,-15,-23,-21,16,17,"虫人",11,11,13,10,8,8,21,15,233,34,33,32,-19,12,5,-18,-26,-23,19,21,"虫人",13,13,14,11,10,9,23,17,256,37,36,35,-21,14,5,-20,-30,-25,21,24,"虫人",14,15,16,13,11,10,26,18,283,40,40,37,-23,17,5,-23,-33,-28,24,26,"虫人",16,16,17,14,13,11,28,19,310,42,43,40,-24,19,5,-25,-36,-31,27,28,"虫人",18,18,19,15,14,12,30,21,334,45,46,42,-26,22,5,-28,-42,-34,30,32]
[null,13,null,null,20,"半魚人",5,3,4,4,3,4,8,7,85,24,6,6,20,20,25,-25,5,5,3,3,"半魚人",6,4,5,6,5,6,10,9,101,27,8,8,20,23,28,-28,5,5,3,3,"半魚人",8,5,6,7,6,7,13,11,114,29,9,10,20,25,31,-31,5,5,3,3,"半魚人",9,7,8,8,7,9,15,13,138,32,11,12,20,28,34,-33,5,5,3,3,"半魚人",11,8,9,9,9,11,18,15,160,35,13,13,20,31,37,-36,5,5,3,3,"半魚人",13,10,10,11,11,13,21,18,187,39,15,15,20,34,40,-40,5,5,3,3,"半魚人",14,11,11,13,12,15,23,20,208,41,17,17,20,36,43,-43,5,5,3,3,"半魚人",16,12,12,14,14,16,25,23,231,44,19,18,20,39,46,-46,5,5,3,3,"半魚人",18,13,13,16,15,17,27,25,249,46,22,21,20,41,49,-50,5,5,3,3,"半魚人",19,15,15,18,17,19,30,28,262,50,24,23,20,44,53,-55,5,5,3,3]
[null,14,null,null,21,"死神",5,2,3,5,3,3,6,6,90,28,9,9,8,0,4,8,-5,0,-20,20,"死神",6,3,4,7,5,5,8,8,109,30,11,11,11,0,5,10,-5,0,-20,24,"死神",8,4,6,8,6,6,11,11,127,33,15,14,13,0,6,13,-5,0,-20,27,"死神",9,5,7,9,7,7,13,13,146,36,19,17,16,0,8,15,-5,0,-20,31,"死神",11,6,9,11,9,8,16,16,169,39,21,19,19,0,10,18,-5,0,-20,35,"死神",13,7,10,13,11,9,19,19,192,41,23,22,22,0,12,21,-5,0,-20,39,"死神",14,8,11,15,12,10,21,21,212,44,25,25,25,0,13,24,-5,0,-20,44,"死神",15,9,13,16,13,11,24,24,237,47,28,28,28,0,14,27,-5,0,-20,47,"死神",17,10,14,18,15,13,26,26,260,50,30,31,31,0,15,29,-5,0,-20,50,"死神",19,11,16,19,17,14,29,29,282,52,32,34,34,0,17,31,-5,0,-20,54]
[null,15,null,null,22,"偽人",5,5,3,4,3,4,10,10,100,30,10,10,0,0,-5,0,5,2,4,3,"偽人",6,6,4,5,4,5,12,11,122,32,13,12,-1,1,-4,-2,8,4,6,5,"偽人",7,7,5,6,5,6,14,13,146,35,16,14,-3,3,-3,-4,11,6,7,7,"偽人",8,9,6,8,6,7,15,15,170,38,19,17,-5,4,0,-6,15,7,10,8,"偽人",10,10,8,10,8,8,17,16,194,41,22,20,-6,5,2,-9,19,10,12,11,"偽人",11,12,10,12,10,9,19,18,222,44,25,23,-9,6,4,-12,22,12,14,13,"偽人",13,13,12,13,12,10,22,21,250,47,28,26,-12,7,6,-15,26,13,16,15,"偽人",14,14,13,15,13,12,25,23,274,50,32,28,-15,8,7,-18,30,15,19,17,"偽人",16,16,14,17,14,14,28,25,300,53,35,30,-16,9,10,-21,32,18,22,20,"偽人",18,18,15,18,15,15,32,26,330,56,38,33,-18,10,12,-24,35,22,25,22]
[null,16,null,null,23,"キメラ忌",{"$f":"MAX(VLOOKUP(キメラA,F27:Z70,G26,FALSE),VLOOKUP(キメラB,F27:Z70,G26,FALSE))","v":{"$error":"#N/A"}},{"$f":"MAX(VLOOKUP(キメラA,F27:Z70,H26,FALSE),VLOOKUP(キメラB,F27:Z70,H26,FALSE))","v":{"$error":"#N/A"}},{"$f":"MAX(VLOOKUP(キメラA,F27:Z70,I26,FALSE),VLOOKUP(キメラB,F27:Z70,I26,FALSE))","v":{"$error":"#N/A"}},{"$f":"MAX(VLOOKUP(キメラA,F27:Z70,J26,FALSE),VLOOKUP(キメラB,F27:Z70,J26,FALSE))","v":{"$error":"#N/A"}},{"$f":"MAX(VLOOKUP(キメラA,F27:Z70,K26,FALSE),VLOOKUP(キメラB,F27:Z70,K26,FALSE))","v":{"$error":"#N/A"}},{"$f":"ROUNDDOWN(VLOOKUP(キメラA,F27:Z70,L26,FALSE)/2+VLOOKUP(キメラB,F27:Z70,L26,FALSE)/2,0)","v":{"$error":"#N/A"}},{"$f":"MIN(VLOOKUP(キメラA,F27:Z70,M26,FALSE),VLOOKUP(キメラB,F27:Z70,M26,FALSE))","v":{"$error":"#N/A"}},{"$f":"MIN(VLOOKUP(キメラA,F27:Z70,N26,FALSE),VLOOKUP(キメラB,F27:Z70,N26,FALSE))","v":{"$error":"#N/A"}},{"$f":"ROUNDDOWN(VLOOKUP(キメラA,F27:Z70,O26,FALSE)/2+VLOOKUP(キメラB,F27:Z70,O26,FALSE)/2,0)","v":{"$error":"#N/A"}},{"$f":"ROUNDDOWN(VLOOKUP(キメラA,F27:Z70,P26,FALSE)/2+VLOOKUP(キメラB,F27:Z70,P26,FALSE)/2,0)","v":{"$error":"#N/A"}},{"$f":"MIN(VLOOKUP(キメラA,F27:Z70,Q26,FALSE),VLOOKUP(キメラB,F27:Z70,Q26,FALSE))","v":{"$error":"#N/A"}},{"$f":"MIN(VLOOKUP(キメラA,F27:Z70,R26,FALSE),VLOOKUP(キメラB,F27:Z70,R26,FALSE))","v":{"$error":"#N/A"}},{"$f":"MIN(VLOOKUP(キメラA,F27:Z70,S26,FALSE),VLOOKUP(キメラB,F27:Z70,S26,FALSE))","v":{"$error":"#N/A"}},{"$f":"MIN(VLOOKUP(キメラA,F27:Z70,T26,FALSE),VLOOKUP(キメラB,F27:Z70,T26,FALSE))","v":{"$error":"#N/A"}},{"$f":"MIN(VLOOKUP(キメラA,F27:Z70,U26,FALSE),VLOOKUP(キメラB,F27:Z70,U26,FALSE))","v":{"$error":"#N/A"}},{"$f":"MIN(VLOOKUP(キメラA,F27:Z70,V26,FALSE),VLOOKUP(キメラB,F27:Z70,V26,FALSE))","v":{"$error":"#N/A"}},{"$f":"MIN(VLOOKUP(キメラA,F27:Z70,W26,FALSE),VLOOKUP(キメラB,F27:Z70,W26,FALSE))","v":{"$error":"#N/A"}},{"$f":"MIN(VLOOKUP(キメラA,F27:Z70,X26,FALSE),VLOOKUP(キメラB,F27:Z70,X26,FALSE))","v":{"$error":"#N/A"}},{"$f":"MIN(VLOOKUP(キメラA,F27:Z70,Y26,FALSE),VLOOKUP(キメラB,F27:Z70,Y26,FALSE))","v":{"$error":"#N/A"}},{"$f":"MIN(VLOOKUP(キメラA,F27:Z70,Z26,FALSE),VLOOKUP(キメラB,F27:Z70,Z26,FALSE))","v":{"$error":"#N/A"}},"キメラ忌",{"$f":"MAX(VLOOKUP(キメラA,AA27:AU70,AB26,FALSE),VLOOKUP(キメラB,AA27:AU70,AB26,FALSE))","v":{"$error":"#N/A"}},{"$f":"MAX(VLOOKUP(キメラA,AA27:AU70,AC26,FALSE),VLOOKUP(キメラB,AA27:AU70,AC26,FALSE))","v":{"$error":"#N/A"}},{"$f":"MAX(VLOOKUP(キメラA,AA27:AU70,AD26,FALSE),VLOOKUP(キメラB,AA27:AU70,AD26,FALSE))","v":{"$error":"#N/A"}},{"$f":"MAX(VLOOKUP(キメラA,AA27:AU70,AE26,FALSE),VLOOKUP(キメラB,AA27:AU70,AE26,FALSE))","v":{"$error":"#N/A"}},{"$f":"MAX(VLOOKUP(キメラA,AA27:AU70,AF26,FALSE),VLOOKUP(キメラB,AA27:AU70,AF26,FALSE))","v":{"$error":"#N/A"}},{"$f":"ROUNDDOWN(VLOOKUP(キメラA,AA27:AU70,AG26,FALSE)/2+VLOOKUP(キメラB,AA27:AU70,AG26,FALSE)/2,0)","v":{"$error":"#N/A"}},{"$f":"MIN(VLOOKUP(キメラA,AA27:AU70,AH26,FALSE),VLOOKUP(キメラB,AA27:AU70,AH26,FALSE))","v":{"$error":"#N/A"}},{"$f":"MIN(VLOOKUP(キメラA,AA27:AU70,AI26,FALSE),VLOOKUP(キメラB,AA27:AU70,AI26,FALSE))","v":{"$error":"#N/A"}},{"$f":"ROUNDDOWN(VLOOKUP(キメラA,AA27:AU70,AJ26,FALSE)/2+VLOOKUP(キメラB,AA27:AU70,AJ26,FALSE)/2,0)","v":{"$error":"#N/A"}},{"$f":"ROUNDDOWN(VLOOKUP(キメラA,AA27:AU70,AK26,FALSE)/2+VLOOKUP(キメラB,AA27:AU70,AK26,FALSE)/2,0)","v":{"$error":"#N/A"}},{"$f":"MIN(VLOOKUP(キメラA,AA27:AU70,AL26,FALSE),VLOOKUP(キメラB,AA27:AU70,AL26,FALSE))","v":{"$error":"#N/A"}},{"$f":"MIN(VLOOKUP(キメラA,AA27:AU70,AM26,FALSE),VLOOKUP(キメラB,AA27:AU70,AM26,FALSE))","v":{"$error":"#N/A"}},{"$f":"MIN(VLOOKUP(キメラA,AA27:AU70,AN26,FALSE),VLOOKUP(キメラB,AA27:AU70,AN26,FALSE))","v":{"$error":"#N/A"}},{"$f":"MIN(VLOOKUP(キメラA,AA27:AU70,AO26,FALSE),VLOOKUP(キメラB,AA27:AU70,AO26,FALSE))","v":{"$error":"#N/A"}},{"$f":"MIN(VLOOKUP(キメラA,AA27:AU70,AP26,FALSE),VLOOKUP(キメラB,AA27:AU70,AP26,FALSE))","v":{"$error":"#N/A"}},{"$f":"MIN(VLOOKUP(キメラA,AA27:AU70,AQ26,FALSE),VLOOKUP(キメラB,AA27:AU70,AQ26,FALSE))","v":{"$error":"#N/A"}},{"$f":"MIN(VLOOKUP(キメラA,AA27:AU70,AR26,FALSE),VLOOKUP(キメラB,AA27:AU70,AR26,FALSE))","v":{"$error":"#N/A"}},{"$f":"MIN(VLOOKUP(キメラA,AA27:AU70,AS26,FALSE),VLOOKUP(キメラB,AA27:AU70,AS26,FALSE))","v":{"$error":"#N/A"}},{"$f":"MIN(VLOOKUP(キメラA,AA27:AU70,AT26,FALSE),VLOOKUP(キメラB,AA27:AU70,AT26,FALSE))","v":{"$error":"#N/A"}},{"$f":"MIN(VLOOKUP(キメラA,AA27:AU70,AU26,FALSE),VLOOKUP(キメラB,AA27:AU70,AU26,FALSE))","v":{"$error":"#N/A"}},"キメラ忌",{"$f":"MAX(VLOOKUP(キメラA,AV27:BP70,AW26,FALSE),VLOOKUP(キメラB,AV27:BP70,AW26,FALSE))","v":{"$error":"#N/A"}},{"$f":"MAX(VLOOKUP(キメラA,AV27:BP70,AX26,FALSE),VLOOKUP(キメラB,AV27:BP70,AX26,FALSE))","v":{"$error":"#N/A"}},{"$f":"MAX(VLOOKUP(キメラA,AV27:BP70,AY26,FALSE),VLOOKUP(キメラB,AV27:BP70,AY26,FALSE))","v":{"$error":"#N/A"}},{"$f":"MAX(VLOOKUP(キメラA,AV27:BP70,AZ26,FALSE),VLOOKUP(キメラB,AV27:BP70,AZ26,FALSE))","v":{"$error":"#N/A"}},{"$f":"MAX(VLOOKUP(キメラA,AV27:BP70,BA26,FALSE),VLOOKUP(キメラB,AV27:BP70,BA26,FALSE))","v":{"$error":"#N/A"}},{"$f":"ROUNDDOWN(VLOOKUP(キメラA,AV27:BP70,BB26,FALSE)/2+VLOOKUP(キメラB,AV27:BP70,BB26,FALSE)/2,0)","v":{"$error":"#N/A"}},{"$f":"MIN(VLOOKUP(キメラA,AV27:BP70,BC26,FALSE),VLOOKUP(キメラB,AV27:BP70,BC26,FALSE))","v":{"$error":"#N/A"}},{"$f":"MIN(VLOOKUP(キメラA,AV27:BP70,BD26,FALSE),VLOOKUP(キメラB,AV27:BP70,BD26,FALSE))","v":{"$error":"#N/A"}},{"$f":"ROUNDDOWN(VLOOKUP(キメラA,AV27:BP70,BE26,FALSE)/2+VLOOKUP(キメラB,AV27:BP70,BE26,FALSE)/2,0)","v":{"$error":"#N/A"}},{"$f":"ROUNDDOWN(VLOOKUP(キメラA,AV27:BP70,BF26,FALSE)/2+VLOOKUP(キメラB,AV27:BP70,BF26,FALSE)/2,0)","v":{"$error":"#N/A"}},{"$f":"MIN(VLOOKUP(キメラA,AV27:BP70,BG26,FALSE),VLOOKUP(キメラB,AV27:BP70,BG26,FALSE))","v":{"$error":"#N/A"}},{"$f":"MIN(VLOOKUP(キメラA,AV27:BP70,BH26,FALSE),VLOOKUP(キメラB,AV27:BP70,BH26,FALSE))","v":{"$error":"#N/A"}},{"$f":"MIN(VLOOKUP(キメラA,AV27:BP70,BI26,FALSE),VLOOKUP(キメラB,AV27:BP70,BI26,FALSE))","v":{"$error":"#N/A"}},{"$f":"MIN(VLOOKUP(キメラA,AV27:BP70,BJ26,FALSE),VLOOKUP(キメラB,AV27:BP70,BJ26,FALSE))","v":{"$error":"#N/A"}},{"$f":"MIN(VLOOKUP(キメラA,AV27:BP70,BK26,FALSE),VLOOKUP(キメラB,AV27:BP70,BK26,FALSE))","v":{"$error":"#N/A"}},{"$f":"MIN(VLOOKUP(キメラA,AV27:BP70,BL26,FALSE),VLOOKUP(キメラB,AV27:BP70,BL26,FALSE))","v":{"$error":"#N/A"}},{"$f":"MIN(VLOOKUP(キメラA,AV27:BP70,BM26,FALSE),VLOOKUP(キメラB,AV27:BP70,BM26,FALSE))","v":{"$error":"#N/A"}},{"$f":"MIN(VLOOKUP(キメラA,AV27:BP70,BN26,FALSE),VLOOKUP(キメラB,AV27:BP70,BN26,FALSE))","v":{"$error":"#N/A"}},{"$f":"MIN(VLOOKUP(キメラA,AV27:BP70,BO26,FALSE),VLOOKUP(キメラB,AV27:BP70,BO26,FALSE))","v":{"$error":"#N/A"}},{"$f":"MIN(VLOOKUP(キメラA,AV27:BP70,BP26,FALSE),VLOOKUP(キメラB,AV27:BP70,BP26,FALSE))","v":{"$error":"#N/A"}},"キメラ忌",{"$f":"MAX(VLOOKUP(キメラA,BQ27:CK89,BR26,FALSE),VLOOKUP(キメラB,BQ27:CK89,BR26,FALSE))","v":{"$error":"#N/A"}},{"$f":"MAX(VLOOKUP(キメラA,BQ27:CK89,BS26,FALSE),VLOOKUP(キメラB,BQ27:CK89,BS26,FALSE))","v":{"$error":"#N/A"}},{"$f":"MAX(VLOOKUP(キメラA,BQ27:CK89,BT26,FALSE),VLOOKUP(キメラB,BQ27:CK89,BT26,FALSE))","v":{"$error":"#N/A"}},{"$f":"MAX(VLOOKUP(キメラA,BQ27:CK89,BU26,FALSE),VLOOKUP(キメラB,BQ27:CK89,BU26,FALSE))","v":{"$error":"#N/A"}},{"$f":"MAX(VLOOKUP(キメラA,BQ27:CK89,BV26,FALSE),VLOOKUP(キメラB,BQ27:CK89,BV26,FALSE))","v":{"$error":"#N/A"}},{"$f":"ROUNDDOWN(VLOOKUP(キメラA,BQ27:CK89,BW26,FALSE)/2+VLOOKUP(キメラB,BQ27:CK89,BW26,FALSE)/2,0)","v":{"$error":"#N/A"}},{"$f":"MIN(VLOOKUP(キメラA,BQ27:CK89,BX26,FALSE),VLOOKUP(キメラB,BQ27:CK89,BX26,FALSE))","v":{"$error":"#N/A"}},{"$f":"MIN(VLOOKUP(キメラA,BQ27:CK89,BY26,FALSE),VLOOKUP(キメラB,BQ27:CK89,BY26,FALSE))","v":{"$error":"#N/A"}},{"$f":"ROUNDDOWN(VLOOKUP(キメラA,BQ27:CK89,BZ26,FALSE)/2+VLOOKUP(キメラB,BQ27:CK89,BZ26,FALSE)/2,0)","v":{"$error":"#N/A"}},{"$f":"ROUNDDOWN(VLOOKUP(キメラA,BQ27:CK89,CA26,FALSE)/2+VLOOKUP(キメラB,BQ27:CK89,CA26,FALSE)/2,0)","v":{"$error":"#N/A"}},{"$f":"MIN(VLOOKUP(キメラA,BQ27:CK89,CB26,FALSE),VLOOKUP(キメラB,BQ27:CK89,CB26,FALSE))","v":{"$error":"#N/A"}},{"$f":"MIN(VLOOKUP(キメラA,BQ27:CK89,CC26,FALSE),VLOOKUP(キメラB,BQ27:CK89,CC26,FALSE))","v":{"$error":"#N/A"}},{"$f":"MIN(VLOOKUP(キメラA,BQ27:CK89,CD26,FALSE),VLOOKUP(キメラB,BQ27:CK89,CD26,FALSE))","v":{"$error":"#N/A"}},{"$f":"MIN(VLOOKUP(キメラA,BQ27:CK89,CE26,FALSE),VLOOKUP(キメラB,BQ27:CK89,CE26,FALSE))","v":{"$error":"#N/A"}},{"$f":"MIN(VLOOKUP(キメラA,BQ27:CK89,CF26,FALSE),VLOOKUP(キメラB,BQ27:CK89,CF26,FALSE))","v":{"$error":"#N/A"}},{"$f":"MIN(VLOOKUP(キメラA,BQ27:CK89,CG26,FALSE),VLOOKUP(キメラB,BQ27:CK89,CG26,FALSE))","v":{"$error":"#N/A"}},{"$f":"MIN(VLOOKUP(キメラA,BQ27:CK89,CH26,FALSE),VLOOKUP(キメラB,BQ27:CK89,CH26,FALSE))","v":{"$error":"#N/A"}},{"$f":"MIN(VLOOKUP(キメラA,BQ27:CK89,CI26,FALSE),VLOOKUP(キメラB,BQ27:CK89,CI26,FALSE))","v":{"$error":"#N/A"}},{"$f":"MIN(VLOOKUP(キメラA,BQ27:CK89,CJ26,FALSE),VLOOKUP(キメラB,BQ27:CK89,CJ26,FALSE))","v":{"$error":"#N/A"}},{"$f":"MIN(VLOOKUP(キメラA,BQ27:CK89,CK26,FALSE),VLOOKUP(キメラB,BQ27:CK89,CK26,FALSE))","v":{"$error":"#N/A"}},"キメラ忌",{"$f":"MAX(VLOOKUP(キメラA,CL27:DF70,CM26,FALSE),VLOOKUP(キメラB,CL27:DF70,CM26,FALSE))","v":{"$error":"#N/A"}},{"$f":"MAX(VLOOKUP(キメラA,CL27:DF70,CN26,FALSE),VLOOKUP(キメラB,CL27:DF70,CN26,FALSE))","v":{"$error":"#N/A"}},{"$f":"MAX(VLOOKUP(キメラA,CL27:DF70,CO26,FALSE),VLOOKUP(キメラB,CL27:DF70,CO26,FALSE))","v":{"$error":"#N/A"}},{"$f":"MAX(VLOOKUP(キメラA,CL27:DF70,CP26,FALSE),VLOOKUP(キメラB,CL27:DF70,CP26,FALSE))","v":{"$error":"#N/A"}},{"$f":"MAX(VLOOKUP(キメラA,CL27:DF70,CQ26,FALSE),VLOOKUP(キメラB,CL27:DF70,CQ26,FALSE))","v":{"$error":"#N/A"}},{"$f":"ROUNDDOWN(VLOOKUP(キメラA,CL27:DF70,CR26,FALSE)/2+VLOOKUP(キメラB,CL27:DF70,CR26,FALSE)/2,0)","v":{"$error":"#N/A"}},{"$f":"MIN(VLOOKUP(キメラA,CL27:DF70,CS26,FALSE),VLOOKUP(キメラB,CL27:DF70,CS26,FALSE))","v":{"$error":"#N/A"}},{"$f":"MIN(VLOOKUP(キメラA,CL27:DF70,CT26,FALSE),VLOOKUP(キメラB,CL27:DF70,CT26,FALSE))","v":{"$error":"#N/A"}},{"$f":"ROUNDDOWN(VLOOKUP(キメラA,CL27:DF70,CU26,FALSE)/2+VLOOKUP(キメラB,CL27:DF70,CU26,FALSE)/2,0)","v":{"$error":"#N/A"}},{"$f":"ROUNDDOWN(VLOOKUP(キメラA,CL27:DF70,CV26,FALSE)/2+VLOOKUP(キメラB,CL27:DF70,CV26,FALSE)/2,0)","v":{"$error":"#N/A"}},{"$f":"MIN(VLOOKUP(キメラA,CL27:DF70,CW26,FALSE),VLOOKUP(キメラB,CL27:DF70,CW26,FALSE))","v":{"$error":"#N/A"}},{"$f":"MIN(VLOOKUP(キメラA,CL27:DF70,CX26,FALSE),VLOOKUP(キメラB,CL27:DF70,CX26,FALSE))","v":{"$error":"#N/A"}},{"$f":"MIN(VLOOKUP(キメラA,CL27:DF70,CY26,FALSE),VLOOKUP(キメラB,CL27:DF70,CY26,FALSE))","v":{"$error":"#N/A"}},{"$f":"MIN(VLOOKUP(キメラA,CL27:DF70,CZ26,FALSE),VLOOKUP(キメラB,CL27:DF70,CZ26,FALSE))","v":{"$error":"#N/A"}},{"$f":"MIN(VLOOKUP(キメラA,CL27:DF70,DA26,FALSE),VLOOKUP(キメラB,CL27:DF70,DA26,FALSE))","v":{"$error":"#N/A"}},{"$f":"MIN(VLOOKUP(キメラA,CL27:DF70,DB26,FALSE),VLOOKUP(キメラB,CL27:DF70,DB26,FALSE))","v":{"$error":"#N/A"}},{"$f":"MIN(VLOOKUP(キメラA,CL27:DF70,DC26,FALSE),VLOOKUP(キメラB,CL27:DF70,DC26,FALSE))","v":{"$error":"#N/A"}},{"$f":"MIN(VLOOKUP(キメラA,CL27:DF70,DD26,FALSE),VLOOKUP(キメラB,CL27:DF70,DD26,FALSE))","v":{"$error":"#N/A"}},{"$f":"MIN(VLOOKUP(キメラA,CL27:DF70,DE26,FALSE),VLOOKUP(キメラB,CL27:DF70,DE26,FALSE))","v":{"$error":"#N/A"}},{"$f":"MIN(VLOOKUP(キメラA,CL27:DF70,DF26,FALSE),VLOOKUP(キメラB,CL27:DF70,DF26,FALSE))","v":{"$error":"#N/A"}},"キメラ忌",{"$f":"MAX(VLOOKUP(キメラA,DG27:EA70,DH26,FALSE),VLOOKUP(キメラB,DG27:EA70,DH26,FALSE))","v":{"$error":"#N/A"}},{"$f":"MAX(VLOOKUP(キメラA,DG27:EA70,DI26,FALSE),VLOOKUP(キメラB,DG27:EA70,DI26,FALSE))","v":{"$error":"#N/A"}},{"$f":"MAX(VLOOKUP(キメラA,DG27:EA70,DJ26,FALSE),VLOOKUP(キメラB,DG27:EA70,DJ26,FALSE))","v":{"$error":"#N/A"}},{"$f":"MAX(VLOOKUP(キメラA,DG27:EA70,DK26,FALSE),VLOOKUP(キメラB,DG27:EA70,DK26,FALSE))","v":{"$error":"#N/A"}},{"$f":"MAX(VLOOKUP(キメラA,DG27:EA70,DL26,FALSE),VLOOKUP(キメラB,DG27:EA70,DL26,FALSE))","v":{"$error":"#N/A"}},{"$f":"ROUNDDOWN(VLOOKUP(キメラA,DG27:EA70,DM26,FALSE)/2+VLOOKUP(キメラB,DG27:EA70,DM26,FALSE)/2,0)","v":{"$error":"#N/A"}},{"$f":"ROUNDDOWN(VLOOKUP(キメラA,DG27:EA70,DN26,FALSE)/2+VLOOKUP(キメラB,DG27:EA70,DN26,FALSE)/2,0)","v":{"$error":"#N/A"}},{"$f":"ROUNDDOWN(VLOOKUP(キメラA,DG27:EA70,DO26,FALSE)/2+VLOOKUP(キメラB,DG27:EA70,DO26,FALSE)/2,0)","v":{"$error":"#N/A"}},{"$f":"ROUNDDOWN(VLOOKUP(キメラA,DG27:EA70,DP26,FALSE)/2+VLOOKUP(キメラB,DG27:EA70,DP26,FALSE)/2,0)","v":{"$error":"#N/A"}},{"$f":"ROUNDDOWN(VLOOKUP(キメラA,DG27:EA70,DQ26,FALSE)/2+VLOOKUP(キメラB,DG27:EA70,DQ26,FALSE)/2,0)","v":{"$error":"#N/A"}},{"$f":"MIN(VLOOKUP(キメラA,DG27:EA70,DR26,FALSE),VLOOKUP(キメラB,DG27:EA70,DR26,FALSE))","v":{"$error":"#N/A"}},{"$f":"MIN(VLOOKUP(キメラA,DG27:EA70,DS26,FALSE),VLOOKUP(キメラB,DG27:EA70,DS26,FALSE))","v":{"$error":"#N/A"}},{"$f":"MIN(VLOOKUP(キメラA,DG27:EA70,DT26,FALSE),VLOOKUP(キメラB,DG27:EA70,DT26,FALSE))","v":{"$error":"#N/A"}},{"$f":"MIN(VLOOKUP(キメラA,DG27:EA70,DU26,FALSE),VLOOKUP(キメラB,DG27:EA70,DU26,FALSE))","v":{"$error":"#N/A"}},{"$f":"MIN(VLOOKUP(キメラA,DG27:EA70,DV26,FALSE),VLOOKUP(キメラB,DG27:EA70,DV26,FALSE))","v":{"$error":"#N/A"}},{"$f":"MIN(VLOOKUP(キメラA,DG27:EA70,DW26,FALSE),VLOOKUP(キメラB,DG27:EA70,DW26,FALSE))","v":{"$error":"#N/A"}},{"$f":"MIN(VLOOKUP(キメラA,DG27:EA70,DX26,FALSE),VLOOKUP(キメラB,DG27:EA70,DX26,FALSE))","v":{"$error":"#N/A"}},{"$f":"MIN(VLOOKUP(キメラA,DG27:EA70,DY26,FALSE),VLOOKUP(キメラB,DG27:EA70,DY26,FALSE))","v":{"$error":"#N/A"}},{"$f":"MIN(VLOOKUP(キメラA,DG27:EA70,DZ26,FALSE),VLOOKUP(キメラB,DG27:EA70,DZ26,FALSE))","v":{"$error":"#N/A"}},{"$f":"MIN(VLOOKUP(キメラA,DG27:EA70,EA26,FALSE),VLOOKUP(キメラB,DG27:EA70,EA26,FALSE))","v":{"$error":"#N/A"}},"キメラ忌",{"$f":"MAX(VLOOKUP(キメラA,EB27:EV70,EC26,FALSE),VLOOKUP(キメラB,EB27:EV70,EC26,FALSE))","v":{"$error":"#N/A"}},{"$f":"MAX(VLOOKUP(キメラA,EB27:EV70,ED26,FALSE),VLOOKUP(キメラB,EB27:EV70,ED26,FALSE))","v":{"$error":"#N/A"}},{"$f":"MAX(VLOOKUP(キメラA,EB27:EV70,EE26,FALSE),VLOOKUP(キメラB,EB27:EV70,EE26,FALSE))","v":{"$error":"#N/A"}},{"$f":"MAX(VLOOKUP(キメラA,EB27:EV70,EF26,FALSE),VLOOKUP(キメラB,EB27:EV70,EF26,FALSE))","v":{"$error":"#N/A"}},{"$f":"MAX(VLOOKUP(キメラA,EB27:EV70,EG26,FALSE),VLOOKUP(キメラB,EB27:EV70,EG26,FALSE))","v":{"$error":"#N/A"}},{"$f":"ROUNDDOWN(VLOOKUP(キメラA,EB27:EV70,EH26,FALSE)/2+VLOOKUP(キメラB,EB27:EV70,EH26,FALSE)/2,0)","v":{"$error":"#N/A"}},{"$f":"ROUNDDOWN(VLOOKUP(キメラA,EB27:EV70,EI26,FALSE)/2+VLOOKUP(キメラB,EB27:EV70,EI26,FALSE)/2,0)","v":{"$error":"#N/A"}},{"$f":"ROUNDDOWN(VLOOKUP(キメラA,EB27:EV70,EJ26,FALSE)/2+VLOOKUP(キメラB,EB27:EV70,EJ26,FALSE)/2,0)","v":{"$error":"#N/A"}},{"$f":"ROUNDDOWN(VLOOKUP(キメラA,EB27:EV70,EK26,FALSE)/2+VLOOKUP(キメラB,EB27:EV70,EK26,FALSE)/2,0)","v":{"$error":"#N/A"}},{"$f":"ROUNDDOWN(VLOOKUP(キメラA,EB27:EV70,EL26,FALSE)/2+VLOOKUP(キメラB,EB27:EV70,EL26,FALSE)/2,0)","v":{"$error":"#N/A"}},{"$f":"MIN(VLOOKUP(キメラA,EB27:EV70,EM26,FALSE),VLOOKUP(キメラB,EB27:EV70,EM26,FALSE))","v":{"$error":"#N/A"}},{"$f":"MIN(VLOOKUP(キメラA,EB27:EV70,EN26,FALSE),VLOOKUP(キメラB,EB27:EV70,EN26,FALSE))","v":{"$error":"#N/A"}},{"$f":"MIN(VLOOKUP(キメラA,EB27:EV70,EO26,FALSE),VLOOKUP(キメラB,EB27:EV70,EO26,FALSE))","v":{"$error":"#N/A"}},{"$f":"MIN(VLOOKUP(キメラA,EB27:EV70,EP26,FALSE),VLOOKUP(キメラB,EB27:EV70,EP26,FALSE))","v":{"$error":"#N/A"}},{"$f":"MIN(VLOOKUP(キメラA,EB27:EV70,EQ26,FALSE),VLOOKUP(キメラB,EB27:EV70,EQ26,FALSE))","v":{"$error":"#N/A"}},{"$f":"MIN(VLOOKUP(キメラA,EB27:EV70,ER26,FALSE),VLOOKUP(キメラB,EB27:EV70,ER26,FALSE))","v":{"$error":"#N/A"}},{"$f":"MIN(VLOOKUP(キメラA,EB27:EV70,ES26,FALSE),VLOOKUP(キメラB,EB27:EV70,ES26,FALSE))","v":{"$error":"#N/A"}},{"$f":"MIN(VLOOKUP(キメラA,EB27:EV70,ET26,FALSE),VLOOKUP(キメラB,EB27:EV70,ET26,FALSE))","v":{"$error":"#N/A"}},{"$f":"MIN(VLOOKUP(キメラA,EB27:EV70,EU26,FALSE),VLOOKUP(キメラB,EB27:EV70,EU26,FALSE))","v":{"$error":"#N/A"}},{"$f":"MIN(VLOOKUP(キメラA,EB27:EV70,EV26,FALSE),VLOOKUP(キメラB,EB27:EV70,EV26,FALSE))","v":{"$error":"#N/A"}},"キメラ忌",{"$f":"MAX(VLOOKUP(キメラA,EW27:FQ70,EX26,FALSE),VLOOKUP(キメラB,EW27:FQ70,EX26,FALSE))","v":{"$error":"#N/A"}},{"$f":"MAX(VLOOKUP(キメラA,EW27:FQ70,EY26,FALSE),VLOOKUP(キメラB,EW27:FQ70,EY26,FALSE))","v":{"$error":"#N/A"}},{"$f":"MAX(VLOOKUP(キメラA,EW27:FQ70,EZ26,FALSE),VLOOKUP(キメラB,EW27:FQ70,EZ26,FALSE))","v":{"$error":"#N/A"}},{"$f":"MAX(VLOOKUP(キメラA,EW27:FQ70,FA26,FALSE),VLOOKUP(キメラB,EW27:FQ70,FA26,FALSE))","v":{"$error":"#N/A"}},{"$f":"MAX(VLOOKUP(キメラA,EW27:FQ70,FB26,FALSE),VLOOKUP(キメラB,EW27:FQ70,FB26,FALSE))","v":{"$error":"#N/A"}},{"$f":"ROUNDDOWN(VLOOKUP(キメラA,EW27:FQ70,FC26,FALSE)/2+VLOOKUP(キメラB,EW27:FQ70,FC26,FALSE)/2,0)","v":{"$error":"#N/A"}},{"$f":"ROUNDDOWN(VLOOKUP(キメラA,EW27:FQ70,FD26,FALSE)/2+VLOOKUP(キメラB,EW27:FQ70,FD26,FALSE)/2,0)","v":{"$error":"#N/A"}},{"$f":"ROUNDDOWN(VLOOKUP(キメラA,EW27:FQ70,FE26,FALSE)/2+VLOOKUP(キメラB,EW27:FQ70,FE26,FALSE)/2,0)","v":{"$error":"#N/A"}},{"$f":"ROUNDDOWN(VLOOKUP(キメラA,EW27:FQ70,FF26,FALSE)/2+VLOOKUP(キメラB,EW27:FQ70,FF26,FALSE)/2,0)","v":{"$error":"#N/A"}},{"$f":"ROUNDDOWN(VLOOKUP(キメラA,EW27:FQ70,FG26,FALSE)/2+VLOOKUP(キメラB,EW27:FQ70,FG26,FALSE)/2,0)","v":{"$error":"#N/A"}},{"$f":"MIN(VLOOKUP(キメラA,EW27:FQ70,FH26,FALSE),VLOOKUP(キメラB,EW27:FQ70,FH26,FALSE))","v":{"$error":"#N/A"}},{"$f":"MIN(VLOOKUP(キメラA,EW27:FQ70,FI26,FALSE),VLOOKUP(キメラB,EW27:FQ70,FI26,FALSE))","v":{"$error":"#N/A"}},{"$f":"MIN(VLOOKUP(キメラA,EW27:FQ70,FJ26,FALSE),VLOOKUP(キメラB,EW27:FQ70,FJ26,FALSE))","v":{"$error":"#N/A"}},{"$f":"MIN(VLOOKUP(キメラA,EW27:FQ70,FK26,FALSE),VLOOKUP(キメラB,EW27:FQ70,FK26,FALSE))","v":{"$error":"#N/A"}},{"$f":"MIN(VLOOKUP(キメラA,EW27:FQ70,FL26,FALSE),VLOOKUP(キメラB,EW27:FQ70,FL26,FALSE))","v":{"$error":"#N/A"}},{"$f":"MIN(VLOOKUP(キメラA,EW27:FQ70,FM26,FALSE),VLOOKUP(キメラB,EW27:FQ70,FM26,FALSE))","v":{"$error":"#N/A"}},{"$f":"MIN(VLOOKUP(キメラA,EW27:FQ70,FN26,FALSE),VLOOKUP(キメラB,EW27:FQ70,FN26,FALSE))","v":{"$error":"#N/A"}},{"$f":"MIN(VLOOKUP(キメラA,EW27:FQ70,FO26,FALSE),VLOOKUP(キメラB,EW27:FQ70,FO26,FALSE))","v":{"$error":"#N/A"}},{"$f":"MIN(VLOOKUP(キメラA,EW27:FQ70,FP26,FALSE),VLOOKUP(キメラB,EW27:FQ70,FP26,FALSE))","v":{"$error":"#N/A"}},{"$f":"MIN(VLOOKUP(キメラA,EW27:FQ70,FQ26,FALSE),VLOOKUP(キメラB,EW27:FQ70,FQ26,FALSE))","v":{"$error":"#N/A"}},"キメラ忌",{"$f":"MAX(VLOOKUP(キメラA,FR27:GL70,FS26,FALSE),VLOOKUP(キメラB,FR27:GL70,FS26,FALSE))","v":{"$error":"#N/A"}},{"$f":"MAX(VLOOKUP(キメラA,FR27:GL70,FT26,FALSE),VLOOKUP(キメラB,FR27:GL70,FT26,FALSE))","v":{"$error":"#N/A"}},{"$f":"MAX(VLOOKUP(キメラA,FR27:GL70,FU26,FALSE),VLOOKUP(キメラB,FR27:GL70,FU26,FALSE))","v":{"$error":"#N/A"}},{"$f":"MAX(VLOOKUP(キメラA,FR27:GL70,FV26,FALSE),VLOOKUP(キメラB,FR27:GL70,FV26,FALSE))","v":{"$error":"#N/A"}},{"$f":"MAX(VLOOKUP(キメラA,FR27:GL70,FW26,FALSE),VLOOKUP(キメラB,FR27:GL70,FW26,FALSE))","v":{"$error":"#N/A"}},{"$f":"ROUNDDOWN(VLOOKUP(キメラA,FR27:GL70,FX26,FALSE)/2+VLOOKUP(キメラB,FR27:GL70,FX26,FALSE)/2,0)","v":{"$error":"#N/A"}},{"$f":"ROUNDDOWN(VLOOKUP(キメラA,FR27:GL70,FY26,FALSE)/2+VLOOKUP(キメラB,FR27:GL70,FY26,FALSE)/2,0)","v":{"$error":"#N/A"}},{"$f":"ROUNDDOWN(VLOOKUP(キメラA,FR27:GL70,FZ26,FALSE)/2+VLOOKUP(キメラB,FR27:GL70,FZ26,FALSE)/2,0)","v":{"$error":"#N/A"}},{"$f":"ROUNDDOWN(VLOOKUP(キメラA,FR27:GL70,GA26,FALSE)/2+VLOOKUP(キメラB,FR27:GL70,GA26,FALSE)/2,0)","v":{"$error":"#N/A"}},{"$f":"ROUNDDOWN(VLOOKUP(キメラA,FR27:GL70,GB26,FALSE)/2+VLOOKUP(キメラB,FR27:GL70,GB26,FALSE)/2,0)","v":{"$error":"#N/A"}},{"$f":"MIN(VLOOKUP(キメラA,FR27:GL70,GC26,FALSE),VLOOKUP(キメラB,FR27:GL70,GC26,FALSE))","v":{"$error":"#N/A"}},{"$f":"MIN(VLOOKUP(キメラA,FR27:GL70,GD26,FALSE),VLOOKUP(キメラB,FR27:GL70,GD26,FALSE))","v":{"$error":"#N/A"}},{"$f":"MIN(VLOOKUP(キメラA,FR27:GL70,GE26,FALSE),VLOOKUP(キメラB,FR27:GL70,GE26,FALSE))","v":{"$error":"#N/A"}},{"$f":"MIN(VLOOKUP(キメラA,FR27:GL70,GF26,FALSE),VLOOKUP(キメラB,FR27:GL70,GF26,FALSE))","v":{"$error":"#N/A"}},{"$f":"MIN(VLOOKUP(キメラA,FR27:GL70,GG26,FALSE),VLOOKUP(キメラB,FR27:GL70,GG26,FALSE))","v":{"$error":"#N/A"}},{"$f":"MIN(VLOOKUP(キメラA,FR27:GL70,GH26,FALSE),VLOOKUP(キメラB,FR27:GL70,GH26,FALSE))","v":{"$error":"#N/A"}},{"$f":"MIN(VLOOKUP(キメラA,FR27:GL70,GI26,FALSE),VLOOKUP(キメラB,FR27:GL70,GI26,FALSE))","v":{"$error":"#N/A"}},{"$f":"MIN(VLOOKUP(キメラA,FR27:GL70,GJ26,FALSE),VLOOKUP(キメラB,FR27:GL70,GJ26,FALSE))","v":{"$error":"#N/A"}},{"$f":"MIN(VLOOKUP(キメラA,FR27:GL70,GK26,FALSE),VLOOKUP(キメラB,FR27:GL70,GK26,FALSE))","v":{"$error":"#N/A"}},{"$f":"MIN(VLOOKUP(キメラA,FR27:GL70,GL26,FALSE),VLOOKUP(キメラB,FR27:GL70,GL26,FALSE))","v":{"$error":"#N/A"}},"キメラ忌",{"$f":"MAX(VLOOKUP(キメラA,GM27:HG70,GN26,FALSE),VLOOKUP(キメラB,GM27:HG70,GN26,FALSE))","v":{"$error":"#N/A"}},{"$f":"MAX(VLOOKUP(キメラA,GM27:HG70,GO26,FALSE),VLOOKUP(キメラB,GM27:HG70,GO26,FALSE))","v":{"$error":"#N/A"}},{"$f":"MAX(VLOOKUP(キメラA,GM27:HG70,GP26,FALSE),VLOOKUP(キメラB,GM27:HG70,GP26,FALSE))","v":{"$error":"#N/A"}},{"$f":"MAX(VLOOKUP(キメラA,GM27:HG70,GQ26,FALSE),VLOOKUP(キメラB,GM27:HG70,GQ26,FALSE))","v":{"$error":"#N/A"}},{"$f":"MAX(VLOOKUP(キメラA,GM27:HG70,GR26,FALSE),VLOOKUP(キメラB,GM27:HG70,GR26,FALSE))","v":{"$error":"#N/A"}},{"$f":"ROUNDDOWN(VLOOKUP(キメラA,GM27:HG70,GS26,FALSE)/2+VLOOKUP(キメラB,GM27:HG70,GS26,FALSE)/2,0)","v":{"$error":"#N/A"}},{"$f":"ROUNDDOWN(VLOOKUP(キメラA,GM27:HG70,GT26,FALSE)/2+VLOOKUP(キメラB,GM27:HG70,GT26,FALSE)/2,0)","v":{"$error":"#N/A"}},{"$f":"ROUNDDOWN(VLOOKUP(キメラA,GM27:HG70,GU26,FALSE)/2+VLOOKUP(キメラB,GM27:HG70,GU26,FALSE)/2,0)","v":{"$error":"#N/A"}},{"$f":"ROUNDDOWN(VLOOKUP(キメラA,GM27:HG70,GV26,FALSE)/2+VLOOKUP(キメラB,GM27:HG70,GV26,FALSE)/2,0)","v":{"$error":"#N/A"}},{"$f":"ROUNDDOWN(VLOOKUP(キメラA,GM27:HG70,GW26,FALSE)/2+VLOOKUP(キメラB,GM27:HG70,GW26,FALSE)/2,0)","v":{"$error":"#N/A"}},{"$f":"MIN(VLOOKUP(キメラA,GM27:HG70,GX26,FALSE),VLOOKUP(キメラB,GM27:HG70,GX26,FALSE))","v":{"$error":"#N/A"}},{"$f":"MIN(VLOOKUP(キメラA,GM27:HG70,GY26,FALSE),VLOOKUP(キメラB,GM27:HG70,GY26,FALSE))","v":{"$error":"#N/A"}},{"$f":"MIN(VLOOKUP(キメラA,GM27:HG70,GZ26,FALSE),VLOOKUP(キメラB,GM27:HG70,GZ26,FALSE))","v":{"$error":"#N/A"}},{"$f":"MIN(VLOOKUP(キメラA,GM27:HG70,HA26,FALSE),VLOOKUP(キメラB,GM27:HG70,HA26,FALSE))","v":{"$error":"#N/A"}},{"$f":"MIN(VLOOKUP(キメラA,GM27:HG70,HB26,FALSE),VLOOKUP(キメラB,GM27:HG70,HB26,FALSE))","v":{"$error":"#N/A"}},{"$f":"MIN(VLOOKUP(キメラA,GM27:HG70,HC26,FALSE),VLOOKUP(キメラB,GM27:HG70,HC26,FALSE))","v":{"$error":"#N/A"}},{"$f":"MIN(VLOOKUP(キメラA,GM27:HG70,HD26,FALSE),VLOOKUP(キメラB,GM27:HG70,HD26,FALSE))","v":{"$error":"#N/A"}},{"$f":"MIN(VLOOKUP(キメラA,GM27:HG70,HE26,FALSE),VLOOKUP(キメラB,GM27:HG70,HE26,FALSE))","v":{"$error":"#N/A"}},{"$f":"MIN(VLOOKUP(キメラA,GM27:HG70,HF26,FALSE),VLOOKUP(キメラB,GM27:HG70,HF26,FALSE))","v":{"$error":"#N/A"}},{"$f":"MIN(VLOOKUP(キメラA,GM27:HG70,HG26,FALSE),VLOOKUP(キメラB,GM27:HG70,HG26,FALSE))","v":{"$error":"#N/A"}}]
[null,17,null,null,24,"キメラ祝",{"$f":"G50","v":{"$error":"#N/A"}},{"$error":"#N/A"},{"$error":"#N/A"},{"$error":"#N/A"},{"$error":"#N/A"},{"$error":"#N/A"},{"$error":"#N/A"},{"$error":"#N/A"},{"$error":"#N/A"},{"$error":"#N/A"},{"$error":"#N/A"},{"$error":"#N/A"},{"$error":"#N/A"},{"$error":"#N/A"},{"$error":"#N/A"},{"$error":"#N/A"},{"$error":"#N/A"},{"$error":"#N/A"},{"$error":"#N/A"},{"$error":"#N/A"},"キメラ祝",{"$f":"AB50","v":{"$error":"#N/A"}},{"$error":"#N/A"},{"$error":"#N/A"},{"$error":"#N/A"},{"$error":"#N/A"},{"$error":"#N/A"},{"$error":"#N/A"},{"$error":"#N/A"},{"$error":"#N/A"},{"$error":"#N/A"},{"$error":"#N/A"},{"$error":"#N/A"},{"$error":"#N/A"},{"$error":"#N/A"},{"$error":"#N/A"},{"$error":"#N/A"},{"$error":"#N/A"},{"$error":"#N/A"},{"$error":"#N/A"},{"$error":"#N/A"},"キメラ祝",{"$f":"AW50","v":{"$error":"#N/A"}},{"$error":"#N/A"},{"$error":"#N/A"},{"$error":"#N/A"},{"$error":"#N/A"},{"$error":"#N/A"},{"$error":"#N/A"},{"$error":"#N/A"},{"$error":"#N/A"},{"$error":"#N/A"},{"$error":"#N/A"},{"$error":"#N/A"},{"$error":"#N/A"},{"$error":"#N/A"},{"$error":"#N/A"},{"$error":"#N/A"},{"$error":"#N/A"},{"$error":"#N/A"},{"$error":"#N/A"},{"$error":"#N/A"},"キメラ祝",{"$f":"BR50","v":{"$error":"#N/A"}},{"$error":"#N/A"},{"$error":"#N/A"},{"$error":"#N/A"},{"$error":"#N/A"},{"$error":"#N/A"},{"$error":"#N/A"},{"$error":"#N/A"},{"$error":"#N/A"},{"$error":"#N/A"},{"$error":"#N/A"},{"$error":"#N/A"},{"$error":"#N/A"},{"$error":"#N/A"},{"$error":"#N/A"},{"$error":"#N/A"},{"$error":"#N/A"},{"$error":"#N/A"},{"$error":"#N/A"},{"$error":"#N/A"},"キメラ祝",{"$f":"CM50","v":{"$error":"#N/A"}},{"$error":"#N/A"},{"$error":"#N/A"},{"$error":"#N/A"},{"$error":"#N/A"},{"$error":"#N/A"},{"$error":"#N/A"},{"$error":"#N/A"},{"$error":"#N/A"},{"$error":"#N/A"},{"$error":"#N/A"},{"$error":"#N/A"},{"$error":"#N/A"},{"$error":"#N/A"},{"$error":"#N/A"},{"$error":"#N/A"},{"$error":"#N/A"},{"$error":"#N/A"},{"$error":"#N/A"},{"$error":"#N/A"},"キメラ祝",{"$f":"DH50","v":{"$error":"#N/A"}},{"$error":"#N/A"},{"$error":"#N/A"},{"$error":"#N/A"},{"$error":"#N/A"},{"$error":"#N/A"},{"$error":"#N/A"},{"$error":"#N/A"},{"$error":"#N/A"},{"$error":"#N/A"},{"$error":"#N/A"},{"$error":"#N/A"},{"$error":"#N/A"},{"$error":"#N/A"},{"$error":"#N/A"},{"$error":"#N/A"},{"$error":"#N/A"},{"$error":"#N/A"},{"$error":"#N/A"},{"$error":"#N/A"},"キメラ祝",{"$f":"EC50","v":{"$error":"#N/A"}},{"$error":"#N/A"},{"$error":"#N/A"},{"$error":"#N/A"},{"$error":"#N/A"},{"$error":"#N/A"},{"$error":"#N/A"},{"$error":"#N/A"},{"$error":"#N/A"},{"$error":"#N/A"},{"$error":"#N/A"},{"$error":"#N/A"},{"$error":"#N/A"},{"$error":"#N/A"},{"$error":"#N/A"},{"$error":"#N/A"},{"$error":"#N/A"},{"$error":"#N/A"},{"$error":"#N/A"},{"$error":"#N/A"},"キメラ祝",{"$f":"EX50","v":{"$error":"#N/A"}},{"$error":"#N/A"},{"$error":"#N/A"},{"$error":"#N/A"},{"$error":"#N/A"},{"$error":"#N/A"},{"$error":"#N/A"},{"$error":"#N/A"},{"$error":"#N/A"},{"$error":"#N/A"},{"$error":"#N/A"},{"$error":"#N/A"},{"$error":"#N/A"},{"$error":"#N/A"},{"$error":"#N/A"},{"$error":"#N/A"},{"$error":"#N/A"},{"$error":"#N/A"},{"$error":"#N/A"},{"$error":"#N/A"},"キメラ祝",{"$f":"FS50","v":{"$error":"#N/A"}},{"$error":"#N/A"},{"$error":"#N/A"},{"$error":"#N/A"},{"$error":"#N/A"},{"$error":"#N/A"},{"$error":"#N/A"},{"$error":"#N/A"},{"$error":"#N/A"},{"$error":"#N/A"},{"$error":"#N/A"},{"$error":"#N/A"},{"$error":"#N/A"},{"$error":"#N/A"},{"$error":"#N/A"},{"$error":"#N/A"},{"$error":"#N/A"},{"$error":"#N/A"},{"$error":"#N/A"},{"$error":"#N/A"},"キメラ祝",{"$f":"GN50","v":{"$error":"#N/A"}},{"$error":"#N/A"},{"$error":"#N/A"},{"$error":"#N/A"},{"$error":"#N/A"},{"$error":"#N/A"},{"$error":"#N/A"},{"$error":"#N/A"},{"$error":"#N/A"},{"$error":"#N/A"},{"$error":"#N/A"},{"$error":"#N/A"},{"$error":"#N/A"},{"$error":"#N/A"},{"$error":"#N/A"},{"$error":"#N/A"},{"$error":"#N/A"},{"$error":"#N/A"},{"$error":"#N/A"},{"$error":"#N/A"}]
[null,18,null,null,null,null,1,null,null,null,null,null,null,null,null,null,null,null,null,null,null,null,null,null,null,null,null,2,null,null,null,null,null,null,null,null,null,null,null,null,null,null,null,null,null,null,null,null,3,null,null,null,null,null,null,null,null,null,null,null,null,null,null,null,null,null,null,null,null,4,null,null,null,null,null,null,null,null,null,null,null,null,null,null,null,null,null,null,null,null,5,null,null,null,null,null,null,null,null,null,null,null,null,null,null,null,null,null,null,null,null,6,null,null,null,null,null,null,null,null,null,null,null,null,null,null,null,null,null,null,null,null,7,null,null,null,null,null,null,null,null,null,null,null,null,null,null,null,null,null,null,null,null,8,null,null,null,null,null,null,null,null,null,null,null,null,null,null,null,null,null,null,null,null,9,null,null,null,null,null,null,null,null,null,null,null,null,null,null,null,null,null,null,null,null,10]
[null,19]
[null,20,null,null,null,"ｸﾗｽ名","近接","射撃","回避","魔術","抵抗","敏捷","物攻","魔攻","耐久","精神","近","遠","炎","氷","水","雷","風","土","光","闇","クラス特典",null,null,null,null,null,null,null,null,null,null,null,"武器名",null,null,"近接","射撃","回避","魔術","抵抗","敏捷","物攻","魔攻","耐久","精神","近","遠","炎","氷","水","雷","風","土","光","闇","種別","射程","属性","ｺｽﾄ","金額","ID",null,null,"防具名",null,null,"近接","射撃","回避","魔術","抵抗","敏捷","物攻","魔攻","耐久","精神","近","遠","炎","氷","水","雷","風","土","光","闇","金額",null,null,null,"アクセサリ名",null,null,"近接","射撃","回避","魔術","抵抗","敏捷","物攻","魔攻","耐久","精神","近","遠","炎","氷","水","雷","風","土","光","闇","金額",4,null,"ID"]
[null,21,null,null,1,"AB",3,3,1,2,0,3,7,4,23,9,0,0,0,0,0,0,0,0,0,0,{"$f":"\"「BS：封印」無効。【耐久力】+\"&CS!S10*3&\" & 【精神力】+\"&CS!S10","v":"「BS：封印」無効。【耐久力】+3 & 【精神力】+1"},null,null,null,null,null,null,null,null,null,1,1,"---共通近接武器---",null,null,null,null,null,null,null,null,null,null,null,null,null,null,null,null,null,null,null,null,null,null,null,null,null,null,0,1,null,1,"一般服",null,null,null,null,null,null,null,null,null,null,null,null,-10,-10,-10,-10,-10,-10,-10,-10,-10,-10,0,1,null,1,"なし",null,null,null,null,null,null,null,null,null,null,null,null,null,null,null,null,null,null,null,null,null,null,0,4,"　",1]
[null,null,null,null,2,"AG",2,2,2,1,1,3,3,3,38,5,0,0,0,0,0,0,0,0,0,0,"「ﾒｲﾝｱｸｼｮﾝ」の代償-1MP(下限：1) 「ｽﾀｰﾄ」のｺｽﾄ-2(下限:2)",null,null,null,null,null,null,null,null,null,2,2,"素手",null,null,-2,null,null,null,null,1,16,null,null,null,-7,-7,null,null,null,null,null,null,null,null,"近接","0-1","近",9,0,2,null,2,"防寒具",null,null,null,null,null,null,null,null,null,null,null,null,-3,-3,-3,null,-3,-3,-3,-3,-3,-3,5,2,null,{"$f":"CR55+1","v":2},"---アクセ1---",null,null,null,null,null,null,null,null,null,null,null,null,null,null,null,null,null,null,null,null,null,null,0,5,"　",2]
[null,null,null,null,3,"AS",2,1,1,2,2,3,4,6,18,10,0,0,0,0,0,0,0,0,0,0,"「サブアクション」と「オートスキル」の代償-1MP (下限値：1MP)",null,null,null,null,null,null,null,null,null,3,3,"スタンダードソード",null,null,null,null,null,null,null,null,20,null,null,null,3,1,null,null,null,null,null,null,null,null,"近接","0-1","近",9,10,3,null,3,"チェインフード",null,null,null,null,null,null,null,null,null,null,null,null,2,2,null,null,null,null,null,null,null,null,10,3,null,{"$f":"CR56+1","v":3},"水晶の指輪",null,null,null,null,null,null,null,null,null,null,null,3,null,null,null,null,null,null,null,null,null,null,10,5,"特殊効果なし",3]
[null,null,null,null,4,"AW",2,2,2,2,2,4,5,5,8,8,0,0,0,0,0,0,0,0,0,0,{"$f":"\"1C開始～13C終了間MP代償無視。(各スキル1度まで)\"","v":"1C開始～13C終了間MP代償無視。(各スキル1度まで)"},null,null,null,null,null,null,null,null,null,4,4,"レイピア",null,null,-1,null,null,null,null,1,28,null,null,null,2,null,null,null,null,null,null,null,null,null,"近接","0-1","近",9,10,4,null,4,"プレートコート",null,null,null,null,null,null,null,-2,null,null,null,null,5,5,1,1,1,1,1,1,null,null,10,4,null,4,"青銅の小手",null,null,null,null,null,null,null,null,null,null,null,null,5,5,null,null,null,null,null,null,null,null,10,6,"特殊効果なし",4]
[null,null,null,null,5,"BC",1,1,3,1,3,3,8,8,30,9,0,0,0,0,0,0,0,0,0,0,{"$f":"\"行動順決定時、【敏捷】+\"&10+CS!S10&\" & ｶｳﾝﾄ開始時、後ろのｶｳﾝﾄに配置可能。\"","v":"行動順決定時、【敏捷】+11 & ｶｳﾝﾄ開始時、後ろのｶｳﾝﾄに配置可能。"},null,null,null,null,null,null,null,null,null,5,5,"バスタードソード",null,null,-2,null,-1,null,null,-1,36,null,3,null,3,2,1,1,1,null,null,null,null,null,"近接","0-1","近",10,10,5,null,5,"アイアンメイル",null,null,null,null,-1,null,null,-1,null,null,8,null,9,9,2,2,2,2,2,2,null,null,20,5,null,5,"聖印シール",null,null,null,null,null,null,null,null,null,null,null,null,null,null,null,null,null,null,null,null,null,13,10,6,"特殊効果なし",5]
[null,null,null,null,6,"BD",2,0,2,2,3,2,5,5,18,10,0,0,0,0,0,0,0,0,0,0,"5の倍数ｶｳﾝﾄ開始時、4MP ｺｽﾄ0で[ﾊﾞﾘｱ状態]の付与,解除可能。",null,null,null,null,null,null,null,null,null,6,6,"ヘヴィアックス",null,null,-2,null,null,null,null,null,33,null,null,null,3,3,null,null,null,null,null,null,null,null,"近接","0-1","近",11,10,6,null,6,"ハーフアーマー",null,null,null,null,null,null,null,1,null,null,null,null,3,-2,null,null,null,null,null,null,null,null,20,6,null,6,"防塵ゴーグル",null,null,null,null,null,null,null,null,null,null,null,null,null,null,null,null,null,null,7,7,null,null,10,7,"特殊効果なし",6]
[null,null,null,null,7,"BR",2,0,2,2,2,4,7,7,23,10,0,0,0,0,0,0,0,0,0,0,{"$f":"\"「射程：0-1」の範囲内の対象から受けるダメージ-\"&CL*3+10","v":"「射程：0-1」の範囲内の対象から受けるダメージ-13"},null,null,null,null,null,null,null,null,null,7,7,"ショートソード",null,null,null,null,null,null,null,3,12,null,null,null,1,1,null,null,null,null,null,null,null,null,"近接","0-1","近",9,10,7,null,7,"スペルローブ",null,null,null,null,null,null,null,null,null,null,null,null,3,3,null,null,null,null,null,null,7,7,20,7,null,7,"防災頭巾",null,null,null,null,null,null,null,null,null,null,null,null,null,null,13,null,null,null,null,null,null,null,10,7,"特殊効果なし",7]
[null,null,null,null,8,"BS",1,2,1,2,3,3,4,4,25,7,0,0,0,0,0,0,0,0,0,0,{"$f":"\"【耐久力】+\"&CS!S10*5&\" & 20カウント毎に【HP】を\"&10+CS!S10*3&\"点回復。\"","v":"【耐久力】+5 & 20カウント毎に【HP】を13点回復。"},null,null,null,null,null,null,null,null,null,8,8,"鋼鉄剣 -玉鋼-",null,null,null,null,null,null,null,null,22,null,null,null,4,1,null,null,2,null,1,2,null,null,"近接","0-1","近",9,20,8,null,8,"ウィンドクロス",null,null,null,null,1,null,null,2,null,null,null,null,-5,-5,-5,-5,-5,-5,null,-5,-5,-5,25,8,null,8,"手袋カイロ",null,null,null,null,null,null,null,null,null,null,null,null,null,null,null,13,null,null,null,null,null,null,10,8,"特殊効果なし",8]
[null,null,null,null,9,"CI",3,1,2,1,2,4,7,3,35,6,0,0,0,0,0,0,0,0,0,0,"最前列にいる時 全達成値+1 それ以外のﾏｽの時 全達成値-1",null,null,null,null,null,null,null,null,null,9,9,"アイアンシックル",null,null,null,null,-1,null,null,null,25,null,null,null,-3,-3,-3,-3,-3,-3,-3,-3,-3,-3,"近接","0-1","近",10,20,9,null,9,"ハードメイル",null,null,null,null,-1,null,null,-1,null,null,12,null,10,10,3,3,3,3,3,3,1,1,30,9,null,9,"ニーサポーター",null,null,null,null,null,null,null,null,null,null,6,null,null,null,null,null,null,null,null,null,null,null,10,8,"特殊効果なし",9]
[null,null,null,null,10,"CP",2,1,1,2,2,1,4,4,14,14,0,0,0,0,0,0,0,0,0,0,"20の倍数ｶｳﾝﾄ終了時、あなたのいるﾏｽに「ﾄﾞｰﾙ」を1体配置する。",null,null,null,null,null,null,null,null,null,10,10,"ブレードシールド",null,null,-1,null,-1,null,-1,null,22,null,10,null,7,7,5,5,3,3,null,6,null,null,"近接","0-1","近",10,25,10,null,10,"リングメイル",null,null,null,null,-1,null,null,-1,null,null,null,null,14,14,3,2,1,1,1,1,null,null,30,10,null,10,"サングラス",null,null,null,null,null,null,null,null,null,null,null,null,null,null,null,null,null,null,null,null,13,null,10,9,"特殊効果なし",10]
[null,null,null,null,11,"CR",2,2,1,2,1,3,4,4,20,8,0,0,0,0,0,0,0,0,0,0,{"$f":"\"「BS：呪い」「BS：疲労」無効 & 〈炎〉～〈闇〉耐性+\"&CS!S10+2","v":"「BS：呪い」「BS：疲労」無効 & 〈炎〉～〈闇〉耐性+3"},null,null,null,null,null,null,null,null,null,11,11,"ロングソード",null,null,-1,null,null,null,null,-1,33,null,null,null,6,null,1,1,1,null,null,null,null,null,"近接","0-2","近",11,25,11,null,11,"フェアリーローブ",null,null,null,null,null,null,1,null,null,null,null,3,3,3,null,null,null,null,null,null,null,null,30,11,null,11,"ミニ避雷針",null,null,null,null,null,null,null,null,null,null,null,null,null,null,null,null,null,13,null,null,null,null,10,9,"特殊効果なし",11]
[null,null,null,null,12,"DP",2,2,1,2,2,2,6,3,21,9,0,0,0,0,0,0,0,0,0,0,"1戦闘1回、判定達成値に+15する。その後、「BS：眠り」となる。",null,null,null,null,null,null,null,null,null,12,12,"マジックシールド",null,null,null,null,null,null,1,null,16,5,15,null,10,10,7,7,7,7,7,7,7,7,"近接","0-1","近",10,35,12,null,12,"ブライトドレス",null,null,null,null,null,null,1,-2,null,null,10,4,null,null,null,null,null,null,null,null,16,2,30,12,null,12,"エアーケープ",null,null,null,null,null,null,null,null,null,null,null,null,null,null,null,3,3,4,4,null,null,null,10,10,"特殊効果なし",12]
[null,null,null,null,13,"EB",3,0,2,2,1,3,2,4,28,8,0,0,0,0,0,0,0,0,0,0,"麻痺,怯み,石化,KB,不動を1D10を振り、出目が7以上で無効。",null,null,null,null,null,null,null,null,null,13,13,"鉄槌",null,null,-1,null,-1,null,null,-1,31,null,null,null,3,3,1,1,1,1,1,1,null,null,"近接","0-1","近",12,35,13,null,13,"五芒星の法衣",null,null,null,null,null,1,null,-1,null,null,null,null,3,3,5,5,5,5,5,5,-8,-8,35,13,null,13,"ブラッドストーン",null,null,null,null,null,null,null,null,null,null,null,null,null,null,null,null,null,null,null,null,null,null,10,10,"【肉体】+3",13]
[null,null,null,null,14,"EE",2,2,1,1,2,3,5,5,31,8,0,0,0,0,0,0,0,0,0,0,"「BS：麻痺」無効。 1セッションに1回判定を振り直しできる。",null,null,null,null,null,null,null,null,null,14,14,"マン・ゴーシュ",null,null,null,null,1,null,null,1,20,null,null,null,8,null,-2,-2,-2,null,null,null,null,null,"近接","0-1","近",10,35,14,null,14,"六芒星の法衣",null,null,null,null,null,null,1,-1,null,null,null,null,6,6,null,null,null,null,null,null,9,9,35,14,null,14,"アズロマラカイト",null,null,null,null,null,null,null,null,null,null,null,null,null,null,null,null,null,null,null,null,null,null,10,11,"【集中】+3",14]
[null,null,null,null,15,"ER",2,2,1,2,1,4,6,6,27,8,0,0,0,0,0,0,0,0,0,0,"幻獣が存在する間、判定のC値-1、F値+3。(C値下限16 F値上限9)",null,null,null,null,null,null,null,null,null,15,15,"高周波ブレード",null,null,null,null,null,null,-1,null,29,null,null,null,4,3,4,null,null,null,3,null,null,null,"近接","0-1","風",9,40,15,null,15,"フェザースーツ",null,null,null,null,null,null,null,4,null,null,null,null,1,1,null,null,null,null,8,8,null,null,35,15,null,15,"カーネリアン",null,null,null,null,null,null,null,null,null,null,null,null,null,null,null,null,null,null,null,null,null,null,10,11,"【反射】+3",15]
[null,null,null,null,16,"FC",2,2,1,2,1,2,3,4,35,8,0,0,0,0,0,0,0,0,0,0,{"$f":"\"氷水雷風土耐性+\"&CS!S10*2&\" & 「BS：凍結」無効\"","v":"氷水雷風土耐性+2 & 「BS：凍結」無効"},null,null,null,null,null,null,null,null,null,16,16,"グランドハンマー",null,null,null,null,-1,null,null,-5,38,null,8,null,6,6,null,null,null,null,3,24,null,null,"近接","0-1","土",12,40,16,null,16,"ヘヴィメイル",null,null,null,null,-2,null,null,-3,null,null,15,null,14,16,4,4,4,3,3,3,2,2,35,16,null,16,"ソーダライト",null,null,null,null,null,null,null,null,null,null,null,null,null,null,null,null,null,null,null,null,null,null,10,12,"【知識】+3",16]
[null,null,null,null,17,"FM",0,0,3,3,3,5,0,10,0,15,0,0,0,0,0,0,0,0,0,0,{"$f":"\"【耐久力】-\"&(CL+1)*10&\" 感情強度合計値-2\"","v":"【耐久力】-20 感情強度合計値-2"},null,null,null,null,null,null,null,null,null,17,17,"メタルクロー",null,null,null,null,null,null,null,4,21,null,null,null,10,null,null,null,null,null,null,null,null,null,"近接","0-1","近",10,40,17,null,17,"マジカルコート",null,null,null,null,null,null,null,null,null,null,null,null,8,6,4,6,5,3,3,4,3,2,40,17,null,17,"アマゾナイト",null,null,null,null,null,null,null,null,null,null,null,null,null,null,null,null,null,null,null,null,null,null,10,12,"【幸運】+3",17]
[null,null,null,null,18,"FS",2,2,2,2,1,4,4,3,26,7,0,0,0,0,0,0,0,0,0,0,{"$f":"\"命中判定のC値-1 F値+1 & 炎氷耐性+\"&CS!S10*3","v":"命中判定のC値-1 F値+1 & 炎氷耐性+3"},null,null,null,null,null,null,null,null,null,18,18,"パワードナックル",null,null,-1,null,null,null,null,2,30,null,null,null,-3,-3,null,null,null,null,null,null,null,null,"近接","0-1","近",9,45,18,null,18,"マジックインバネス",null,null,null,null,null,null,1,null,null,null,null,2,5,5,null,2,2,null,3,3,2,2,40,18,null,18,"レッドメノウ",null,null,null,null,null,null,null,null,2,null,null,null,null,null,null,null,null,null,null,null,null,null,10,13,"特殊効果なし",18]
[null,null,null,null,19,"IA",3,2,2,0,2,4,5,3,30,7,0,0,0,0,0,0,0,0,0,0,{"$f":"\"ｽｷﾙによって武器変更される時、【HP】+\"&ROUNDDOWN(CS!AI41/7,0) &\" 【MP】+\"&2","v":"ｽｷﾙによって武器変更される時、【HP】+21 【MP】+2"},null,null,null,null,null,null,null,null,null,19,19,"バトルアンブレラ",null,null,null,null,null,null,null,-1,29,null,null,null,6,5,null,null,null,null,null,null,null,null,"近接","0-1","近",10,45,19,null,19,"呪詛の鎧",null,null,-2,-2,-1,-2,-1,null,12,12,12,12,8,8,6,6,6,6,6,6,7,7,40,19,null,19,"カイヤナイト",null,null,null,null,null,null,null,null,null,2,null,null,null,null,null,null,null,null,null,null,null,null,10,14,"特殊効果なし",19]
[null,null,null,null,20,"IS",2,2,3,2,1,1,3,3,40,4,0,0,0,0,0,0,0,0,0,0,{"$f":"\"[準備期間]中、被D\"&CL*5+10&\"点軽減 「種別：支」のｻﾌﾞｽｷﾙでｻﾌﾞ消費なし\"","v":"[準備期間]中、被D15点軽減 「種別：支」のｻﾌﾞｽｷﾙでｻﾌﾞ消費なし"},null,null,null,null,null,null,null,null,null,20,20,"業物：凍河",null,null,null,null,null,null,null,null,28,null,null,null,7,4,-14,14,6,null,null,null,null,null,"近接","0-1","氷",10,50,20,null,20,"ライフアーマー",null,null,null,null,null,null,null,-1,null,null,35,3,7,7,null,null,null,null,null,null,4,4,45,20,null,20,"フェザーブーツ",null,null,null,null,null,null,null,1,null,null,null,null,null,null,null,null,null,null,null,null,null,null,10,15,"特殊効果なし",20]
[null,null,null,null,21,"LA",1,1,1,1,1,2,2,2,18,8,0,0,0,0,0,0,0,0,0,0,"戦闘中の判定で直接の出目が7なら達成値+15",null,null,null,null,null,null,null,null,null,21,21,"業物：漆黒",null,null,null,null,null,null,null,null,28,null,null,null,7,4,1,1,1,1,1,1,-14,14,"近接","0-1","闇",10,50,21,null,21,"防弾チョッキ",null,null,null,null,null,null,null,-2,null,null,10,null,9,17,5,5,5,5,5,5,2,2,45,21,null,21,"スプリングブーツ",null,null,null,null,null,null,null,null,null,null,null,null,null,null,null,null,null,null,null,null,null,null,10,16,"行動順決定の敏捷+7",21]
[null,null,null,null,22,"LS",1,3,1,2,1,2,5,3,29,7,0,0,0,0,0,0,0,0,0,0,"自身の攻撃のﾀﾞﾒﾛ前に1D10を振り、出目が3か4なら攻撃対象の全耐性0(任意)",null,null,null,null,null,null,null,null,null,22,22,"アゾット剣",null,null,null,null,null,1,1,1,17,8,null,10,null,null,3,3,3,3,3,3,4,4,"近接","0-1","近",9,60,22,null,22,"カーボンスーツ",null,null,null,null,null,null,null,null,null,null,null,null,14,13,6,5,3,3,8,8,4,4,50,22,null,22,"---アクセ2---",null,null,null,null,null,null,null,null,null,null,null,null,null,null,null,null,null,null,null,null,null,null,0,17,"　",22]
[null,null,null,null,23,"MA",2,3,1,1,1,2,5,5,25,6,0,0,0,0,0,0,0,0,0,0,{"$f":"\"戦闘開始時 機械ｱｲﾃﾑR2回 近遠炎風耐性+\"&CL*6&\" 氷水雷土耐性\"&-CL*6","v":"戦闘開始時 機械ｱｲﾃﾑR2回 近遠炎風耐性+6 氷水雷土耐性-6"},null,null,null,null,null,null,null,null,null,23,23,"モーニングスター",null,null,null,null,null,null,null,null,30,null,null,null,7,8,1,1,1,1,1,1,3,12,"近接","0-2","光",10,60,23,null,23,"ラバーメイル",null,null,null,null,null,null,null,-1,null,null,10,null,13,13,4,4,4,30,2,2,7,3,50,23,null,23,"マグマーナ",null,null,null,null,null,null,null,null,null,null,null,null,null,null,3,null,null,null,null,null,null,null,10,18,"魔法武器属性を〈炎〉に変更",23]
[null,null,null,null,24,"MV",1,2,1,2,3,5,1,1,17,11,0,0,0,0,0,0,0,0,0,0,{"$f":"\"BS付与するとき、代わりに\"&CS!S10+8&\"点の〈無〉属性ﾀﾞﾒｰｼﾞを与えてもよい。\"","v":"BS付与するとき、代わりに9点の〈無〉属性ﾀﾞﾒｰｼﾞを与えてもよい。"},null,null,null,null,null,null,null,null,null,24,24,"紫電",null,null,null,null,1,null,null,3,25,null,null,null,-3,-5,null,null,null,15,null,-8,null,null,"近接","0-1","雷",9,65,24,null,24,"バトルフォーム",null,null,1,null,null,null,null,null,3,null,null,null,5,5,-2,1,1,1,-3,1,null,null,50,24,null,24,"ブリザリア",null,null,null,null,null,null,null,null,null,null,null,null,null,null,null,3,null,null,null,null,null,null,10,19,"魔法武器属性を〈氷〉に変更",24]
[null,null,null,null,25,"MW",2,2,2,2,2,2,3,3,20,10,0,0,0,0,0,0,0,0,0,0,"1戦闘1回、「ﾒｲﾝｱｸｼｮﾝ」ｽｷﾙをコスト9で使用可能",null,null,null,null,null,null,null,null,null,25,25,"魔断チェーンソー",null,null,null,null,null,null,null,null,40,null,null,null,2,null,null,null,null,null,null,null,null,null,"近接","0-1","近",9,65,25,null,25,"魔力供給装甲",null,null,null,null,null,null,null,-3,3,3,5,20,7,7,1,1,1,1,1,1,null,null,50,25,null,25,"ウェーブリス",null,null,null,null,null,null,null,null,null,null,null,null,null,null,null,null,3,null,null,null,null,null,10,20,"魔法武器属性を〈水〉に変更",25]
[null,null,null,null,26,"OK",2,2,2,2,2,2,3,3,25,10,0,0,0,0,0,0,0,0,0,0,{"$f":"\"感情使用時、HP+[強度×5+\"&CL*5&\"] MP+[強度]\"","v":"感情使用時、HP+[強度×5+5] MP+[強度]"},null,null,null,null,null,null,null,null,null,26,26,"スパークスピア",null,null,-1,null,null,null,null,3,40,null,null,null,6,4,2,2,2,13,null,-7,null,null,"近接","0-1","雷",11,70,26,null,26,"カモフラージュセット",null,null,null,1,null,null,null,null,2,null,3,null,6,6,1,2,2,2,2,2,null,null,60,26,null,26,"スパーキー",null,null,null,null,null,null,null,null,null,null,null,null,null,null,null,null,null,3,null,null,null,null,10,21,"魔法武器属性を〈雷〉に変更",26]
[null,null,null,null,27,"PD",1,1,3,1,3,2,3,3,24,12,0,0,0,0,0,0,0,0,0,0,{"$f":"\"〈近〉〈遠〉耐性+\"&CL*4&\" & 「サブアクション」のスキルの射程上限に+1する。\"","v":"〈近〉〈遠〉耐性+4 & 「サブアクション」のスキルの射程上限に+1する。"},null,null,null,null,null,null,null,null,null,27,27,"スターセイバー",null,null,null,null,null,null,null,null,32,null,null,null,8,5,null,null,null,null,null,null,12,12,"近接","0-1","光",9,75,27,null,27,"スカーレットドレス",null,null,null,null,1,null,null,-5,9,9,null,10,14,12,25,10,5,22,16,9,null,null,60,27,null,27,"ストムルム",null,null,null,null,null,null,null,null,null,null,null,null,null,null,null,null,null,null,3,null,null,null,10,22,"魔法武器属性を〈風〉に変更",27]
[null,null,null,null,28,"PP",1,2,1,2,3,3,4,7,20,12,0,0,0,0,0,0,0,0,0,0,"「BS：怯み(X)」のXに-1(下限値：1) 「BS：毒(X)」無効。",null,null,null,null,null,null,null,null,null,28,28,"フレアアックス",null,null,null,null,null,null,null,-2,40,null,5,null,5,5,13,2,-5,null,null,null,null,null,"近接","0-1","炎",9,75,28,null,28,"ティンクルガウン",null,null,null,null,null,null,2,null,null,null,6,6,8,8,7,null,null,7,null,null,7,7,65,28,null,28,"マッドネスト",null,null,null,null,null,null,null,null,null,null,null,null,null,null,null,null,null,null,null,3,null,null,10,23,"魔法武器属性を〈土〉に変更",28]
[null,null,null,null,29,"SA",2,2,2,1,2,3,5,3,19,9,0,0,0,0,0,0,0,0,0,0,"10の倍数C開始時、【MP】を[現ｶｳﾝﾄ/10](↓)点回復。",null,null,null,null,null,null,null,null,null,29,29,"サウザンドテイル",null,null,1,null,null,null,null,2,26,null,6,null,3,2,null,null,null,null,null,null,null,null,"近接","0-1","近",10,75,29,null,29,"シノビスーツ",null,null,null,null,2,null,null,2,null,null,null,null,2,2,3,3,3,3,3,3,null,null,70,29,null,29,"シャイネア",null,null,null,null,null,null,null,null,null,null,null,null,null,null,null,null,null,null,null,null,3,null,10,null,"魔法武器属性を〈光〉に変更",29]
[null,null,null,null,30,"SF",2,2,1,2,1,1,7,7,32,10,0,0,0,0,0,0,0,0,0,0,"1ｾｯｼｮﾝ1回、あなたへのBS付与を無効にする。",null,null,null,null,null,null,null,null,null,30,30,"ペンタシールド",null,null,null,null,null,null,1,null,22,null,25,null,13,13,15,13,12,13,10,8,11,11,"近接","0-1","近",13,85,30,null,30,"ワイバーンコート",null,null,null,null,null,null,1,null,4,null,null,3,19,15,13,null,6,12,11,11,12,12,70,30,null,30,"シェイドゥム",null,null,null,null,null,null,null,null,null,null,null,null,null,null,null,null,null,null,null,null,null,3,10,null,"魔法武器属性を〈闇〉に変更",30]
[null,null,null,null,31,"SN",2,2,2,2,0,3,5,5,15,12,0,0,0,0,0,0,0,0,0,0,"攻撃を回避したとき、【MP】を2D6点回復する。",null,null,null,null,null,null,null,null,null,31,31,"名刀 -桜花-",null,null,1,null,null,null,null,null,38,null,null,null,13,null,2,2,null,null,4,3,null,null,"近接","0-1","近",11,90,31,null,31,"ホワイトナイトコート",null,null,null,null,null,null,1,null,null,4,6,null,12,18,null,28,16,3,7,9,5,12,70,31,null,31,"重力石",null,null,1,null,null,null,null,null,null,null,null,null,-4,-4,null,null,null,null,null,null,null,null,20,null,"特殊効果なし",31]
[null,null,null,null,32,"TA",2,2,3,2,0,2,4,3,20,8,0,0,0,0,0,0,0,0,0,0,"ｻﾌﾞｱｸｼｮﾝでｱｲﾃﾑを使用した場合でも、ｻﾌﾞｱｸｼｮﾝのｽｷﾙ使用可。",null,null,null,null,null,null,null,null,null,32,32,"ウィンドブーメラン",null,null,1,null,null,null,null,1,26,null,null,null,3,1,1,1,null,2,6,null,null,null,"近接","0-2","風",10,90,32,null,32,"ブラックヴェーラー",null,null,null,null,1,null,1,null,2,2,null,8,13,13,-8,11,11,null,12,12,-7,7,80,32,null,32,"ポインター",null,null,null,1,null,null,null,null,null,null,null,null,-4,-4,null,null,null,null,null,null,null,null,20,null,"特殊効果なし",32]
[null,null,null,null,33,"TD",1,2,2,3,1,4,3,4,24,10,0,0,0,0,0,0,0,0,0,0,"回避判定のC値-1(下限値16)",null,null,null,null,null,null,null,null,null,33,33,"大業物：皆中",null,null,3,null,null,null,null,null,24,null,null,null,10,10,null,null,null,null,null,null,null,null,"近接","0-1","近",9,100,33,null,33,"ウェイブメイル",null,null,null,null,1,null,null,null,null,null,25,null,26,8,9,12,12,4,7,8,null,null,80,33,null,33,"バトルメガネ",null,null,null,null,1,null,null,null,null,null,null,null,-4,-4,null,null,null,null,null,null,null,null,20,null,"特殊効果なし",33]
[null,null,null,null,34,"TE",2,1,1,2,2,2,4,4,30,8,0,0,0,0,0,0,0,0,0,0,{"$f":"\"「種別：支」のｽｷﾙの代償-1MP & 炎水風土属性の耐性+\"&CS!S10*3","v":"「種別：支」のｽｷﾙの代償-1MP & 炎水風土属性の耐性+3"},null,null,null,null,null,null,null,null,null,34,34,"音速槍",null,null,1,null,null,null,null,2,41,null,null,null,6,3,null,null,null,null,11,10,null,null,"近接","0-1","近",9,100,34,null,34,"ギアテックコート",null,null,null,null,1,null,2,-6,8,8,35,null,13,17,14,12,-8,-6,13,13,9,9,80,34,null,34,"高等魔術書",null,null,null,null,null,1,null,null,null,null,null,null,-4,-4,null,null,null,null,null,null,null,null,20,null,"特殊効果なし",34]
[null,null,null,null,35,"TM",2,2,2,1,3,4,4,4,20,11,0,0,0,0,0,0,0,0,0,0,"アイテムコスト-１ & バステを1D6を振って6が出たら無効にする。",null,null,null,null,null,null,null,null,null,35,35,"ドラゴンズブレード",null,null,null,null,null,null,1,2,50,null,null,null,13,10,12,null,12,8,9,9,5,5,"近接","0-1","近",9,120,35,null,35,"マジックプロテクター",null,null,null,null,null,2,null,null,null,null,null,6,3,3,9,9,9,9,9,9,9,9,85,35,null,35,"ディバインピース",null,null,null,null,null,null,1,null,null,null,null,null,-4,-4,null,null,null,null,null,null,null,null,20,null,"特殊効果なし",35]
[null,null,null,null,36,"VC",2,2,1,2,1,4,4,4,26,9,0,0,0,0,0,0,0,0,0,0,{"$f":"\"【精神力】+\"&CS!S10*2&\" & 「BS：脱力(X)」無効\"","v":"【精神力】+2 & 「BS：脱力(X)」無効"},null,null,null,null,null,null,null,null,null,36,36,"スーパーグローブ",null,null,-1,null,null,null,null,6,50,null,15,null,16,2,1,1,1,1,1,1,4,4,"近接","0-1","近",11,120,36,null,36,"ソルジャーメイル",null,null,2,null,null,null,null,-2,null,null,10,null,22,6,12,4,8,null,8,3,6,6,85,36,null,36,"ダイスストラップ",null,null,null,null,null,null,null,null,null,null,null,null,null,null,null,null,null,null,null,null,null,null,20,null,"ｸﾘﾃｨｶﾙの攻撃で与えるダメージに+2D10",36]
[null,null,null,null,37,"VM",1,1,2,3,2,2,3,7,5,13,0,0,0,0,0,0,0,0,0,0,"「種別：回」のｽｷﾙ効果で自身のHPが回復したとき、1ﾏｽ移動可能",null,null,null,null,null,null,null,null,null,37,37,"EXCALIBUR-C",null,null,1,null,1,null,1,3,45,10,15,10,16,9,8,8,8,7,7,6,11,2,"近接","0-1","光",9,140,37,null,37,"精霊の鎧",null,null,null,null,1,null,1,2,4,4,null,15,23,22,20,null,20,null,20,20,null,null,100,37,null,37,"陰陽イヤリング",null,null,null,null,null,null,null,null,null,null,null,null,null,null,null,null,null,null,null,null,12,12,20,null,"特殊効果なし",37]
[null,null,null,null,38,"WP",1,2,2,2,2,3,5,6,27,7,0,0,0,0,0,0,0,0,0,0,"現在のカウントが偶数の場合、全判定の達成値+1",null,null,null,null,null,null,null,null,null,38,38,"---共通射撃武器---",null,null,null,null,null,null,null,null,null,null,null,null,null,null,null,null,null,null,null,null,null,null,null,null,null,null,0,38,null,38,"邪神の鎧",null,null,-1,-1,-3,-1,-3,-6,18,18,40,14,15,14,13,12,14,10,5,5,-8,25,110,38,null,38,"ゴムヘルメット",null,null,null,null,null,null,null,null,null,null,null,null,null,null,null,null,null,20,null,null,null,null,20,null,"特殊効果なし",38]
[null,null,null,null,39,"WR",1,2,3,1,2,4,4,4,17,8,0,0,0,0,0,0,0,0,0,0,{"$f":"\"【敏捷】+\"&ROUNDUP(CL/2,0)&\" 1戦闘1回 ｻﾌﾞｱｸｼｮﾝを消費せず移動可能\"","v":"【敏捷】+1 1戦闘1回 ｻﾌﾞｱｸｼｮﾝを消費せず移動可能"},null,null,null,null,null,null,null,null,null,39,39,"9mm拳銃",null,null,null,null,null,null,null,1,15,null,null,null,null,null,null,null,null,null,null,null,null,null,"射撃","0-4","遠",9,10,39,null,39,"エナジーシャツ",null,null,null,null,null,null,null,null,8,8,40,null,15,15,6,6,6,6,6,6,null,null,120,39,null,39,"オリヴァイン",null,null,null,null,null,null,null,null,null,null,6,2,null,null,null,null,null,null,null,null,null,null,20,null,"特殊効果なし",39]
[null,null,null,null,40,"WT",1,2,2,3,1,3,7,7,31,8,0,0,0,0,0,0,0,0,0,0,"10Cまでﾀﾞﾒｰｼﾞ受けない。 命中C値+2 & 回避C値-1(下限値16)",null,null,null,null,null,null,null,null,null,40,40,"ハードボウ",null,null,null,1,null,null,null,-1,2,null,null,null,1,1,null,null,null,null,null,null,null,null,"射撃","2-4","遠","(3)→6",10,40,null,40,"ダイヤモンドメイル",null,null,null,null,1,null,1,3,null,null,null,null,29,26,21,21,8,8,8,33,17,17,135,40,null,40,"四葉ストラップ",null,null,null,null,null,null,null,null,null,null,null,null,null,null,null,2,2,2,2,null,null,null,20,null,"調査C値-1 (下限値：14)",40]
[null,null,null,null,41,"YM",2,2,1,2,2,3,2,2,27,9,0,0,0,0,0,0,0,0,0,0,{"$f":"\"光闇耐性+\"&CL*4&\" & 常時F値-1(下限値4)\"","v":"光闇耐性+4 & 常時F値-1(下限値4)"},null,null,null,null,null,null,null,null,null,41,41,"スローイングダガー",null,null,null,null,null,null,null,null,8,null,null,null,null,null,null,null,null,null,null,null,null,null,"射撃","0-2","遠",9,10,41,null,41,"ドラゴンアーマー",null,null,null,null,-1,null,null,-2,null,null,null,null,40,36,38,29,26,35,31,31,27,27,160,41,null,41,"クリアチョーカー",null,null,null,null,null,null,null,null,null,null,null,null,null,null,null,null,null,null,null,null,22,null,20,null,"特殊効果なし",41]
[null,null,null,null,42,"ZP",1,1,3,1,3,2,6,6,8,14,0,0,0,0,0,0,0,0,0,0,"｢ﾒｲﾝｱｸｼｮﾝ」の行動ｺｽﾄ+1 「対象：自身」以外のｽｷﾙ射程+1",null,null,null,null,null,null,null,null,null,42,42,"スリングショット",null,null,null,null,null,null,null,null,10,null,null,null,null,null,null,null,null,null,null,null,null,null,"射撃","0-3","遠","(2)→7",10,42,null,42,"パワードスーツ",null,null,1,1,1,1,1,-3,8,8,50,10,35,35,20,20,20,25,25,25,33,33,200,42,null,42,"---アクセ3---",null,null,null,null,null,null,null,null,null,null,null,null,null,null,null,null,null,null,null,null,null,null,0,null,"　",42]
[null,null,null,null,null,null,null,null,null,null,null,null,null,null,null,null,null,null,null,null,null,null,null,null,null,null,null,null,null,null,null,null,null,null,null,null,null,43,"マグナム",null,null,null,null,null,null,null,2,20,null,null,null,null,null,null,null,null,null,null,null,null,null,"射撃","0-4","遠",10,20,43,null,null,null,null,null,null,null,null,null,null,null,null,null,null,null,null,null,null,null,null,null,null,null,null,null,null,null,null,43,"インカローズ",null,null,null,null,null,null,null,null,null,null,null,null,null,null,null,null,null,null,null,null,null,null,20,null,"「感情ロール」の出目に+1可能",43]
[null,null,null,null,null,null,null,null,null,null,null,null,null,null,null,null,null,null,null,null,null,null,null,null,null,null,null,null,null,null,null,null,null,null,null,null,null,44,"ハードボウ弐式",null,null,null,1,null,null,null,-2,5,null,null,null,null,null,null,null,null,null,null,null,null,null,"射撃","2-4","遠","(3)→6",20,44,null,null,null,null,null,null,null,null,null,null,null,null,null,null,null,null,null,null,null,null,null,null,null,null,null,null,null,null,44,"レピドライト",null,null,null,null,null,null,null,null,null,null,null,null,2,null,null,null,null,null,null,null,null,null,20,null,"1ｾｯｼｮﾝ1回、判定振り直し可能",44]
[null,null,null,null,null,null,null,null,null,null,null,null,null,null,null,null,null,null,null,null,null,null,null,null,null,null,null,null,null,null,null,null,null,null,null,null,null,45,"散弾銃",null,null,null,1,-1,null,null,-2,13,null,null,null,null,null,null,null,null,null,null,null,null,null,"射撃","0-4","遠",10,20,45,null,null,null,null,null,null,null,null,null,null,null,null,null,null,null,null,null,null,null,null,null,null,null,null,null,null,null,null,45,"アイアングローブ",null,null,null,null,null,null,null,-2,null,null,null,null,12,4,null,null,null,null,4,null,null,null,20,null,"特殊効果なし",45]
[null,null,null,null,null,null,null,null,null,null,null,null,null,null,null,null,null,null,null,null,null,null,null,null,null,null,null,null,null,null,null,null,null,null,null,null,null,46,"チャクラム",null,null,null,null,null,null,null,null,14,null,null,null,null,null,null,null,null,null,null,null,null,null,"射撃","0-3","遠","(2)→7",20,46,null,null,null,null,null,null,null,null,null,null,null,null,null,null,null,null,null,null,null,null,null,null,null,null,null,null,null,null,46,"アイアンヘルム",null,null,null,null,null,null,null,-2,null,null,null,null,12,null,4,4,null,null,null,4,null,null,20,null,"特殊効果なし",46]
[null,null,null,null,null,null,null,null,null,null,null,null,null,null,null,null,null,null,null,null,null,null,null,null,null,null,null,null,null,null,null,null,null,null,null,null,null,47,"エッジヨーヨー",null,null,null,null,null,null,null,1,16,null,null,null,null,null,null,null,null,null,null,null,null,null,"射撃","0-2","遠",9,25,47,null,null,null,null,null,null,null,null,null,null,null,null,null,null,null,null,null,null,null,null,null,null,null,null,null,null,null,null,47,"アイアンシューズ",null,null,null,null,null,null,null,-2,null,null,null,null,4,12,null,null,4,4,null,null,null,null,20,null,"特殊効果なし",47]
[null,null,null,null,null,null,null,null,null,null,null,null,null,null,null,null,null,null,null,null,null,null,null,null,null,null,null,null,null,null,null,null,null,null,null,null,null,48,"ワイヤースタンガン",null,null,null,null,null,null,null,null,14,null,null,null,2,2,null,null,null,3,null,null,null,null,"射撃","0-2","雷",10,25,48,null,null,null,null,null,null,null,null,null,null,null,null,null,null,null,null,null,null,null,null,null,null,null,null,null,null,null,null,48,"フェザーハット",null,null,null,null,null,null,null,1,null,null,null,null,5,5,null,null,null,5,null,null,null,null,20,null,"特殊効果なし",48]
[null,null,null,null,null,null,null,null,null,null,null,null,null,null,null,null,null,null,null,null,null,null,null,null,null,null,null,null,null,null,null,null,null,null,null,null,null,49,"飛苦無",null,null,null,1,null,null,null,null,9,null,null,null,4,6,null,null,null,null,null,null,null,null,"射撃","0-2","遠",9,30,49,null,null,null,null,null,null,null,null,null,null,null,null,null,null,null,null,null,null,null,null,null,null,null,null,null,null,null,null,49,"パワーベルト",null,null,null,null,null,null,null,null,3,null,null,null,null,null,null,null,null,null,null,null,null,null,20,null,"特殊効果なし",49]
[null,null,null,null,null,null,null,null,null,null,null,null,null,null,null,null,null,null,null,null,null,null,null,null,null,null,null,null,null,null,null,null,null,null,null,null,null,50,"四方手裏剣",null,null,null,null,null,null,null,null,16,null,null,null,-3,-3,null,null,null,null,null,null,null,null,"射撃","0-3","遠",9,30,50,null,null,null,null,null,null,null,null,null,null,null,null,null,null,null,null,null,null,null,null,null,null,null,null,null,null,null,null,50,"マジックジュエル",null,null,null,null,null,null,null,null,null,3,null,null,null,null,null,null,null,null,null,null,null,null,20,null,"特殊効果なし",50]
[null,null,null,null,null,null,null,null,null,null,null,null,null,null,null,null,null,null,null,null,null,null,null,null,null,null,null,null,null,null,null,null,null,null,null,null,null,51,"マジック砲 -MC2-",null,null,null,null,null,null,null,null,15,null,null,null,2,2,null,null,null,null,null,null,null,null,"射撃","3-4","遠",10,35,51,null,null,null,null,null,null,null,null,null,null,null,null,null,null,null,null,null,null,null,null,null,null,null,null,null,null,null,null,51,"暗黒の呪石",null,null,null,null,null,null,null,null,null,null,null,5,3,3,null,null,null,null,null,null,12,null,30,null,"特殊効果なし",51]
[null,null,null,null,null,null,null,null,null,null,null,null,null,null,null,null,null,null,null,null,null,null,null,null,null,null,null,null,null,null,null,null,null,null,null,null,null,52,"Mスーパーボール",null,null,null,null,null,null,null,null,19,null,null,null,1,1,null,null,null,null,null,null,null,null,"射撃","0-2","遠",9,40,52,null,null,null,null,null,null,null,null,null,null,null,null,null,null,null,null,null,null,null,null,null,null,null,null,null,null,null,null,52,"光翼の指輪",null,null,null,null,null,null,null,null,null,null,null,5,3,3,null,null,null,null,null,null,null,12,30,null,"特殊効果なし",52]
[null,null,null,null,null,null,null,null,null,null,null,null,null,null,null,null,null,null,null,null,null,null,null,null,null,null,null,null,null,null,null,null,null,null,null,null,null,53,"バーナーキャノン",null,null,null,1,null,null,null,-1,17,null,null,3,null,3,8,12,2,2,null,null,null,null,"射撃","0-3","炎",11,40,53,null,null,null,null,null,null,null,null,null,null,null,null,null,null,null,null,null,null,null,null,null,null,null,null,null,null,null,null,53,"ヴォルテックス",null,null,null,null,null,null,null,null,null,null,null,5,3,3,null,null,null,null,12,null,null,null,30,null,"特殊効果なし",53]
[null,null,null,null,null,null,null,null,null,null,null,null,null,null,null,null,null,null,null,null,null,null,null,null,null,null,null,null,null,null,null,null,null,null,null,null,null,54,"風刃砲",null,null,null,null,null,null,null,1,17,null,null,null,3,3,12,6,7,null,8,null,null,null,"射撃","0-4","風",11,40,54,null,null,null,null,null,null,null,null,null,null,null,null,null,null,null,null,null,null,null,null,null,null,null,null,null,null,null,null,54,"スカイヘルム",null,null,null,null,null,null,null,null,null,null,null,null,8,8,6,null,null,null,null,6,null,null,30,null,"特殊効果なし",54]
[null,null,null,null,null,null,null,null,null,null,null,null,null,null,null,null,null,null,null,null,null,null,null,null,null,null,null,null,null,null,null,null,null,null,null,null,null,55,"マジック砲 -MC5-",null,null,null,1,null,null,null,null,8,null,null,null,4,4,null,null,null,null,null,null,null,null,"射撃","0-3","風",10,45,55,null,null,null,null,null,null,null,null,null,null,null,null,null,null,null,null,null,null,null,null,null,null,null,null,null,null,null,null,55,"スカイグローブ",null,null,null,null,null,null,null,null,null,null,null,null,8,8,null,6,null,6,null,null,null,null,30,null,"特殊効果なし",55]
[null,null,null,null,null,null,null,null,null,null,null,null,null,null,null,null,null,null,null,null,null,null,null,null,null,null,null,null,null,null,null,null,null,null,null,null,null,56,"フリスピーシールド",null,null,null,null,null,null,null,-2,13,null,8,null,16,14,10,6,6,5,7,7,4,4,"射撃","0-2","遠","(4)→7",45,56,null,null,null,null,null,null,null,null,null,null,null,null,null,null,null,null,null,null,null,null,null,null,null,null,null,null,null,null,56,"スカイブーツ",null,null,null,null,null,null,null,null,null,null,null,null,8,8,null,null,6,null,6,null,null,null,30,null,"特殊効果なし",56]
[null,null,null,null,null,null,null,null,null,null,null,null,null,null,null,null,null,null,null,null,null,null,null,null,null,null,null,null,null,null,null,null,null,null,null,null,null,57,"フリーズキャノン",null,null,null,null,-1,null,null,-4,26,null,null,null,5,2,-5,16,8,3,3,3,null,null,"射撃","0-3","氷","(4)→8",50,57,null,null,null,null,null,null,null,null,null,null,null,null,null,null,null,null,null,null,null,null,null,null,null,null,null,null,null,null,57,"フェアリーガード",null,null,null,null,null,null,null,null,null,null,null,null,null,null,5,5,5,5,5,5,5,4,40,null,"特殊効果なし",57]
[null,null,null,null,null,null,null,null,null,null,null,null,null,null,null,null,null,null,null,null,null,null,null,null,null,null,null,null,null,null,null,null,null,null,null,null,null,58,"レーザーサック",null,null,null,null,null,null,null,null,19,null,null,2,null,null,null,null,null,null,null,null,5,5,"射撃","0-2","光",10,55,58,null,null,null,null,null,null,null,null,null,null,null,null,null,null,null,null,null,null,null,null,null,null,null,null,null,null,null,null,58,"レッドアンバー",null,null,null,null,null,null,null,null,null,null,null,null,3,3,13,null,null,null,null,null,null,null,40,null,"【肉体】+3 【集中】+3",58]
[null,null,null,null,null,null,null,null,null,null,null,null,null,null,null,null,null,null,null,null,null,null,null,null,null,null,null,null,null,null,null,null,null,null,null,null,null,59,"魔法手裏剣",null,null,null,1,null,null,null,1,18,null,null,null,null,null,null,null,null,null,3,null,null,null,"射撃","0-3","風",9,60,59,null,null,null,null,null,null,null,null,null,null,null,null,null,null,null,null,null,null,null,null,null,null,null,null,null,null,null,null,59,"オニキス",null,null,null,null,null,null,null,null,null,null,null,7,3,3,null,null,null,null,null,null,null,13,40,null,"特殊効果なし",59]
[null,null,null,null,null,null,null,null,null,null,null,null,null,null,null,null,null,null,null,null,null,null,null,null,null,null,null,null,null,null,null,null,null,null,null,null,null,60,"ハイドロガン",null,null,null,null,null,null,null,-1,20,null,null,null,3,3,14,3,3,-5,null,null,null,null,"射撃","0-3","水",10,60,60,null,null,null,null,null,null,null,null,null,null,null,null,null,null,null,null,null,null,null,null,null,null,null,null,null,null,null,null,60,"タンザナイト",null,null,null,null,null,null,null,null,null,null,null,3,2,2,null,null,8,null,null,null,null,null,40,null,"【知識】+4",60]
[null,null,null,null,null,null,null,null,null,null,null,null,null,null,null,null,null,null,null,null,null,null,null,null,null,null,null,null,null,null,null,null,null,null,null,null,null,61,"マジカルバルカン",null,null,null,1,-1,null,null,-4,24,null,null,3,4,8,3,1,1,1,1,null,null,null,"射撃","0-3","遠",12,60,61,null,null,null,null,null,null,null,null,null,null,null,null,null,null,null,null,null,null,null,null,null,null,null,null,null,null,null,null,61,"八卦ブレスレット",null,null,null,null,null,null,null,null,null,null,null,null,3,3,5,null,5,5,5,null,null,null,40,null,"【幸運】+4",61]
[null,null,null,null,null,null,null,null,null,null,null,null,null,null,null,null,null,null,null,null,null,null,null,null,null,null,null,null,null,null,null,null,null,null,null,null,null,62,"小型電磁砲",null,null,null,1,-1,null,null,-1,24,null,null,null,3,3,1,1,1,-5,null,null,null,null,"射撃","2-3","遠",10,70,62,null,null,null,null,null,null,null,null,null,null,null,null,null,null,null,null,null,null,null,null,null,null,null,null,null,null,null,null,62,"---アクセ4---",null,null,null,null,null,null,null,null,null,null,null,null,null,null,null,null,null,null,null,null,null,null,0,null,"　",62]
[null,null,null,null,null,null,null,null,null,null,null,null,null,null,null,null,null,null,null,null,null,null,null,null,null,null,null,null,null,null,null,null,null,null,null,null,null,63,"ヴァリアントボウ",null,null,null,1,null,null,null,null,14,null,null,null,4,8,null,null,null,null,null,null,3,3,"射撃","3-4","遠",11,70,63,null,null,null,null,null,null,null,null,null,null,null,null,null,null,null,null,null,null,null,null,null,null,null,null,null,null,null,null,63,"ルビーギア",null,null,null,null,null,null,null,null,null,null,null,null,null,null,25,null,null,null,null,null,null,null,40,null,"武器属性を〈炎〉に変更",63]
[null,null,null,null,null,null,null,null,null,null,null,null,null,null,null,null,null,null,null,null,null,null,null,null,null,null,null,null,null,null,null,null,null,null,null,null,null,64,"スナイパーライフル",null,null,null,1,null,null,null,-3,26,null,null,null,3,3,null,null,null,null,null,null,null,null,"射撃","1-4","遠","(4)→8",70,64,null,null,null,null,null,null,null,null,null,null,null,null,null,null,null,null,null,null,null,null,null,null,null,null,null,null,null,null,64,"ダンブライトギア",null,null,null,null,null,null,null,null,null,null,null,null,null,null,null,25,null,null,null,null,null,null,40,null,"武器属性を〈氷〉に変更",64]
[null,null,null,null,null,null,null,null,null,null,null,null,null,null,null,null,null,null,null,null,null,null,null,null,null,null,null,null,null,null,null,null,null,null,null,null,null,65,"SMG",null,null,null,1,null,null,null,null,25,null,null,null,2,2,null,null,null,null,null,null,null,null,"射撃","0-3","遠",9,80,65,null,null,null,null,null,null,null,null,null,null,null,null,null,null,null,null,null,null,null,null,null,null,null,null,null,null,null,null,65,"サファイアギア",null,null,null,null,null,null,null,null,null,null,null,null,null,null,null,null,25,null,null,null,null,null,40,null,"武器属性を〈水〉に変更",65]
[null,null,null,null,null,null,null,null,null,null,null,null,null,null,null,null,null,null,null,null,null,null,null,null,null,null,null,null,null,null,null,null,null,null,null,null,null,66,"対物ライフル",null,null,null,1,-1,null,null,-3,32,null,null,null,-4,-4,null,null,null,null,null,null,null,null,"射撃","0-4","遠",11,80,66,null,null,null,null,null,null,null,null,null,null,null,null,null,null,null,null,null,null,null,null,null,null,null,null,null,null,null,null,66,"トパーズギア",null,null,null,null,null,null,null,null,null,null,null,null,null,null,null,null,null,25,null,null,null,null,40,null,"武器属性を〈雷〉に変更",66]
[null,null,null,null,null,null,null,null,null,null,null,null,null,null,null,null,null,null,null,null,null,null,null,null,null,null,null,null,null,null,null,null,null,null,null,null,null,67,"ヘヴィキャノン",null,null,null,-2,-1,null,-1,-3,40,null,null,null,8,4,3,2,2,3,3,3,null,null,"射撃","0-3","遠","(2)→9",80,67,null,null,null,null,null,null,null,null,null,null,null,null,null,null,null,null,null,null,null,null,null,null,null,null,null,null,null,null,{"$f":"CR120+1","v":67},"エメラルドギア",null,null,null,null,null,null,null,null,null,null,null,null,null,null,null,null,null,null,25,null,null,null,40,null,"武器属性を〈風〉に変更",67]
[null,null,null,null,null,null,null,null,null,null,null,null,null,null,null,null,null,null,null,null,null,null,null,null,null,null,null,null,null,null,null,null,null,null,null,null,null,68,"ロックブラスター",null,null,null,1,null,null,null,-2,25,null,null,null,11,9,3,4,null,6,7,11,null,null,"射撃","0-3","土","(4)→7",80,68,null,null,null,null,null,null,null,null,null,null,null,null,null,null,null,null,null,null,null,null,null,null,null,null,null,null,null,null,68,"アンバーギア",null,null,null,null,null,null,null,null,null,null,null,null,null,null,null,null,null,null,null,25,null,null,40,null,"武器属性を〈土〉に変更",68]
[null,null,null,null,null,null,null,null,null,null,null,null,null,null,null,null,null,null,null,null,null,null,null,null,null,null,null,null,null,null,null,null,null,null,null,null,null,69,"火炎放射器",null,null,null,null,null,null,null,-2,35,null,null,null,3,3,5,21,null,null,null,null,null,null,"射撃","0-2","炎",11,85,69,null,null,null,null,null,null,null,null,null,null,null,null,null,null,null,null,null,null,null,null,null,null,null,null,null,null,null,null,69,"ヘリオドールギア",null,null,null,null,null,null,null,null,null,null,null,null,null,null,null,null,null,null,null,null,25,null,40,null,"武器属性を〈光〉に変更",69]
[null,null,null,null,null,null,null,null,null,null,null,null,null,null,null,null,null,null,null,null,null,null,null,null,null,null,null,null,null,null,null,null,null,null,null,null,null,70,"ブラックボウガン",null,null,null,1,-1,null,null,-4,33,null,10,null,13,11,2,2,2,2,2,2,8,8,"射撃","2-4","遠","(4)→9",95,70,null,null,null,null,null,null,null,null,null,null,null,null,null,null,null,null,null,null,null,null,null,null,null,null,null,null,null,null,70,"アメジストギア",null,null,null,null,null,null,null,null,null,null,null,null,null,null,null,null,null,null,null,null,null,25,40,null,"武器属性を〈闇〉に変更",70]
[null,null,null,null,null,null,null,null,null,null,null,null,null,null,null,null,null,null,null,null,null,null,null,null,null,null,null,null,null,null,null,null,null,null,null,null,null,71,"レーザーガン.prot",null,null,null,null,null,null,null,null,40,null,null,null,2,null,null,null,null,null,null,null,null,null,"射撃","2-4","遠",10,125,71,null,null,null,null,null,null,null,null,null,null,null,null,null,null,null,null,null,null,null,null,null,null,null,null,null,null,null,null,71,"ドラゴンファング",null,null,null,null,null,null,null,null,null,null,12,null,5,5,3,3,3,3,3,3,null,null,40,null,"特殊効果なし",71]
[null,null,null,null,null,null,null,null,null,null,null,null,null,null,null,null,null,null,null,null,null,null,null,null,null,null,null,null,null,null,null,null,null,null,null,null,null,72,"ショットオプション",null,null,null,1,null,null,null,1,25,null,null,null,8,8,null,null,null,null,null,null,null,null,"射撃","0-4","※",11,135,72,null,null,null,null,null,null,null,null,null,null,null,null,null,null,null,null,null,null,null,null,null,null,null,null,null,null,null,null,72,"スターアミュレット",null,null,null,null,null,null,null,null,null,null,null,null,null,null,null,null,null,null,null,null,5,5,50,null,"1ｾｯｼｮﾝ1回、判定の出目1つを+1できる",72]
[null,null,null,null,null,null,null,null,null,null,null,null,null,null,null,null,null,null,null,null,null,null,null,null,null,null,null,null,null,null,null,null,null,null,null,null,null,73,"ロケットランチャー",null,null,null,null,-1,null,-1,-3,50,null,null,null,2,2,2,null,null,null,null,null,null,null,"射撃","2-4","遠",12,160,73,null,null,null,null,null,null,null,null,null,null,null,null,null,null,null,null,null,null,null,null,null,null,null,null,null,null,null,null,73,"ヘリオスブーツ",null,null,null,null,null,null,null,1,null,null,null,null,6,7,16,3,3,null,null,null,10,null,50,null,"特殊効果なし",73]
[null,null,null,null,null,null,null,null,null,null,null,null,null,null,null,null,null,null,null,null,null,null,null,null,null,null,null,null,null,null,null,null,null,null,null,null,null,74,"ネオアサルト",null,null,null,2,-1,null,null,-4,42,null,null,null,6,4,null,null,null,null,null,null,null,null,"射撃","0-5","遠",10,180,74,null,null,null,null,null,null,null,null,null,null,null,null,null,null,null,null,null,null,null,null,null,null,null,null,null,null,null,null,74,"ヘヴィメタルギア",null,null,-2,-2,null,-2,null,null,13,13,null,null,null,null,null,null,null,null,null,null,null,null,50,null,"特殊効果なし",74]
[null,null,null,null,null,null,null,null,null,null,null,null,null,null,null,null,null,null,null,null,null,null,null,null,null,null,null,null,null,null,null,null,null,null,null,null,null,75,"---共通魔法武器---",null,null,null,null,null,null,null,null,null,null,null,null,null,null,null,null,null,null,null,null,null,null,null,null,null,null,null,75,null,null,null,null,null,null,null,null,null,null,null,null,null,null,null,null,null,null,null,null,null,null,null,null,null,null,null,null,75,"流星の首輪",null,null,null,null,null,null,null,4,null,null,null,null,null,null,null,null,null,null,null,null,10,10,50,null,"特殊効果なし",75]
[null,null,null,null,null,null,null,null,null,null,null,null,null,null,null,null,null,null,null,null,null,null,null,null,null,null,null,null,null,null,null,null,null,null,null,null,null,76,"グリモワール",null,null,null,null,null,1,null,null,null,null,null,null,null,null,-5,null,null,null,null,null,null,null,"魔法","0-3","遠","(4)→6",5,76,null,null,null,null,null,null,null,null,null,null,null,null,null,null,null,null,null,null,null,null,null,null,null,null,null,null,null,null,76,"エンハンスギア",null,null,null,null,null,null,null,null,null,null,null,null,null,null,null,null,null,null,null,null,null,null,50,null,"配置ﾕﾆｯﾄの【耐久力】に+20",76]
[null,null,null,null,null,null,null,null,null,null,null,null,null,null,null,null,null,null,null,null,null,null,null,null,null,null,null,null,null,null,null,null,null,null,null,null,null,77,"スタッフ",null,null,null,null,null,null,null,null,null,8,null,null,null,null,1,1,1,1,1,1,null,null,"魔法","0-3","遠","(3)→7",10,77,null,null,null,null,null,null,null,null,null,null,null,null,null,null,null,null,null,null,null,null,null,null,null,null,null,null,null,null,77,"厄払い人形",null,null,null,null,null,null,null,null,null,null,null,null,null,null,null,null,null,null,null,null,null,null,50,null,"1ｾｯｼｮﾝ1回、受けるBSを無効にする",77]
[null,null,null,null,null,null,null,null,null,null,null,null,null,null,null,null,null,null,null,null,null,null,null,null,null,null,null,null,null,null,null,null,null,null,null,null,null,78,"マジカルワンド",null,null,null,null,null,1,null,null,null,2,null,null,null,null,1,1,1,1,1,1,null,null,"魔法","0-3","遠","(3)→7",10,78,null,null,null,null,null,null,null,null,null,null,null,null,null,null,null,null,null,null,null,null,null,null,null,null,null,null,null,null,78,"ローラーシューズ",null,null,null,null,null,null,null,null,null,null,null,null,null,null,null,null,null,null,null,null,null,null,50,null,"移動コスト-1 (下限値：2)",78]
[null,null,null,null,null,null,null,null,null,null,null,null,null,null,null,null,null,null,null,null,null,null,null,null,null,null,null,null,null,null,null,null,null,null,null,null,null,79,"マジックグローブ",null,null,null,null,null,null,null,null,null,10,null,null,3,null,null,null,null,null,null,null,null,null,"魔法","0-3","遠","(2)→8",10,79,null,null,null,null,null,null,null,null,null,null,null,null,null,null,null,null,null,null,null,null,null,null,null,null,null,null,null,null,79,"タロットストラップ",null,null,null,null,null,null,null,null,null,null,null,null,null,null,2,2,2,2,2,2,null,null,50,null,"戦闘開始時に、ｱﾙｶﾅｶｳﾝﾀｰを1つ得る",79]
[null,null,null,null,null,null,null,null,null,null,null,null,null,null,null,null,null,null,null,null,null,null,null,null,null,null,null,null,null,null,null,null,null,null,null,null,null,80,"スペルオーブ",null,null,null,null,null,null,null,null,null,6,null,null,-3,-3,1,1,1,1,1,1,null,null,"魔法","0-3","遠","(3)→6",10,80,null,null,null,null,null,null,null,null,null,null,null,null,null,null,null,null,null,null,null,null,null,null,null,null,null,null,null,null,80,"不吉な呪符",null,null,null,null,null,null,null,null,null,null,null,16,6,6,null,null,null,null,null,null,null,12,50,null,"命中F値に+2 (上限値：8)",80]
[null,null,null,null,null,null,null,null,null,null,null,null,null,null,null,null,null,null,null,null,null,null,null,null,null,null,null,null,null,null,null,null,null,null,null,null,null,81,"強化対魔護符",null,null,null,null,null,null,null,null,null,8,null,5,4,3,null,null,null,null,null,null,6,6,"魔法","0-3","遠","(3)→8",15,81,null,null,null,null,null,null,null,null,null,null,null,null,null,null,null,null,null,null,null,null,null,null,null,null,null,null,null,null,81,"エナジーギア",null,null,null,null,null,null,null,null,null,null,null,null,6,6,null,null,null,null,null,null,null,null,50,null,"武器属性を〈近〉〈遠〉に変更",81]
[null,null,null,null,null,null,null,null,null,null,null,null,null,null,null,null,null,null,null,null,null,null,null,null,null,null,null,null,null,null,null,null,null,null,null,null,null,82,"ファイアロッド",null,null,null,null,null,1,null,null,null,10,null,null,null,null,8,-4,1,1,1,null,null,null,"魔法","0-3","炎","(4)→6",20,82,null,null,null,null,null,null,null,null,null,null,null,null,null,null,null,null,null,null,null,null,null,null,null,null,null,null,null,null,82,"---アクセ5---",null,null,null,null,null,null,null,null,null,null,null,null,null,null,null,null,null,null,null,null,null,null,0,null,"　",82]
[null,null,null,null,null,null,null,null,null,null,null,null,null,null,null,null,null,null,null,null,null,null,null,null,null,null,null,null,null,null,null,null,null,null,null,null,null,83,"フリーズロッド",null,null,null,null,null,1,null,null,null,10,null,null,null,null,-4,8,1,1,1,null,null,null,"魔法","0-3","氷","(4)→6",20,83,null,null,null,null,null,null,null,null,null,null,null,null,null,null,null,null,null,null,null,null,null,null,null,null,null,null,null,null,83,"ハートクリスタル",null,null,null,null,null,null,null,null,null,null,null,4,null,null,null,null,null,null,null,null,null,null,60,null,"[感情の強度]の合計値上限に+1",83]
[null,null,null,null,null,null,null,null,null,null,null,null,null,null,null,null,null,null,null,null,null,null,null,null,null,null,null,null,null,null,null,null,null,null,null,null,null,84,"ウェイブロッド",null,null,null,null,null,1,null,null,null,10,null,null,null,null,null,1,8,-4,1,1,null,null,"魔法","0-3","水","(4)→6",20,84,null,null,null,null,null,null,null,null,null,null,null,null,null,null,null,null,null,null,null,null,null,null,null,null,null,null,null,null,84,"ホワイトオーブ",null,null,null,null,null,null,null,null,null,null,null,null,5,5,null,null,null,null,null,null,null,null,60,null,"「種別：回」のｽｷﾙのHP回復量+8",84]
[null,null,null,null,null,null,null,null,null,null,null,null,null,null,null,null,null,null,null,null,null,null,null,null,null,null,null,null,null,null,null,null,null,null,null,null,null,85,"サンダーロッド",null,null,null,null,null,1,null,null,null,10,null,null,null,null,null,1,1,8,1,-4,null,null,"魔法","0-3","雷","(4)→6",20,85,null,null,null,null,null,null,null,null,null,null,null,null,null,null,null,null,null,null,null,null,null,null,null,null,null,null,null,null,85,"ヴァイタルリング",null,null,null,null,null,null,null,null,null,null,3,null,8,5,null,null,null,null,null,null,null,null,60,null,"「BS：疲労」を受けない",85]
[null,null,null,null,null,null,null,null,null,null,null,null,null,null,null,null,null,null,null,null,null,null,null,null,null,null,null,null,null,null,null,null,null,null,null,null,null,86,"魔笛",null,null,null,null,null,1,null,null,null,10,null,null,2,2,null,null,null,null,-3,-3,null,null,"魔法","0-4","遠","(5)→7",20,86,null,null,null,null,null,null,null,null,null,null,null,null,null,null,null,null,null,null,null,null,null,null,null,null,null,null,null,null,86,"アームブースター",null,null,2,null,null,null,null,null,null,null,null,null,null,null,null,null,null,null,null,null,null,null,60,null,"特殊効果なし",86]
[null,null,null,null,null,null,null,null,null,null,null,null,null,null,null,null,null,null,null,null,null,null,null,null,null,null,null,null,null,null,null,null,null,null,null,null,null,87,"祝福の杖",null,null,null,null,null,null,null,null,null,16,null,4,null,null,3,3,3,3,3,3,null,null,"魔法","0-2","光","(2)→8",30,87,null,null,null,null,null,null,null,null,null,null,null,null,null,null,null,null,null,null,null,null,null,null,null,null,null,null,null,null,87,"ロックコンタクト",null,null,null,2,null,null,null,null,null,null,null,null,null,null,null,null,null,null,null,null,null,null,60,null,"特殊効果なし",87]
[null,null,null,null,null,null,null,null,null,null,null,null,null,null,null,null,null,null,null,null,null,null,null,null,null,null,null,null,null,null,null,null,null,null,null,null,null,88,"ガードロッド",null,null,null,null,null,1,null,-2,null,12,null,null,3,3,4,2,3,1,2,2,1,1,"魔法","0-3","遠","(4)→6",40,88,null,null,null,null,null,null,null,null,null,null,null,null,null,null,null,null,null,null,null,null,null,null,null,null,null,null,null,null,88,"フロートギア",null,null,null,null,2,null,null,null,null,null,null,null,6,6,null,null,null,null,null,null,null,null,60,null,"特殊効果なし",88]
[null,null,null,null,null,null,null,null,null,null,null,null,null,null,null,null,null,null,null,null,null,null,null,null,null,null,null,null,null,null,null,null,null,null,null,null,null,89,"ホーリーワンド",null,null,null,null,null,null,1,null,null,10,null,3,2,2,null,null,null,null,null,null,null,null,"魔法","0-2","光","(4)→6",40,89,null,null,null,null,null,null,null,null,null,null,null,null,null,null,null,null,null,null,null,null,null,null,null,null,null,null,null,null,89,"ペンタグラム",null,null,null,null,null,2,null,null,null,null,null,null,null,null,2,null,2,2,2,2,null,null,60,null,"特殊効果なし",89]
[null,null,null,null,null,null,null,null,null,null,null,null,null,null,null,null,null,null,null,null,null,null,null,null,null,null,null,null,null,null,null,null,null,null,null,null,null,90,"イービルワンド",null,null,null,null,null,null,null,null,null,18,null,null,null,null,null,null,null,null,null,null,-16,16,"魔法","0-3","闇","(3)→7",40,90,null,null,null,null,null,null,null,null,null,null,null,null,null,null,null,null,null,null,null,null,null,null,null,null,null,null,null,null,90,"アンチマジック",null,null,null,null,null,null,2,null,null,null,null,null,1,1,null,null,null,null,null,null,4,6,60,null,"特殊効果なし",90]
[null,null,null,null,null,null,null,null,null,null,null,null,null,null,null,null,null,null,null,null,null,null,null,null,null,null,null,null,null,null,null,null,null,null,null,null,null,91,"アンプリファー",null,null,null,null,-1,null,null,null,null,21,null,null,1,1,-2,-2,-2,-2,-2,-2,-3,-3,"魔法","0-3","近","(3)→11",50,91,null,null,null,null,null,null,null,null,null,null,null,null,null,null,null,null,null,null,null,null,null,null,null,null,null,null,null,null,91,"雷神の籠手",null,null,null,null,null,null,null,null,null,null,null,null,8,8,3,3,3,25,10,-8,null,null,60,null,"「BS：麻痺」を受けない。",91]
[null,null,null,null,null,null,null,null,null,null,null,null,null,null,null,null,null,null,null,null,null,null,null,null,null,null,null,null,null,null,null,null,null,null,null,null,null,92,"アンテナメット",null,null,null,null,null,1,null,null,null,15,null,null,2,2,null,null,null,-10,null,null,null,null,"魔法","0-3","近","(3)→7",50,92,null,null,null,null,null,null,null,null,null,null,null,null,null,null,null,null,null,null,null,null,null,null,null,null,null,null,null,null,92,"アイスバックラー",null,null,null,null,null,null,null,null,null,null,null,null,12,4,-9,24,12,3,3,3,null,null,60,null,"「BS：凍結」を受けない",92]
[null,null,null,null,null,null,null,null,null,null,null,null,null,null,null,null,null,null,null,null,null,null,null,null,null,null,null,null,null,null,null,null,null,null,null,null,null,93,"ダークチョーカー",null,null,null,null,null,1,null,null,null,14,null,4,3,3,4,4,4,4,4,4,12,12,"魔法","0-2","闇","(3)→13",50,93,null,null,null,null,null,null,null,null,null,null,null,null,null,null,null,null,null,null,null,null,null,null,null,null,null,null,null,null,93,"サイクロンブーツ",null,null,null,null,1,null,null,4,null,null,null,null,7,3,null,null,null,9,16,null,null,null,60,null,"特殊効果なし",93]
[null,null,null,null,null,null,null,null,null,null,null,null,null,null,null,null,null,null,null,null,null,null,null,null,null,null,null,null,null,null,null,null,null,null,null,null,null,94,"ジュエルスタッフ",null,null,null,null,null,2,null,null,null,10,null,null,null,null,null,null,null,null,null,null,null,null,"魔法","0-3","近","(3)→9",55,94,null,null,null,null,null,null,null,null,null,null,null,null,null,null,null,null,null,null,null,null,null,null,null,null,null,null,null,null,94,"アイテムポーチ",null,null,null,null,null,null,null,null,null,null,null,null,5,3,2,2,2,2,2,2,null,null,60,null,"1度のｻﾌﾞｱｸｼｮﾝで消費ｱｲﾃﾑを2つ使用できる。",94]
[null,null,null,null,null,null,null,null,null,null,null,null,null,null,null,null,null,null,null,null,null,null,null,null,null,null,null,null,null,null,null,null,null,null,null,null,null,95,"氷華杖",null,null,null,null,null,null,1,-1,null,22,null,null,2,2,-10,14,6,null,null,null,null,null,"魔法","2-3","氷","(3)→7",60,95,null,null,null,null,null,null,null,null,null,null,null,null,null,null,null,null,null,null,null,null,null,null,null,null,null,null,null,null,95,"破呪の宝石",null,null,null,null,null,null,null,null,null,null,null,5,null,null,null,null,null,null,null,null,null,null,60,null,"「BS：呪い」を受けない",95]
[null,null,null,null,null,null,null,null,null,null,null,null,null,null,null,null,null,null,null,null,null,null,null,null,null,null,null,null,null,null,null,null,null,null,null,null,null,96,"天雷杖",null,null,null,null,null,null,null,2,null,22,null,null,null,null,null,null,null,10,null,-5,null,null,"魔法","3-3","雷","(3)→8",60,96,null,null,null,null,null,null,null,null,null,null,null,null,null,null,null,null,null,null,null,null,null,null,null,null,null,null,null,null,96,"真実のオーブ",null,null,null,null,null,null,null,null,null,null,null,null,6,6,3,3,3,3,3,3,3,3,60,null,"「BS：混乱」と「BS：催眠」を受けない",96]
[null,null,null,null,null,null,null,null,null,null,null,null,null,null,null,null,null,null,null,null,null,null,null,null,null,null,null,null,null,null,null,null,null,null,null,null,null,97,"魔法剣",null,null,null,null,null,null,null,null,15,20,null,null,6,6,2,2,2,2,2,2,null,null,"魔法","0-3","近",12,70,97,null,null,null,null,null,null,null,null,null,null,null,null,null,null,null,null,null,null,null,null,null,null,null,null,null,null,null,null,97,"タングステンヘルム",null,null,null,null,null,null,null,null,null,null,null,null,13,13,10,7,7,5,5,8,6,6,70,null,"特殊効果なし",97]
[null,null,null,null,null,null,null,null,null,null,null,null,null,null,null,null,null,null,null,null,null,null,null,null,null,null,null,null,null,null,null,null,null,null,null,null,null,98,"WPリング",null,null,null,null,1,1,null,2,null,25,null,null,3,null,1,1,1,1,6,null,null,null,"魔法","0-3","風","(2)→11",75,98,null,null,null,null,null,null,null,null,null,null,null,null,null,null,null,null,null,null,null,null,null,null,null,null,null,null,null,null,98,"太陽の首輪",null,null,null,null,null,null,null,null,12,null,null,null,null,null,14,null,null,null,null,null,null,null,80,null,"特殊効果なし",98]
[null,null,null,null,null,null,null,null,null,null,null,null,null,null,null,null,null,null,null,null,null,null,null,null,null,null,null,null,null,null,null,null,null,null,null,null,null,99,"スターティンクル",null,null,null,null,null,1,null,1,null,31,null,3,1,1,2,2,2,2,4,null,7,null,"魔法","0-2","光","(4)→9",85,99,null,null,null,null,null,null,null,null,null,null,null,null,null,null,null,null,null,null,null,null,null,null,null,null,null,null,null,null,99,"満月の首輪",null,null,null,null,null,null,null,null,null,12,null,null,null,null,null,14,null,null,null,null,null,null,80,null,"特殊効果なし",99]
[null,null,null,null,null,null,null,null,null,null,null,null,null,null,null,null,null,null,null,null,null,null,null,null,null,null,null,null,null,null,null,null,null,null,null,null,null,100,"ラッキーペンダント",null,null,null,null,null,1,null,1,null,14,null,null,3,3,null,null,null,null,null,null,null,null,"魔法","0-3","近",15,85,100,null,null,null,null,null,null,null,null,null,null,null,null,null,null,null,null,null,null,null,null,null,null,null,null,null,null,null,null,100,"スーパーリング",null,null,1,1,1,1,1,null,null,null,null,null,null,null,null,null,null,null,null,null,null,null,80,null,"特殊効果なし",100]
[null,null,null,null,null,null,null,null,null,null,null,null,null,null,null,null,null,null,null,null,null,null,null,null,null,null,null,null,null,null,null,null,null,null,null,null,null,101,"神秘の光球",null,null,null,null,null,1,1,null,null,23,null,3,3,3,4,4,4,4,4,4,10,15,"魔法","0-3","光","(3)→9",90,101,null,null,null,null,null,null,null,null,null,null,null,null,null,null,null,null,null,null,null,null,null,null,null,null,null,null,null,null,101,"パリィガントレット",null,null,null,null,null,null,null,null,null,null,null,null,12,6,2,2,2,2,2,2,null,null,80,null,"回避C値-1 (下限値：16)",101]
[null,null,null,null,null,null,null,null,null,null,null,null,null,null,null,null,null,null,null,null,null,null,null,null,null,null,null,null,null,null,null,null,null,null,null,null,null,102,"アーススタッフ",null,null,null,null,null,1,null,null,null,35,null,null,3,1,2,2,2,null,null,5,null,null,"魔法","0-3","土","(5)→9",90,102,null,null,null,null,null,null,null,null,null,null,null,null,null,null,null,null,null,null,null,null,null,null,null,null,null,null,null,null,102,"---アクセ6---",null,null,null,null,null,null,null,null,null,null,null,null,null,null,null,null,null,null,null,null,null,null,0,null,null,102]
[null,null,null,null,null,null,null,null,null,null,null,null,null,null,null,null,null,null,null,null,null,null,null,null,null,null,null,null,null,null,null,null,null,null,null,null,null,103,"ディバインロッド",null,null,null,null,null,1,2,null,null,20,null,3,3,3,null,null,null,null,null,null,4,16,"魔法","0-2","光","(4)→6",90,103,null,null,null,null,null,null,null,null,null,null,null,null,null,null,null,null,null,null,null,null,null,null,null,null,null,null,null,null,103,"全知全能の書",null,null,null,null,null,null,null,null,null,null,null,null,null,null,null,null,null,null,null,null,null,null,80,null,"【肉体】・【集中】・【反射】・【知識】+7 調査C値-2 (下限値：14)",103]
[null,null,null,null,null,null,null,null,null,null,null,null,null,null,null,null,null,null,null,null,null,null,null,null,null,null,null,null,null,null,null,null,null,null,null,null,null,104,"クリスタルロッド",null,null,null,null,null,1,null,null,null,30,null,null,null,null,3,3,3,3,3,3,3,3,"魔法","0-3","遠","(2)→8",90,104,null,null,null,null,null,null,null,null,null,null,null,null,null,null,null,null,null,null,null,null,null,null,null,null,null,null,null,null,104,"ヘヴィメタルガード",null,null,null,null,-3,null,null,-5,null,null,null,null,23,18,13,13,13,13,13,13,13,13,90,null,"回避F値+2 (上限値：20)",104]
[null,null,null,null,null,null,null,null,null,null,null,null,null,null,null,null,null,null,null,null,null,null,null,null,null,null,null,null,null,null,null,null,null,null,null,null,null,105,"ゼロポインター",null,null,null,null,null,1,null,null,null,15,null,3,5,5,4,4,4,4,4,4,4,4,"魔法","0-4","遠","(4)→10",95,105,null,null,null,null,null,null,null,null,null,null,null,null,null,null,null,null,null,null,null,null,null,null,null,null,null,null,null,null,105,"メテオグリーブ",null,null,null,null,null,null,null,-2,null,null,null,null,11,19,25,3,3,3,3,25,12,8,90,null,"特殊効果なし",105]
[null,null,null,null,null,null,null,null,null,null,null,null,null,null,null,null,null,null,null,null,null,null,null,null,null,null,null,null,null,null,null,null,null,null,null,null,null,106,"ワープブレスレット",null,null,null,null,null,null,null,2,null,34,null,null,null,null,null,null,null,null,null,null,null,null,"魔法","2-3","遠","(3)→7",95,106,null,null,null,null,null,null,null,null,null,null,null,null,null,null,null,null,null,null,null,null,null,null,null,null,null,null,null,null,106,"竜王の指輪",null,null,null,null,null,null,null,null,null,null,40,null,null,null,null,null,null,null,null,null,null,null,100,null,"特殊効果なし",106]
[null,null,null,null,null,null,null,null,null,null,null,null,null,null,null,null,null,null,null,null,null,null,null,null,null,null,null,null,null,null,null,null,null,null,null,null,null,107,"轟雷のアミュレット",null,null,null,null,1,null,1,3,null,32,null,6,2,2,null,null,null,30,null,-8,null,null,"魔法","0-3","雷",13,105,107,null,null,null,null,null,null,null,null,null,null,null,null,null,null,null,null,null,null,null,null,null,null,null,null,null,null,null,null,107,"大魔女の指輪",null,null,null,null,null,null,null,null,null,null,null,18,null,null,null,null,null,null,null,null,null,null,100,null,"特殊効果なし",107]
[null,null,null,null,null,null,null,null,null,null,null,null,null,null,null,null,null,null,null,null,null,null,null,null,null,null,null,null,null,null,null,null,null,null,null,null,null,108,"エクリプスデイ",null,null,null,null,null,2,2,null,null,36,null,10,5,5,3,3,3,3,3,3,8,8,"魔法","0-4","※","(4)→8",120,108,null,null,null,null,null,null,null,null,null,null,null,null,null,null,null,null,null,null,null,null,null,null,null,null,null,null,null,null,108,"スターペンデュラム",null,null,null,null,null,null,null,null,null,null,null,null,null,null,null,null,null,null,null,null,null,null,100,null,"命中C値・回避C値・調査C値-1 (下限値：16)",108]
[null,null,null,null,null,null,null,null,null,null,null,null,null,null,null,null,null,null,null,null,null,null,null,null,null,null,null,null,null,null,null,null,null,null,null,null,null,109,"インフィニティロッド",null,null,-2,-2,2,-4,2,-3,null,44,null,11,7,7,3,3,3,3,3,3,2,2,"魔法","0-2","遠","(3)→11",130,109,null,null,null,null,null,null,null,null,null,null,null,null,null,null,null,null,null,null,null,null,null,null,null,null,null,null,null,null,109,"フォーチュンリング",null,null,null,null,null,null,null,null,null,null,null,null,null,null,null,null,null,null,null,null,null,null,100,null,"クリティカル時のダメージ増加に+7D10 【幸運】+10",109]
[null,null,null,null,null,null,null,null,null,null,null,null,null,null,null,null,null,null,null,null,null,null,null,null,null,null,null,null,null,null,null,null,null,null,null,null,null,110,"ディープロッド",null,null,null,null,1,1,1,null,null,45,null,3,2,2,8,4,8,-10,null,null,null,null,"魔法","0-4","水","(4)→10",130,110,null,null,null,null,null,null,null,null,null,null,null,null,null,null,null,null,null,null,null,null,null,null,null,null,null,null,null,null,110,"セーフティリング",null,null,null,null,null,null,null,null,null,null,null,null,4,4,4,4,4,4,4,4,4,4,100,null,"命中F値・回避F値・調査F値-2 (下限値：3)",110]
[null,null,null,null,null,null,null,null,null,null,null,null,null,null,null,null,null,null,null,null,null,null,null,null,null,null,null,null,null,null,null,null,null,null,null,null,null,111,"七色の法典",null,null,null,null,1,2,1,2,null,42,null,null,5,5,7,7,7,7,7,7,7,7,"魔法","0-3","風","(7)→7",140,111,null,null,null,null,null,null,null,null,null,null,null,null,null,null,null,null,null,null,null,null,null,null,null,null,null,null,null,null,111,"レジェンドパッジ",null,null,null,null,null,null,null,null,null,null,25,12,5,5,2,2,2,2,2,2,null,null,110,null,"特殊効果なし",111]
[null,null,null,null,null,null,null,null,null,null,null,null,null,null,null,null,null,null,null,null,null,null,null,null,null,null,null,null,null,null,null,null,null,null,null,null,null,112,"--------限定--------",null,null,null,null,null,null,null,null,null,null,null,null,null,null,null,null,null,null,null,null,null,null,null,null,null,null,null,112,null,null,null,null,null,null,null,null,null,null,null,null,null,null,null,null,null,null,null,null,null,null,null,null,null,null,null,null,112,"デュアルリーダー",null,null,null,null,null,null,null,null,null,null,null,null,7,7,null,null,null,null,null,null,null,null,110,null,"「ｻﾌﾞｱｸｼｮﾝ」のｽｷﾙをｻﾌﾞｱｸｼｮﾝを消費せずに使用可。",112]
[null,null,null,null,null,null,null,null,null,null,null,null,null,null,null,null,null,null,null,null,null,null,null,null,null,null,null,null,null,null,null,null,null,null,null,null,null,113,"パワーグローブ",null,null,-1,null,null,null,null,3,38,null,null,null,-4,-4,null,null,null,null,null,null,null,null,"近接","0-1","近",9,60,113,null,null,null,null,null,null,null,null,null,null,null,null,null,null,null,null,null,null,null,null,null,null,null,null,null,null,null,null,113,"混沌の呪印",null,null,null,null,null,null,null,null,15,null,null,null,6,6,null,null,null,null,null,null,10,4,120,null,"「BS：混乱」を受けない",113]
[null,null,null,null,null,null,null,null,null,null,null,null,null,null,null,null,null,null,null,null,null,null,null,null,null,null,null,null,null,null,null,null,null,null,null,null,null,114,"カラーウェポン",null,null,null,null,null,null,1,2,27,null,12,null,null,null,3,3,3,3,3,3,3,3,"近接","0-1","※",9,60,114,null,null,null,null,null,null,null,null,null,null,null,null,null,null,null,null,null,null,null,null,null,null,null,null,null,null,null,null,114,"ヘキサグラム",null,null,null,null,null,null,null,null,null,15,null,null,null,null,7,5,6,6,5,6,null,null,120,null,"「BS：封印」を受けない",114]
[null,null,null,null,null,null,null,null,null,null,null,null,null,null,null,null,null,null,null,null,null,null,null,null,null,null,null,null,null,null,null,null,null,null,null,null,null,115,"ミステリーハンマー",null,null,1,null,null,null,null,null,22,null,6,6,4,1,null,null,null,null,null,null,null,null,"近接","0-1","近",8,60,115,null,null,null,null,null,null,null,null,null,null,null,null,null,null,null,null,null,null,null,null,null,null,null,null,null,null,null,null,115,"吸血鬼の心臓",null,null,null,null,null,null,null,null,null,null,null,null,null,null,null,null,null,null,null,null,null,null,120,null,{"$f":"\"10の倍数ｶｳﾝﾄ終了時に、【HP】を\"&10+CL*4&\"点回復\"","v":"10の倍数ｶｳﾝﾄ終了時に、【HP】を14点回復"},115]
[null,null,null,null,null,null,null,null,null,null,null,null,null,null,null,null,null,null,null,null,null,null,null,null,null,null,null,null,null,null,null,null,null,null,null,null,null,116,"隕鉄拳",null,null,-1,null,null,null,null,3,35,null,null,null,13,2,null,null,null,2,3,5,null,null,"近接","0-1","土",9,60,116,null,null,null,null,null,null,null,null,null,null,null,null,null,null,null,null,null,null,null,null,null,null,null,null,null,null,null,null,116,"祝福の輝石",null,null,null,null,null,null,null,null,null,null,null,null,null,null,null,null,null,null,null,null,null,null,120,null,"[感情の強度]の合計値上限に+3 調査C値-2 (下限値：14)",116]
[null,null,null,null,null,null,null,null,null,null,null,null,null,null,null,null,null,null,null,null,null,null,null,null,null,null,null,null,null,null,null,null,null,null,null,null,null,117,"電流警棒",null,null,null,null,null,null,null,3,32,null,null,null,-3,-3,2,2,2,13,null,null,null,null,"近接","0-1","雷",9,60,117,null,null,null,null,null,null,null,null,null,null,null,null,null,null,null,null,null,null,null,null,null,null,null,null,null,null,null,null,117,"レインボーガード",null,null,null,null,null,null,null,null,null,null,null,30,6,6,6,null,6,6,6,6,null,null,150,null,"特殊効果なし",117]
[null,null,null,null,null,null,null,null,null,null,null,null,null,null,null,null,null,null,null,null,null,null,null,null,null,null,null,null,null,null,null,null,null,null,null,null,null,118,"ライダーランス",null,null,1,null,null,null,null,-2,38,null,null,null,4,4,null,null,null,null,null,null,null,null,"近接","0-1","近",10,60,118,null,null,null,null,null,null,null,null,null,null,null,null,null,null,null,null,null,null,null,null,null,null,null,null,null,null,null,null,118,"デビルグローブ",null,null,null,null,null,null,null,null,null,null,null,null,8,8,null,null,4,6,null,4,7,null,150,null,"【物攻】+[現カウント/2](↑)",118]
[null,null,null,null,null,null,null,null,null,null,null,null,null,null,null,null,null,null,null,null,null,null,null,null,null,null,null,null,null,null,null,null,null,null,null,null,null,119,"アイスサーベル",null,null,null,null,1,null,null,null,30,null,3,null,3,3,-11,14,9,null,null,null,null,null,"近接","0-1","氷",10,60,119,null,null,null,null,null,null,null,null,null,null,null,null,null,null,null,null,null,null,null,null,null,null,null,null,null,null,null,null,119,"大いなる加護印",null,null,null,null,null,null,null,null,null,null,null,null,null,null,null,6,null,6,6,null,6,13,150,null,"【魔攻】+[現カウント/3](↑)",119]
[null,null,null,null,null,null,null,null,null,null,null,null,null,null,null,null,null,null,null,null,null,null,null,null,null,null,null,null,null,null,null,null,null,null,null,null,null,120,"灼炎剣 -焔-",null,null,1,null,null,null,null,null,28,null,null,null,null,null,8,8,-5,null,null,null,3,3,"近接","0-1","炎",9,60,120,null,null,null,null,null,null,null,null,null,null,null,null,null,null,null,null,null,null,null,null,null,null,null,null,null,null,null,null,120,"竜王の逆鱗",null,null,null,null,null,null,null,null,null,null,10,null,24,24,20,20,20,20,18,18,25,25,150,null,"特殊効果なし",120]
[null,null,null,null,null,null,null,null,null,null,null,null,null,null,null,null,null,null,null,null,null,null,null,null,null,null,null,null,null,null,null,null,null,null,null,null,null,121,"ヴァリアブルスピア",null,null,1,null,null,null,null,3,18,null,null,null,null,null,null,null,null,null,null,null,null,null,"近接","0-1","近",10,60,121,null,null,null,null,null,null,null,null,null,null,null,null,null,null,null,null,null,null,null,null,null,null,null,null,null,null,null,null,121,"ブラックコア",null,null,null,null,null,null,null,null,null,null,null,null,null,null,null,null,null,null,null,null,null,null,150,null,"「装備武器」の属性〈無〉に変更",121]
[null,null,null,null,null,null,null,null,null,null,null,null,null,null,null,null,null,null,null,null,null,null,null,null,null,null,null,null,null,null,null,null,null,null,null,null,null,122,"ヒュージシールド",null,null,null,null,1,null,null,-5,27,null,25,null,13,12,11,10,8,9,9,8,6,6,"近接","0-1","近",12,60,122,null,null,null,null,null,null,null,null,null,null,null,null,null,null,null,null,null,null,null,null,null,null,null,null,null,null,null,null,122,"---種族専用アクセ---",null,null,null,null,null,null,null,null,null,null,null,null,null,null,null,null,null,null,null,null,null,null,0,null,"　",122]
[null,null,null,null,null,null,null,null,null,null,null,null,null,null,null,null,null,null,null,null,null,null,null,null,null,null,null,null,null,null,null,null,null,null,null,null,null,123,"バンブースピア",null,null,1,null,1,null,null,1,28,null,null,null,null,null,-17,null,null,null,8,8,3,3,"近接","0-1","土",9,60,123,null,null,null,null,null,null,null,null,null,null,null,null,null,null,null,null,null,null,null,null,null,null,null,null,null,null,null,null,123,"高性能ZPC",null,null,null,null,null,null,null,null,null,null,null,12,null,null,4,null,4,null,4,4,null,null,40,null,"人間専用",123]
[null,null,null,null,null,null,null,null,null,null,null,null,null,null,null,null,null,null,null,null,null,null,null,null,null,null,null,null,null,null,null,null,null,null,null,null,null,124,"マジカルヌンチャク",null,null,-1,null,1,null,null,null,33,null,null,null,-10,15,null,null,null,null,null,null,null,null,"近接","0-1","近",9,60,124,null,null,null,null,null,null,null,null,null,null,null,null,null,null,null,null,null,null,null,null,null,null,null,null,null,null,null,null,124,"聖なる光輪",null,null,null,null,null,null,2,null,null,null,null,null,9,9,null,null,null,null,null,null,18,null,40,null,"天使専用",124]
[null,null,null,null,null,null,null,null,null,null,null,null,null,null,null,null,null,null,null,null,null,null,null,null,null,null,null,null,null,null,null,null,null,null,null,null,null,125,"風魔槍 -鎌鼬-",null,null,null,null,1,null,null,2,33,null,null,null,null,null,null,null,null,6,15,-11,null,null,"近接","0-1","風",10,60,125,null,null,null,null,null,null,null,null,null,null,null,null,null,null,null,null,null,null,null,null,null,null,null,null,null,null,null,null,125,"漆黒のグローブ",null,null,null,null,null,null,2,null,null,null,null,null,5,5,3,3,3,3,null,null,null,18,40,null,"悪魔専用",125]
[null,null,null,null,null,null,null,null,null,null,null,null,null,null,null,null,null,null,null,null,null,null,null,null,null,null,null,null,null,null,null,null,null,null,null,null,null,126,"アシッドウィップ",null,null,2,null,null,null,null,null,24,null,null,null,null,null,9,8,9,-16,null,null,null,null,"近接","0-1","水",9,60,126,null,null,null,null,null,null,null,null,null,null,null,null,null,null,null,null,null,null,null,null,null,null,null,null,null,null,null,null,126,"フェアリーバングル",null,null,null,null,null,null,null,null,null,null,null,null,null,null,5,5,5,5,5,5,3,3,40,null,"妖精専用 [感情の強度]の合計値上限+1",126]
[null,null,null,null,null,null,null,null,null,null,null,null,null,null,null,null,null,null,null,null,null,null,null,null,null,null,null,null,null,null,null,null,null,null,null,null,null,127,"コントロールロッド",null,null,null,1,null,null,null,-1,21,null,null,null,null,null,12,-2,-3,8,null,null,7,null,"射撃","0-3","炎","(2)→7",60,127,null,null,null,null,null,null,null,null,null,null,null,null,null,null,null,null,null,null,null,null,null,null,null,null,null,null,null,null,127,"ルーンマスク",null,null,null,null,null,null,null,null,null,null,null,15,11,11,6,null,null,6,null,null,5,5,40,null,"戦乙女専用 感情の強度の合計値上限-2",127]
[null,null,null,null,null,null,null,null,null,null,null,null,null,null,null,null,null,null,null,null,null,null,null,null,null,null,null,null,null,null,null,null,null,null,null,null,null,128,"ライトスナイパー",null,null,null,1,null,null,null,-3,28,null,null,null,null,8,null,null,null,null,null,null,20,-10,"射撃","0-4","光","(3)→7",60,128,null,null,null,null,null,null,null,null,null,null,null,null,null,null,null,null,null,null,null,null,null,null,null,null,null,null,null,null,128,"先祖の竜爪",null,null,null,null,null,null,null,null,null,null,null,null,6,6,6,6,6,6,6,6,6,6,40,null,"竜人専用 加護属性の与ﾀﾞﾒｰｼﾞ+12",128]
[null,null,null,null,null,null,null,null,null,null,null,null,null,null,null,null,null,null,null,null,null,null,null,null,null,null,null,null,null,null,null,null,null,null,null,null,null,129,"バリアキャノン",null,null,null,1,null,null,null,null,30,null,null,null,15,15,8,8,8,8,8,8,8,8,"射撃","0-3","近","(3)→6",60,129,null,null,null,null,null,null,null,null,null,null,null,null,null,null,null,null,null,null,null,null,null,null,null,null,null,null,null,null,129,"ソニックフェザー",null,null,null,null,null,null,null,3,null,null,null,null,8,8,null,null,null,null,16,5,null,null,40,null,"鳥人専用",129]
[null,null,null,null,null,null,null,null,null,null,null,null,null,null,null,null,null,null,null,null,null,null,null,null,null,null,null,null,null,null,null,null,null,null,null,null,null,130,"カースライフル",null,null,null,1,null,null,null,-1,16,null,null,null,6,4,null,null,null,null,null,null,2,16,"射撃","0-4","遠","(1)→9",60,130,null,null,null,null,null,null,null,null,null,null,null,null,null,null,null,null,null,null,null,null,null,null,null,null,null,null,null,null,130,"マジカルハット",null,null,null,null,null,null,null,null,null,null,null,7,null,null,5,5,5,5,5,5,9,9,40,null,"魔道士専用 【知識】+3",130]
[null,null,null,null,null,null,null,null,null,null,null,null,null,null,null,null,null,null,null,null,null,null,null,null,null,null,null,null,null,null,null,null,null,null,null,null,null,131,"テレスコープガン",null,null,null,null,null,null,null,null,26,null,8,6,6,4,null,null,null,null,null,null,7,7,"射撃","0-3","遠",10,60,131,null,null,null,null,null,null,null,null,null,null,null,null,null,null,null,null,null,null,null,null,null,null,null,null,null,null,null,null,{"$f":"CR184+1","v":131},"スピアピアス",null,null,null,null,null,null,null,null,null,null,15,null,4,4,null,null,null,null,5,5,null,null,40,null,"獣人専用 【反射】+6",131]
[null,null,null,null,null,null,null,null,null,null,null,null,null,null,null,null,null,null,null,null,null,null,null,null,null,null,null,null,null,null,null,null,null,null,null,null,null,132,"ラッキーロングボウ",null,null,null,null,null,null,null,2,23,null,null,null,3,8,null,null,null,null,null,null,null,null,"射撃","0-4","遠",11,60,132,null,null,null,null,null,null,null,null,null,null,null,null,null,null,null,null,null,null,null,null,null,null,null,null,null,null,null,null,132,"妖懐石",null,null,null,null,null,null,null,null,null,null,null,null,6,6,3,3,3,3,3,3,3,3,40,null,"妖怪専用 [感情の強度]合計値上限+1",132]
[null,null,null,null,null,null,null,null,null,null,null,null,null,null,null,null,null,null,null,null,null,null,null,null,null,null,null,null,null,null,null,null,null,null,null,null,null,133,"レーザーガン改",null,null,null,1,null,null,null,null,21,null,null,null,null,6,2,2,2,2,2,2,18,-5,"射撃","2-3","光",8,60,133,null,null,null,null,null,null,null,null,null,null,null,null,null,null,null,null,null,null,null,null,null,null,null,null,null,null,null,null,133,"紅の宝玉",null,null,null,null,null,null,null,null,null,null,20,null,8,8,null,null,null,null,null,null,-10,10,40,null,"吸血鬼専用 【肉体】+4",133]
[null,null,null,null,null,null,null,null,null,null,null,null,null,null,null,null,null,null,null,null,null,null,null,null,null,null,null,null,null,null,null,null,null,null,null,null,null,134,"ヘヴィガトリング",null,null,null,null,null,null,null,-5,41,null,null,null,5,5,3,null,null,-8,null,null,null,null,"射撃","0-4","遠",12,60,134,null,null,null,null,null,null,null,null,null,null,null,null,null,null,null,null,null,null,null,null,null,null,null,null,null,null,null,null,134,"人造装甲",null,null,null,null,null,null,null,null,null,null,null,null,null,null,null,null,null,null,null,null,null,null,40,null,"魔法人形専用 受けるダメージを10点軽減",134]
[null,null,null,null,null,null,null,null,null,null,null,null,null,null,null,null,null,null,null,null,null,null,null,null,null,null,null,null,null,null,null,null,null,null,null,null,null,135,"スーパーメガホン",null,null,null,1,null,null,1,null,22,null,null,null,7,5,null,null,null,null,null,null,null,null,"射撃","0-4","遠",10,60,135,null,null,null,null,null,null,null,null,null,null,null,null,null,null,null,null,null,null,null,null,null,null,null,null,null,null,null,null,135,"メモリーレリック",null,null,null,null,null,null,null,null,null,null,null,null,6,6,3,3,3,3,3,3,3,3,40,null,"幽体専用 「BS：封印」を受けない",135]
[null,null,null,null,null,null,null,null,null,null,null,null,null,null,null,null,null,null,null,null,null,null,null,null,null,null,null,null,null,null,null,null,null,null,null,null,null,136,"カースクロスボウ",null,null,null,1,null,null,null,-2,22,null,null,null,5,5,null,null,null,null,null,null,-16,25,"射撃","2-4","闇","(3)→6",60,136,null,null,null,null,null,null,null,null,null,null,null,null,null,null,null,null,null,null,null,null,null,null,null,null,null,null,null,null,136,"神聖神器",null,null,null,null,null,null,null,null,null,null,null,6,null,null,2,2,2,2,2,2,11,11,40,null,"神格専用 【知識】+4",136]
[null,null,null,null,null,null,null,null,null,null,null,null,null,null,null,null,null,null,null,null,null,null,null,null,null,null,null,null,null,null,null,null,null,null,null,null,null,137,"ホールドワイヤー",null,null,null,null,null,null,null,null,25,null,null,null,3,3,null,null,null,null,null,null,null,null,"射撃","0-4","遠",9,60,137,null,null,null,null,null,null,null,null,null,null,null,null,null,null,null,null,null,null,null,null,null,null,null,null,null,null,null,null,137,"付喪根付",null,null,null,null,null,null,null,null,null,null,null,null,6,6,2,2,2,2,2,2,null,null,40,null,"付喪神専用 命中F値-2 (下限値：3)",137]
[null,null,null,null,null,null,null,null,null,null,null,null,null,null,null,null,null,null,null,null,null,null,null,null,null,null,null,null,null,null,null,null,null,null,null,null,null,138,"デリンジャー",null,null,null,1,null,null,null,3,14,null,null,null,3,3,null,null,null,null,null,null,null,null,"射撃","0-3","遠",9,60,138,null,null,null,null,null,null,null,null,null,null,null,null,null,null,null,null,null,null,null,null,null,null,null,null,null,null,null,null,138,"テイルリング",null,null,null,null,null,null,null,null,null,null,10,null,7,7,6,6,null,null,null,null,null,null,40,null,"爬虫人専用 回避F値-2 (下限値：3)",138]
[null,null,null,null,null,null,null,null,null,null,null,null,null,null,null,null,null,null,null,null,null,null,null,null,null,null,null,null,null,null,null,null,null,null,null,null,null,139,"ブラックバズーカ",null,null,null,null,null,null,null,null,23,null,null,8,null,null,null,null,null,null,null,null,null,12,"射撃","0-3","闇",10,60,139,null,null,null,null,null,null,null,null,null,null,null,null,null,null,null,null,null,null,null,null,null,null,null,null,null,null,null,null,139,"Fアリスバンド",null,null,null,null,null,null,null,null,null,null,null,null,null,4,-5,3,3,3,3,3,5,null,40,null,"花姫専用 戦闘開始時にﾌﾗﾜｰｶｳﾝﾀｰを1つ得る",139]
[null,null,null,null,null,null,null,null,null,null,null,null,null,null,null,null,null,null,null,null,null,null,null,null,null,null,null,null,null,null,null,null,null,null,null,null,null,140,"アンブレラガン",null,null,null,1,null,null,null,1,18,null,5,null,2,8,null,12,19,-6,10,null,null,null,"射撃","0-3","遠",11,60,140,null,null,null,null,null,null,null,null,null,null,null,null,null,null,null,null,null,null,null,null,null,null,null,null,null,null,null,null,140,"鬼の角",null,null,null,null,null,null,null,null,null,null,25,null,6,6,2,2,2,2,2,2,null,null,40,null,"鬼専用",140]
[null,null,null,null,null,null,null,null,null,null,null,null,null,null,null,null,null,null,null,null,null,null,null,null,null,null,null,null,null,null,null,null,null,null,null,null,null,141,"アルカナセッター",null,null,null,null,null,1,null,1,null,18,null,null,3,3,null,null,null,null,null,null,null,null,"魔法","1-3","遠","(5)→6",60,141,null,null,null,null,null,null,null,null,null,null,null,null,null,null,null,null,null,null,null,null,null,null,null,null,null,null,null,null,141,"複眼ゴーグル",null,null,null,null,2,null,null,null,null,null,null,null,null,null,null,null,null,null,null,null,null,null,40,null,"虫人専用",141]
[null,null,null,null,null,null,null,null,null,null,null,null,null,null,null,null,null,null,null,null,null,null,null,null,null,null,null,null,null,null,null,null,null,null,null,null,null,142,"アルカナ-22",null,null,null,null,null,null,null,null,null,22,null,7,3,3,2,2,2,2,2,2,1,1,"魔法","0-2","遠","(3)→7",60,142,null,null,null,null,null,null,null,null,null,null,null,null,null,null,null,null,null,null,null,null,null,null,null,null,null,null,null,null,142,"アクアリング",null,null,null,null,null,null,null,null,null,null,null,7,null,null,7,7,7,-5,5,5,null,null,40,null,"半魚人専用 《ｳｫｰﾀｰﾜｰﾙﾄﾞ》の代償に-1BP",142]
[null,null,null,null,null,null,null,null,null,null,null,null,null,null,null,null,null,null,null,null,null,null,null,null,null,null,null,null,null,null,null,null,null,null,null,null,null,143,"スターダストロッド",null,null,null,null,null,1,null,2,null,17,null,5,null,null,3,3,3,3,3,3,3,3,"魔法","0-3","光","(4)→7",60,143,null,null,null,null,null,null,null,null,null,null,null,null,null,null,null,null,null,null,null,null,null,null,null,null,null,null,null,null,143,"デスサイズウェイト",null,null,null,null,null,null,null,null,8,8,null,null,null,null,6,6,6,6,6,6,8,8,40,null,"死神専用",143]
[null,null,null,null,null,null,null,null,null,null,null,null,null,null,null,null,null,null,null,null,null,null,null,null,null,null,null,null,null,null,null,null,null,null,null,null,null,144,"人形強化の書",null,null,1,null,null,1,null,null,null,12,null,null,3,3,null,null,null,null,null,null,3,3,"魔法","0-3","遠","(5)→5",60,144,null,null,null,null,null,null,null,null,null,null,null,null,null,null,null,null,null,null,null,null,null,null,null,null,null,null,null,null,144,"真なる証",null,null,null,null,null,null,null,null,null,null,null,null,null,null,null,null,null,null,null,null,null,null,40,null,"偽人専用 [解放状態]与えるﾀﾞﾒｰｼﾞ+10",144]
[null,null,null,null,null,null,null,null,null,null,null,null,null,null,null,null,null,null,null,null,null,null,null,null,null,null,null,null,null,null,null,null,null,null,null,null,null,145,"禁じられた書物",null,null,null,null,null,null,null,null,null,32,-20,5,null,null,2,2,2,2,2,2,2,2,"魔法","0-3","遠","(4)→6",60,145,null,null,null,null,null,null,null,null,null,null,null,null,null,null,null,null,null,null,null,null,null,null,null,null,null,null,null,null,145,"---ｸﾗｽ専用ｱｸｾ---",null,null,null,null,null,null,null,null,null,null,null,null,null,null,null,null,null,null,null,null,null,null,0,null,"　",145]
[null,null,null,null,null,null,null,null,null,null,null,null,null,null,null,null,null,null,null,null,null,null,null,null,null,null,null,null,null,null,null,null,null,null,null,null,null,146,"クレイジーアイ",null,null,null,null,null,null,null,null,null,24,null,5,7,7,null,null,null,null,null,null,null,null,"魔法","0-4","遠","(3)→8",60,146,null,null,null,null,null,null,null,null,null,null,null,null,null,null,null,null,null,null,null,null,null,null,null,null,null,null,null,null,146,"アトミックウォッチ",null,null,null,null,null,null,null,null,null,null,null,null,null,null,9,null,null,null,null,null,7,null,40,null,"AB専用 命中F値-2 (下限値：3)",146]
[null,null,null,null,null,null,null,null,null,null,null,null,null,null,null,null,null,null,null,null,null,null,null,null,null,null,null,null,null,null,null,null,null,null,null,null,null,147,"メタリックロッド",null,null,null,null,null,null,1,null,null,15,null,5,4,4,8,8,8,null,8,8,6,6,"魔法","0-3","近","(3)→8",60,147,null,null,null,null,null,null,null,null,null,null,null,null,null,null,null,null,null,null,null,null,null,null,null,null,null,null,null,null,147,"アルカナクラスタ",null,null,null,null,null,null,null,null,null,null,null,null,null,null,2,2,2,2,2,2,null,null,40,null,"AG専用 《ｱﾙｶﾅｽﾄﾗｲｸ》のﾀﾞﾒｰｼﾞ増加効果+10",147]
[null,null,null,null,null,null,null,null,null,null,null,null,null,null,null,null,null,null,null,null,null,null,null,null,null,null,null,null,null,null,null,null,null,null,null,null,null,148,"セブンスワンド",null,null,null,null,null,1,1,null,null,16,null,null,null,null,2,null,2,2,2,2,2,2,"魔法","0-4","光","(2)→8",60,148,null,null,null,null,null,null,null,null,null,null,null,null,null,null,null,null,null,null,null,null,null,null,null,null,null,null,null,null,148,"アルカナカード",null,null,null,null,null,null,null,null,null,null,null,null,-4,-4,null,null,null,null,null,null,null,null,40,null,"AS専用 戦闘開始時ｱﾙｶﾅｶｳﾝﾀｰを1つ得る",148]
[null,null,null,null,null,null,null,null,null,null,null,null,null,null,null,null,null,null,null,null,null,null,null,null,null,null,null,null,null,null,null,null,null,null,null,null,null,149,"忍術大全",null,null,null,null,null,2,null,null,null,10,null,null,null,null,2,2,2,2,2,2,null,null,"魔法","0-4","遠","(3)→8",60,149,null,null,null,null,null,null,null,null,null,null,null,null,null,null,null,null,null,null,null,null,null,null,null,null,null,null,null,null,149,"ミニチュア天球儀",null,null,null,null,null,null,null,null,null,null,null,null,4,4,8,null,null,8,null,null,null,8,40,null,"AW専用 1戦闘1回 自身判定直後達成値+3",149]
[null,null,null,null,null,null,null,null,null,null,null,null,null,null,null,null,null,null,null,null,null,null,null,null,null,null,null,null,null,null,null,null,null,null,null,null,null,150,"マジカルウォッチ",null,null,null,null,null,null,1,null,null,24,null,null,null,null,null,null,null,null,null,null,null,3,"魔法","0-1","闇",11,60,150,null,null,null,null,null,null,null,null,null,null,null,null,null,null,null,null,null,null,null,null,null,null,null,null,null,null,null,null,150,"リーダーズバッジ",null,null,null,null,null,null,null,3,3,null,null,null,4,4,null,null,null,null,null,null,null,null,40,null,"BC専用",150]
[null,null,null,null,null,null,null,null,null,null,null,null,null,null,null,null,null,null,null,null,null,null,null,null,null,null,null,null,null,null,null,null,null,null,null,null,null,151,"人工エリクシル",null,null,null,null,null,1,1,null,null,17,null,null,null,null,6,null,6,null,6,6,null,null,"魔法","0-3","※","(4)→6",60,151,null,null,null,null,null,null,null,null,null,null,null,null,null,null,null,null,null,null,null,null,null,null,null,null,null,null,null,null,151,"マジックバリアー",null,null,null,null,null,null,null,null,null,null,null,null,8,8,3,3,3,3,3,3,3,3,40,null,"BD専用 戦闘開始時にﾊﾞﾘｱ状態を付与してもよい",151]
[null,null,null,null,null,null,null,null,null,null,null,null,null,null,null,null,null,null,null,null,null,null,null,null,null,null,null,null,null,null,null,null,null,null,null,null,null,152,"クリアウィングリスト",null,null,null,null,null,1,null,null,null,21,null,4,2,4,3,1,3,1,3,1,null,null,"魔法","0-3","近","(4)→8",60,152,null,null,null,null,null,null,null,null,null,null,null,null,null,null,null,null,null,null,null,null,null,null,null,null,null,null,null,null,152,"パワーゲイナー",null,null,null,null,null,null,null,null,null,null,null,null,8,8,null,null,null,null,null,null,null,null,40,null,"BR専用 「種別：支」ｽｷﾙの持続ｶｳﾝﾄに+2",152]
[null,null,null,null,null,null,null,null,null,null,null,null,null,null,null,null,null,null,null,null,null,null,null,null,null,null,null,null,null,null,null,null,null,null,null,null,null,153,"陰陽符",null,null,null,null,null,null,null,null,null,18,null,null,1,1,null,null,null,null,null,null,4,4,"魔法","1-4","※","(3)→8",60,153,null,null,null,null,null,null,null,null,null,null,null,null,null,null,null,null,null,null,null,null,null,null,null,null,null,null,null,null,153,"ブラッディリング",null,null,null,null,null,null,null,null,null,null,null,null,null,10,null,null,null,null,null,null,null,4,40,null,"BS専用 呪印の持続ｶｳﾝﾄを25にする",153]
[null,null,null,null,null,null,null,null,null,null,null,null,null,null,null,null,null,null,null,null,null,null,null,null,null,null,null,null,null,null,null,null,null,null,null,null,null,154,"ゼログローブ",null,null,null,null,null,1,null,null,null,16,null,10,4,4,null,null,null,null,null,null,null,null,"魔法","0-3","遠","(2)→9",60,154,null,null,null,null,null,null,null,null,null,null,null,null,null,null,null,null,null,null,null,null,null,null,null,null,null,null,null,null,154,"カラーブレスレット",null,null,null,null,null,null,null,null,null,null,null,null,null,null,null,null,null,null,null,null,null,null,40,null,"CI専用 1戦闘1回、〈色属性〉ﾀﾞﾒｰｼﾞを0にする",154]
[null,null,null,null,null,null,null,null,null,null,null,null,null,null,null,null,null,null,null,null,null,null,null,null,null,null,null,null,null,null,null,null,null,null,null,null,null,155,"--------スキル--------",null,null,null,null,null,null,null,null,null,null,null,null,null,null,null,null,null,null,null,null,null,null,null,null,null,null,null,155,null,null,null,null,null,null,null,null,null,null,null,null,null,null,null,null,null,null,null,null,null,null,null,null,null,null,null,null,155,"パートナードール",null,null,null,null,null,null,null,null,null,null,null,null,5,5,null,null,null,null,null,null,null,null,40,null,"CP専用 戦闘開始時同じﾏｽにﾄﾞｰﾙを配置",155]
[null,null,null,null,null,null,null,null,null,null,null,null,null,null,null,null,null,null,null,null,null,null,null,null,null,null,null,null,null,null,null,null,null,null,null,null,null,156,"イービルスレイヤー",null,null,1,null,null,null,null,null,{"$f":"(SL+CL)*5","v":5},null,null,null,null,null,null,null,null,null,null,null,null,{"$f":"20+CL*2","v":22},"近接","0-1","光",8,0,156,null,null,null,null,null,null,null,null,null,null,null,null,null,null,null,null,null,null,null,null,null,null,null,null,null,null,null,null,156,"カオスシール",null,null,null,null,null,null,null,null,null,null,null,null,4,4,null,null,null,null,null,null,null,null,40,null,"CR専用 戦闘開始時にｶｵｽﾊﾌﾟﾆﾝｸﾞﾛｰﾙを行える",156]
[null,null,null,null,null,null,null,null,null,null,null,null,null,null,null,null,null,null,null,null,null,null,null,null,null,null,null,null,null,null,null,null,null,null,null,null,null,157,"LAEVATEINN",null,null,null,null,null,null,3,null,{"$f":"(SL+CL)*6","v":6},null,null,null,null,null,{"$f":"SL*5+CL","v":1},null,null,{"$f":"SL*5+CL","v":1},null,null,{"$f":"SL*5+CL","v":1},null,"近接","0-1","炎",11,0,157,null,null,null,null,null,null,null,null,null,null,null,null,null,null,null,null,null,null,null,null,null,null,null,null,null,null,null,null,157,"ドリームレンズ",null,null,null,null,null,null,null,null,null,null,null,null,null,null,1,1,1,1,1,1,null,null,40,null,"DP専用 ｸﾗｽ特典を1戦闘2回使用できる",157]
[null,null,null,null,null,null,null,null,null,null,null,null,null,null,null,null,null,null,null,null,null,null,null,null,null,null,null,null,null,null,null,null,null,null,null,null,null,158,"付喪武器",null,null,1,null,1,null,null,null,{"$f":"(SL+CL)*4","v":4},null,null,null,null,null,null,null,null,null,null,null,null,null,"近接","0-1","近",10,0,158,null,null,null,null,null,null,null,null,null,null,null,null,null,null,null,null,null,null,null,null,null,null,null,null,null,null,null,null,158,"ヴィジョナルフィスト",null,null,null,null,null,null,null,null,null,null,null,null,null,null,null,null,null,null,3,3,null,null,40,null,"EB専用 装備武器を素手扱いにする",158]
[null,null,null,null,null,null,null,null,null,null,null,null,null,null,null,null,null,null,null,null,null,null,null,null,null,null,null,null,null,null,null,null,null,null,null,null,null,159,"追憶の名剣",null,null,2,null,null,null,null,null,{"$f":"(SL+CL)*4","v":4},null,null,null,null,null,null,null,null,null,null,null,null,null,"近接","0-1","近",11,0,159,null,null,null,null,null,null,null,null,null,null,null,null,null,null,null,null,null,null,null,null,null,null,null,null,null,null,null,null,159,"プラズマコード",null,null,null,null,null,null,null,null,null,null,null,null,4,4,2,2,2,10,-3,2,2,2,40,null,"EE専用 1ｾｯｼｮﾝ1回 自身の判定を振りなおす",159]
[null,null,null,null,null,null,null,null,null,null,null,null,null,null,null,null,null,null,null,null,null,null,null,null,null,null,null,null,null,null,null,null,null,null,null,null,null,160,"アイストライデント",null,null,1,null,1,null,2,null,{"$f":"(SL+CL)*4","v":4},null,null,null,null,null,null,null,null,null,null,null,null,null,"近接","0-3","氷",8,0,160,null,null,null,null,null,null,null,null,null,null,null,null,null,null,null,null,null,null,null,null,null,null,null,null,null,null,null,null,160,"アイドロンセーバー",null,null,null,null,null,null,null,null,null,null,null,null,null,null,null,null,null,null,null,null,null,null,40,null,"ER専用 1戦闘1回「幻獣」へのﾀﾞﾒｰｼﾞを0にする",160]
[null,null,null,null,null,null,null,null,null,null,null,null,null,null,null,null,null,null,null,null,null,null,null,null,null,null,null,null,null,null,null,null,null,null,null,null,null,161,"死神の鎌",null,null,null,null,null,null,null,null,{"$f":"CL*8+30","v":38},null,null,null,{"$f":"CL*8","v":8},{"$f":"CL*8","v":8},null,null,null,null,null,null,null,null,"近接","0-1","闇",8,0,161,null,null,null,null,null,null,null,null,null,null,null,null,null,null,null,null,null,null,null,null,null,null,null,null,null,null,null,null,161,"スノークリスタル",null,null,null,null,1,null,1,null,null,null,null,null,2,2,-4,8,3,null,null,null,null,null,40,null,"FC専用",161]
[null,null,null,null,null,null,null,null,null,null,null,null,null,null,null,null,null,null,null,null,null,null,null,null,null,null,null,null,null,null,null,null,null,null,null,null,null,162,"ムーンブレード",null,null,null,null,null,null,null,null,{"$f":"SL*5+18","v":18},null,null,null,null,null,null,null,null,null,null,null,{"$f":"CL*6","v":6},{"$f":"CL*6","v":6},"近接","0-N","闇",8,0,162,null,null,null,null,null,null,null,null,null,null,null,null,null,null,null,null,null,null,null,null,null,null,null,null,null,null,null,null,162,"禁断の栞",null,null,null,null,null,null,null,null,null,null,null,null,15,15,15,15,15,15,15,15,15,15,40,null,"FM専用",162]
[null,null,null,null,null,null,null,null,null,null,null,null,null,null,null,null,null,null,null,null,null,null,null,null,null,null,null,null,null,null,null,null,null,null,null,null,null,163,"彗星の剣",null,null,null,null,null,null,null,null,{"$f":"(SL+CL)*5","v":5},null,null,null,null,null,null,null,null,null,null,null,{"$f":"SL*3","v":0},{"$f":"SL*3","v":0},"近接","0-1","光",10,0,163,null,null,null,null,null,null,null,null,null,null,null,null,null,null,null,null,null,null,null,null,null,null,null,null,null,null,null,null,163,"ファイアローズ",null,null,null,null,null,null,null,null,null,null,null,null,5,5,25,10,-8,null,null,null,6,null,40,null,"FS専用 ｸﾘﾃｨｶﾙした攻撃のﾀﾞﾒｰｼﾞ+2D6",163]
[null,null,null,null,null,null,null,null,null,null,null,null,null,null,null,null,null,null,null,null,null,null,null,null,null,null,null,null,null,null,null,null,null,null,null,null,null,164,"ブラッドブレード",null,null,null,null,null,null,null,null,{"$f":"(SL+CL)*5","v":5},null,null,null,null,null,null,null,null,null,null,null,null,null,"近接","0-1","近",8,0,164,null,null,null,null,null,null,null,null,null,null,null,null,null,null,null,null,null,null,null,null,null,null,null,null,null,null,null,null,164,"アーツイヤリング",null,null,null,null,null,null,null,null,null,null,null,null,null,null,null,null,null,null,null,null,null,null,40,null,"IA専用 「種別：支」ｽｷﾙの代償-2MP (下限値：5MP)",164]
[null,null,null,null,null,null,null,null,null,null,null,null,null,null,null,null,null,null,null,null,null,null,null,null,null,null,null,null,null,null,null,null,null,null,null,null,null,165,"ツララランス",null,null,null,null,3,null,null,null,{"$f":"SL*5+15","v":15},null,null,null,null,null,null,20,null,null,null,null,null,null,"近接","0-2","氷",8,0,165,null,null,null,null,null,null,null,null,null,null,null,null,null,null,null,null,null,null,null,null,null,null,null,null,null,null,null,null,165,"チャージプロテクタ",null,null,null,null,null,null,null,null,null,null,null,null,8,8,7,7,7,7,7,7,7,7,40,null,"IS専用",165]
[null,null,null,null,null,null,null,null,null,null,null,null,null,null,null,null,null,null,null,null,null,null,null,null,null,null,null,null,null,null,null,null,null,null,null,null,null,166,"Sシールド",null,null,null,null,null,null,1,-10,{"$f":"SL*4+20","v":20},null,null,null,{"$f":"SL*3","v":0},{"$f":"SL*3","v":0},null,null,null,null,null,null,null,null,"近接","0-1","近",13,0,166,null,null,null,null,null,null,null,null,null,null,null,null,null,null,null,null,null,null,null,null,null,null,null,null,null,null,null,null,166,"ラッキークリスタル",null,null,null,null,null,null,null,null,null,null,null,null,5,5,2,2,2,2,2,2,null,null,40,null,"LA専用 命中F値・回避F値-1 (下限値：3)",166]
[null,null,null,null,null,null,null,null,null,null,null,null,null,null,null,null,null,null,null,null,null,null,null,null,null,null,null,null,null,null,null,null,null,null,null,null,null,167,"魔法双剣",null,null,null,null,null,null,null,null,{"$f":"SL*5+20","v":20},null,null,null,null,null,null,null,null,null,null,null,null,null,"近接","0-1","近",13,0,167,null,null,null,null,null,null,null,null,null,null,null,null,null,null,null,null,null,null,null,null,null,null,null,null,null,null,null,null,167,"レーザーサイト",null,null,null,1,null,null,null,null,4,4,null,null,3,3,null,null,null,null,null,null,3,8,40,null,"LS専用",167]
[null,null,null,null,null,null,null,null,null,null,null,null,null,null,null,null,null,null,null,null,null,null,null,null,null,null,null,null,null,null,null,null,null,null,null,null,null,168,"ライトセーバー",null,null,2,null,null,null,2,null,{"$f":"SL*4+24","v":24},null,null,null,null,null,null,null,null,null,null,null,null,null,"近接","0-1","光",9,0,168,null,null,null,null,null,null,null,null,null,null,null,null,null,null,null,null,null,null,null,null,null,null,null,null,null,null,null,null,168,"薬莢ネックレス",null,null,null,null,null,null,null,-3,13,13,null,null,2,2,null,null,null,null,null,null,null,null,40,null,"MA専用",168]
[null,null,null,null,null,null,null,null,null,null,null,null,null,null,null,null,null,null,null,null,null,null,null,null,null,null,null,null,null,null,null,null,null,null,null,null,null,169,"Qソード",null,null,1,null,null,null,null,null,{"$f":"(SL+CL)*4","v":4},null,null,null,null,null,{"$f":"SL*2","v":0},null,{"$f":"SL*2","v":0},null,{"$f":"SL*2","v":0},{"$f":"SL*2","v":0},null,null,"近接","0-1","炎水風土",8,0,169,null,null,null,null,null,null,null,null,null,null,null,null,null,null,null,null,null,null,null,null,null,null,null,null,null,null,null,null,169,"パニックマーク",null,null,null,null,null,null,null,null,null,null,null,null,null,null,10,10,null,null,null,null,null,null,40,null,"MV専用 MVのｸﾗｽ特典のﾀﾞﾒｰｼﾞに+7",169]
[null,null,null,null,null,null,null,null,null,null,null,null,null,null,null,null,null,null,null,null,null,null,null,null,null,null,null,null,null,null,null,null,null,null,null,null,null,170,"ヌルウェポン",null,null,null,null,null,null,null,null,{"$f":"(SL*4)+10","v":10},null,null,null,null,null,null,null,null,null,null,null,{"$f":"SL+CL","v":1},{"$f":"SL+CL","v":1},"近接","0-1","無",10,0,170,null,null,null,null,null,null,null,null,null,null,null,null,null,null,null,null,null,null,null,null,null,null,null,null,null,null,null,null,170,"プラチナピアス",null,null,null,null,null,null,null,null,null,null,null,10,10,10,5,5,3,null,5,5,4,4,40,null,"MW専用",170]
[null,null,null,null,null,null,null,null,null,null,null,null,null,null,null,null,null,null,null,null,null,null,null,null,null,null,null,null,null,null,null,null,null,null,null,null,null,171,"神色の宝剣",null,null,3,null,null,null,null,null,{"$f":"(SL+CL)*13","v":13},null,null,null,null,null,null,null,null,null,null,null,null,null,"近接","0-2","※",10,0,171,null,null,null,null,null,null,null,null,null,null,null,null,null,null,null,null,null,null,null,null,null,null,null,null,null,null,null,null,171,"レインボーオーブ",null,null,null,null,null,null,null,null,null,null,null,null,null,null,4,null,4,4,4,4,4,4,40,null,"OK専用 OKのｸﾗｽ特典のNの値に+2",171]
[null,null,null,null,null,null,null,null,null,null,null,null,null,null,null,null,null,null,null,null,null,null,null,null,null,null,null,null,null,null,null,null,null,null,null,null,null,172,"雷水晶の剣",null,null,null,null,2,null,null,null,{"$f":"SL*5+20","v":20},null,null,null,null,null,null,null,null,{"$f":"CL*8","v":8},null,null,null,null,"近接","0-2","雷",8,0,172,null,null,null,null,null,null,null,null,null,null,null,null,null,null,null,null,null,null,null,null,null,null,null,null,null,null,null,null,172,"パルスセンサー",null,null,null,null,null,null,null,null,null,null,null,null,5,5,3,3,3,3,3,3,3,3,40,null,"PD専用 全てのスキルに「種別：音」を追加",172]
[null,null,null,null,null,null,null,null,null,null,null,null,null,null,null,null,null,null,null,null,null,null,null,null,null,null,null,null,null,null,null,null,null,null,null,null,null,173,"宵闇の氷槍",null,null,2,null,null,null,null,null,{"$f":"(SL+CL)*5","v":5},null,null,null,null,null,null,{"$f":"CL*5","v":5},{"$f":"CL*5","v":5},null,null,null,{"$f":"CL*5","v":5},{"$f":"CL*5","v":5},"近接","0-2","氷闇",9,0,173,null,null,null,null,null,null,null,null,null,null,null,null,null,null,null,null,null,null,null,null,null,null,null,null,null,null,null,null,173,"エターナルリーフ",null,null,null,null,null,null,null,null,null,null,null,null,-3,-3,-10,-5,5,null,5,5,12,-7,40,null,"PP専用 ﾀﾞﾒｰｼﾞを受ける度に3MP回復",173]
[null,null,null,null,null,null,null,null,null,null,null,null,null,null,null,null,null,null,null,null,null,null,null,null,null,null,null,null,null,null,null,null,null,null,null,null,null,174,"ABYSS",null,null,3,null,null,null,null,null,{"$f":"SL*9","v":0},null,null,null,null,null,null,null,null,null,null,null,null,null,"近接","0-1","近",10,0,174,null,null,null,null,null,null,null,null,null,null,null,null,null,null,null,null,null,null,null,null,null,null,null,null,null,null,null,null,174,"イマジナリィボウ",null,null,null,null,null,null,null,null,null,null,null,null,null,null,2,2,2,2,2,2,null,10,40,null,"SA専用 装備武器の名称を「Iボウ」にする",174]
[null,null,null,null,null,null,null,null,null,null,null,null,null,null,null,null,null,null,null,null,null,null,null,null,null,null,null,null,null,null,null,null,null,null,null,null,null,175,"破天手甲",null,null,null,null,null,null,null,null,{"$f":"(SL+CL+2)*5","v":15},null,null,null,{"$f":"SL*5","v":0},null,{"$f":"CL","v":1},{"$f":"CL","v":1},null,null,null,null,null,null,"近接","0-1","近",9,0,175,null,null,null,null,null,null,null,null,null,null,null,null,null,null,null,null,null,null,null,null,null,null,null,null,null,null,null,null,175,"ドラゴンバングル",null,null,null,null,null,null,null,1,null,null,16,null,3,3,7,7,7,7,7,7,null,null,40,null,"SF専用",175]
[null,null,null,null,null,null,null,null,null,null,null,null,null,null,null,null,null,null,null,null,null,null,null,null,null,null,null,null,null,null,null,null,null,null,null,null,null,176,"金属バット",null,null,null,null,null,null,null,null,{"$f":"(SL+CL)*6","v":6},null,null,null,null,null,null,null,null,null,null,null,null,null,"近接","0-1","近",9,0,176,null,null,null,null,null,null,null,null,null,null,null,null,null,null,null,null,null,null,null,null,null,null,null,null,null,null,null,null,176,"ニンジャブーツ",null,null,null,null,2,null,null,null,null,null,null,null,-2,-2,null,null,null,null,null,null,null,null,40,null,"SN専用",176]
[null,null,null,null,null,null,null,null,null,null,null,null,null,null,null,null,null,null,null,null,null,null,null,null,null,null,null,null,null,null,null,null,null,null,null,null,null,177,"エアブレイカー",null,null,null,1,null,null,null,null,{"$f":"SL*5+15","v":15},null,null,null,null,null,null,null,null,null,null,null,null,null,"射撃","0-3","遠",10,0,177,null,null,null,null,null,null,null,null,null,null,null,null,null,null,null,null,null,null,null,null,null,null,null,null,null,null,null,null,177,"パラフェルナリア",null,null,null,null,null,null,null,null,null,null,null,null,3,3,3,3,3,3,3,3,3,3,40,null,"TA専用 戦闘開始時にｱｲﾃﾑ生成ﾛｰﾙを振ってもよい",177]
[null,null,null,null,null,null,null,null,null,null,null,null,null,null,null,null,null,null,null,null,null,null,null,null,null,null,null,null,null,null,null,null,null,null,null,null,null,178,"ノイズガン",null,null,null,2,null,null,null,null,{"$f":"(SL+CL)*5","v":5},null,null,null,null,null,null,null,null,null,null,null,null,null,"射撃","0-4","風",9,0,178,null,null,null,null,null,null,null,null,null,null,null,null,null,null,null,null,null,null,null,null,null,null,null,null,null,null,null,null,178,"クロックガジェット",null,null,null,null,null,null,null,null,null,null,null,null,-7,-7,-5,-5,-5,-5,-5,-5,-5,-5,40,null,"TD専用 「BS：怯み(X)」無効",178]
[null,null,null,null,null,null,null,null,null,null,null,null,null,null,null,null,null,null,null,null,null,null,null,null,null,null,null,null,null,null,null,null,null,null,null,null,null,179,"ブラッディアS",null,null,null,2,null,null,null,null,{"$f":"SL*4+CL*4","v":4},null,null,null,null,null,null,null,null,null,null,null,null,null,"射撃","0-5","遠",11,0,179,null,null,null,null,null,null,null,null,null,null,null,null,null,null,null,null,null,null,null,null,null,null,null,null,null,null,null,null,179,"ロンバスリング",null,null,null,null,null,null,null,null,null,null,null,5,null,null,null,null,null,null,null,null,null,null,40,null,"TE専用 専攻属性の耐性に+18",179]
[null,null,null,null,null,null,null,null,null,null,null,null,null,null,null,null,null,null,null,null,null,null,null,null,null,null,null,null,null,null,null,null,null,null,null,null,null,180,"BLR",null,null,null,null,-2,null,2,null,{"$f":"SL*3+CS!$AI$39","v":18},null,null,null,null,null,null,null,null,null,null,null,null,null,"射撃","0-5","光",8,0,180,null,null,null,null,null,null,null,null,null,null,null,null,null,null,null,null,null,null,null,null,null,null,null,null,null,null,null,null,180,"トリックキット",null,null,null,null,null,null,null,1,null,null,null,null,8,8,null,null,null,null,null,null,null,null,40,null,"TM専用 戦闘開始時にﾄﾘｯｸｶｳﾝﾀｰを1つ得る",180]
[null,null,null,null,null,null,null,null,null,null,null,null,null,null,null,null,null,null,null,null,null,null,null,null,null,null,null,null,null,null,null,null,null,null,null,null,null,181,"特大手裏剣",null,null,null,2,null,null,null,null,{"$f":"SL*5+CL*5","v":5},null,null,null,null,null,null,null,null,null,null,null,null,null,"射撃","0-3","遠",10,0,181,null,null,null,null,null,null,null,null,null,null,null,null,null,null,null,null,null,null,null,null,null,null,null,null,null,null,null,null,181,"ブラックピアス",null,null,null,null,null,null,null,null,null,null,null,null,null,null,null,null,null,null,null,null,null,8,40,null,"VC専用 1ｾｯｼｮﾝ1度、攻撃属性を無属性に変更",181]
[null,null,null,null,null,null,null,null,null,null,null,null,null,null,null,null,null,null,null,null,null,null,null,null,null,null,null,null,null,null,null,null,null,null,null,null,null,182,"ルーンデスサイズ",null,null,null,null,null,null,null,null,null,{"$f":"CL*3","v":3},null,null,null,null,null,null,null,null,null,null,{"$f":"CL*SL","v":0},null,"魔法","2-4","闇","(3)→6",0,182,null,null,null,null,null,null,null,null,null,null,null,null,null,null,null,null,null,null,null,null,null,null,null,null,null,null,null,null,182,"命の結晶",null,null,null,null,null,null,null,null,null,null,null,null,3,3,4,4,4,4,4,4,6,6,40,null,"VM専用 「種別：回」のHP回復量+5",182]
[null,null,null,null,null,null,null,null,null,null,null,null,null,null,null,null,null,null,null,null,null,null,null,null,null,null,null,null,null,null,null,null,null,null,null,null,null,null,null,null,null,null,null,null,null,null,null,null,null,null,null,null,null,null,null,null,null,null,null,null,null,null,null,null,null,null,null,null,null,null,null,null,null,null,null,null,null,null,null,null,null,null,null,null,null,null,null,null,null,null,null,null,null,null,null,183,"てるてる魔坊主",null,null,null,null,null,null,null,null,null,null,null,null,5,5,6,null,6,null,6,null,6,null,40,null,"WP専用 《天候の支配者》のSL上限+2",183]
[null,null,null,null,null,null,null,null,null,null,null,null,null,null,null,null,null,null,null,null,null,null,null,null,null,null,null,null,null,null,null,null,null,null,null,null,null,null,null,null,null,null,null,null,null,null,null,null,null,null,null,null,null,null,null,null,null,null,null,null,null,null,null,null,null,null,null,null,null,null,null,null,null,null,null,null,null,null,null,null,null,null,null,null,null,null,null,null,null,null,null,null,null,null,null,184,"タイフーンリスト",null,null,null,null,null,null,null,3,null,null,null,null,null,null,null,null,null,null,10,2,null,null,40,null,"WR専用 武器属性を〈風〉に変更する",184]
[null,null,null,null,null,null,null,null,null,null,null,null,null,null,null,null,null,null,null,null,null,null,null,null,null,null,null,null,null,null,null,null,null,null,null,null,null,null,null,null,null,null,null,null,null,null,null,null,null,null,null,null,null,null,null,null,null,null,null,null,null,null,null,null,null,null,null,null,null,null,null,null,null,null,null,null,null,null,null,null,null,null,null,null,null,null,null,null,null,null,null,null,null,null,null,185,"アクアシールド",null,null,null,null,null,null,null,null,null,null,null,null,null,null,null,-5,20,null,null,null,null,null,40,null,"WT専用 《降雨術》適用中、受けるﾀﾞﾒｰｼﾞ-10",185]
[null,null,null,null,null,null,null,null,null,null,null,null,null,null,null,null,null,null,null,null,null,null,null,null,null,null,null,null,null,null,null,null,null,null,null,null,null,null,null,null,null,null,null,null,null,null,null,null,null,null,null,null,null,null,null,null,null,null,null,null,null,null,null,null,null,null,null,null,null,null,null,null,null,null,null,null,null,null,null,null,null,null,null,null,null,null,null,null,null,null,null,null,null,null,null,186,"ドーマンセーマン",null,null,null,null,null,null,null,null,null,null,null,null,2,2,2,2,2,2,2,2,10,10,40,null,"YM専用 「BS：封印」無効",186]
[null,null,null,null,null,null,null,null,null,null,null,null,null,null,null,null,null,null,null,null,null,null,null,null,null,null,null,null,null,null,null,null,null,null,null,null,null,null,null,null,null,null,null,null,null,null,null,null,null,null,null,null,null,null,null,null,null,null,null,null,null,null,null,null,null,null,null,null,null,null,null,null,null,null,null,null,null,null,null,null,null,null,null,null,null,null,null,null,null,null,null,null,null,null,null,187,"サイコチューナー",null,null,null,null,null,null,null,null,null,null,null,null,null,null,null,null,null,null,null,null,null,null,40,null,"ZP専用 1戦闘1回C開始時にMP+15",187]
[null,null,null,null,null,null,null,null,null,null,null,null,null,null,null,null,null,null,null,null,null,null,null,null,null,null,null,null,null,null,null,null,null,null,null,null,null,null,null,null,null,null,null,null,null,null,null,null,null,null,null,null,null,null,null,null,null,null,null,null,null,null,null,null,null,null,null,null,null,null,null,null,null,null,null,null,null,null,null,null,null,null,null,null,null,null,null,null,null,null,null,null,null,null,null,188]
[null,null,null,null,null,null,null,null,null,null,null,null,null,null,null,null,null,null,null,null,null,null,null,null,null,null,null,null,null,null,null,null,null,null,null,null,null,null,null,null,null,null,null,null,null,null,null,null,null,null,null,null,null,null,null,null,null,null,null,null,null,null,null,null,null,null,null,null,null,null,null,null,null,null,null,null,null,null,null,null,null,null,null,null,null,null,null,null,null,null,null,null,null,null,null,189]
[null,null,null,null,null,null,null,null,null,null,null,null,null,null,null,null,null,null,null,null,null,null,null,null,null,null,null,null,null,null,null,null,null,null,null,null,null,null,null,null,null,null,null,null,null,null,null,null,null,null,null,null,null,null,null,null,null,null,null,null,null,null,null,null,null,null,null,null,null,null,null,null,null,null,null,null,null,null,null,null,null,null,null,null,null,null,null,null,null,null,null,null,null,null,null,190]
[null,null,null,null,null,null,null,null,null,null,null,null,null,null,null,null,null,null,null,null,null,null,null,null,null,null,null,null,null,null,null,null,null,null,null,null,null,null,null,null,null,null,null,null,null,null,null,null,null,null,null,null,null,null,null,null,null,null,null,null,null,null,null,null,null,null,null,null,null,null,null,null,null,null,null,null,null,null,null,null,null,null,null,null,null,null,null,null,null,null,null,null,null,null,null,191]

{"sheet":"武器用","index":4,"n_rows":184,"n_cols":32,"rows_kept":184,"cut":false,"hidden":false,"merged":[[204,1,204,3],[205,1,205,3],[194,1,194,3],[195,1,195,3],[196,1,196,3],[197,1,197,3],[198,1,198,3],[199,1,199,3],[1,1,1,3],[191,1,191,3],[206,1,206,3],[184,1,184,3],[185,1,185,3],[186,1,186,3],[187,1,187,3],[188,1,188,3],[189,1,189,3],[190,1,190,3],[192,1,192,3],[193,1,193,3],[200,1,200,3],[201,1,201,3],[202,1,202,3],[203,1,203,3]]}
[]
[null,"武器名",null,null,"近接","射撃","回避","魔術","抵抗","敏捷","物攻","魔攻","耐久","精神","近","遠","炎","氷","水","雷","風","土","光","闇","種別","射程","属性","ｺｽﾄ","効果","金額",null,"装備リスト"]
[1,"---共通近接武器---",null,null,null,null,null,null,null,null,null,null,null,null,null,null,null,null,null,null,null,null,null,null,null,null,null,null,null,0,null,"---- 一般武器 ----"]
[2,"素手",null,null,-2,null,null,null,null,null,16,null,null,null,-7,-7,null,null,null,null,null,null,null,null,"近接","0-1","近",9,"効果なし",0,null,{"$f":"IF(CS!$AJ$16=\"近接\",B4,IF(CS!$AJ$16=\"射撃\",B43,IF(CS!$AJ$16=\"魔術\",B82, )))","v":"素手"}]
[3,"スタンダードソード",null,null,null,null,null,null,null,null,20,null,null,null,3,1,null,null,null,null,null,null,null,null,"近接","0-1","近",9,"効果なし",10,null,{"$f":"IF(CS!$AJ$16=\"近接\",B5,IF(CS!$AJ$16=\"射撃\",B44,IF(CS!$AJ$16=\"魔術\",B83, )))","v":"スタンダードソード"}]
[4,"レイピア",null,null,-1,null,null,null,null,1,28,null,null,null,2,null,null,null,null,null,null,null,null,null,"近接","0-1","近",9,"【反射】+2",10,null,{"$f":"IF(CS!$AJ$16=\"近接\",B6,IF(CS!$AJ$16=\"射撃\",B45,IF(CS!$AJ$16=\"魔術\",B84, )))","v":"レイピア"}]
[5,"バスタードソード",null,null,-2,null,-1,null,null,-1,36,null,3,null,3,2,1,1,1,null,null,null,null,null,"近接","0-1","近",10,"【肉体】+2",10,null,{"$f":"IF(CS!$AJ$16=\"近接\",B7,IF(CS!$AJ$16=\"射撃\",B46,IF(CS!$AJ$16=\"魔術\",B85, )))","v":"バスタードソード"}]
[6,"ヘヴィアックス",null,null,-2,null,null,null,null,null,33,null,null,null,3,3,null,null,null,null,null,null,null,null,"近接","0-1","近",11,"【肉体】+2",10,null,{"$f":"IF(CS!$AJ$16=\"近接\",B8,IF(CS!$AJ$16=\"射撃\",B47,IF(CS!$AJ$16=\"魔術\",B86, )))","v":"ヘヴィアックス"}]
[7,"ショートソード",null,null,null,null,null,null,null,3,12,null,null,null,1,1,null,null,null,null,null,null,null,null,"近接","0-1","近",9,"【反射】+2",10,null,{"$f":"IF(CS!$AJ$16=\"近接\",B9,IF(CS!$AJ$16=\"射撃\",B48,IF(CS!$AJ$16=\"魔術\",B87, )))","v":"ショートソード"}]
[8,"鋼鉄剣 -玉鋼-",null,null,null,null,null,null,null,null,22,null,null,null,4,1,null,null,2,null,1,2,null,null,"近接","0-1","近",9,"スキルによらない武器攻撃ダメージに+10",20,null,{"$f":"IF(CS!$AJ$16=\"近接\",B10,IF(CS!$AJ$16=\"射撃\",B49,IF(CS!$AJ$16=\"魔術\",B88, )))","v":"鋼鉄剣 -玉鋼-"}]
[9,"アイアンシックル",null,null,null,null,-1,null,null,null,27,null,null,null,-3,-3,-3,-3,-3,-3,-3,-3,-3,-3,"近接","0-1","近",10,"効果なし",20,null,{"$f":"IF(CS!$AJ$16=\"近接\",B11,IF(CS!$AJ$16=\"射撃\",B50,IF(CS!$AJ$16=\"魔術\",B89, )))","v":"アイアンシックル"}]
[10,"ブレードシールド",null,null,-1,null,-1,null,-1,null,22,null,10,null,7,7,5,5,3,3,null,6,null,null,"近接","0-1","近",10,"効果なし",25,null,{"$f":"IF(CS!$AJ$16=\"近接\",B12,IF(CS!$AJ$16=\"射撃\",B51,IF(CS!$AJ$16=\"魔術\",B90, )))","v":"ブレードシールド"}]
[11,"ロングソード",null,null,-1,null,null,null,null,-1,33,null,null,null,6,null,1,1,1,null,null,null,null,null,"近接","0-2","近",11,"【肉体】+2",25,null,{"$f":"IF(CS!$AJ$16=\"近接\",B13,IF(CS!$AJ$16=\"射撃\",B52,IF(CS!$AJ$16=\"魔術\",B91, )))","v":"ロングソード"}]
[12,"マジックシールド",null,null,null,null,null,null,1,null,16,5,15,null,10,10,7,7,7,7,7,7,7,7,"近接","0-1","近",10,"【集中】+1 【知識】+1",35,null,{"$f":"IF(CS!$AJ$16=\"近接\",B14,IF(CS!$AJ$16=\"射撃\",B53,IF(CS!$AJ$16=\"魔術\",B92, )))","v":"マジックシールド"}]
[13,"鉄槌",null,null,-1,null,-1,null,null,-1,31,null,null,null,3,3,1,1,1,1,1,1,null,null,"近接","0-1","近",12,"この武器による攻撃の命中Ｃ値-1 (下限値：15)",35,null,{"$f":"IF(CS!$AJ$16=\"近接\",B15,IF(CS!$AJ$16=\"射撃\",B54,IF(CS!$AJ$16=\"魔術\",B93, )))","v":"鉄槌"}]
[14,"マン・ゴーシュ",null,null,null,null,1,null,null,1,20,null,null,null,8,null,-2,-2,-2,null,null,null,null,null,"近接","0-1","近",10,"効果なし",35,null,"---- 限定武器 ----"]
[15,"高周波ブレード",null,null,null,null,null,null,-1,null,29,null,null,null,4,3,4,null,null,null,3,null,null,null,"近接","0-1","風",9,"この武器で攻撃を行うたびに【MP】を2点消費する。",40,null,{"$f":"IF(CS!$AJ$16=\"近接\",B121,IF(CS!$AJ$16=\"射撃\",B133,IF(CS!$AJ$16=\"魔術\",B145, )))","v":"アイスサーベル"}]
[16,"グランドハンマー",null,null,null,null,-1,null,null,-5,38,null,8,null,6,6,null,null,null,null,3,24,null,null,"近接","0-1","土",12,"効果なし",40,null,{"$f":"IF(CS!$AJ$16=\"近接\",B122,IF(CS!$AJ$16=\"射撃\",B134,IF(CS!$AJ$16=\"魔術\",B146, )))","v":"灼炎剣 -焔-"}]
[17,"メタルクロー",null,null,null,null,null,null,null,4,21,null,null,null,10,null,null,null,null,null,null,null,null,null,"近接","0-1","近",10,"効果なし",40,null,{"$f":"IF(CS!$AJ$16=\"近接\",B123,IF(CS!$AJ$16=\"射撃\",B135,IF(CS!$AJ$16=\"魔術\",B147, )))","v":"ヴァリアブルスピア"}]
[18,"パワードナックル",null,null,-1,null,null,null,null,2,30,null,null,null,-3,-3,null,null,null,null,null,null,null,null,"近接","0-1","近",9,"素手扱い武器",45,null,{"$f":"IF(CS!$AJ$16=\"近接\",B124,IF(CS!$AJ$16=\"射撃\",B136,IF(CS!$AJ$16=\"魔術\",B148, )))","v":"ヒュージシールド"}]
[19,"バトルアンブレラ",null,null,null,null,null,null,null,-1,29,null,null,null,6,5,null,null,null,null,null,null,null,null,"近接","0-1","近",10,"効果なし",45,null,{"$f":"IF(CS!$AJ$16=\"近接\",B125,IF(CS!$AJ$16=\"射撃\",B137,IF(CS!$AJ$16=\"魔術\",B149, )))","v":"バンブースピア"}]
[20,"業物：凍河",null,null,null,null,null,null,null,null,28,null,null,null,7,4,-14,14,6,null,null,null,null,null,"近接","0-1","氷",10,"効果なし",50,null,{"$f":"IF(CS!$AJ$16=\"近接\",B126,IF(CS!$AJ$16=\"射撃\",B138,IF(CS!$AJ$16=\"魔術\",B150, )))","v":"マジカルヌンチャク"}]
[21,"業物：漆黒",null,null,null,null,null,null,null,null,28,null,null,null,7,4,1,1,1,1,1,1,-14,14,"近接","0-1","闇",10,"効果なし",50,null,{"$f":"IF(CS!$AJ$16=\"近接\",B127,IF(CS!$AJ$16=\"射撃\",B139,IF(CS!$AJ$16=\"魔術\",B151, )))","v":"風魔槍 -鎌鼬-"}]
[22,"アゾット剣",null,null,null,null,null,1,1,1,17,8,null,10,null,null,3,3,3,3,3,3,4,4,"近接","0-1","近",9,"各戦闘のBﾌｪｲｽﾞ中、最初に使用したｽｷﾙ代償-15MP",60,null,{"$f":"IF(CS!$AJ$16=\"近接\",B128,IF(CS!$AJ$16=\"射撃\",B140,IF(CS!$AJ$16=\"魔術\",B152, )))","v":"アシッドウィップ"}]
[23,"モーニングスター",null,null,null,null,null,null,null,null,30,null,null,null,7,8,1,1,1,1,1,1,3,12,"近接","0-2","光",10,"効果なし",60,null,{"$f":"IF(CS!$AJ$16=\"近接\",B129,IF(CS!$AJ$16=\"射撃\",B141,IF(CS!$AJ$16=\"魔術\",B153, )))","v":"コントロールロッド"}]
[24,"紫電",null,null,null,null,1,null,null,3,25,null,null,null,-3,-5,null,null,null,15,null,-8,null,null,"近接","0-1","雷",9,"効果なし",65,null,{"$f":"IF(CS!$AJ$16=\"近接\",B130,IF(CS!$AJ$16=\"射撃\",B142,IF(CS!$AJ$16=\"魔術\",B154, )))","v":"ライトスナイパー"}]
[25,"魔断チェーンソー",null,null,null,null,null,null,null,null,40,null,null,null,2,null,null,null,null,null,null,null,null,null,"近接","0-1","近",9,"命中判定のF値に+3 (上限値：10)",65,null,"---- スキル武器 ----"]
[26,"スパークスピア",null,null,-1,null,null,null,null,1,40,null,null,null,6,4,2,2,2,13,null,-7,null,null,"近接","0-1","雷",11,"あなたは「BS：麻痺」を受けない。",70,null,{"$f":"IF(CS!$AJ$16=\"近接\",B158,IF(CS!$AJ$16=\"射撃\",B178,IF(CS!$AJ$16=\"魔術\",B192, )))&\"\"","v":"イービルスレイヤー"}]
[27,"スターセイバー",null,null,null,null,null,null,null,null,32,null,null,null,8,5,null,null,null,null,null,null,12,12,"近接","0-1","光",9,"あなたは「BS：呪い」を受けない。",75,null,{"$f":"IF(CS!$AJ$16=\"近接\",B159,IF(CS!$AJ$16=\"射撃\",B179,IF(CS!$AJ$16=\"魔術\",B193, )))&\"\"","v":"LAEVATEINN"}]
[28,"フレアアックス",null,null,null,null,null,null,null,-2,40,null,5,null,5,5,13,2,-5,null,null,null,null,null,"近接","0-1","炎",9,"あなたは「BS：凍結」を受けない。",75,null,{"$f":"IF(CS!$AJ$16=\"近接\",B160,IF(CS!$AJ$16=\"射撃\",B182,IF(CS!$AJ$16=\"魔術\",B194, )))&\"\"","v":"付喪武器"}]
[29,"サウザンドテイル",null,null,1,null,null,null,null,2,26,null,6,null,3,2,null,null,null,null,null,null,null,null,"近接","0-1","近",10,"命中F値に-1 (下限値：3)",75,null,{"$f":"IF(CS!$AJ$16=\"近接\",B161,IF(CS!$AJ$16=\"射撃\",B183,IF(CS!$AJ$16=\"魔術\",B195, )))&\"\"","v":"追憶の名剣"}]
[30,"ペンタシールド",null,null,null,null,null,null,1,null,22,null,25,null,13,13,15,13,12,13,10,8,11,11,"近接","0-1","近",13,"効果なし",85,null,{"$f":"IF(CS!$AJ$16=\"近接\",B163,IF(CS!$AJ$16=\"射撃\",B184,IF(CS!$AJ$16=\"魔術\",B196, )))&\"\"","v":"死神の鎌"}]
[31,"名刀 -桜花-",null,null,1,null,null,null,null,1,38,null,null,null,13,null,2,2,null,null,4,3,null,null,"近接","0-1","近",11,{"$f":"\"自身の戦闘で最初の攻撃で与えるﾀﾞﾒｰｼﾞに+\"&CL*3+15","v":"自身の戦闘で最初の攻撃で与えるﾀﾞﾒｰｼﾞに+18"},90,null,{"$f":"IF(CS!$AJ$16=\"近接\",B164,IF(CS!$AJ$16=\"射撃\",B185,IF(CS!$AJ$16=\"魔術\",B197, )))&\"\"","v":"ムーンブレード"}]
[32,"ウィンドブーメラン",null,null,1,null,null,null,null,1,26,null,null,null,3,1,1,1,null,2,6,null,null,null,"近接","0-2","風",10,"効果なし",90,null,{"$f":"IF(CS!$AJ$16=\"近接\",B165,IF(CS!$AJ$16=\"射撃\",B186,IF(CS!$AJ$16=\"魔術\",B198, )))&\"\"","v":"彗星の剣"}]
[33,"大業物：皆中",null,null,3,null,null,null,null,null,24,null,null,null,10,10,null,null,null,null,null,null,null,null,"近接","0-1","近",9,"効果なし",100,null,{"$f":"IF(CS!$AJ$16=\"近接\",B166,IF(CS!$AJ$16=\"射撃\",B187,IF(CS!$AJ$16=\"魔術\",B199, )))&\"\"","v":"ブラッドブレード"}]
[34,"音速槍",null,null,1,null,null,null,null,2,41,null,null,null,6,3,null,null,null,null,11,10,null,null,"近接","0-1","近",9,"攻撃時7MP消費して、「射程：0-5」に変更可。",100,null,{"$f":"IF(CS!$AJ$16=\"近接\",B167,IF(CS!$AJ$16=\"射撃\",B188,IF(CS!$AJ$16=\"魔術\",B200, )))&\"\"","v":"ツララランス"}]
[35,"ドラゴンズブレード",null,null,null,null,null,null,1,2,50,null,null,null,13,10,12,null,12,8,9,9,5,5,"近接","0-1","近",9,"効果なし",120,null,{"$f":"IF(CS!$AJ$16=\"近接\",B168,IF(CS!$AJ$16=\"射撃\",B189,IF(CS!$AJ$16=\"魔術\",B201, )))&\"\"","v":"Sシールド"}]
[36,"スーパーグローブ",null,null,-1,null,null,null,null,6,50,null,15,null,16,2,1,1,1,1,1,1,4,4,"近接","0-1","近",11,"素手扱い武器",120,null,{"$f":"IF(CS!$AJ$16=\"近接\",B172,IF(CS!$AJ$16=\"射撃\",B190,IF(CS!$AJ$16=\"魔術\",B202, )))&\"\"","v":"ヌルウェポン"}]
[37,"EXCALIBUR-C",null,null,1,null,1,null,1,3,45,10,15,10,16,9,8,8,8,7,7,6,11,2,"近接","0-1","光",9,{"$f":"\"10の倍数ｶｳﾝﾄ終了時、あなたは【HP】\"&10+CL*2&\"点回復\"","v":"10の倍数ｶｳﾝﾄ終了時、あなたは【HP】12点回復"},140,null,{"$f":"IF(CS!$AJ$16=\"近接\",B173,IF(CS!$AJ$16=\"射撃\",B191,IF(CS!$AJ$16=\"魔術\",B203, )))&\"\"","v":"神色の宝剣"}]
[38,"---共通射撃武器---",null,null,null,null,null,null,null,null,null,null,null,null,null,null,null,null,null,null,null,null,null,null,null,null,null,null,null,0]
[39,"9mm拳銃",null,null,null,null,null,null,null,1,15,null,null,null,null,null,null,null,null,null,null,null,null,null,"射撃","0-4","遠",9,"3ﾏｽ以上離れた対象への攻撃には命中達成値-2",10]
[40,"ハードボウ",null,null,null,1,null,null,null,-1,2,null,null,null,1,1,null,null,null,null,null,null,null,null,"射撃","2-4","遠","(3)→6","効果なし",10]
[41,"スローイングダガー",null,null,null,null,null,null,null,null,8,null,null,null,null,null,null,null,null,null,null,null,null,null,"射撃","0-2","遠",9,"あなたの【肉体】が15以上の時、「射程：0-3」に変更。",10]
[42,"スリングショット",null,null,null,null,null,null,null,null,10,null,null,null,null,null,null,null,null,null,null,null,null,null,"射撃","0-3","遠","(2)→7","効果なし",10]
[43,"マグナム",null,null,null,null,null,null,null,2,20,null,null,null,null,null,null,null,null,null,null,null,null,null,"射撃","0-4","遠",10,"3ﾏｽ以上離れた対象への攻撃には命中達成値-2",20]
[44,"ハードボウ弐式",null,null,null,1,null,null,null,-2,5,null,null,null,null,null,null,null,null,null,null,null,null,null,"射撃","2-4","遠","(3)→6","【集中】+2",20]
[45,"散弾銃",null,null,null,1,-1,null,null,-2,13,null,null,null,null,null,null,null,null,null,null,null,null,null,"射撃","0-4","遠",10,"3ﾏｽ以上離れた対象への攻撃には命中達成値-2",20]
[46,"チャクラム",null,null,null,null,null,null,null,null,14,null,null,null,null,null,null,null,null,null,null,null,null,null,"射撃","0-3","遠","(2)→7","効果なし",20]
[47,"エッジヨーヨー",null,null,null,null,null,null,null,1,16,null,null,null,null,null,null,null,null,null,null,null,null,null,"射撃","0-2","遠",9,"効果なし",25]
[48,"ワイヤースタンガン",null,null,null,null,null,null,null,null,14,null,null,null,2,2,null,null,null,3,null,null,null,null,"射撃","0-2","雷",10,"ｸﾘﾃｨｶﾙした攻撃命中後、「BS：麻痺」を付与",25]
[49,"飛苦無",null,null,null,1,null,null,null,null,9,null,null,null,4,6,null,null,null,null,null,null,null,null,"射撃","0-2","遠",9,"【集中】+2",30]
[50,"四方手裏剣",null,null,null,null,null,null,null,null,16,null,null,null,-3,-3,null,null,null,null,null,null,null,null,"射撃","0-3","遠",9,"【集中】+2",30]
[51,"マジック砲 -MC2-",null,null,null,null,null,null,null,null,15,null,null,null,2,2,null,null,null,null,null,null,null,null,"射撃","3-4","遠",10,"効果なし",35]
[52,"Mスーパーボール",null,null,null,null,null,null,null,null,19,null,null,null,1,1,null,null,null,null,null,null,null,null,"射撃","0-2","遠",9,"効果なし",40]
[53,"バーナーキャノン",null,null,null,1,null,null,null,-1,17,null,null,3,null,3,8,12,2,2,null,null,null,null,"射撃","0-3","炎",11,"この武器を使用する攻撃の場合、4MP消費。",40]
[54,"風刃砲",null,null,null,null,null,null,null,1,17,null,null,null,3,3,12,6,7,null,8,null,null,null,"射撃","0-4","風",11,"命中判定の出目18以上で、ダメージ+20",40]
[55,"マジック砲 -MC5-",null,null,null,1,null,null,null,null,8,null,null,null,4,4,null,null,null,null,null,null,null,null,"射撃","0-3","風",10,"スキルでこの武器を使用した場合ダメージ+10",45]
[56,"フリスピーシールド",null,null,null,null,null,null,null,-2,13,null,8,null,16,14,10,6,6,5,7,7,4,4,"射撃","0-2","遠","(4)→7","【肉体】+3 【集中】+3",45]
[57,"フリーズキャノン",null,null,null,null,-1,null,null,-4,26,null,null,null,5,2,-5,16,8,3,3,3,null,null,"射撃","0-3","氷","(4)→8","「BS：凍結」を受けない。",50]
[58,"レーザーサック",null,null,null,null,null,null,null,null,19,null,null,2,null,null,null,null,null,null,null,null,5,5,"射撃","0-2","光",10,"【集中】+3",55]
[59,"魔法手裏剣",null,null,null,1,null,null,null,1,18,null,null,null,null,null,null,null,null,null,3,null,null,null,"射撃","0-3","風",9,"この武器を使用する攻撃の場合、2MP消費。",60]
[60,"ハイドロガン",null,null,null,null,null,null,null,-1,20,null,null,null,3,3,14,3,3,-5,null,null,null,null,"射撃","0-3","水",10,"ｸﾘﾃｨｶﾙした攻撃命中後、「BS：怯み(1)」を付与",60]
[61,"マジカルバルカン",null,null,null,1,-1,null,null,-4,24,null,null,3,4,8,3,1,1,1,1,null,null,null,"射撃","0-3","遠",12,"【肉体】+4 【集中】+4",60]
[62,"小型電磁砲",null,null,null,1,-1,null,null,-1,24,null,null,null,3,3,1,1,1,-5,null,null,null,null,"射撃","2-3","遠",10,"効果なし",70]
[63,"ヴァリアントボウ",null,null,null,1,null,null,null,null,14,null,null,null,4,8,null,null,null,null,null,null,3,3,"射撃","3-4","遠",11,"自身から3ﾏｽにいる対象への攻撃ダメージ+2D10",70]
[64,"スナイパーライフル",null,null,null,1,null,null,null,-3,26,null,null,null,3,3,null,null,null,null,null,null,null,null,"射撃","1-4","遠","(4)→8","「射程：1-2」内の対象への攻撃の命中達成値-3",70]
[65,"SMG",null,null,null,1,null,null,null,null,25,null,null,null,2,2,null,null,null,null,null,null,null,null,"射撃","0-3","遠",9,"【集中】+3",80]
[66,"対物ライフル",null,null,null,1,-1,null,null,-3,32,null,null,null,-4,-4,null,null,null,null,null,null,null,null,"射撃","0-4","遠",11,"サブアクションで移動した行動手番では攻撃不可。",80]
[67,"ヘヴィキャノン",null,null,null,-2,-1,null,-1,-3,40,null,null,null,8,4,3,2,2,3,3,3,null,null,"射撃","0-3","遠","(2)→9","【肉体】+5",80]
[68,"ロックブラスター",null,null,null,1,null,null,null,-2,25,null,null,null,11,9,3,4,null,6,7,11,null,null,"射撃","0-3","土","(4)→7","命中F値に+2。 (上限値：8)",80]
[69,"火炎放射器",null,null,null,null,null,null,null,-2,35,null,null,null,3,3,5,21,null,null,null,null,null,null,"射撃","0-2","炎",11,"効果なし",85]
[70,"ブラックボウガン",null,null,null,1,-1,null,null,-4,33,null,10,null,13,11,2,2,2,2,2,2,8,8,"射撃","2-4","遠","(4)→9","命中C値に-1。 (下限値：16)",95]
[71,"レーザーガン.prot",null,null,null,null,null,null,null,null,40,null,null,null,2,null,null,null,null,null,null,null,null,null,"射撃","2-4","遠",10,"移動コスト+2 (上限値：11)",125]
[72,"ショットオプション",null,null,null,1,null,null,null,1,25,null,null,null,8,8,null,null,null,null,null,null,null,null,"射撃","0-4","※",11,"攻撃宣言時に無属性以外の武器属性指定可能。",135]
[73,"ロケットランチャー",null,null,null,null,-1,null,-1,-3,50,null,null,null,2,2,2,null,null,null,null,null,null,null,"射撃","2-4","遠",12,"攻撃時、後方の味方に実ダメージ40点発生。",160]
[74,"ネオアサルト",null,null,null,2,-1,null,null,-4,42,null,null,null,6,4,null,null,null,null,null,null,null,null,"射撃","0-5","遠",10,"攻撃のコストに-1。(下限値：7)",180]
[75,"---共通魔法武器---"]
[76,"グリモワール",null,null,null,null,null,1,null,null,null,null,null,null,null,null,-5,null,null,null,null,null,null,null,"魔法","0-3","遠","(4)→6","【知識】+3",5]
[77,"スタッフ",null,null,null,null,null,null,null,null,null,8,null,null,null,null,1,1,1,1,1,1,null,null,"魔法","0-3","遠","(3)→7","スキルによらない武器攻撃ダメージに+15",10]
[78,"マジカルワンド",null,null,null,null,null,1,null,null,null,2,null,null,null,null,1,1,1,1,1,1,null,null,"魔法","0-3","遠","(3)→7","スキルによらない武器攻撃ダメージに+10",10]
[79,"マジックグローブ",null,null,null,null,null,null,null,null,null,10,null,null,3,null,null,null,null,null,null,null,null,null,"魔法","0-3","遠","(2)→8","スキルによらない武器攻撃ダメージに+10",10]
[80,"スペルオーブ",null,null,null,null,null,null,null,null,null,6,null,null,-3,-3,1,1,1,1,1,1,null,null,"魔法","0-3","遠","(3)→6","1ｾｯｼｮﾝに1度、自身の判定を振りなおせる",10]
[81,"強化対魔護符",null,null,null,null,null,null,null,null,null,8,null,5,4,3,null,null,null,null,null,null,6,6,"魔法","0-3","遠","(3)→8","「BS：封印」を受けない。",15]
[82,"ファイアロッド",null,null,null,null,null,1,null,null,null,10,null,null,null,null,8,-4,1,1,1,null,null,null,"魔法","0-3","炎","(4)→6","スキルによらない武器攻撃ダメージに+22",20]
[83,"フリーズロッド",null,null,null,null,null,1,null,null,null,10,null,null,null,null,-4,8,1,1,1,null,null,null,"魔法","0-3","氷","(4)→6","スキルによらない武器攻撃ダメージに+22",20]
[84,"ウェイブロッド",null,null,null,null,null,1,null,null,null,10,null,null,null,null,null,1,8,-4,1,1,null,null,"魔法","0-3","水","(4)→6","スキルによらない武器攻撃ダメージに+22",20]
[85,"サンダーロッド",null,null,null,null,null,1,null,null,null,10,null,null,null,null,null,1,1,8,1,-4,null,null,"魔法","0-3","雷","(4)→6","スキルによらない武器攻撃ダメージに+22",20]
[86,"魔笛",null,null,null,null,null,1,null,null,null,10,null,null,2,2,null,null,null,null,-3,-3,null,null,"魔法","0-4","遠","(5)→7","「BS：恐怖」を受けない。",20]
[87,"祝福の杖",null,null,null,null,null,null,null,null,null,16,null,4,null,null,3,3,3,3,3,3,null,null,"魔法","0-2","光","(2)→8","【知識】+3 命中F値-1 (下限値：4)",30]
[88,"ガードロッド",null,null,null,null,null,1,null,-2,null,12,null,null,3,3,4,2,3,1,2,2,1,1,"魔法","0-3","遠","(4)→6","「種別：防」のｽｷﾙ代償に-1MPする。(下限値：3MP)",40]
[89,"ホーリーワンド",null,null,null,null,null,null,1,null,null,10,null,3,2,2,null,null,null,null,null,null,null,null,"魔法","0-2","光","(4)→6",{"$f":"\"「種別：回」のｽｷﾙの【HP】回復量に+\"&CL+5","v":"「種別：回」のｽｷﾙの【HP】回復量に+6"},40]
[90,"イービルワンド",null,null,null,null,null,null,null,null,null,18,null,null,null,null,null,null,null,null,null,null,-16,16,"魔法","0-3","闇","(3)→7","ｸﾘﾃｨｶﾙした攻撃命中時、「BS：呪い」を付与",40]
[91,"アンプリファー",null,null,null,null,-1,null,null,null,null,21,null,null,1,1,-2,-2,-2,-2,-2,-2,-3,-3,"魔法","0-3","近","(3)→11","スキルによらない武器攻撃ダメージに+35",50]
[92,"アンテナメット",null,null,null,null,null,1,null,null,null,15,null,null,2,2,null,null,null,-10,null,null,null,null,"魔法","0-3","近","(3)→7","戦闘で最初の攻撃の命中判定達成値+5",50]
[93,"ダークチョーカー",null,null,null,null,null,1,null,null,null,14,null,4,3,3,4,4,4,4,4,4,12,12,"魔法","0-2","闇","(3)→13","スキルによらない武器攻撃ダメージに+30",50]
[94,"ジュエルスタッフ",null,null,null,null,null,2,null,null,null,10,null,null,null,null,null,null,null,null,null,null,null,null,"魔法","0-3","近","(3)→9","スキルによらない武器攻撃ダメージに+15",55]
[95,"氷華杖",null,null,null,null,null,null,1,-1,null,22,null,null,2,2,-10,14,6,null,null,null,null,null,"魔法","2-3","氷","(3)→7","攻撃時に5MPを支払い攻撃属性を〈氷〉に変更可。",60]
[96,"天雷杖",null,null,null,null,null,null,null,2,null,22,null,null,null,null,null,null,null,10,null,-5,null,null,"魔法","3-3","雷","(3)→8","スキルによらない武器攻撃ダメージに+31",60]
[97,"魔法剣",null,null,null,null,null,null,null,null,15,20,null,null,6,6,2,2,2,2,2,2,null,null,"魔法","0-3","近",12,"スキルによらない武器攻撃ダメージに+15",70]
[98,"WPリング",null,null,null,null,1,1,null,2,null,25,null,null,3,null,1,1,1,1,6,null,null,null,"魔法","0-3","風","(2)→11","スキルによらない武器攻撃ダメージに+18",75]
[99,"スターティンクル",null,null,null,null,null,1,null,1,null,31,null,3,1,1,2,2,2,2,4,null,7,null,"魔法","0-2","光","(4)→9","スキルによらない武器攻撃ダメージに+10",85]
[100,"ラッキーペンダント",null,null,null,null,null,1,null,1,null,14,null,null,3,3,null,null,null,null,null,null,null,null,"魔法","0-3","近",15,"[準備期間]でも《セカンドチャンス》使用可能。",85]
[101,"神秘の光球",null,null,null,null,null,1,1,null,null,23,null,3,3,3,4,4,4,4,4,4,10,15,"魔法","0-3","光","(3)→9","1戦闘1回、自身へのBS無効。",90]
[102,"アーススタッフ",null,null,null,null,null,1,null,null,null,35,null,null,3,1,2,2,2,null,null,5,null,null,"魔法","0-3","土","(5)→9","スキルによらない武器攻撃ダメージに+20",90]
[103,"ディバインロッド",null,null,null,null,null,1,2,null,null,20,null,3,3,3,null,null,null,null,null,null,4,16,"魔法","0-2","光","(4)→6",{"$f":"\"「種別：回」のｽｷﾙの【HP】回復量に+\"&CL*2+6","v":"「種別：回」のｽｷﾙの【HP】回復量に+8"},90]
[104,"クリスタルロッド",null,null,null,null,null,1,null,null,null,30,null,null,null,null,3,3,3,3,3,3,3,3,"魔法","0-3","遠","(2)→8","スキル代償に-1MP (下限値：3MP)",90]
[105,"ゼロポインター",null,null,null,null,null,1,null,null,null,15,null,3,5,5,4,4,4,4,4,4,4,4,"魔法","0-4","遠","(4)→10","[準備期間]でも《セカンドチャンス》使用可能。",95]
[106,"ワープブレスレット",null,null,null,null,null,null,null,2,null,34,null,null,null,null,null,null,null,null,null,null,null,null,"魔法","2-3","遠","(3)→7","[準備期間]でもダメージロールのｽｷﾙ使用可能。",95]
[107,"轟雷のアミュレット",null,null,null,null,1,null,1,3,null,32,null,6,2,2,null,null,null,30,null,-8,null,null,"魔法","0-3","雷",13,"「BS：麻痺」を受けない。",105]
[108,"エクリプスデイ",null,null,null,null,null,2,2,null,null,36,null,10,5,5,3,3,3,3,3,3,8,8,"魔法","0-4","光闇","(4)→8","効果なし",120]
[109,"インフィニティロッド",null,null,-2,-2,2,-4,2,-3,null,44,null,11,7,7,3,3,3,3,3,3,2,2,"魔法","0-2","遠","(3)→11","1戦闘3回、自身の判定を振り直し可能。",130]
[110,"ディープロッド",null,null,null,null,1,1,1,null,null,45,null,3,2,2,8,4,8,-10,null,null,null,null,"魔法","0-4","水","(4)→10","スキルによらない武器攻撃ダメージに+12",130]
[111,"七色の法典",null,null,null,null,1,2,1,2,null,42,null,null,5,5,7,7,7,7,7,7,7,7,"魔法","0-3","風","(7)→7","スキル代償に-1MP (下限値：1MP)",140]
[112,"---クラス専用---"]
[113,"パワーグローブ",null,null,-1,null,null,null,null,3,38,null,null,null,-4,-4,null,null,null,null,null,null,null,null,"近接","0-1","近",9,"BR専用。素手扱い武器。",60]
[114,"カラフルブレード",null,null,null,null,null,null,1,2,27,null,12,null,null,null,3,3,3,3,3,3,3,3,"近接","0-1","※",9,"CI専用。この武器の属性は〈色属性〉となる。",60]
[115,"ミステリーハンマー",null,null,1,null,null,null,null,null,22,null,6,6,4,1,null,null,null,null,null,null,null,null,"近接","0-1","近",8,"CR専用。武器で与えるﾀﾞﾒｰｼﾞに+[6D10-30]する。",60]
[116,"隕鉄拳",null,null,-1,null,null,null,null,3,35,null,null,null,13,2,null,null,null,2,3,5,null,null,"近接","0-1","土",9,"EB専用。素手扱い武器。命中F値-1 (下限値：3)",60]
[117,"電流警棒",null,null,null,null,null,null,null,3,32,null,null,null,-3,-3,2,2,2,13,null,null,null,null,"近接","0-1","雷",9,"EE専用。",60]
[118,"ライダーランス",null,null,1,null,null,null,null,-2,38,null,null,null,4,4,null,null,null,null,null,null,null,null,"近接","0-1","近",10,"ER専用。[騎乗戦闘]時、全判定のF値-1 (下限値：4)",60]
[119,"アイスサーベル",null,null,null,null,1,null,null,null,30,null,3,null,3,3,-11,14,9,null,null,null,null,null,"近接","0-1","氷",10,"FC専用。",60]
[120,"灼炎剣 -焔-",null,null,1,null,null,null,null,null,28,null,null,null,null,null,8,8,-5,null,null,null,3,3,"近接","0-1","炎",9,"FS専用。《火炎閃》のﾀﾞﾒｰｼﾞ+2D6",60]
[121,"ヴァリアブルスピア",null,null,1,null,null,null,null,3,18,null,null,null,null,null,null,null,null,null,null,null,null,null,"近接","0-1","近",10,"IA専用。 この武器から変更した武器持続ｶｳﾝﾄに+3",60]
[122,"ヒュージシールド",null,null,null,null,1,null,null,-5,27,null,25,null,13,12,11,10,8,9,9,8,6,6,"近接","0-1","近",12,"IS専用。準備期間中に受けるダメージを5点軽減。",60]
[123,"バンブースピア",null,null,1,null,1,null,null,1,28,null,null,null,null,null,-17,null,null,null,8,8,3,3,"近接","0-1","土",9,"PP専用。命中判定ｸﾘﾃｨｶﾙした場合、ﾀﾞﾒｰｼﾞに+CLD6",60]
[124,"マジカルヌンチャク",null,null,-1,null,1,null,null,null,33,null,null,null,-10,15,null,null,null,null,null,null,null,null,"近接","0-1","近",9,"SF専用。素手扱い武器。",60]
[125,"風魔槍 -鎌鼬-",null,null,null,null,1,null,null,2,33,null,null,null,null,null,null,null,null,6,15,-11,null,null,"近接","0-1","風",10,"WR専用。攻撃時5MP消費して、「射程：0-2」に変更可。",60]
[126,"アシッドウィップ",null,null,2,null,null,null,null,null,24,null,null,null,null,null,9,8,9,-16,null,null,null,null,"近接","0-1","水",9,"WT専用。《水流閃》の命中C値に-1。(下限値：16)",60]
[127,"コントロールロッド",null,null,null,1,null,null,null,-1,21,null,null,null,null,null,12,-2,-3,8,null,null,7,null,"射撃","0-3","炎","(2)→7","AB専用。《ｱﾄﾐｯｸﾊﾞｽﾀｰ》と《ｼｬｲﾝﾊﾞｰｽﾄ》の代償-1MP。",60]
[128,"ライトスナイパー",null,null,null,1,null,null,null,-3,28,null,null,null,null,8,null,null,null,null,null,null,20,-10,"射撃","0-4","光","(3)→7","BC専用。ｻﾌﾞで移動した行動手番中は攻撃不可。",60]
[129,"バリアキャノン",null,null,null,1,null,null,null,null,30,null,null,null,15,15,8,8,8,8,8,8,8,8,"射撃","0-3","近","(3)→6","BD専用。1戦闘2回、常時[ﾊﾞﾘｱ状態]の付与解除可能。",60]
[130,"カースライフル",null,null,null,1,null,null,null,-1,16,null,null,null,6,4,null,null,null,null,null,null,2,16,"射撃","0-4","遠","(1)→9","BS専用。「BS：呪印」を持つ対象への与ﾀﾞﾒｰｼﾞ+15。",60]
[131,"テレスコープガン",null,null,null,null,null,null,null,null,26,null,8,6,6,4,null,null,null,null,null,null,7,7,"射撃","0-3","遠",10,"DP専用。 命中C値-1 (下限値：15)",60]
[132,"ラッキーロングボウ",null,null,null,null,null,null,null,2,23,null,null,null,3,8,null,null,null,null,null,null,null,null,"射撃","0-4","遠",11,"LA専用。 命中C値-1 (下限値：16)",60]
[133,"レーザーガン改",null,null,null,1,null,null,null,null,21,null,null,null,null,6,2,2,2,2,2,2,18,-5,"射撃","2-3","光",8,"LS専用。《ﾚｰｻﾞｰｼｮｯﾄ》と《ﾃﾞﾄﾈｰｼｮﾝﾚｲ》の代償-1MP。",60]
[134,"ヘヴィガトリング",null,null,null,null,null,null,null,-5,41,null,null,null,5,5,3,null,null,-8,null,null,null,null,"射撃","0-4","遠",12,"MA専用。移動コストに+3。(上限値：12)",60]
[135,"スーパーメガホン",null,null,null,1,null,null,1,null,22,null,null,null,7,5,null,null,null,null,null,null,null,null,"射撃","0-4","遠",10,"PD専用。ｸﾘﾃｨｶﾙ攻撃の命中後、KB(1)を付与｡",60]
[136,"カースクロスボウ",null,null,null,1,null,null,null,-2,22,null,null,null,5,5,null,null,null,null,null,null,-16,25,"射撃","2-4","闇","(3)→6","SA専用。「BS：呪い」無効",60]
[137,"ホールドワイヤー",null,null,null,null,null,null,null,null,25,null,null,null,3,3,null,null,null,null,null,null,null,null,"射撃","0-4","遠",9,"TA専用。武器攻撃が命中した対象を1ﾏｽ前に配置。",60]
[138,"デリンジャー",null,null,null,1,null,null,null,3,14,null,null,null,3,3,null,null,null,null,null,null,null,null,"射撃","0-3","遠",9,"TM専用。戦闘開始時にﾄﾘｯｸｶｳﾝﾀｰを2つ得る。",60]
[139,"ブラックバズーカ",null,null,null,null,null,null,null,null,23,null,null,8,null,null,null,null,null,null,null,null,null,12,"射撃","0-3","闇",10,"VC専用。《ｳﾞｫｲﾄﾞｼｮｯﾄ》の代償に-1MPする。",60]
[140,"アンブレラガン",null,null,null,1,null,null,null,1,18,null,5,null,2,8,null,12,19,-6,10,null,null,null,"射撃","0-3","遠",11,"WP専用。「種別：天」のスキルのSL上限に+1する。",60]
[141,"アルカナ-22",null,null,null,null,null,null,null,null,null,22,null,7,3,3,2,2,2,2,2,2,1,1,"魔法","0-2","遠","(3)→7","AG専用。《ｱﾙｶﾅｽﾄﾗｲｸ》の代償-1MP。(下限：2MP)",60]
[142,"アルカナセッター",null,null,null,null,null,1,null,1,null,18,null,null,3,3,null,null,null,null,null,null,null,null,"魔法","1-3","遠","(5)→6","AS専用。30ｶｳﾝﾄ終了時にｱﾙｶﾅｶｳﾝﾀｰを1つ得る。",60]
[143,"スターダストロッド",null,null,null,null,null,1,null,2,null,17,null,5,null,null,3,3,3,3,3,3,3,3,"魔法","0-3","光","(4)→7","AW専用。クラス特典を15ｶｳﾝﾄ終了時までとする。",60]
[144,"人形強化の書",null,null,1,null,null,1,null,null,null,12,null,null,3,3,null,null,null,null,null,null,3,3,"魔法","0-3","遠","(5)→5","CP専用。配置するユニットの【耐久力】に+30。",60]
[145,"禁じられた書物",null,null,null,null,null,null,null,null,null,32,-20,5,null,null,2,2,2,2,2,2,2,2,"魔法","0-3","遠","(4)→6","FM専用。",60]
[146,"セブンスワンド",null,null,null,null,null,1,1,null,null,16,null,null,null,null,2,null,2,2,2,2,2,2,"魔法","0-4","光","(2)→8","OK専用。「種別：宝」ｽｷﾙの代償-1MP。(下限：3MP)",60]
[147,"クレイジーアイ",null,null,null,null,null,null,null,null,null,24,null,5,7,7,null,null,null,null,null,null,null,null,"魔法","0-4","遠","(3)→8","MV専用。「BS：催眠」無効",60]
[148,"メタリックロッド",null,null,null,null,null,null,1,null,null,15,null,5,4,4,8,8,8,null,8,8,6,6,"魔法","0-3","近","(3)→8","MW専用。「BS：毒(X)」無効",60]
[149,"忍術大全",null,null,null,null,null,2,null,null,null,10,null,null,null,null,2,2,2,2,2,2,null,null,"魔法","0-4","遠","(3)→8","SN専用。ｽｷﾙの代償に-1MPする。(下限値：7MP)",60]
[150,"マジカルウォッチ",null,null,null,null,null,null,1,null,null,24,null,null,null,null,null,null,null,null,null,null,null,3,"魔法","0-1","闇",11,{"$f":"\"TD専用。ｽｷﾙによらない武器攻撃ﾀﾞﾒｰｼﾞに+\"&15+CL*3&\"する。\"","v":"TD専用。ｽｷﾙによらない武器攻撃ﾀﾞﾒｰｼﾞに+18する。"},60]
[151,"人工エリクシル",null,null,null,null,null,1,1,null,null,17,null,null,null,null,6,null,6,null,6,6,null,null,"魔法","0-3","※","(4)→6","TE専用。武器属性は「専攻属性」から1つ選択する。",60]
[152,"クリアウィングリスト",null,null,null,null,null,1,null,null,null,21,null,4,2,4,3,1,3,1,3,1,null,null,"魔法","0-3","近","(4)→8",{"$f":"\"VM専用。「種別：回」のｽｷﾙの【HP】回復量に+\"&CL*2+8","v":"VM専用。「種別：回」のｽｷﾙの【HP】回復量に+10"},60]
[153,"陰陽符",null,null,null,null,null,null,null,null,null,18,null,null,1,1,null,null,null,null,null,null,4,4,"魔法","1-4","※","(3)→8","YM専用。武器属性は「陰陽属性」となる。",60]
[154,"ゼログローブ",null,null,null,null,null,1,null,null,null,16,null,10,4,4,null,null,null,null,null,null,null,null,"魔法","0-3","遠","(2)→9","ZP専用。1戦闘1回、ｶｳﾝﾄ開始時にMPを0にできる。",60]
[155,"--------スキル--------"]
[156,"イービルスレイヤー",null,null,1,null,null,null,null,null,{"$f":"(SL+CL)*5","v":5},null,null,null,null,null,null,null,null,null,null,null,null,{"$f":"20+CL*2","v":22},"近接","0-1","光",8,"特殊効果なし"]
[157,"LAEVATEINN",null,null,null,null,null,null,3,null,{"$f":"(SL+CL)*6","v":6},null,null,null,null,null,{"$f":"SL*5+CL","v":1},null,null,{"$f":"SL*5+CL","v":1},null,null,{"$f":"SL*5+CL","v":1},null,"近接","0-1","炎",11,"BS無効"]
[158,"付喪武器",null,null,1,null,1,null,null,null,{"$f":"(SL+CL)*4","v":4},null,null,null,null,null,null,null,null,null,null,null,null,null,"近接","0-1","近",10,"特殊効果なし"]
[159,"追憶の名剣",null,null,2,null,null,null,null,null,{"$f":"(SL+CL)*4","v":4},null,null,null,null,null,null,null,null,null,null,null,null,null,"近接","0-1","近",11,"特殊効果なし"]
[160,"アイストライデント",null,null,1,null,1,null,2,null,{"$f":"(SL+CL)*4","v":4},null,null,null,null,null,null,null,null,null,null,null,null,null,"近接","0-3","氷",8,"特殊効果なし"]
[161,"死神の鎌",null,null,null,null,null,null,null,null,{"$f":"CL*8+30","v":38},null,null,null,{"$f":"CL*8","v":8},{"$f":"CL*8","v":8},null,null,null,null,null,null,null,null,"近接","0-1","闇",8,"全C値-1(下限値：15)"]
[162,"ムーンブレード",null,null,null,null,null,null,null,null,{"$f":"SL*5+18","v":18},null,null,null,null,null,null,null,null,null,null,null,{"$f":"CL*6","v":6},{"$f":"CL*6","v":6},"近接","0-N","闇",8,"[この武器で与えたﾀﾞﾒｰｼﾞ/4](↓)点【HP】を回復する。"]
[163,"彗星の剣",null,null,null,null,null,null,null,null,{"$f":"(SL+CL)*5","v":5},null,null,null,null,null,null,null,null,null,null,null,{"$f":"SL*3","v":0},{"$f":"SL*3","v":0},"近接","0-1","光",10,"特殊効果なし"]
[164,"ブラッドブレード",null,null,null,null,null,null,null,null,{"$f":"(SL+CL)*5","v":5},null,null,null,null,null,null,null,null,null,null,null,null,null,"近接","0-1","近",8,"特殊効果なし"]
[165,"ツララランス",null,null,null,null,3,null,null,null,{"$f":"SL*5+15","v":15},null,null,null,null,null,null,20,null,null,null,null,null,null,"近接","0-2","氷",8,"【近接値】+N  N=消費アルカナカウンター数"]
[166,"Sシールド",null,null,null,null,null,null,1,-10,{"$f":"SL*4+20","v":20},null,null,null,{"$f":"SL*3","v":0},{"$f":"SL*3","v":0},null,null,null,null,null,null,null,null,"近接","0-1","近",13,"効果なし"]
[167,"魔法双剣",null,null,null,null,null,null,null,null,{"$f":"SL*5+20","v":20},null,null,null,null,null,null,null,null,null,null,null,null,null,"近接","0-1","近",13,"回避C値-1 (下限値：15)"]
[168,"ライトセーバー",null,null,2,null,null,null,2,null,{"$f":"SL*4+24","v":24},null,null,null,null,null,null,null,null,null,null,null,null,null,"近接","0-1","光",9,{"$f":"\"常時、受けるダメージを\"&SL+CL*3&\"点軽減する。\"","v":"常時、受けるダメージを3点軽減する。"}]
[169,"Qソード",null,null,1,null,null,null,null,null,{"$f":"(SL+CL)*4","v":4},null,null,null,null,null,{"$f":"SL*2","v":0},null,{"$f":"SL*2","v":0},null,{"$f":"SL*2","v":0},{"$f":"SL*2","v":0},null,null,"近接","0-1","炎水風土",8,{"$f":"\"「種別：魔」ｽｷﾙによる攻撃の与ﾀﾞﾒｰｼﾞに+2D10+\"&ROUNDDOWN(CS!AI37/2,0)","v":"「種別：魔」ｽｷﾙによる攻撃の与ﾀﾞﾒｰｼﾞに+2D10+20"}]
[170,"ヌルウェポン",null,null,null,null,null,null,null,null,{"$f":"(SL*4)+10","v":10},null,null,null,null,null,null,null,null,null,null,null,{"$f":"SL+CL","v":1},{"$f":"SL+CL","v":1},"近接","0-1","無",10,{"$f":"\"全ｽｷﾙ代償-\"&SL&\"MP。(下限値：2MP)\"","v":"全ｽｷﾙ代償-MP。(下限値：2MP)"}]
[171,"神色の宝剣",null,null,3,null,null,null,null,null,{"$f":"(SL+CL)*13","v":13},null,null,null,null,null,null,null,null,null,null,null,null,null,"近接","0-2","※",10,"怯み無効 この武器の属性は〈色属性〉となる。"]
[172,"雷水晶の剣",null,null,null,null,2,null,null,null,{"$f":"SL*5+20","v":20},null,null,null,null,null,null,null,null,{"$f":"CL*8","v":8},null,null,null,null,"近接","0-2","雷",8,"特殊効果なし"]
[173,"宵闇の氷槍",null,null,2,null,null,null,null,null,{"$f":"(SL+CL)*5","v":5},null,null,null,null,null,null,{"$f":"CL*5","v":5},{"$f":"CL*5","v":5},null,null,null,{"$f":"CL*5","v":5},{"$f":"CL*5","v":5},"近接","0-2","氷闇",9,"物攻に《ｱｰﾑｽﾞﾌｫｰｽ》のSL×4の補正が発生。"]
[174,"ABYSS",null,null,3,null,null,null,null,null,{"$f":"SL*9","v":0},null,null,null,null,null,null,null,null,null,null,null,null,null,"近接","0-1","近",10,"命中C値-1 (下限値：15) 1度の移動で2ﾏｽ移動可能"]
[175,"破天手甲",null,null,null,null,null,null,null,null,{"$f":"(SL+CL+2)*5","v":15},null,null,null,{"$f":"SL*5","v":0},null,{"$f":"CL","v":1},{"$f":"CL","v":1},null,null,null,null,null,null,"近接","0-1","近",9,{"$f":"IF(SL<CL,\"効果なし\",\"攻撃によって与えるダメージに+[未使用の感情×\"&CL&\"]\")","v":"効果なし"}]
[176,"金属バット",null,null,null,null,null,null,null,null,{"$f":"(SL+CL)*6","v":6},null,null,null,null,null,null,null,null,null,null,null,null,null,"近接","0-1","近",9,"この武器によるダメージは減少されない。"]
[177,"エアブレイカー",null,null,null,1,null,null,null,null,{"$f":"SL*5+15","v":15},null,null,null,null,null,null,null,null,null,null,null,null,null,"射撃","0-3","遠",10,"この武器による攻撃は耐性以外で軽減不可。"]
[178,"ノイズガン",null,null,null,2,null,null,null,null,{"$f":"(SL+CL)*5","v":5},null,null,null,null,null,null,null,null,null,null,null,null,null,"射撃","0-4","風",9,"KB(X)無効 全ｽｷﾙに「種別：音」付与。"]
[179,"ブラッディアS",null,null,null,2,null,null,null,null,{"$f":"SL*4+CL*4","v":4},null,null,null,null,null,null,null,null,null,null,null,null,null,"射撃","0-5","遠",11,"特殊効果なし"]
[180,"BLR",null,null,null,null,-2,null,2,null,{"$f":"SL*3+CS!$AI$39","v":18},null,null,null,null,null,null,null,null,null,null,null,null,null,"射撃","0-5","光",8,"呪印を受けている対象に呪印付与時、怯み(2)も付与。"]
[181,"特大手裏剣",null,null,null,2,null,null,null,null,{"$f":"SL*5+CL*5","v":5},null,null,null,null,null,null,null,null,null,null,null,null,null,"射撃","0-3","遠",10,"装備時、《手裏剣術》の使用回数を1回分回復する。"]
[182,"ルーンデスサイズ",null,null,null,null,null,null,null,null,null,{"$f":"CL*3","v":3},null,null,null,null,null,null,null,null,null,null,{"$f":"CL*SL","v":0},null,"魔法","2-4","闇","(3)→6",{"$f":"\"【魔術値】判定した攻撃のﾀﾞﾒｰｼﾞ+\"&20+CL*SL*2&\"する。\"","v":"【魔術値】判定した攻撃のﾀﾞﾒｰｼﾞ+20する。"}]